{"text_format":"1","workbook":"xlsx","n_sheets":5,"sheets":["Foglio1","Foglio2","Foglio3","Foglio4","Foglio5"],"not_rendered":{"charts":0,"images":0,"macros":1,"external_links":0,"defined_names":4,"comments":1,"pivot_tables":0},"unopened":[],"bounds":{"document_bytes":16777216,"sheet_cells":100000,"rows_first":2000,"rows_last":500,"rows_between":2000,"halvings":0,"cell_chars":16384,"cell_head_chars":4096},"cells_cut":0,"cells_raw":0,"read":"whole","date_system":"1900"}

{"sheet":"Foglio1","index":0,"n_rows":16,"n_cols":20,"rows_kept":16,"cut":false,"hidden":false,"merged":[[1,2,1,4],[1,6,1,9],[3,6,5,9],[8,6,10,9],[15,6,15,9]]}
[null,null,null,null,null,null,null,null,null,null,null,null,"Cognome",null,"Nome",null,null,"Data/Sesso","Luogo","Controllo"]
[null,null,"CALCOLO CODICE FISCALE"]
[null,null,null,null,null,null,"Associazione Sportiva Dilettantistica"]
[null,null,null,null,"M",null,"TEAM KARATE ORTANI"]
[null,null,null,null,"F"]
[null,null,"Cognome:",null,{"$f":"Foglio4!X17","v":0},null,null,null,null,null,null,null,{"$f":"MID(CONCATENATE(SUBSTITUTE(SUBSTITUTE(SUBSTITUTE(SUBSTITUTE(SUBSTITUTE(SUBSTITUTE(SUBSTITUTE(UPPER(E6),\" \",\"\"),\"A\",\"\"),\"E\",\"\"),\"I\",\"\"),\"O\",\"\"),\"U\",\"\"),\"'\",\"\"),N6,\"XXX\"),1,3)","v":"00X"},{"$f":"SUBSTITUTE(SUBSTITUTE(SUBSTITUTE(SUBSTITUTE(SUBSTITUTE(SUBSTITUTE(SUBSTITUTE(SUBSTITUTE(SUBSTITUTE(SUBSTITUTE(SUBSTITUTE(SUBSTITUTE(SUBSTITUTE(SUBSTITUTE(SUBSTITUTE(SUBSTITUTE(SUBSTITUTE(SUBSTITUTE(SUBSTITUTE(SUBSTITUTE(SUBSTITUTE(SUBSTITUTE(SUBSTITUTE(UPPER(E6),\" \",\"\"),\"B\",\"\"),\"C\",\"\"),\"D\",\"\"),\"F\",\"\"),\"G\",\"\"),\"H\",\"\"),\"J\",\"\"),\"K\",\"\"),\"L\",\"\"),\"M\",\"\"),\"N\",\"\"),\"P\",\"\"),\"Q\",\"\"),\"R\",\"\"),\"S\",\"\"),\"T\",\"\"),\"V\",\"\"),\"W\",\"\"),\"X\",\"\"),\"Y\",\"\"),\"Z\",\"\"),\"'\",\"\")","v":"0"},{"$f":"IF(LEN(P6)>3,CONCATENATE(MID(P6,1,1),MID(P6,3,2)),MID(CONCATENATE(P6,Q6),1,3))","v":"00X"},{"$f":"SUBSTITUTE(SUBSTITUTE(SUBSTITUTE(SUBSTITUTE(SUBSTITUTE(SUBSTITUTE(SUBSTITUTE(UPPER(E8),\" \",\"\"),\"A\",\"\"),\"E\",\"\"),\"I\",\"\"),\"O\",\"\"),\"U\",\"\"),\"'\",\"\")","v":"0"},{"$f":"CONCATENATE(SUBSTITUTE(SUBSTITUTE(SUBSTITUTE(SUBSTITUTE(SUBSTITUTE(SUBSTITUTE(SUBSTITUTE(SUBSTITUTE(SUBSTITUTE(SUBSTITUTE(SUBSTITUTE(SUBSTITUTE(SUBSTITUTE(SUBSTITUTE(SUBSTITUTE(SUBSTITUTE(SUBSTITUTE(SUBSTITUTE(SUBSTITUTE(SUBSTITUTE(SUBSTITUTE(SUBSTITUTE(UPPER(E8),\" \",\"\"),\"B\",\"\"),\"C\",\"\"),\"F\",\"\"),\"G\",\"\"),\"H\",\"\"),\"J\",\"\"),\"K\",\"\"),\"L\",\"\"),\"M\",\"\"),\"N\",\"\"),\"P\",\"\"),\"Q\",\"\"),\"R\",\"\"),\"S\",\"\"),\"T\",\"\"),\"V\",\"\"),\"W\",\"\"),\"X\",\"\"),\"Y\",\"\"),\"Z\",\"\"),\"'\",\"\"),\"XXX\")","v":"0XXX"},{"$f":"CONCATENATE(RIGHT(YEAR(E12),2),VLOOKUP(MONTH(E12),Foglio2!$A$2:$B$13,2),IF(E10=\"M\",TEXT(E12,\"GG\"),DAY(E12)+40))","v":"00A40"},{"$f":"VLOOKUP(E14,Foglio2!$E$2:$G$8376,3,FALSE)","v":{"$error":"#N/A"}},{"$f":"VLOOKUP(TEXT(MOD(VLOOKUP(MID(M6,1,1),dispari,2)+VLOOKUP(MID(M6,2,1),pari,2)+VLOOKUP(MID(M6,3,1),dispari,2)+VLOOKUP(MID(O6,1,1),pari,2)+VLOOKUP(MID(O6,2,1),dispari,2)+VLOOKUP(MID(O6,3,1),pari,2)+VLOOKUP(MID(R6,1,1),dispari,2)+VLOOKUP(MID(R6,2,1),pari,2)+VLOOKUP(MID(R6,3,1),dispari,2)+VLOOKUP(MID(R6,4,1),pari,2)+VLOOKUP(MID(R6,5,1),dispari,2)+VLOOKUP(MID(S6,1,1),pari,2)+VLOOKUP(MID(S6,2,1),dispari,2)+VLOOKUP(MID(S6,3,1),pari,2)+VLOOKUP(MID(S6,4,1),dispari,2),26),0),controllo,2)","v":{"$error":"#N/A"}}]
[]
[null,null,"Nome:",null,{"$f":"Foglio4!W15","v":0}]
[null,null,null,null,null,null,{"$f":"IFERROR(CONCATENATE(M6,O6,R6,S6,T6),\"\")","v":""}]
[null,null,"Sesso:",null,{"$f":"Foglio4!AL22","v":0}]
[]
[null,null,"Data di Nascita:",null,{"$f":"Foglio4!AB22","v":"00:00:00"}]
[null,null,null,null,"Formato: usare trattino (-)."]
[null,null,"Luogo di Nascita:",null,{"$f":"Foglio4!Z19","v":0}]
[]
[null,null,null,null,null,null,"Premere il tasto Invio per il calcolo Codice Fiscale"]

{"sheet":"Foglio2","index":1,"n_rows":8376,"n_cols":7,"rows_kept":8376,"cut":false,"hidden":false,"merged":[]}
["MESI","LETTERA",null,null,"Comune","Provincia","Codice"]
[1,"A",null,null,"abano terme","PD","A001"]
[2,"B",null,null,"abbadia cerreto","LO","A004"]
[3,"C",null,null,"abbadia lariana","LC","A005"]
[4,"D",null,null,"abbadia san salvatore","SI","A006"]
[5,"E",null,null,"abbasanta","OR","A007"]
[6,"H",null,null,"abbateggio","PE","A008"]
[7,"L",null,null,"abbiategrasso","MI","A010"]
[8,"M",null,null,"abetone","PT","A012"]
[9,"P",null,null,"abriola","PZ","A013"]
[10,"R",null,null,"acate","RG","A014"]
[11,"S",null,null,"accadia","FG","A015"]
[12,"T",null,null,"acceglio","CN","A016"]
[null,null,null,null,"accettura","MT","A017"]
[null,null,null,null,"acciano","AQ","A018"]
[null,null,null,null,"accumoli","RI","A019"]
[null,null,null,null,"acerenza","PZ","A020"]
[null,null,null,null,"acerno","SA","A023"]
[null,null,null,null,"acerra","NA","A024"]
[null,null,null,null,"aci bonaccorsi","CT","A025"]
[null,null,null,null,"aci castello","CT","A026"]
[null,null,null,null,"aci catena","CT","A027"]
[null,null,null,null,"aci sant'antonio","CT","A029"]
[null,null,null,null,"acireale","CT","A028"]
[null,null,null,null,"acquacanina","MC","A031"]
[null,null,null,null,"acquafondata","FR","A032"]
[null,null,null,null,"acquaformosa","CS","A033"]
[null,null,null,null,"acquafredda","BS","A034"]
[null,null,null,null,"acqualagna","PU","A035"]
[null,null,null,null,"acquanegra cremonese","CR","A039"]
[null,null,null,null,"acquanegra sul chiese","MN","A038"]
[null,null,null,null,"acquapendente","VT","A040"]
[null,null,null,null,"acquappesa","CS","A041"]
[null,null,null,null,"acquarica del capo","LE","A042"]
[null,null,null,null,"acquaro","VV","A043"]
[null,null,null,null,"acquasanta terme","AP","A044"]
[null,null,null,null,"acquasparta","TR","A045"]
[null,null,null,null,"acquaviva collecroce","CB","A050"]
[null,null,null,null,"acquaviva d'isernia","IS","A051"]
[null,null,null,null,"acquaviva delle fonti","BA","A048"]
[null,null,null,null,"acquaviva picena","AP","A047"]
[null,null,null,null,"acquaviva platani","CL","A049"]
[null,null,null,null,"acquedolci","ME","M211"]
[null,null,null,null,"acqui terme","AL","A052"]
[null,null,null,null,"acri","CS","A053"]
[null,null,null,null,"acuto","FR","A054"]
[null,null,null,null,"adelfia","BA","A055"]
[null,null,null,null,"adrano","CT","A056"]
[null,null,null,null,"adrara san martino","BG","A057"]
[null,null,null,null,"adrara san rocco","BG","A058"]
[null,null,null,null,"adria","RO","A059"]
[null,null,null,null,"adro","BS","A060"]
[null,null,null,null,"affi","VR","A061"]
[null,null,null,null,"affile","RM","A062"]
[null,null,null,null,"afghanistan","EE","Z200"]
[null,null,null,null,"afragola","NA","A064"]
[null,null,null,null,"africo","RC","A065"]
[null,null,null,null,"agazzano","PC","A067"]
[null,null,null,null,"agerola","NA","A068"]
[null,null,null,null,"aggius","SS","A069"]
[null,null,null,null,"agira","EN","A070"]
[null,null,null,null,"agliana","PT","A071"]
[null,null,null,null,"agliano terme","AT","A072"]
[null,null,null,null,"aglie'","TO","A074"]
[null,null,null,null,"aglientu","SS","H848"]
[null,null,null,null,"agna","PD","A075"]
[null,null,null,null,"agnadello","CR","A076"]
[null,null,null,null,"agnana calabra","RC","A077"]
[null,null,null,null,"agnone","IS","A080"]
[null,null,null,null,"agnosine","BS","A082"]
[null,null,null,null,"agordo","BL","A083"]
[null,null,null,null,"agosta","RM","A084"]
[null,null,null,null,"agra","VA","A085"]
[null,null,null,null,"agrate brianza","MI","A087"]
[null,null,null,null,"agrate conturbia","NO","A088"]
[null,null,null,null,"agrigento","AG","A089"]
[null,null,null,null,"agropoli","SA","A091"]
[null,null,null,null,"agugliano","AN","A092"]
[null,null,null,null,"agugliaro","VI","A093"]
[null,null,null,null,"aicurzio","MI","A096"]
[null,null,null,null,"aidomaggiore","OR","A097"]
[null,null,null,null,"aidone","EN","A098"]
[null,null,null,null,"aielli","AQ","A100"]
[null,null,null,null,"aiello calabro","CS","A102"]
[null,null,null,null,"aiello del friuli","UD","A103"]
[null,null,null,null,"aiello del sabato","AV","A101"]
[null,null,null,null,"aieta","CS","A105"]
[null,null,null,null,"ailano","CE","A106"]
[null,null,null,null,"ailoche","BI","A107"]
[null,null,null,null,"airasca","TO","A109"]
[null,null,null,null,"airola","BN","A110"]
[null,null,null,null,"airole","IM","A111"]
[null,null,null,null,"airuno","LC","A112"]
[null,null,null,null,"aisone","CN","A113"]
[null,null,null,null,"ala","TN","A116"]
[null,null,null,null,"ala di stura","TO","A117"]
[null,null,null,null,"ala' dei sardi","SS","A115"]
[null,null,null,null,"alagna","PV","A118"]
[null,null,null,null,"alagna valsesia","VC","A119"]
[null,null,null,null,"alanno","PE","A120"]
[null,null,null,null,"alano di piave","BL","A121"]
[null,null,null,null,"alassio","SV","A122"]
[null,null,null,null,"alatri","FR","A123"]
[null,null,null,null,"alba","CN","A124"]
[null,null,null,null,"alba adriatica","TE","A125"]
[null,null,null,null,"albagiara","OR","A126"]
[null,null,null,null,"albairate","MI","A127"]
[null,null,null,null,"albanella","SA","A128"]
[null,null,null,null,"albania","EE","Z100"]
[null,null,null,null,"albano di lucania","PZ","A131"]
[null,null,null,null,"albano laziale","RM","A132"]
[null,null,null,null,"albano sant'alessandro","BG","A129"]
[null,null,null,null,"albano vercellese","VC","A130"]
[null,null,null,null,"albaredo arnaboldi","PV","A134"]
[null,null,null,null,"albaredo d'adige","VR","A137"]
[null,null,null,null,"albaredo per san marco","SO","A135"]
[null,null,null,null,"albareto","PR","A138"]
[null,null,null,null,"albaretto della torre","CN","A139"]
[null,null,null,null,"albavilla","CO","A143"]
[null,null,null,null,"albenga","SV","A145"]
[null,null,null,null,"albera ligure","AL","A146"]
[null,null,null,null,"alberobello","BA","A149"]
[null,null,null,null,"alberona","FG","A150"]
[null,null,null,null,"albese con cassano","CO","A153"]
[null,null,null,null,"albettone","VI","A154"]
[null,null,null,null,"albi","CZ","A155"]
[null,null,null,null,"albiano","TN","A158"]
[null,null,null,null,"albiano d'ivrea","TO","A157"]
[null,null,null,null,"albiate","MI","A159"]
[null,null,null,null,"albidona","CS","A160"]
[null,null,null,null,"albignasego","PD","A161"]
[null,null,null,null,"albinea","RE","A162"]
[null,null,null,null,"albino","BG","A163"]
[null,null,null,null,"albiolo","CO","A164"]
[null,null,null,null,"albisola superiore","SV","A166"]
[null,null,null,null,"albissola marina","SV","A165"]
[null,null,null,null,"albizzate","VA","A167"]
[null,null,null,null,"albonese","PV","A171"]
[null,null,null,null,"albosaggia","SO","A172"]
[null,null,null,null,"albugnano","AT","A173"]
[null,null,null,null,"albuzzano","PV","A175"]
[null,null,null,null,"alcamo","TP","A176"]
[null,null,null,null,"alcara li fusi","ME","A177"]
[null,null,null,null,"aldeno","TN","A178"]
[null,null,null,null,"aldino .aldein.","BZ","A179"]
[null,null,null,null,"ales","OR","A180"]
[null,null,null,null,"alessandria","AL","A182"]
[null,null,null,null,"alessandria del carretto","CS","A183"]
[null,null,null,null,"alessandria della rocca","AG","A181"]
[null,null,null,null,"alessano","LE","A184"]
[null,null,null,null,"alezio","LE","A185"]
[null,null,null,null,"alfano","SA","A186"]
[null,null,null,null,"alfedena","AQ","A187"]
[null,null,null,null,"alfianello","BS","A188"]
[null,null,null,null,"alfiano natta","AL","A189"]
[null,null,null,null,"alfonsine","RA","A191"]
[null,null,null,null,"algeria","EE","Z301"]
[null,null,null,null,"alghero","SS","A192"]
[null,null,null,null,"algua","BG","A193"]
[null,null,null,null,"ali'","ME","A194"]
[null,null,null,null,"ali' terme","ME","A201"]
[null,null,null,null,"alia","PA","A195"]
[null,null,null,null,"aliano","MT","A196"]
[null,null,null,null,"alice bel colle","AL","A197"]
[null,null,null,null,"alice castello","VC","A198"]
[null,null,null,null,"alice superiore","TO","A199"]
[null,null,null,null,"alife","CE","A200"]
[null,null,null,null,"alimena","PA","A202"]
[null,null,null,null,"aliminusa","PA","A203"]
[null,null,null,null,"allai","OR","A204"]
[null,null,null,null,"alleghe","BL","A206"]
[null,null,null,null,"allein","AO","A205"]
[null,null,null,null,"allerona","TR","A207"]
[null,null,null,null,"alliste","LE","A208"]
[null,null,null,null,"allumiere","RM","A210"]
[null,null,null,null,"alluvioni cambio'","AL","A211"]
[null,null,null,null,"alme'","BG","A214"]
[null,null,null,null,"almenno san bartolomeo","BG","A216"]
[null,null,null,null,"almenno san salvatore","BG","A217"]
[null,null,null,null,"almese","TO","A218"]
[null,null,null,null,"alonte","VI","A220"]
[null,null,null,null,"alpette","TO","A221"]
[null,null,null,null,"alpignano","TO","A222"]
[null,null,null,null,"alseno","PC","A223"]
[null,null,null,null,"alserio","CO","A224"]
[null,null,null,null,"altamura","BA","A225"]
[null,null,null,null,"altare","SV","A226"]
[null,null,null,null,"altavilla irpina","AV","A228"]
[null,null,null,null,"altavilla milicia","PA","A229"]
[null,null,null,null,"altavilla monferrato","AL","A227"]
[null,null,null,null,"altavilla silentina","SA","A230"]
[null,null,null,null,"altavilla vicentina","VI","A231"]
[null,null,null,null,"altidona","AP","A233"]
[null,null,null,null,"altilia","CS","A234"]
[null,null,null,null,"altino","CH","A235"]
[null,null,null,null,"altissimo","VI","A236"]
[null,null,null,null,"altivole","TV","A237"]
[null,null,null,null,"alto","CN","A238"]
[null,null,null,null,"altofonte","PA","A239"]
[null,null,null,null,"altomonte","CS","A240"]
[null,null,null,null,"altopascio","LU","A241"]
[null,null,null,null,"alviano","TR","A242"]
[null,null,null,null,"alvignano","CE","A243"]
[null,null,null,null,"alvito","FR","A244"]
[null,null,null,null,"alzano lombardo","BG","A246"]
[null,null,null,null,"alzano scrivia","AL","A245"]
[null,null,null,null,"alzate brianza","CO","A249"]
[null,null,null,null,"amalfi","SA","A251"]
[null,null,null,null,"amandola","AP","A252"]
[null,null,null,null,"amantea","CS","A253"]
[null,null,null,null,"amaro","UD","A254"]
[null,null,null,null,"amaroni","CZ","A255"]
[null,null,null,null,"amaseno","FR","A256"]
[null,null,null,null,"amato","CZ","A257"]
[null,null,null,null,"amatrice","RI","A258"]
[null,null,null,null,"ambivere","BG","A259"]
[null,null,null,null,"amblar","TN","A260"]
[null,null,null,null,"ameglia","SP","A261"]
[null,null,null,null,"amelia","TR","A262"]
[null,null,null,null,"amendolara","CS","A263"]
[null,null,null,null,"ameno","NO","A264"]
[null,null,null,null,"amorosi","BN","A265"]
[null,null,null,null,"ampezzo","UD","A267"]
[null,null,null,null,"anacapri","NA","A268"]
[null,null,null,null,"anagni","FR","A269"]
[null,null,null,null,"ancarano","TE","A270"]
[null,null,null,null,"ancona","AN","A271"]
[null,null,null,null,"andali","CZ","A272"]
[null,null,null,null,"andalo","TN","A274"]
[null,null,null,null,"andalo valtellino","SO","A273"]
[null,null,null,null,"andezeno","TO","A275"]
[null,null,null,null,"andora","SV","A278"]
[null,null,null,null,"andorno micca","BI","A280"]
[null,null,null,null,"andorra","EE","Z101"]
[null,null,null,null,"andrano","LE","A281"]
[null,null,null,null,"andrate","TO","A282"]
[null,null,null,null,"andreis","PN","A283"]
[null,null,null,null,"andretta","AV","A284"]
[null,null,null,null,"andria","BA","A285"]
[null,null,null,null,"andriano .andrian.","BZ","A286"]
[null,null,null,null,"anela","SS","A287"]
[null,null,null,null,"anfo","BS","A288"]
[null,null,null,null,"angera","VA","A290"]
[null,null,null,null,"anghiari","AR","A291"]
[null,null,null,null,"angiari","VR","A292"]
[null,null,null,null,"angola","EE","Z302"]
[null,null,null,null,"angolo terme","BS","A293"]
[null,null,null,null,"angri","SA","A294"]
[null,null,null,null,"angrogna","TO","A295"]
[null,null,null,null,"anguilla (isola)","EE","Z529"]
[null,null,null,null,"anguillara sabazia","RM","A297"]
[null,null,null,null,"anguillara veneta","PD","A296"]
[null,null,null,null,"annicco","CR","A299"]
[null,null,null,null,"annone di brianza","LC","A301"]
[null,null,null,null,"annone veneto","VE","A302"]
[null,null,null,null,"anoia","RC","A303"]
[null,null,null,null,"antegnate","BG","A304"]
[null,null,null,null,"anterivo .altrei.","BZ","A306"]
[null,null,null,null,"antey-saint-andre'","AO","A305"]
[null,null,null,null,"anticoli corrado","RM","A309"]
[null,null,null,null,"antignano","AT","A312"]
[null,null,null,null,"antigua e barbuda","EE","Z532"]
[null,null,null,null,"antille britanniche","EE","Z500"]
[null,null,null,null,"antille olandesi","EE","Z501"]
[null,null,null,null,"antillo","ME","A313"]
[null,null,null,null,"antonimina","RC","A314"]
[null,null,null,null,"antrodoco","RI","A315"]
[null,null,null,null,"antrona schieranco","VB","A317"]
[null,null,null,null,"anversa degli abruzzi","AQ","A318"]
[null,null,null,null,"anzano del parco","CO","A319"]
[null,null,null,null,"anzano di puglia","FG","A320"]
[null,null,null,null,"anzi","PZ","A321"]
[null,null,null,null,"anzio","RM","A323"]
[null,null,null,null,"anzola d'ossola","VB","A325"]
[null,null,null,null,"anzola dell'emilia","BO","A324"]
[null,null,null,null,"aosta","AO","A326"]
[null,null,null,null,"apecchio","PU","A327"]
[null,null,null,null,"apice","BN","A328"]
[null,null,null,null,"apiro","MC","A329"]
[null,null,null,null,"apollosa","BN","A330"]
[null,null,null,null,"appiano gentile","CO","A333"]
[null,null,null,null,"appiano sulla strada del vino .eppan an der.","BZ","A332"]
[null,null,null,null,"appignano","MC","A334"]
[null,null,null,null,"appignano del tronto","AP","A335"]
[null,null,null,null,"aprica","SO","A337"]
[null,null,null,null,"apricale","IM","A338"]
[null,null,null,null,"apricena","FG","A339"]
[null,null,null,null,"aprigliano","CS","A340"]
[null,null,null,null,"aprilia","LT","A341"]
[null,null,null,null,"aquara","SA","A343"]
[null,null,null,null,"aquila d'arroscia","IM","A344"]
[null,null,null,null,"aquileia","UD","A346"]
[null,null,null,null,"aquilonia","AV","A347"]
[null,null,null,null,"aquino","FR","A348"]
[null,null,null,null,"arabia meridionale fed","EE","Z201"]
[null,null,null,null,"arabia meridionale pro","EE","Z202"]
[null,null,null,null,"arabia saudita","EE","Z203"]
[null,null,null,null,"aradeo","LE","A350"]
[null,null,null,null,"aragona","AG","A351"]
[null,null,null,null,"aramengo","AT","A352"]
[null,null,null,null,"arba","PN","A354"]
[null,null,null,null,"arborea","OR","A357"]
[null,null,null,null,"arborio","VC","A358"]
[null,null,null,null,"arbus","CA","A359"]
[null,null,null,null,"arcade","TV","A360"]
[null,null,null,null,"arce","FR","A363"]
[null,null,null,null,"arcene","BG","A365"]
[null,null,null,null,"arcevia","AN","A366"]
[null,null,null,null,"archi","CH","A367"]
[null,null,null,null,"arcidosso","GR","A369"]
[null,null,null,null,"arcinazzo romano","RM","A370"]
[null,null,null,null,"arcisate","VA","A371"]
[null,null,null,null,"arco","TN","A372"]
[null,null,null,null,"arcola","SP","A373"]
[null,null,null,null,"arcole","VR","A374"]
[null,null,null,null,"arconate","MI","A375"]
[null,null,null,null,"arcore","MI","A376"]
[null,null,null,null,"arcugnano","VI","A377"]
[null,null,null,null,"ardara","SS","A379"]
[null,null,null,null,"ardauli","OR","A380"]
[null,null,null,null,"ardea","RM","M213"]
[null,null,null,null,"ardenno","SO","A382"]
[null,null,null,null,"ardesio","BG","A383"]
[null,null,null,null,"ardore","RC","A385"]
[null,null,null,null,"arena","VV","A386"]
[null,null,null,null,"arena po","PV","A387"]
[null,null,null,null,"arenzano","GE","A388"]
[null,null,null,null,"arese","MI","A389"]
[null,null,null,null,"arezzo","AR","A390"]
[null,null,null,null,"argegno","CO","A391"]
[null,null,null,null,"argelato","BO","A392"]
[null,null,null,null,"argenta","FE","A393"]
[null,null,null,null,"argentera","CN","A394"]
[null,null,null,null,"argentina","EE","Z600"]
[null,null,null,null,"arguello","CN","A396"]
[null,null,null,null,"argusto","CZ","A397"]
[null,null,null,null,"ari","CH","A398"]
[null,null,null,null,"ariano irpino","AV","A399"]
[null,null,null,null,"ariano nel polesine","RO","A400"]
[null,null,null,null,"ariccia","RM","A401"]
[null,null,null,null,"arielli","CH","A402"]
[null,null,null,null,"arienzo","CE","A403"]
[null,null,null,null,"arignano","TO","A405"]
[null,null,null,null,"aritzo","NU","A407"]
[null,null,null,null,"arizzano","VB","A409"]
[null,null,null,null,"arlena di castro","VT","A412"]
[null,null,null,null,"arluno","MI","A413"]
[null,null,null,null,"armenia","EE","Z137"]
[null,null,null,null,"armenia","EE","Z252"]
[null,null,null,null,"armeno","NO","A414"]
[null,null,null,null,"armento","PZ","A415"]
[null,null,null,null,"armo","IM","A418"]
[null,null,null,null,"armungia","CA","A419"]
[null,null,null,null,"arnad","AO","A424"]
[null,null,null,null,"arnara","FR","A421"]
[null,null,null,null,"arnasco","SV","A422"]
[null,null,null,null,"arnesano","LE","A425"]
[null,null,null,null,"arola","VB","A427"]
[null,null,null,null,"arona","NO","A429"]
[null,null,null,null,"arosio","CO","A430"]
[null,null,null,null,"arpaia","BN","A431"]
[null,null,null,null,"arpaise","BN","A432"]
[null,null,null,null,"arpino","FR","A433"]
[null,null,null,null,"arqua' petrarca","PD","A434"]
[null,null,null,null,"arqua' polesine","RO","A435"]
[null,null,null,null,"arquata del tronto","AP","A437"]
[null,null,null,null,"arquata scrivia","AL","A436"]
[null,null,null,null,"arre","PD","A438"]
[null,null,null,null,"arrone","TR","A439"]
[null,null,null,null,"arsago seprio","VA","A441"]
[null,null,null,null,"arsie'","BL","A443"]
[null,null,null,null,"arsiero","VI","A444"]
[null,null,null,null,"arsita","TE","A445"]
[null,null,null,null,"arsoli","RM","A446"]
[null,null,null,null,"arta terme","UD","A447"]
[null,null,null,null,"artegna","UD","A448"]
[null,null,null,null,"artena","RM","A449"]
[null,null,null,null,"artogne","BS","A451"]
[null,null,null,null,"arvier","AO","A452"]
[null,null,null,null,"arzachena","SS","A453"]
[null,null,null,null,"arzago d'adda","BG","A440"]
[null,null,null,null,"arzana","NU","A454"]
[null,null,null,null,"arzano","NA","A455"]
[null,null,null,null,"arzene","PN","A456"]
[null,null,null,null,"arzergrande","PD","A458"]
[null,null,null,null,"arzignano","VI","A459"]
[null,null,null,null,"ascea","SA","A460"]
[null,null,null,null,"asciano","SI","A461"]
[null,null,null,null,"ascoli piceno","AP","A462"]
[null,null,null,null,"ascoli satriano","FG","A463"]
[null,null,null,null,"ascrea","RI","A464"]
[null,null,null,null,"asiago","VI","A465"]
[null,null,null,null,"asigliano veneto","VI","A467"]
[null,null,null,null,"asigliano vercellese","VC","A466"]
[null,null,null,null,"asola","MN","A470"]
[null,null,null,null,"asolo","TV","A471"]
[null,null,null,null,"assago","MI","A473"]
[null,null,null,null,"assemini","CA","A474"]
[null,null,null,null,"assisi","PG","A475"]
[null,null,null,null,"asso","CO","A476"]
[null,null,null,null,"assolo","OR","A477"]
[null,null,null,null,"assoro","EN","A478"]
[null,null,null,null,"asti","AT","A479"]
[null,null,null,null,"asuni","OR","A480"]
[null,null,null,null,"ateleta","AQ","A481"]
[null,null,null,null,"atella","PZ","A482"]
[null,null,null,null,"atena lucana","SA","A484"]
[null,null,null,null,"atessa","CH","A485"]
[null,null,null,null,"atina","FR","A486"]
[null,null,null,null,"atrani","SA","A487"]
[null,null,null,null,"atri","TE","A488"]
[null,null,null,null,"atripalda","AV","A489"]
[null,null,null,null,"attigliano","TR","A490"]
[null,null,null,null,"attimis","UD","A491"]
[null,null,null,null,"atzara","NU","A492"]
[null,null,null,null,"auditore","PU","A493"]
[null,null,null,null,"augusta","SR","A494"]
[null,null,null,null,"auletta","SA","A495"]
[null,null,null,null,"aulla","MS","A496"]
[null,null,null,null,"aurano","VB","A497"]
[null,null,null,null,"aurigo","IM","A499"]
[null,null,null,null,"auronzo di cadore","BL","A501"]
[null,null,null,null,"ausonia","FR","A502"]
[null,null,null,null,"austis","NU","A503"]
[null,null,null,null,"australia","EE","Z700"]
[null,null,null,null,"austria","EE","Z102"]
[null,null,null,null,"avegno","GE","A506"]
[null,null,null,null,"avelengo .hafling.","BZ","A507"]
[null,null,null,null,"avella","AV","A508"]
[null,null,null,null,"avellino","AV","A509"]
[null,null,null,null,"averara","BG","A511"]
[null,null,null,null,"aversa","CE","A512"]
[null,null,null,null,"avetrana","TA","A514"]
[null,null,null,null,"avezzano","AQ","A515"]
[null,null,null,null,"aviano","PN","A516"]
[null,null,null,null,"aviatico","BG","A517"]
[null,null,null,null,"avigliana","TO","A518"]
[null,null,null,null,"avigliano","PZ","A519"]
[null,null,null,null,"avigliano umbro","TR","M258"]
[null,null,null,null,"avio","TN","A520"]
[null,null,null,null,"avise","AO","A521"]
[null,null,null,null,"avola","SR","A522"]
[null,null,null,null,"avolasca","AL","A523"]
[null,null,null,null,"ayas","AO","A094"]
[null,null,null,null,"aymavilles","AO","A108"]
[null,null,null,null,"azeglio","TO","A525"]
[null,null,null,null,"azerbaigian","EE","Z141"]
[null,null,null,null,"azerbaigian","EE","Z253"]
[null,null,null,null,"azzanello","CR","A526"]
[null,null,null,null,"azzano d'asti","AT","A527"]
[null,null,null,null,"azzano decimo","PN","A530"]
[null,null,null,null,"azzano mella","BS","A529"]
[null,null,null,null,"azzano san paolo","BG","A528"]
[null,null,null,null,"azzate","VA","A531"]
[null,null,null,null,"azzio","VA","A532"]
[null,null,null,null,"azzone","BG","A533"]
[null,null,null,null,"baceno","VB","A534"]
[null,null,null,null,"bacoli","NA","A535"]
[null,null,null,null,"badalucco","IM","A536"]
[null,null,null,null,"badesi","SS","M214"]
[null,null,null,null,"badia .abtei.","BZ","A537"]
[null,null,null,null,"badia calavena","VR","A540"]
[null,null,null,null,"badia pavese","PV","A538"]
[null,null,null,null,"badia polesine","RO","A539"]
[null,null,null,null,"badia tedalda","AR","A541"]
[null,null,null,null,"badolato","CZ","A542"]
[null,null,null,null,"bagaladi","RC","A544"]
[null,null,null,null,"bagheria","PA","A546"]
[null,null,null,null,"bagnacavallo","RA","A547"]
[null,null,null,null,"bagnara calabra","RC","A552"]
[null,null,null,null,"bagnara di romagna","RA","A551"]
[null,null,null,null,"bagnaria","PV","A550"]
[null,null,null,null,"bagnaria arsa","UD","A553"]
[null,null,null,null,"bagnasco","CN","A555"]
[null,null,null,null,"bagnatica","BG","A557"]
[null,null,null,null,"bagni di lucca","LU","A560"]
[null,null,null,null,"bagno a ripoli","FI","A564"]
[null,null,null,null,"bagno di romagna","FC","A565"]
[null,null,null,null,"bagnoli del trigno","IS","A567"]
[null,null,null,null,"bagnoli di sopra","PD","A568"]
[null,null,null,null,"bagnoli irpino","AV","A566"]
[null,null,null,null,"bagnolo cremasco","CR","A570"]
[null,null,null,null,"bagnolo del salento","LE","A572"]
[null,null,null,null,"bagnolo di po","RO","A574"]
[null,null,null,null,"bagnolo in piano","RE","A573"]
[null,null,null,null,"bagnolo mella","BS","A569"]
[null,null,null,null,"bagnolo piemonte","CN","A571"]
[null,null,null,null,"bagnolo san vito","MN","A575"]
[null,null,null,null,"bagnone","MS","A576"]
[null,null,null,null,"bagnoregio","VT","A577"]
[null,null,null,null,"bagolino","BS","A578"]
[null,null,null,null,"bahama","EE","Z502"]
[null,null,null,null,"bahrein","EE","Z204"]
[null,null,null,null,"baia e latina","CE","A579"]
[null,null,null,null,"baiano","AV","A580"]
[null,null,null,null,"baiardo","IM","A581"]
[null,null,null,null,"bairo","TO","A584"]
[null,null,null,null,"baiso","RE","A586"]
[null,null,null,null,"balangero","TO","A587"]
[null,null,null,null,"baldichieri d'asti","AT","A588"]
[null,null,null,null,"baldissero canavese","TO","A590"]
[null,null,null,null,"baldissero d'alba","CN","A589"]
[null,null,null,null,"baldissero torinese","TO","A591"]
[null,null,null,null,"balestrate","PA","A592"]
[null,null,null,null,"balestrino","SV","A593"]
[null,null,null,null,"ballabio","LC","A594"]
[null,null,null,null,"ballao","CA","A597"]
[null,null,null,null,"balme","TO","A599"]
[null,null,null,null,"balmuccia","VC","A600"]
[null,null,null,null,"balocco","VC","A601"]
[null,null,null,null,"balsorano","AQ","A603"]
[null,null,null,null,"balvano","PZ","A604"]
[null,null,null,null,"balzola","AL","A605"]
[null,null,null,null,"banari","SS","A606"]
[null,null,null,null,"banchette","TO","A607"]
[null,null,null,null,"bangladesh","EE","Z249"]
[null,null,null,null,"bannio anzino","VB","A610"]
[null,null,null,null,"banzi","PZ","A612"]
[null,null,null,null,"baone","PD","A613"]
[null,null,null,null,"baradili","OR","A614"]
[null,null,null,null,"baragiano","PZ","A615"]
[null,null,null,null,"baranello","CB","A616"]
[null,null,null,null,"barano d'ischia","NA","A617"]
[null,null,null,null,"baranzate","MI","A618"]
[null,null,null,null,"barasso","VA","A619"]
[null,null,null,null,"baratili san pietro","OR","A621"]
[null,null,null,null,"barbados","EE","Z522"]
[null,null,null,null,"barbania","TO","A625"]
[null,null,null,null,"barbara","AN","A626"]
[null,null,null,null,"barbarano romano","VT","A628"]
[null,null,null,null,"barbarano vicentino","VI","A627"]
[null,null,null,null,"barbaresco","CN","A629"]
[null,null,null,null,"barbariga","BS","A630"]
[null,null,null,null,"barbata","BG","A631"]
[null,null,null,null,"barberino di mugello","FI","A632"]
[null,null,null,null,"barberino val d'elsa","FI","A633"]
[null,null,null,null,"barbianello","PV","A634"]
[null,null,null,null,"barbiano .barbian.","BZ","A635"]
[null,null,null,null,"barbona","PD","A637"]
[null,null,null,null,"barcellona pozzo di gotto","ME","A638"]
[null,null,null,null,"barchi","PU","A639"]
[null,null,null,null,"barcis","PN","A640"]
[null,null,null,null,"bard","AO","A643"]
[null,null,null,null,"bardello","VA","A645"]
[null,null,null,null,"bardi","PR","A646"]
[null,null,null,null,"bardineto","SV","A647"]
[null,null,null,null,"bardolino","VR","A650"]
[null,null,null,null,"bardonecchia","TO","A651"]
[null,null,null,null,"bareggio","MI","A652"]
[null,null,null,null,"barengo","NO","A653"]
[null,null,null,null,"baressa","OR","A655"]
[null,null,null,null,"barete","AQ","A656"]
[null,null,null,null,"barga","LU","A657"]
[null,null,null,null,"bargagli","GE","A658"]
[null,null,null,null,"barge","CN","A660"]
[null,null,null,null,"barghe","BS","A661"]
[null,null,null,null,"bari","BA","A662"]
[null,null,null,null,"bari sardo","NU","A663"]
[null,null,null,null,"bariano","BG","A664"]
[null,null,null,null,"baricella","BO","A665"]
[null,null,null,null,"barile","PZ","A666"]
[null,null,null,null,"barisciano","AQ","A667"]
[null,null,null,null,"barlassina","MI","A668"]
[null,null,null,null,"barletta","BA","A669"]
[null,null,null,null,"barni","CO","A670"]
[null,null,null,null,"barolo","CN","A671"]
[null,null,null,null,"barone canavese","TO","A673"]
[null,null,null,null,"baronissi","SA","A674"]
[null,null,null,null,"barrafranca","EN","A676"]
[null,null,null,null,"barrali","CA","A677"]
[null,null,null,null,"barrea","AQ","A678"]
[null,null,null,null,"barumini","CA","A681"]
[null,null,null,null,"barzago","LC","A683"]
[null,null,null,null,"barzana","BG","A684"]
[null,null,null,null,"barzano'","LC","A686"]
[null,null,null,null,"barzio","LC","A687"]
[null,null,null,null,"basaluzzo","AL","A689"]
[null,null,null,null,"bascape'","PV","A690"]
[null,null,null,null,"baschi","TR","A691"]
[null,null,null,null,"basciano","TE","A692"]
[null,null,null,null,"baselga di pine'","TN","A694"]
[null,null,null,null,"baselice","BN","A696"]
[null,null,null,null,"basiano","MI","A697"]
[null,null,null,null,"basico'","ME","A698"]
[null,null,null,null,"basiglio","MI","A699"]
[null,null,null,null,"basiliano","UD","A700"]
[null,null,null,null,"bassano bresciano","BS","A702"]
[null,null,null,null,"bassano del grappa","VI","A703"]
[null,null,null,null,"bassano in teverina","VT","A706"]
[null,null,null,null,"bassano romano","VT","A704"]
[null,null,null,null,"bassiano","LT","A707"]
[null,null,null,null,"bassignana","AL","A708"]
[null,null,null,null,"bastia mondovi'","CN","A709"]
[null,null,null,null,"bastia umbra","PG","A710"]
[null,null,null,null,"bastida de' dossi","PV","A711"]
[null,null,null,null,"bastida pancarana","PV","A712"]
[null,null,null,null,"bastiglia","MO","A713"]
[null,null,null,null,"basutoland-sud africa","EE","Z303"]
[null,null,null,null,"battaglia terme","PD","A714"]
[null,null,null,null,"battifollo","CN","A716"]
[null,null,null,null,"battipaglia","SA","A717"]
[null,null,null,null,"battuda","PV","A718"]
[null,null,null,null,"baucina","PA","A719"]
[null,null,null,null,"bauladu","OR","A721"]
[null,null,null,null,"baunei","NU","A722"]
[null,null,null,null,"baveno","VB","A725"]
[null,null,null,null,"bazzano","BO","A726"]
[null,null,null,null,"beciuania-sud africa b","EE","Z304"]
[null,null,null,null,"bedero valcuvia","VA","A728"]
[null,null,null,null,"bedizzole","BS","A729"]
[null,null,null,null,"bedollo","TN","A730"]
[null,null,null,null,"bedonia","PR","A731"]
[null,null,null,null,"bedulita","BG","A732"]
[null,null,null,null,"bee","VB","A733"]
[null,null,null,null,"beinasco","TO","A734"]
[null,null,null,null,"beinette","CN","A735"]
[null,null,null,null,"belcastro","CZ","A736"]
[null,null,null,null,"belfiore","VR","A737"]
[null,null,null,null,"belforte all'isauro","PU","A740"]
[null,null,null,null,"belforte del chienti","MC","A739"]
[null,null,null,null,"belforte monferrato","AL","A738"]
[null,null,null,null,"belgio","EE","Z103"]
[null,null,null,null,"belgioioso","PV","A741"]
[null,null,null,null,"belgirate","VB","A742"]
[null,null,null,null,"belize ex honduras bri","EE","Z512"]
[null,null,null,null,"bella","PZ","A743"]
[null,null,null,null,"bellagio","CO","A744"]
[null,null,null,null,"bellano","LC","A745"]
[null,null,null,null,"bellante","TE","A746"]
[null,null,null,null,"bellaria-igea marina","RN","A747"]
[null,null,null,null,"bellegra","RM","A749"]
[null,null,null,null,"bellino","CN","A750"]
[null,null,null,null,"bellinzago lombardo","MI","A751"]
[null,null,null,null,"bellinzago novarese","NO","A752"]
[null,null,null,null,"bellizzi","SA","M294"]
[null,null,null,null,"bellona","CE","A755"]
[null,null,null,null,"bellosguardo","SA","A756"]
[null,null,null,null,"belluno","BL","A757"]
[null,null,null,null,"bellusco","MI","A759"]
[null,null,null,null,"belmonte calabro","CS","A762"]
[null,null,null,null,"belmonte castello","FR","A763"]
[null,null,null,null,"belmonte del sannio","IS","A761"]
[null,null,null,null,"belmonte in sabina","RI","A765"]
[null,null,null,null,"belmonte mezzagno","PA","A764"]
[null,null,null,null,"belmonte piceno","AP","A760"]
[null,null,null,null,"belpasso","CT","A766"]
[null,null,null,null,"belsito","CS","A768"]
[null,null,null,null,"belvedere di spinello","KR","A772"]
[null,null,null,null,"belvedere langhe","CN","A774"]
[null,null,null,null,"belvedere marittimo","CS","A773"]
[null,null,null,null,"belvedere ostrense","AN","A769"]
[null,null,null,null,"belveglio","AT","A770"]
[null,null,null,null,"belvi","NU","A776"]
[null,null,null,null,"bema","SO","A777"]
[null,null,null,null,"bene lario","CO","A778"]
[null,null,null,null,"bene vagienna","CN","A779"]
[null,null,null,null,"benestare","RC","A780"]
[null,null,null,null,"benetutti","SS","A781"]
[null,null,null,null,"benevello","CN","A782"]
[null,null,null,null,"benevento","BN","A783"]
[null,null,null,null,"benna","BI","A784"]
[null,null,null,null,"bentivoglio","BO","A785"]
[null,null,null,null,"berbenno","BG","A786"]
[null,null,null,null,"berbenno di valtellina","SO","A787"]
[null,null,null,null,"berceto","PR","A788"]
[null,null,null,null,"berchidda","SS","A789"]
[null,null,null,null,"beregazzo con figliaro","CO","A791"]
[null,null,null,null,"bereguardo","PV","A792"]
[null,null,null,null,"bergamasco","AL","A793"]
[null,null,null,null,"bergamo","BG","A794"]
[null,null,null,null,"bergantino","RO","A795"]
[null,null,null,null,"bergeggi","SV","A796"]
[null,null,null,null,"bergolo","CN","A798"]
[null,null,null,null,"berlingo","BS","A799"]
[null,null,null,null,"bermude (isole)","EE","Z400"]
[null,null,null,null,"bernalda","MT","A801"]
[null,null,null,null,"bernareggio","MI","A802"]
[null,null,null,null,"bernate ticino","MI","A804"]
[null,null,null,null,"bernezzo","CN","A805"]
[null,null,null,null,"berra","FE","A806"]
[null,null,null,null,"bersone","TN","A808"]
[null,null,null,null,"bertinoro","FC","A809"]
[null,null,null,null,"bertiolo","UD","A810"]
[null,null,null,null,"bertonico","LO","A811"]
[null,null,null,null,"berzano di san pietro","AT","A812"]
[null,null,null,null,"berzano di tortona","AL","A813"]
[null,null,null,null,"berzo demo","BS","A816"]
[null,null,null,null,"berzo inferiore","BS","A817"]
[null,null,null,null,"berzo san fermo","BG","A815"]
[null,null,null,null,"besana in brianza","MI","A818"]
[null,null,null,null,"besano","VA","A819"]
[null,null,null,null,"besate","MI","A820"]
[null,null,null,null,"besenello","TN","A821"]
[null,null,null,null,"besenzone","PC","A823"]
[null,null,null,null,"besnate","VA","A825"]
[null,null,null,null,"besozzo","VA","A826"]
[null,null,null,null,"bessude","SS","A827"]
[null,null,null,null,"bettola","PC","A831"]
[null,null,null,null,"bettona","PG","A832"]
[null,null,null,null,"beura-cardezza","VB","A834"]
[null,null,null,null,"bevagna","PG","A835"]
[null,null,null,null,"beverino","SP","A836"]
[null,null,null,null,"bevilacqua","VR","A837"]
[null,null,null,null,"bezzecca","TN","A839"]
[null,null,null,null,"bhutan","EE","Z205"]
[null,null,null,null,"biancavilla","CT","A841"]
[null,null,null,null,"bianchi","CS","A842"]
[null,null,null,null,"bianco","RC","A843"]
[null,null,null,null,"biandrate","NO","A844"]
[null,null,null,null,"biandronno","VA","A845"]
[null,null,null,null,"bianzano","BG","A846"]
[null,null,null,null,"bianze'","VC","A847"]
[null,null,null,null,"bianzone","SO","A848"]
[null,null,null,null,"biassono","MI","A849"]
[null,null,null,null,"bibbiano","RE","A850"]
[null,null,null,null,"bibbiena","AR","A851"]
[null,null,null,null,"bibbona","LI","A852"]
[null,null,null,null,"bibiana","TO","A853"]
[null,null,null,null,"biccari","FG","A854"]
[null,null,null,null,"bicinicco","UD","A855"]
[null,null,null,null,"bidoni'","OR","A856"]
[null,null,null,null,"biella","BI","A859"]
[null,null,null,null,"bielorussia","EE","Z139"]
[null,null,null,null,"bienno","BS","A861"]
[null,null,null,null,"bieno","TN","A863"]
[null,null,null,null,"bientina","PI","A864"]
[null,null,null,null,"bigarello","MN","A866"]
[null,null,null,null,"binago","CO","A870"]
[null,null,null,null,"binasco","MI","A872"]
[null,null,null,null,"binetto","BA","A874"]
[null,null,null,null,"bioglio","BI","A876"]
[null,null,null,null,"bionaz","AO","A877"]
[null,null,null,null,"bione","BS","A878"]
[null,null,null,null,"birmania","EE","Z206"]
[null,null,null,null,"birori","NU","A880"]
[null,null,null,null,"bisaccia","AV","A881"]
[null,null,null,null,"bisacquino","PA","A882"]
[null,null,null,null,"bisceglie","BA","A883"]
[null,null,null,null,"bisegna","AQ","A884"]
[null,null,null,null,"bisenti","TE","A885"]
[null,null,null,null,"bisignano","CS","A887"]
[null,null,null,null,"bistagno","AL","A889"]
[null,null,null,null,"bisuschio","VA","A891"]
[null,null,null,null,"bitetto","BA","A892"]
[null,null,null,null,"bitonto","BA","A893"]
[null,null,null,null,"bitritto","BA","A894"]
[null,null,null,null,"bitti","NU","A895"]
[null,null,null,null,"bivona","AG","A896"]
[null,null,null,null,"bivongi","RC","A897"]
[null,null,null,null,"bizzarone","CO","A898"]
[null,null,null,null,"bleggio inferiore","TN","A901"]
[null,null,null,null,"bleggio superiore","TN","A902"]
[null,null,null,null,"blello","BG","A903"]
[null,null,null,null,"blera","VT","A857"]
[null,null,null,null,"blessagno","CO","A904"]
[null,null,null,null,"blevio","CO","A905"]
[null,null,null,null,"blufi","PA","M268"]
[null,null,null,null,"boara pisani","PD","A906"]
[null,null,null,null,"bobbio","PC","A909"]
[null,null,null,null,"bobbio pellice","TO","A910"]
[null,null,null,null,"boca","NO","A911"]
[null,null,null,null,"bocchigliero","CS","A912"]
[null,null,null,null,"boccioleto","VC","A914"]
[null,null,null,null,"bocenago","TN","A916"]
[null,null,null,null,"bodio lomnago","VA","A918"]
[null,null,null,null,"boffalora d'adda","LO","A919"]
[null,null,null,null,"boffalora sopra ticino","MI","A920"]
[null,null,null,null,"bogliasco","GE","A922"]
[null,null,null,null,"bognanco","VB","A925"]
[null,null,null,null,"bogogno","NO","A929"]
[null,null,null,null,"boiano","CB","A930"]
[null,null,null,null,"boissano","SV","A931"]
[null,null,null,null,"bolano","SP","A932"]
[null,null,null,null,"bolbeno","TN","A933"]
[null,null,null,null,"bolgare","BG","A937"]
[null,null,null,null,"bolivia","EE","Z601"]
[null,null,null,null,"bollate","MI","A940"]
[null,null,null,null,"bollengo","TO","A941"]
[null,null,null,null,"bologna","BO","A944"]
[null,null,null,null,"bolognano","PE","A945"]
[null,null,null,null,"bolognetta","PA","A946"]
[null,null,null,null,"bolognola","MC","A947"]
[null,null,null,null,"bolotana","NU","A948"]
[null,null,null,null,"bolsena","VT","A949"]
[null,null,null,null,"boltiere","BG","A950"]
[null,null,null,null,"bolzano .bozen.","BZ","A952"]
[null,null,null,null,"bolzano novarese","NO","A953"]
[null,null,null,null,"bolzano vicentino","VI","A954"]
[null,null,null,null,"bomarzo","VT","A955"]
[null,null,null,null,"bomba","CH","A956"]
[null,null,null,null,"bompensiere","CL","A957"]
[null,null,null,null,"bompietro","PA","A958"]
[null,null,null,null,"bomporto","MO","A959"]
[null,null,null,null,"bonarcado","OR","A960"]
[null,null,null,null,"bonassola","SP","A961"]
[null,null,null,null,"bonate sopra","BG","A963"]
[null,null,null,null,"bonate sotto","BG","A962"]
[null,null,null,null,"bonavigo","VR","A964"]
[null,null,null,null,"bondeno","FE","A965"]
[null,null,null,null,"bondo","TN","A967"]
[null,null,null,null,"bondone","TN","A968"]
[null,null,null,null,"bonea","BN","A970"]
[null,null,null,null,"bonefro","CB","A971"]
[null,null,null,null,"bonemerse","CR","A972"]
[null,null,null,null,"bonifati","CS","A973"]
[null,null,null,null,"bonito","AV","A975"]
[null,null,null,null,"bonnanaro","SS","A976"]
[null,null,null,null,"bono","SS","A977"]
[null,null,null,null,"bonorva","SS","A978"]
[null,null,null,null,"bonvicino","CN","A979"]
[null,null,null,null,"bophuthatswana","EE","Z364"]
[null,null,null,null,"borbona","RI","A981"]
[null,null,null,null,"borca di cadore","BL","A982"]
[null,null,null,null,"bordano","UD","A983"]
[null,null,null,null,"bordighera","IM","A984"]
[null,null,null,null,"bordolano","CR","A986"]
[null,null,null,null,"bore","PR","A987"]
[null,null,null,null,"boretto","RE","A988"]
[null,null,null,null,"borgarello","PV","A989"]
[null,null,null,null,"borgaro torinese","TO","A990"]
[null,null,null,null,"borgetto","PA","A991"]
[null,null,null,null,"borghetto d'arroscia","IM","A993"]
[null,null,null,null,"borghetto di borbera","AL","A998"]
[null,null,null,null,"borghetto di vara","SP","A992"]
[null,null,null,null,"borghetto lodigiano","LO","A995"]
[null,null,null,null,"borghetto santo spirito","SV","A999"]
[null,null,null,null,"borghi","FC","B001"]
[null,null,null,null,"borgia","CZ","B002"]
[null,null,null,null,"borgiallo","TO","B003"]
[null,null,null,null,"borgio verezzi","SV","B005"]
[null,null,null,null,"borgo a mozzano","LU","B007"]
[null,null,null,null,"borgo d'ale","VC","B009"]
[null,null,null,null,"borgo di terzo","BG","B010"]
[null,null,null,null,"borgo pace","PU","B026"]
[null,null,null,null,"borgo priolo","PV","B028"]
[null,null,null,null,"borgo san dalmazzo","CN","B033"]
[null,null,null,null,"borgo san giacomo","BS","B035"]
[null,null,null,null,"borgo san giovanni","LO","B017"]
[null,null,null,null,"borgo san lorenzo","FI","B036"]
[null,null,null,null,"borgo san martino","AL","B037"]
[null,null,null,null,"borgo san siro","PV","B038"]
[null,null,null,null,"borgo ticino","NO","B043"]
[null,null,null,null,"borgo tossignano","BO","B044"]
[null,null,null,null,"borgo val di taro","PR","B042"]
[null,null,null,null,"borgo valsugana","TN","B006"]
[null,null,null,null,"borgo velino","RI","A996"]
[null,null,null,null,"borgo vercelli","VC","B046"]
[null,null,null,null,"borgoforte","MN","B011"]
[null,null,null,null,"borgofranco d'ivrea","TO","B015"]
[null,null,null,null,"borgofranco sul po","MN","B013"]
[null,null,null,null,"borgolavezzaro","NO","B016"]
[null,null,null,null,"borgomale","CN","B018"]
[null,null,null,null,"borgomanero","NO","B019"]
[null,null,null,null,"borgomaro","IM","B020"]
[null,null,null,null,"borgomasino","TO","B021"]
[null,null,null,null,"borgone susa","TO","B024"]
[null,null,null,null,"borgonovo val tidone","PC","B025"]
[null,null,null,null,"borgoratto alessandrino","AL","B029"]
[null,null,null,null,"borgoratto mormorolo","PV","B030"]
[null,null,null,null,"borgoricco","PD","B031"]
[null,null,null,null,"borgorose","RI","B008"]
[null,null,null,null,"borgosatollo","BS","B040"]
[null,null,null,null,"borgosesia","VC","B041"]
[null,null,null,null,"bormida","SV","B048"]
[null,null,null,null,"bormio","SO","B049"]
[null,null,null,null,"bornasco","PV","B051"]
[null,null,null,null,"borno","BS","B054"]
[null,null,null,null,"boroneddu","OR","B055"]
[null,null,null,null,"borore","NU","B056"]
[null,null,null,null,"borrello","CH","B057"]
[null,null,null,null,"borriana","BI","B058"]
[null,null,null,null,"borso del grappa","TV","B061"]
[null,null,null,null,"bortigali","NU","B062"]
[null,null,null,null,"bortigiadas","SS","B063"]
[null,null,null,null,"borutta","SS","B064"]
[null,null,null,null,"borzonasca","GE","B067"]
[null,null,null,null,"bosa","NU","B068"]
[null,null,null,null,"bosaro","RO","B069"]
[null,null,null,null,"boschi sant'anna","VR","B070"]
[null,null,null,null,"bosco chiesanuova","VR","B073"]
[null,null,null,null,"bosco marengo","AL","B071"]
[null,null,null,null,"bosconero","TO","B075"]
[null,null,null,null,"boscoreale","NA","B076"]
[null,null,null,null,"boscotrecase","NA","B077"]
[null,null,null,null,"bosentino","TN","B078"]
[null,null,null,null,"bosia","CN","B079"]
[null,null,null,null,"bosio","AL","B080"]
[null,null,null,null,"bosisio parini","LC","B081"]
[null,null,null,null,"bosnasco","PV","B082"]
[null,null,null,null,"bosnia ed erzegovina","EE","Z153"]
[null,null,null,null,"bossico","BG","B083"]
[null,null,null,null,"bossolasco","CN","B084"]
[null,null,null,null,"botricello","CZ","B085"]
[null,null,null,null,"botrugno","LE","B086"]
[null,null,null,null,"botswana","EE","Z358"]
[null,null,null,null,"bottanuco","BG","B088"]
[null,null,null,null,"botticino","BS","B091"]
[null,null,null,null,"bottidda","SS","B094"]
[null,null,null,null,"bova","RC","B097"]
[null,null,null,null,"bova marina","RC","B099"]
[null,null,null,null,"bovalino","RC","B098"]
[null,null,null,null,"bovegno","BS","B100"]
[null,null,null,null,"boves","CN","B101"]
[null,null,null,null,"bovezzo","BS","B102"]
[null,null,null,null,"boville ernica","FR","A720"]
[null,null,null,null,"bovino","FG","B104"]
[null,null,null,null,"bovisio-masciago","MI","B105"]
[null,null,null,null,"bovolenta","PD","B106"]
[null,null,null,null,"bovolone","VR","B107"]
[null,null,null,null,"bozzole","AL","B109"]
[null,null,null,null,"bozzolo","MN","B110"]
[null,null,null,null,"bra","CN","B111"]
[null,null,null,null,"bracca","BG","B112"]
[null,null,null,null,"bracciano","RM","B114"]
[null,null,null,null,"bracigliano","SA","B115"]
[null,null,null,null,"braies .prags.","BZ","B116"]
[null,null,null,null,"brallo di pregola","PV","B117"]
[null,null,null,null,"brancaleone","RC","B118"]
[null,null,null,null,"brandico","BS","B120"]
[null,null,null,null,"brandizzo","TO","B121"]
[null,null,null,null,"branzi","BG","B123"]
[null,null,null,null,"braone","BS","B124"]
[null,null,null,null,"brasile","EE","Z602"]
[null,null,null,null,"brebbia","VA","B126"]
[null,null,null,null,"breda di piave","TV","B128"]
[null,null,null,null,"bregano","VA","B131"]
[null,null,null,null,"breganze","VI","B132"]
[null,null,null,null,"bregnano","CO","B134"]
[null,null,null,null,"breguzzo","TN","B135"]
[null,null,null,null,"breia","VC","B136"]
[null,null,null,null,"brembate","BG","B137"]
[null,null,null,null,"brembate di sopra","BG","B138"]
[null,null,null,null,"brembilla","BG","B140"]
[null,null,null,null,"brembio","LO","B141"]
[null,null,null,null,"breme","PV","B142"]
[null,null,null,null,"brendola","VI","B143"]
[null,null,null,null,"brenna","CO","B144"]
[null,null,null,null,"brennero .brenner.","BZ","B145"]
[null,null,null,null,"breno","BS","B149"]
[null,null,null,null,"brenta","VA","B150"]
[null,null,null,null,"brentino belluno","VR","B152"]
[null,null,null,null,"brentonico","TN","B153"]
[null,null,null,null,"brenzone","VR","B154"]
[null,null,null,null,"brescello","RE","B156"]
[null,null,null,null,"brescia","BS","B157"]
[null,null,null,null,"bresimo","TN","B158"]
[null,null,null,null,"bressana bottarone","PV","B159"]
[null,null,null,null,"bressanone .brixen.","BZ","B160"]
[null,null,null,null,"bressanvido","VI","B161"]
[null,null,null,null,"bresso","MI","B162"]
[null,null,null,null,"brez","TN","B165"]
[null,null,null,null,"brezzo di bedero","VA","B166"]
[null,null,null,null,"briaglia","CN","B167"]
[null,null,null,null,"briatico","VV","B169"]
[null,null,null,null,"bricherasio","TO","B171"]
[null,null,null,null,"brienno","CO","B172"]
[null,null,null,null,"brienza","PZ","B173"]
[null,null,null,null,"briga alta","CN","B175"]
[null,null,null,null,"briga novarese","NO","B176"]
[null,null,null,null,"brignano gera d'adda","BG","B178"]
[null,null,null,null,"brignano-frascata","AL","B179"]
[null,null,null,null,"brindisi","BR","B180"]
[null,null,null,null,"brindisi montagna","PZ","B181"]
[null,null,null,null,"brinzio","VA","B182"]
[null,null,null,null,"briona","NO","B183"]
[null,null,null,null,"brione","BS","B184"]
[null,null,null,null,"brione","TN","B185"]
[null,null,null,null,"briosco","MI","B187"]
[null,null,null,null,"brisighella","RA","B188"]
[null,null,null,null,"brissago-valtravaglia","VA","B191"]
[null,null,null,null,"brissogne","AO","B192"]
[null,null,null,null,"brittoli","PE","B193"]
[null,null,null,null,"brivio","LC","B194"]
[null,null,null,null,"broccostella","FR","B195"]
[null,null,null,null,"brogliano","VI","B196"]
[null,null,null,null,"brognaturo","VV","B197"]
[null,null,null,null,"brolo","ME","B198"]
[null,null,null,null,"brondello","CN","B200"]
[null,null,null,null,"broni","PV","B201"]
[null,null,null,null,"bronte","CT","B202"]
[null,null,null,null,"bronzolo .branzoll.","BZ","B203"]
[null,null,null,null,"brossasco","CN","B204"]
[null,null,null,null,"brosso","TO","B205"]
[null,null,null,null,"brovello-carpugnino","VB","B207"]
[null,null,null,null,"brozolo","TO","B209"]
[null,null,null,null,"brugherio","MI","B212"]
[null,null,null,null,"brugine","PD","B213"]
[null,null,null,null,"brugnato","SP","B214"]
[null,null,null,null,"brugnera","PN","B215"]
[null,null,null,null,"bruino","TO","B216"]
[null,null,null,null,"brumano","BG","B217"]
[null,null,null,null,"brunate","CO","B218"]
[null,null,null,null,"brunei","EE","Z207"]
[null,null,null,null,"brunello","VA","B219"]
[null,null,null,null,"brunico .bruneck.","BZ","B220"]
[null,null,null,null,"bruno","AT","B221"]
[null,null,null,null,"brusaporto","BG","B223"]
[null,null,null,null,"brusasco","TO","B225"]
[null,null,null,null,"brusciano","NA","B227"]
[null,null,null,null,"brusimpiano","VA","B228"]
[null,null,null,null,"brusnengo","BI","B229"]
[null,null,null,null,"brusson","AO","B230"]
[null,null,null,null,"bruzolo","TO","B232"]
[null,null,null,null,"bruzzano zeffirio","RC","B234"]
[null,null,null,null,"bubbiano","MI","B235"]
[null,null,null,null,"bubbio","AT","B236"]
[null,null,null,null,"buccheri","SR","B237"]
[null,null,null,null,"bucchianico","CH","B238"]
[null,null,null,null,"bucciano","BN","B239"]
[null,null,null,null,"buccinasco","MI","B240"]
[null,null,null,null,"buccino","SA","B242"]
[null,null,null,null,"bucine","AR","B243"]
[null,null,null,null,"budduso'","SS","B246"]
[null,null,null,null,"budoia","PN","B247"]
[null,null,null,null,"budoni","NU","B248"]
[null,null,null,null,"budrio","BO","B249"]
[null,null,null,null,"buggerru","CA","B250"]
[null,null,null,null,"buggiano","PT","B251"]
[null,null,null,null,"buglio in monte","SO","B255"]
[null,null,null,null,"bugnara","AQ","B256"]
[null,null,null,null,"buguggiate","VA","B258"]
[null,null,null,null,"buja","UD","B259"]
[null,null,null,null,"bulciago","LC","B261"]
[null,null,null,null,"bulgaria","EE","Z104"]
[null,null,null,null,"bulgarograsso","CO","B262"]
[null,null,null,null,"bultei","SS","B264"]
[null,null,null,null,"bulzi","SS","B265"]
[null,null,null,null,"buonabitacolo","SA","B266"]
[null,null,null,null,"buonalbergo","BN","B267"]
[null,null,null,null,"buonconvento","SI","B269"]
[null,null,null,null,"buonvicino","CS","B270"]
[null,null,null,null,"burago di molgora","MI","B272"]
[null,null,null,null,"burcei","CA","B274"]
[null,null,null,null,"burgio","AG","B275"]
[null,null,null,null,"burgos","SS","B276"]
[null,null,null,null,"buriasco","TO","B278"]
[null,null,null,null,"burolo","TO","B279"]
[null,null,null,null,"buronzo","VC","B280"]
[null,null,null,null,"burundi","EE","Z305"]
[null,null,null,null,"busachi","OR","B281"]
[null,null,null,null,"busalla","GE","B282"]
[null,null,null,null,"busana","RE","B283"]
[null,null,null,null,"busano","TO","B284"]
[null,null,null,null,"busca","CN","B285"]
[null,null,null,null,"buscate","MI","B286"]
[null,null,null,null,"buscemi","SR","B287"]
[null,null,null,null,"buseto palizzolo","TP","B288"]
[null,null,null,null,"busnago","MI","B289"]
[null,null,null,null,"bussero","MI","B292"]
[null,null,null,null,"busseto","PR","B293"]
[null,null,null,null,"bussi sul tirino","PE","B294"]
[null,null,null,null,"busso","CB","B295"]
[null,null,null,null,"bussolengo","VR","B296"]
[null,null,null,null,"bussoleno","TO","B297"]
[null,null,null,null,"busto arsizio","VA","B300"]
[null,null,null,null,"busto garolfo","MI","B301"]
[null,null,null,null,"butera","CL","B302"]
[null,null,null,null,"buti","PI","B303"]
[null,null,null,null,"buttapietra","VR","B304"]
[null,null,null,null,"buttigliera alta","TO","B305"]
[null,null,null,null,"buttigliera d'asti","AT","B306"]
[null,null,null,null,"buttrio","UD","B309"]
[null,null,null,null,"ca' d'andrea","CR","B320"]
[null,null,null,null,"cabella ligure","AL","B311"]
[null,null,null,null,"cabiate","CO","B313"]
[null,null,null,null,"cabras","OR","B314"]
[null,null,null,null,"caccamo","PA","B315"]
[null,null,null,null,"caccuri","KR","B319"]
[null,null,null,null,"cadegliano-viconago","VA","B326"]
[null,null,null,null,"cadelbosco di sopra","RE","B328"]
[null,null,null,null,"cadeo","PC","B332"]
[null,null,null,null,"caderzone","TN","B335"]
[null,null,null,null,"cadoneghe","PD","B345"]
[null,null,null,null,"cadorago","CO","B346"]
[null,null,null,null,"cadrezzate","VA","B347"]
[null,null,null,null,"caerano di san marco","TV","B349"]
[null,null,null,null,"cafasse","TO","B350"]
[null,null,null,null,"caggiano","SA","B351"]
[null,null,null,null,"cagli","PU","B352"]
[null,null,null,null,"cagliari","CA","B354"]
[null,null,null,null,"caglio","CO","B355"]
[null,null,null,null,"cagnano amiterno","AQ","B358"]
[null,null,null,null,"cagnano varano","FG","B357"]
[null,null,null,null,"cagno","CO","B359"]
[null,null,null,null,"cagno'","TN","B360"]
[null,null,null,null,"caianello","CE","B361"]
[null,null,null,null,"caiazzo","CE","B362"]
[null,null,null,null,"caines .kuens.","BZ","B364"]
[null,null,null,null,"caino","BS","B365"]
[null,null,null,null,"caiolo","SO","B366"]
[null,null,null,null,"cairano","AV","B367"]
[null,null,null,null,"cairate","VA","B368"]
[null,null,null,null,"cairo montenotte","SV","B369"]
[null,null,null,null,"caivano","NA","B371"]
[null,null,null,null,"calabritto","AV","B374"]
[null,null,null,null,"calalzo di cadore","BL","B375"]
[null,null,null,null,"calamandrana","AT","B376"]
[null,null,null,null,"calamonaci","AG","B377"]
[null,null,null,null,"calangianus","SS","B378"]
[null,null,null,null,"calanna","RC","B379"]
[null,null,null,null,"calasca-castiglione","VB","B380"]
[null,null,null,null,"calascibetta","EN","B381"]
[null,null,null,null,"calascio","AQ","B382"]
[null,null,null,null,"calasetta","CA","B383"]
[null,null,null,null,"calatabiano","CT","B384"]
[null,null,null,null,"calatafimi","TP","B385"]
[null,null,null,null,"calavino","TN","B386"]
[null,null,null,null,"calcata","VT","B388"]
[null,null,null,null,"calceranica al lago","TN","B389"]
[null,null,null,null,"calci","PI","B390"]
[null,null,null,null,"calciano","MT","B391"]
[null,null,null,null,"calcinaia","PI","B392"]
[null,null,null,null,"calcinate","BG","B393"]
[null,null,null,null,"calcinato","BS","B394"]
[null,null,null,null,"calcio","BG","B395"]
[null,null,null,null,"calco","LC","B396"]
[null,null,null,null,"caldaro sulla strada del vino .kaltern an de.","BZ","B397"]
[null,null,null,null,"caldarola","MC","B398"]
[null,null,null,null,"calderara di reno","BO","B399"]
[null,null,null,null,"caldes","TN","B400"]
[null,null,null,null,"caldiero","VR","B402"]
[null,null,null,null,"caldogno","VI","B403"]
[null,null,null,null,"caldonazzo","TN","B404"]
[null,null,null,null,"calendasco","PC","B405"]
[null,null,null,null,"calenzano","FI","B406"]
[null,null,null,null,"calestano","PR","B408"]
[null,null,null,null,"calice al cornoviglio","SP","B410"]
[null,null,null,null,"calice ligure","SV","B409"]
[null,null,null,null,"calimera","LE","B413"]
[null,null,null,null,"calitri","AV","B415"]
[null,null,null,null,"calizzano","SV","B416"]
[null,null,null,null,"callabiana","BI","B417"]
[null,null,null,null,"calliano","AT","B418"]
[null,null,null,null,"calliano","TN","B419"]
[null,null,null,null,"calolziocorte","LC","B423"]
[null,null,null,null,"calopezzati","CS","B424"]
[null,null,null,null,"calosso","AT","B425"]
[null,null,null,null,"caloveto","CS","B426"]
[null,null,null,null,"caltabellotta","AG","B427"]
[null,null,null,null,"caltagirone","CT","B428"]
[null,null,null,null,"caltanissetta","CL","B429"]
[null,null,null,null,"caltavuturo","PA","B430"]
[null,null,null,null,"caltignaga","NO","B431"]
[null,null,null,null,"calto","RO","B432"]
[null,null,null,null,"caltrano","VI","B433"]
[null,null,null,null,"calusco d'adda","BG","B434"]
[null,null,null,null,"caluso","TO","B435"]
[null,null,null,null,"calvagese della riviera","BS","B436"]
[null,null,null,null,"calvanico","SA","B437"]
[null,null,null,null,"calvatone","CR","B439"]
[null,null,null,null,"calvello","PZ","B440"]
[null,null,null,null,"calvene","VI","B441"]
[null,null,null,null,"calvenzano","BG","B442"]
[null,null,null,null,"calvera","PZ","B443"]
[null,null,null,null,"calvi","BN","B444"]
[null,null,null,null,"calvi dell'umbria","TR","B446"]
[null,null,null,null,"calvi risorta","CE","B445"]
[null,null,null,null,"calvignano","PV","B447"]
[null,null,null,null,"calvignasco","MI","B448"]
[null,null,null,null,"calvisano","BS","B450"]
[null,null,null,null,"calvizzano","NA","B452"]
[null,null,null,null,"camagna monferrato","AL","B453"]
[null,null,null,null,"camaiore","LU","B455"]
[null,null,null,null,"camairago","LO","B456"]
[null,null,null,null,"camandona","BI","B457"]
[null,null,null,null,"camastra","AG","B460"]
[null,null,null,null,"cambiago","MI","B461"]
[null,null,null,null,"cambiano","TO","B462"]
[null,null,null,null,"cambiasca","VB","B463"]
[null,null,null,null,"cambogia","EE","Z208"]
[null,null,null,null,"camburzano","BI","B465"]
[null,null,null,null,"camerana","CN","B467"]
[null,null,null,null,"camerano","AN","B468"]
[null,null,null,null,"camerano casasco","AT","B469"]
[null,null,null,null,"camerata cornello","BG","B471"]
[null,null,null,null,"camerata nuova","RM","B472"]
[null,null,null,null,"camerata picena","AN","B470"]
[null,null,null,null,"cameri","NO","B473"]
[null,null,null,null,"camerino","MC","B474"]
[null,null,null,null,"camerota","SA","B476"]
[null,null,null,null,"camerun","EE","Z306"]
[null,null,null,null,"camigliano","CE","B477"]
[null,null,null,null,"caminata","PC","B479"]
[null,null,null,null,"camini","RC","B481"]
[null,null,null,null,"camino","AL","B482"]
[null,null,null,null,"camino al tagliamento","UD","B483"]
[null,null,null,null,"camisano","CR","B484"]
[null,null,null,null,"camisano vicentino","VI","B485"]
[null,null,null,null,"cammarata","AG","B486"]
[null,null,null,null,"camo","CN","B489"]
[null,null,null,null,"camogli","GE","B490"]
[null,null,null,null,"campagna","SA","B492"]
[null,null,null,null,"campagna lupia","VE","B493"]
[null,null,null,null,"campagnano di roma","RM","B496"]
[null,null,null,null,"campagnatico","GR","B497"]
[null,null,null,null,"campagnola cremasca","CR","B498"]
[null,null,null,null,"campagnola emilia","RE","B499"]
[null,null,null,null,"campana","CS","B500"]
[null,null,null,null,"camparada","MI","B501"]
[null,null,null,null,"campegine","RE","B502"]
[null,null,null,null,"campello sul clitunno","PG","B504"]
[null,null,null,null,"campertogno","VC","B505"]
[null,null,null,null,"campi bisenzio","FI","B507"]
[null,null,null,null,"campi salentina","LE","B506"]
[null,null,null,null,"campiglia cervo","BI","B508"]
[null,null,null,null,"campiglia dei berici","VI","B511"]
[null,null,null,null,"campiglia marittima","LI","B509"]
[null,null,null,null,"campiglione fenile","TO","B512"]
[null,null,null,null,"campione d'italia","CO","B513"]
[null,null,null,null,"campitello di fassa","TN","B514"]
[null,null,null,null,"campli","TE","B515"]
[null,null,null,null,"campo calabro","RC","B516"]
[null,null,null,null,"campo di giove","AQ","B526"]
[null,null,null,null,"campo di trens .freienfeld.","BZ","B529"]
[null,null,null,null,"campo ligure","GE","B538"]
[null,null,null,null,"campo nell'elba","LI","B553"]
[null,null,null,null,"campo san martino","PD","B564"]
[null,null,null,null,"campo tures .sand in taufers.","BZ","B570"]
[null,null,null,null,"campobasso","CB","B519"]
[null,null,null,null,"campobello di licata","AG","B520"]
[null,null,null,null,"campobello di mazara","TP","B521"]
[null,null,null,null,"campochiaro","CB","B522"]
[null,null,null,null,"campodarsego","PD","B524"]
[null,null,null,null,"campodenno","TN","B525"]
[null,null,null,null,"campodimele","LT","B527"]
[null,null,null,null,"campodipietra","CB","B528"]
[null,null,null,null,"campodolcino","SO","B530"]
[null,null,null,null,"campodoro","PD","B531"]
[null,null,null,null,"campofelice di fitalia","PA","B533"]
[null,null,null,null,"campofelice di roccella","PA","B532"]
[null,null,null,null,"campofilone","AP","B534"]
[null,null,null,null,"campofiorito","PA","B535"]
[null,null,null,null,"campoformido","UD","B536"]
[null,null,null,null,"campofranco","CL","B537"]
[null,null,null,null,"campogalliano","MO","B539"]
[null,null,null,null,"campolattaro","BN","B541"]
[null,null,null,null,"campoli appennino","FR","B543"]
[null,null,null,null,"campoli del monte taburno","BN","B542"]
[null,null,null,null,"campolieto","CB","B544"]
[null,null,null,null,"campolongo al torre","UD","B545"]
[null,null,null,null,"campolongo maggiore","VE","B546"]
[null,null,null,null,"campolongo sul brenta","VI","B547"]
[null,null,null,null,"campolongo tapogliano","UD","M311"]
[null,null,null,null,"campomaggiore","PZ","B549"]
[null,null,null,null,"campomarino","CB","B550"]
[null,null,null,null,"campomorone","GE","B551"]
[null,null,null,null,"camponogara","VE","B554"]
[null,null,null,null,"campora","SA","B555"]
[null,null,null,null,"camporeale","PA","B556"]
[null,null,null,null,"camporgiano","LU","B557"]
[null,null,null,null,"camporosso","IM","B559"]
[null,null,null,null,"camporotondo di fiastrone","MC","B562"]
[null,null,null,null,"camporotondo etneo","CT","B561"]
[null,null,null,null,"camposampiero","PD","B563"]
[null,null,null,null,"camposano","NA","B565"]
[null,null,null,null,"camposanto","MO","B566"]
[null,null,null,null,"campospinoso","PV","B567"]
[null,null,null,null,"campotosto","AQ","B569"]
[null,null,null,null,"camugnano","BO","B572"]
[null,null,null,null,"canada","EE","Z401"]
[null,null,null,null,"canal san bovo","TN","B577"]
[null,null,null,null,"canale","CN","B573"]
[null,null,null,null,"canale d'agordo","BL","B574"]
[null,null,null,null,"canale monterano","RM","B576"]
[null,null,null,null,"canaro","RO","B578"]
[null,null,null,null,"canazei","TN","B579"]
[null,null,null,null,"cancellara","PZ","B580"]
[null,null,null,null,"cancello ed arnone","CE","B581"]
[null,null,null,null,"canda","RO","B582"]
[null,null,null,null,"candela","FG","B584"]
[null,null,null,null,"candelo","BI","B586"]
[null,null,null,null,"candia canavese","TO","B588"]
[null,null,null,null,"candia lomellina","PV","B587"]
[null,null,null,null,"candiana","PD","B589"]
[null,null,null,null,"candida","AV","B590"]
[null,null,null,null,"candidoni","RC","B591"]
[null,null,null,null,"candiolo","TO","B592"]
[null,null,null,null,"canegrate","MI","B593"]
[null,null,null,null,"canelli","AT","B594"]
[null,null,null,null,"canepina","VT","B597"]
[null,null,null,null,"caneva","PN","B598"]
[null,null,null,null,"canevino","PV","B599"]
[null,null,null,null,"canicatti'","AG","B602"]
[null,null,null,null,"canicattini bagni","SR","B603"]
[null,null,null,null,"canino","VT","B604"]
[null,null,null,null,"canischio","TO","B605"]
[null,null,null,null,"canistro","AQ","B606"]
[null,null,null,null,"canna","CS","B607"]
[null,null,null,null,"cannalonga","SA","B608"]
[null,null,null,null,"cannara","PG","B609"]
[null,null,null,null,"cannero riviera","VB","B610"]
[null,null,null,null,"canneto pavese","PV","B613"]
[null,null,null,null,"canneto sull'oglio","MN","B612"]
[null,null,null,null,"cannobio","VB","B615"]
[null,null,null,null,"cannole","LE","B616"]
[null,null,null,null,"canolo","RC","B617"]
[null,null,null,null,"canonica d'adda","BG","B618"]
[null,null,null,null,"canosa di puglia","BA","B619"]
[null,null,null,null,"canosa sannita","CH","B620"]
[null,null,null,null,"canosio","CN","B621"]
[null,null,null,null,"canossa","RE","C669"]
[null,null,null,null,"cansano","AQ","B624"]
[null,null,null,null,"cantagallo","PO","B626"]
[null,null,null,null,"cantalice","RI","B627"]
[null,null,null,null,"cantalupa","TO","B628"]
[null,null,null,null,"cantalupo in sabina","RI","B631"]
[null,null,null,null,"cantalupo ligure","AL","B629"]
[null,null,null,null,"cantalupo nel sannio","IS","B630"]
[null,null,null,null,"cantarana","AT","B633"]
[null,null,null,null,"cantello","VA","B634"]
[null,null,null,null,"canterano","RM","B635"]
[null,null,null,null,"cantiano","PU","B636"]
[null,null,null,null,"cantoira","TO","B637"]
[null,null,null,null,"cantu'","CO","B639"]
[null,null,null,null,"canzano","TE","B640"]
[null,null,null,null,"canzo","CO","B641"]
[null,null,null,null,"caorle","VE","B642"]
[null,null,null,null,"caorso","PC","B643"]
[null,null,null,null,"capaccio","SA","B644"]
[null,null,null,null,"capaci","PA","B645"]
[null,null,null,null,"capalbio","GR","B646"]
[null,null,null,null,"capannoli","PI","B647"]
[null,null,null,null,"capannori","LU","B648"]
[null,null,null,null,"capena","RM","B649"]
[null,null,null,null,"capergnanica","CR","B650"]
[null,null,null,null,"capestrano","AQ","B651"]
[null,null,null,null,"capiago intimiano","CO","B653"]
[null,null,null,null,"capistrano","VV","B655"]
[null,null,null,null,"capistrello","AQ","B656"]
[null,null,null,null,"capitignano","AQ","B658"]
[null,null,null,null,"capizzi","ME","B660"]
[null,null,null,null,"capizzone","BG","B661"]
[null,null,null,null,"capo d'orlando","ME","B666"]
[null,null,null,null,"capo di ponte","BS","B664"]
[null,null,null,null,"capo verde (isole)","EE","Z307"]
[null,null,null,null,"capodimonte","VT","B663"]
[null,null,null,null,"capodrise","CE","B667"]
[null,null,null,null,"capoliveri","LI","B669"]
[null,null,null,null,"capolona","AR","B670"]
[null,null,null,null,"caponago","MI","B671"]
[null,null,null,null,"caporciano","AQ","B672"]
[null,null,null,null,"caposele","AV","B674"]
[null,null,null,null,"capoterra","CA","B675"]
[null,null,null,null,"capovalle","BS","B676"]
[null,null,null,null,"cappadocia","AQ","B677"]
[null,null,null,null,"cappella cantone","CR","B679"]
[null,null,null,null,"cappella de' picenardi","CR","B680"]
[null,null,null,null,"cappella maggiore","TV","B678"]
[null,null,null,null,"cappelle sul tavo","PE","B681"]
[null,null,null,null,"capracotta","IS","B682"]
[null,null,null,null,"capraia e limite","FI","B684"]
[null,null,null,null,"capraia isola","LI","B685"]
[null,null,null,null,"capralba","CR","B686"]
[null,null,null,null,"capranica","VT","B688"]
[null,null,null,null,"capranica prenestina","RM","B687"]
[null,null,null,null,"caprarica di lecce","LE","B690"]
[null,null,null,null,"caprarola","VT","B691"]
[null,null,null,null,"caprauna","CN","B692"]
[null,null,null,null,"caprese michelangelo","AR","B693"]
[null,null,null,null,"caprezzo","VB","B694"]
[null,null,null,null,"capri","NA","B696"]
[null,null,null,null,"capri leone","ME","B695"]
[null,null,null,null,"capriana","TN","B697"]
[null,null,null,null,"capriano del colle","BS","B698"]
[null,null,null,null,"capriata d'orba","AL","B701"]
[null,null,null,null,"capriate san gervasio","BG","B703"]
[null,null,null,null,"capriati a volturno","CE","B704"]
[null,null,null,null,"caprie","TO","B705"]
[null,null,null,null,"capriglia irpina","AV","B706"]
[null,null,null,null,"capriglio","AT","B707"]
[null,null,null,null,"caprile","BI","B708"]
[null,null,null,null,"caprino bergamasco","BG","B710"]
[null,null,null,null,"caprino veronese","VR","B709"]
[null,null,null,null,"capriolo","BS","B711"]
[null,null,null,null,"capriva del friuli","GO","B712"]
[null,null,null,null,"capua","CE","B715"]
[null,null,null,null,"capurso","BA","B716"]
[null,null,null,null,"caraffa del bianco","RC","B718"]
[null,null,null,null,"caraffa di catanzaro","CZ","B717"]
[null,null,null,null,"caraglio","CN","B719"]
[null,null,null,null,"caramagna piemonte","CN","B720"]
[null,null,null,null,"caramanico terme","PE","B722"]
[null,null,null,null,"carano","TN","B723"]
[null,null,null,null,"carapelle","FG","B724"]
[null,null,null,null,"carapelle calvisio","AQ","B725"]
[null,null,null,null,"carasco","GE","B726"]
[null,null,null,null,"carassai","AP","B727"]
[null,null,null,null,"carate brianza","MI","B729"]
[null,null,null,null,"carate urio","CO","B730"]
[null,null,null,null,"caravaggio","BG","B731"]
[null,null,null,null,"caravate","VA","B732"]
[null,null,null,null,"caravino","TO","B733"]
[null,null,null,null,"caravonica","IM","B734"]
[null,null,null,null,"carbognano","VT","B735"]
[null,null,null,null,"carbonara al ticino","PV","B741"]
[null,null,null,null,"carbonara di nola","NA","B740"]
[null,null,null,null,"carbonara di po","MN","B739"]
[null,null,null,null,"carbonara scrivia","AL","B736"]
[null,null,null,null,"carbonate","CO","B742"]
[null,null,null,null,"carbone","PZ","B743"]
[null,null,null,null,"carbonera","TV","B744"]
[null,null,null,null,"carbonia","CA","B745"]
[null,null,null,null,"carcare","SV","B748"]
[null,null,null,null,"carceri","PD","B749"]
[null,null,null,null,"carcoforo","VC","B752"]
[null,null,null,null,"cardano al campo","VA","B754"]
[null,null,null,null,"carde'","CN","B755"]
[null,null,null,null,"cardedu","NU","M285"]
[null,null,null,null,"cardeto","RC","B756"]
[null,null,null,null,"cardinale","CZ","B758"]
[null,null,null,null,"cardito","NA","B759"]
[null,null,null,null,"careggine","LU","B760"]
[null,null,null,null,"carema","TO","B762"]
[null,null,null,null,"carenno","LC","B763"]
[null,null,null,null,"carentino","AL","B765"]
[null,null,null,null,"careri","RC","B766"]
[null,null,null,null,"caresana","VC","B767"]
[null,null,null,null,"caresanablot","VC","B768"]
[null,null,null,null,"carezzano","AL","B769"]
[null,null,null,null,"carfizzi","KR","B771"]
[null,null,null,null,"cargeghe","SS","B772"]
[null,null,null,null,"cariati","CS","B774"]
[null,null,null,null,"carife","AV","B776"]
[null,null,null,null,"carignano","TO","B777"]
[null,null,null,null,"carimate","CO","B778"]
[null,null,null,null,"carinaro","CE","B779"]
[null,null,null,null,"carini","PA","B780"]
[null,null,null,null,"carinola","CE","B781"]
[null,null,null,null,"carisio","VC","B782"]
[null,null,null,null,"carisolo","TN","B783"]
[null,null,null,null,"carlantino","FG","B784"]
[null,null,null,null,"carlazzo","CO","B785"]
[null,null,null,null,"carlentini","SR","B787"]
[null,null,null,null,"carlino","UD","B788"]
[null,null,null,null,"carloforte","CA","B789"]
[null,null,null,null,"carlopoli","CZ","B790"]
[null,null,null,null,"carmagnola","TO","B791"]
[null,null,null,null,"carmiano","LE","B792"]
[null,null,null,null,"carmignano","PO","B794"]
[null,null,null,null,"carmignano di brenta","PD","B795"]
[null,null,null,null,"carnago","VA","B796"]
[null,null,null,null,"carnate","MI","B798"]
[null,null,null,null,"carobbio degli angeli","BG","B801"]
[null,null,null,null,"carolei","CS","B802"]
[null,null,null,null,"caroline (isole)","EE","Z701"]
[null,null,null,null,"carona","BG","B803"]
[null,null,null,null,"caronia","ME","B804"]
[null,null,null,null,"caronno pertusella","VA","B805"]
[null,null,null,null,"caronno varesino","VA","B807"]
[null,null,null,null,"carosino","TA","B808"]
[null,null,null,null,"carovigno","BR","B809"]
[null,null,null,null,"carovilli","IS","B810"]
[null,null,null,null,"carpaneto piacentino","PC","B812"]
[null,null,null,null,"carpanzano","CS","B813"]
[null,null,null,null,"carpasio","IM","B814"]
[null,null,null,null,"carpegna","PU","B816"]
[null,null,null,null,"carpenedolo","BS","B817"]
[null,null,null,null,"carpeneto","AL","B818"]
[null,null,null,null,"carpi","MO","B819"]
[null,null,null,null,"carpiano","MI","B820"]
[null,null,null,null,"carpignano salentino","LE","B822"]
[null,null,null,null,"carpignano sesia","NO","B823"]
[null,null,null,null,"carpineti","RE","B825"]
[null,null,null,null,"carpineto della nora","PE","B827"]
[null,null,null,null,"carpineto romano","RM","B828"]
[null,null,null,null,"carpineto sinello","CH","B826"]
[null,null,null,null,"carpino","FG","B829"]
[null,null,null,null,"carpinone","IS","B830"]
[null,null,null,null,"carrara","MS","B832"]
[null,null,null,null,"carre'","VI","B835"]
[null,null,null,null,"carrega ligure","AL","B836"]
[null,null,null,null,"carro","SP","B838"]
[null,null,null,null,"carrodano","SP","B839"]
[null,null,null,null,"carrosio","AL","B840"]
[null,null,null,null,"carru'","CN","B841"]
[null,null,null,null,"carsoli","AQ","B842"]
[null,null,null,null,"cartigliano","VI","B844"]
[null,null,null,null,"cartignano","CN","B845"]
[null,null,null,null,"cartoceto","PU","B846"]
[null,null,null,null,"cartosio","AL","B847"]
[null,null,null,null,"cartura","PD","B848"]
[null,null,null,null,"carugate","MI","B850"]
[null,null,null,null,"carugo","CO","B851"]
[null,null,null,null,"carunchio","CH","B853"]
[null,null,null,null,"carvico","BG","B854"]
[null,null,null,null,"carzano","TN","B856"]
[null,null,null,null,"casabona","KR","B857"]
[null,null,null,null,"casacalenda","CB","B858"]
[null,null,null,null,"casacanditella","CH","B859"]
[null,null,null,null,"casagiove","CE","B860"]
[null,null,null,null,"casal cermelli","AL","B870"]
[null,null,null,null,"casal di principe","CE","B872"]
[null,null,null,null,"casal velino","SA","B895"]
[null,null,null,null,"casalanguida","CH","B861"]
[null,null,null,null,"casalattico","FR","B862"]
[null,null,null,null,"casalbeltrame","NO","B864"]
[null,null,null,null,"casalbordino","CH","B865"]
[null,null,null,null,"casalbore","AV","B866"]
[null,null,null,null,"casalborgone","TO","B867"]
[null,null,null,null,"casalbuono","SA","B868"]
[null,null,null,null,"casalbuttano ed uniti","CR","B869"]
[null,null,null,null,"casalciprano","CB","B871"]
[null,null,null,null,"casalduni","BN","B873"]
[null,null,null,null,"casale corte cerro","VB","B876"]
[null,null,null,null,"casale cremasco-vidolasco","CR","B881"]
[null,null,null,null,"casale di scodosia","PD","B877"]
[null,null,null,null,"casale litta","VA","B875"]
[null,null,null,null,"casale marittimo","PI","B878"]
[null,null,null,null,"casale monferrato","AL","B885"]
[null,null,null,null,"casale sul sile","TV","B879"]
[null,null,null,null,"casalecchio di reno","BO","B880"]
[null,null,null,null,"casaleggio boiro","AL","B882"]
[null,null,null,null,"casaleggio novara","NO","B883"]
[null,null,null,null,"casaleone","VR","B886"]
[null,null,null,null,"casaletto ceredano","CR","B889"]
[null,null,null,null,"casaletto di sopra","CR","B890"]
[null,null,null,null,"casaletto lodigiano","LO","B887"]
[null,null,null,null,"casaletto spartano","SA","B888"]
[null,null,null,null,"casaletto vaprio","CR","B891"]
[null,null,null,null,"casalfiumanese","BO","B892"]
[null,null,null,null,"casalgrande","RE","B893"]
[null,null,null,null,"casalgrasso","CN","B894"]
[null,null,null,null,"casalincontrada","CH","B896"]
[null,null,null,null,"casalino","NO","B897"]
[null,null,null,null,"casalmaggiore","CR","B898"]
[null,null,null,null,"casalmaiocco","LO","B899"]
[null,null,null,null,"casalmorano","CR","B900"]
[null,null,null,null,"casalmoro","MN","B901"]
[null,null,null,null,"casalnoceto","AL","B902"]
[null,null,null,null,"casalnuovo di napoli","NA","B905"]
[null,null,null,null,"casalnuovo monterotaro","FG","B904"]
[null,null,null,null,"casaloldo","MN","B907"]
[null,null,null,null,"casalpusterlengo","LO","B910"]
[null,null,null,null,"casalromano","MN","B911"]
[null,null,null,null,"casalserugo","PD","B912"]
[null,null,null,null,"casaluce","CE","B916"]
[null,null,null,null,"casalvecchio di puglia","FG","B917"]
[null,null,null,null,"casalvecchio siculo","ME","B918"]
[null,null,null,null,"casalvieri","FR","B919"]
[null,null,null,null,"casalvolone","NO","B920"]
[null,null,null,null,"casalzuigno","VA","B921"]
[null,null,null,null,"casamarciano","NA","B922"]
[null,null,null,null,"casamassima","BA","B923"]
[null,null,null,null,"casamicciola terme","NA","B924"]
[null,null,null,null,"casandrino","NA","B925"]
[null,null,null,null,"casanova elvo","VC","B928"]
[null,null,null,null,"casanova lerrone","SV","B927"]
[null,null,null,null,"casanova lonati","PV","B929"]
[null,null,null,null,"casape","RM","B932"]
[null,null,null,null,"casapesenna","CE","M260"]
[null,null,null,null,"casapinta","BI","B933"]
[null,null,null,null,"casaprota","RI","B934"]
[null,null,null,null,"casapulla","CE","B935"]
[null,null,null,null,"casarano","LE","B936"]
[null,null,null,null,"casargo","LC","B937"]
[null,null,null,null,"casarile","MI","B938"]
[null,null,null,null,"casarsa della delizia","PN","B940"]
[null,null,null,null,"casarza ligure","GE","B939"]
[null,null,null,null,"casasco","AL","B941"]
[null,null,null,null,"casasco d'intelvi","CO","B942"]
[null,null,null,null,"casatenovo","LC","B943"]
[null,null,null,null,"casatisma","PV","B945"]
[null,null,null,null,"casavatore","NA","B946"]
[null,null,null,null,"casazza","BG","B947"]
[null,null,null,null,"cascia","PG","B948"]
[null,null,null,null,"casciago","VA","B949"]
[null,null,null,null,"casciana terme","PI","A559"]
[null,null,null,null,"cascina","PI","B950"]
[null,null,null,null,"cascinette d'ivrea","TO","B953"]
[null,null,null,null,"casei gerola","PV","B954"]
[null,null,null,null,"caselette","TO","B955"]
[null,null,null,null,"casella","GE","B956"]
[null,null,null,null,"caselle in pittari","SA","B959"]
[null,null,null,null,"caselle landi","LO","B961"]
[null,null,null,null,"caselle lurani","LO","B958"]
[null,null,null,null,"caselle torinese","TO","B960"]
[null,null,null,null,"caserta","CE","B963"]
[null,null,null,null,"casier","TV","B965"]
[null,null,null,null,"casignana","RC","B966"]
[null,null,null,null,"casina","RE","B967"]
[null,null,null,null,"casirate d'adda","BG","B971"]
[null,null,null,null,"caslino d'erba","CO","B974"]
[null,null,null,null,"casnate con bernate","CO","B977"]
[null,null,null,null,"casnigo","BG","B978"]
[null,null,null,null,"casola di napoli","NA","B980"]
[null,null,null,null,"casola in lunigiana","MS","B979"]
[null,null,null,null,"casola valsenio","RA","B982"]
[null,null,null,null,"casole bruzio","CS","B983"]
[null,null,null,null,"casole d'elsa","SI","B984"]
[null,null,null,null,"casoli","CH","B985"]
[null,null,null,null,"casorate primo","PV","B988"]
[null,null,null,null,"casorate sempione","VA","B987"]
[null,null,null,null,"casorezzo","MI","B989"]
[null,null,null,null,"casoria","NA","B990"]
[null,null,null,null,"casorzo","AT","B991"]
[null,null,null,null,"casperia","RI","A472"]
[null,null,null,null,"caspoggio","SO","B993"]
[null,null,null,null,"cassacco","UD","B994"]
[null,null,null,null,"cassago brianza","LC","B996"]
[null,null,null,null,"cassano allo ionio","CS","C002"]
[null,null,null,null,"cassano d'adda","MI","C003"]
[null,null,null,null,"cassano delle murge","BA","B998"]
[null,null,null,null,"cassano irpino","AV","B997"]
[null,null,null,null,"cassano magnago","VA","C004"]
[null,null,null,null,"cassano spinola","AL","C005"]
[null,null,null,null,"cassano valcuvia","VA","B999"]
[null,null,null,null,"cassaro","SR","C006"]
[null,null,null,null,"cassiglio","BG","C007"]
[null,null,null,null,"cassina de' pecchi","MI","C014"]
[null,null,null,null,"cassina rizzardi","CO","C020"]
[null,null,null,null,"cassina valsassina","LC","C024"]
[null,null,null,null,"cassinasco","AT","C022"]
[null,null,null,null,"cassine","AL","C027"]
[null,null,null,null,"cassinelle","AL","C030"]
[null,null,null,null,"cassinetta di lugagnano","MI","C033"]
[null,null,null,null,"cassino","FR","C034"]
[null,null,null,null,"cassola","VI","C037"]
[null,null,null,null,"cassolnovo","PV","C038"]
[null,null,null,null,"castagnaro","VR","C041"]
[null,null,null,null,"castagneto carducci","LI","C044"]
[null,null,null,null,"castagneto po","TO","C045"]
[null,null,null,null,"castagnito","CN","C046"]
[null,null,null,null,"castagnole delle lanze","AT","C049"]
[null,null,null,null,"castagnole monferrato","AT","C047"]
[null,null,null,null,"castagnole piemonte","TO","C048"]
[null,null,null,null,"castana","PV","C050"]
[null,null,null,null,"castano primo","MI","C052"]
[null,null,null,null,"casteggio","PV","C053"]
[null,null,null,null,"castegnato","BS","C055"]
[null,null,null,null,"castegnero","VI","C056"]
[null,null,null,null,"castel baronia","AV","C058"]
[null,null,null,null,"castel boglione","AT","C064"]
[null,null,null,null,"castel bolognese","RA","C065"]
[null,null,null,null,"castel campagnano","CE","B494"]
[null,null,null,null,"castel castagna","TE","C040"]
[null,null,null,null,"castel colonna","AN","C071"]
[null,null,null,null,"castel condino","TN","C183"]
[null,null,null,null,"castel d'aiano","BO","C075"]
[null,null,null,null,"castel d'ario","MN","C076"]
[null,null,null,null,"castel d'azzano","VR","C078"]
[null,null,null,null,"castel del giudice","IS","C082"]
[null,null,null,null,"castel del monte","AQ","C083"]
[null,null,null,null,"castel del piano","GR","C085"]
[null,null,null,null,"castel del rio","BO","C086"]
[null,null,null,null,"castel di casio","BO","B969"]
[null,null,null,null,"castel di ieri","AQ","C090"]
[null,null,null,null,"castel di iudica","CT","C091"]
[null,null,null,null,"castel di lama","AP","C093"]
[null,null,null,null,"castel di lucio","ME","C094"]
[null,null,null,null,"castel di sangro","AQ","C096"]
[null,null,null,null,"castel di sasso","CE","C097"]
[null,null,null,null,"castel di tora","RI","C098"]
[null,null,null,null,"castel focognano","AR","C102"]
[null,null,null,null,"castel frentano","CH","C114"]
[null,null,null,null,"castel gabbiano","CR","C115"]
[null,null,null,null,"castel gandolfo","RM","C116"]
[null,null,null,null,"castel giorgio","TR","C117"]
[null,null,null,null,"castel goffredo","MN","C118"]
[null,null,null,null,"castel guelfo di bologna","BO","C121"]
[null,null,null,null,"castel madama","RM","C203"]
[null,null,null,null,"castel maggiore","BO","C204"]
[null,null,null,null,"castel mella","BS","C208"]
[null,null,null,null,"castel morrone","CE","C211"]
[null,null,null,null,"castel ritaldi","PG","C252"]
[null,null,null,null,"castel rocchero","AT","C253"]
[null,null,null,null,"castel rozzone","BG","C255"]
[null,null,null,null,"castel san giorgio","SA","C259"]
[null,null,null,null,"castel san giovanni","PC","C261"]
[null,null,null,null,"castel san lorenzo","SA","C262"]
[null,null,null,null,"castel san niccolo'","AR","C263"]
[null,null,null,null,"castel san pietro romano","RM","C266"]
[null,null,null,null,"castel san pietro terme","BO","C265"]
[null,null,null,null,"castel san vincenzo","IS","C270"]
[null,null,null,null,"castel sant'angelo","RI","C268"]
[null,null,null,null,"castel sant'elia","VT","C269"]
[null,null,null,null,"castel viscardo","TR","C289"]
[null,null,null,null,"castel vittorio","IM","C110"]
[null,null,null,null,"castel volturno","CE","C291"]
[null,null,null,null,"castelbaldo","PD","C057"]
[null,null,null,null,"castelbelforte","MN","C059"]
[null,null,null,null,"castelbellino","AN","C060"]
[null,null,null,null,"castelbello ciardes .kastelbell tschars.","BZ","C062"]
[null,null,null,null,"castelbianco","SV","C063"]
[null,null,null,null,"castelbottaccio","CB","C066"]
[null,null,null,null,"castelbuono","PA","C067"]
[null,null,null,null,"castelcivita","SA","C069"]
[null,null,null,null,"castelcovati","BS","C072"]
[null,null,null,null,"castelcucco","TV","C073"]
[null,null,null,null,"casteldaccia","PA","C074"]
[null,null,null,null,"casteldelci","PU","C080"]
[null,null,null,null,"casteldelfino","CN","C081"]
[null,null,null,null,"casteldidone","CR","C089"]
[null,null,null,null,"castelfidardo","AN","C100"]
[null,null,null,null,"castelfiorentino","FI","C101"]
[null,null,null,null,"castelfondo","TN","C103"]
[null,null,null,null,"castelforte","LT","C104"]
[null,null,null,null,"castelfranci","AV","C105"]
[null,null,null,null,"castelfranco di sopra","AR","C112"]
[null,null,null,null,"castelfranco di sotto","PI","C113"]
[null,null,null,null,"castelfranco emilia","MO","C107"]
[null,null,null,null,"castelfranco in miscano","BN","C106"]
[null,null,null,null,"castelfranco veneto","TV","C111"]
[null,null,null,null,"castelgomberto","VI","C119"]
[null,null,null,null,"castelgrande","PZ","C120"]
[null,null,null,null,"castelguglielmo","RO","C122"]
[null,null,null,null,"castelguidone","CH","C123"]
[null,null,null,null,"castell'alfero","AT","C127"]
[null,null,null,null,"castell'arquato","PC","C145"]
[null,null,null,null,"castell'azzara","GR","C147"]
[null,null,null,null,"castell'umberto","ME","C051"]
[null,null,null,null,"castellabate","SA","C125"]
[null,null,null,null,"castellafiume","AQ","C126"]
[null,null,null,null,"castellalto","TE","C128"]
[null,null,null,null,"castellammare del golfo","TP","C130"]
[null,null,null,null,"castellammare di stabia","NA","C129"]
[null,null,null,null,"castellamonte","TO","C133"]
[null,null,null,null,"castellana grotte","BA","C134"]
[null,null,null,null,"castellana sicula","PA","C135"]
[null,null,null,null,"castellaneta","TA","C136"]
[null,null,null,null,"castellania","AL","C137"]
[null,null,null,null,"castellanza","VA","C139"]
[null,null,null,null,"castellar","CN","C140"]
[null,null,null,null,"castellar guidobono","AL","C142"]
[null,null,null,null,"castellarano","RE","C141"]
[null,null,null,null,"castellaro","IM","C143"]
[null,null,null,null,"castellavazzo","BL","C146"]
[null,null,null,null,"castellazzo bormida","AL","C148"]
[null,null,null,null,"castellazzo novarese","NO","C149"]
[null,null,null,null,"castelleone","CR","C153"]
[null,null,null,null,"castelleone di suasa","AN","C152"]
[null,null,null,null,"castellero","AT","C154"]
[null,null,null,null,"castelletto cervo","BI","C155"]
[null,null,null,null,"castelletto d'erro","AL","C156"]
[null,null,null,null,"castelletto d'orba","AL","C158"]
[null,null,null,null,"castelletto di branduzzo","PV","C157"]
[null,null,null,null,"castelletto merli","AL","C160"]
[null,null,null,null,"castelletto molina","AT","C161"]
[null,null,null,null,"castelletto monferrato","AL","C162"]
[null,null,null,null,"castelletto sopra ticino","NO","C166"]
[null,null,null,null,"castelletto stura","CN","C165"]
[null,null,null,null,"castelletto uzzone","CN","C167"]
[null,null,null,null,"castelli","TE","C169"]
[null,null,null,null,"castelli calepio","BG","C079"]
[null,null,null,null,"castellina in chianti","SI","C172"]
[null,null,null,null,"castellina marittima","PI","C174"]
[null,null,null,null,"castellinaldo","CN","C173"]
[null,null,null,null,"castellino del biferno","CB","C175"]
[null,null,null,null,"castellino tanaro","CN","C176"]
[null,null,null,null,"castelliri","FR","C177"]
[null,null,null,null,"castello cabiaglio","VA","B312"]
[null,null,null,null,"castello d'agogna","PV","C184"]
[null,null,null,null,"castello d'argile","BO","C185"]
[null,null,null,null,"castello del matese","CE","C178"]
[null,null,null,null,"castello dell'acqua","SO","C186"]
[null,null,null,null,"castello di annone","AT","A300"]
[null,null,null,null,"castello di brianza","LC","C187"]
[null,null,null,null,"castello di cisterna","NA","C188"]
[null,null,null,null,"castello di godego","TV","C190"]
[null,null,null,null,"castello di serravalle","BO","C191"]
[null,null,null,null,"castello tesino","TN","C194"]
[null,null,null,null,"castello-molina di fiemme","TN","C189"]
[null,null,null,null,"castellucchio","MN","C195"]
[null,null,null,null,"castelluccio dei sauri","FG","C198"]
[null,null,null,null,"castelluccio inferiore","PZ","C199"]
[null,null,null,null,"castelluccio superiore","PZ","C201"]
[null,null,null,null,"castelluccio valmaggiore","FG","C202"]
[null,null,null,null,"castelmagno","CN","C205"]
[null,null,null,null,"castelmarte","CO","C206"]
[null,null,null,null,"castelmassa","RO","C207"]
[null,null,null,null,"castelmauro","CB","C197"]
[null,null,null,null,"castelmezzano","PZ","C209"]
[null,null,null,null,"castelmola","ME","C210"]
[null,null,null,null,"castelnovetto","PV","C213"]
[null,null,null,null,"castelnovo bariano","RO","C215"]
[null,null,null,null,"castelnovo del friuli","PN","C217"]
[null,null,null,null,"castelnovo di sotto","RE","C218"]
[null,null,null,null,"castelnovo ne' monti","RE","C219"]
[null,null,null,null,"castelnuovo","TN","C216"]
[null,null,null,null,"castelnuovo belbo","AT","C226"]
[null,null,null,null,"castelnuovo berardenga","SI","C227"]
[null,null,null,null,"castelnuovo bocca d'adda","LO","C228"]
[null,null,null,null,"castelnuovo bormida","AL","C229"]
[null,null,null,null,"castelnuovo bozzente","CO","C220"]
[null,null,null,null,"castelnuovo calcea","AT","C230"]
[null,null,null,null,"castelnuovo cilento","SA","C231"]
[null,null,null,null,"castelnuovo del garda","VR","C225"]
[null,null,null,null,"castelnuovo della daunia","FG","C222"]
[null,null,null,null,"castelnuovo di ceva","CN","C214"]
[null,null,null,null,"castelnuovo di conza","SA","C235"]
[null,null,null,null,"castelnuovo di farfa","RI","C224"]
[null,null,null,null,"castelnuovo di garfagnana","LU","C236"]
[null,null,null,null,"castelnuovo di porto","RM","C237"]
[null,null,null,null,"castelnuovo don bosco","AT","C232"]
[null,null,null,null,"castelnuovo magra","SP","C240"]
[null,null,null,null,"castelnuovo nigra","TO","C241"]
[null,null,null,null,"castelnuovo parano","FR","C223"]
[null,null,null,null,"castelnuovo rangone","MO","C242"]
[null,null,null,null,"castelnuovo scrivia","AL","C243"]
[null,null,null,null,"castelnuovo val di cecina","PI","C244"]
[null,null,null,null,"castelpagano","BN","C245"]
[null,null,null,null,"castelpetroso","IS","C246"]
[null,null,null,null,"castelpizzuto","IS","C247"]
[null,null,null,null,"castelplanio","AN","C248"]
[null,null,null,null,"castelpoto","BN","C250"]
[null,null,null,null,"castelraimondo","MC","C251"]
[null,null,null,null,"castelrotto .kastelruth.","BZ","C254"]
[null,null,null,null,"castelsantangelo sul nera","MC","C267"]
[null,null,null,null,"castelsaraceno","PZ","C271"]
[null,null,null,null,"castelsardo","SS","C272"]
[null,null,null,null,"castelseprio","VA","C273"]
[null,null,null,null,"castelsilano","KR","B968"]
[null,null,null,null,"castelspina","AL","C274"]
[null,null,null,null,"casteltermini","AG","C275"]
[null,null,null,null,"castelveccana","VA","C181"]
[null,null,null,null,"castelvecchio calvisio","AQ","C278"]
[null,null,null,null,"castelvecchio di rocca barbena","SV","C276"]
[null,null,null,null,"castelvecchio subequo","AQ","C279"]
[null,null,null,null,"castelvenere","BN","C280"]
[null,null,null,null,"castelverde","CR","B129"]
[null,null,null,null,"castelverrino","IS","C200"]
[null,null,null,null,"castelvetere in val fortore","BN","C284"]
[null,null,null,null,"castelvetere sul calore","AV","C283"]
[null,null,null,null,"castelvetrano","TP","C286"]
[null,null,null,null,"castelvetro di modena","MO","C287"]
[null,null,null,null,"castelvetro piacentino","PC","C288"]
[null,null,null,null,"castelvisconti","CR","C290"]
[null,null,null,null,"castenaso","BO","C292"]
[null,null,null,null,"castenedolo","BS","C293"]
[null,null,null,null,"castiadas","CA","M288"]
[null,null,null,null,"castiglion fibocchi","AR","C318"]
[null,null,null,null,"castiglion fiorentino","AR","C319"]
[null,null,null,null,"castiglione a casauria","PE","C308"]
[null,null,null,null,"castiglione chiavarese","GE","C302"]
[null,null,null,null,"castiglione cosentino","CS","C301"]
[null,null,null,null,"castiglione d'adda","LO","C304"]
[null,null,null,null,"castiglione d'intelvi","CO","C299"]
[null,null,null,null,"castiglione d'orcia","SI","C313"]
[null,null,null,null,"castiglione dei pepoli","BO","C296"]
[null,null,null,null,"castiglione del genovesi","SA","C306"]
[null,null,null,null,"castiglione del lago","PG","C309"]
[null,null,null,null,"castiglione della pescaia","GR","C310"]
[null,null,null,null,"castiglione delle stiviere","MN","C312"]
[null,null,null,null,"castiglione di garfagnana","LU","C303"]
[null,null,null,null,"castiglione di sicilia","CT","C297"]
[null,null,null,null,"castiglione falletto","CN","C314"]
[null,null,null,null,"castiglione in teverina","VT","C315"]
[null,null,null,null,"castiglione messer marino","CH","C298"]
[null,null,null,null,"castiglione messer raimondo","TE","C316"]
[null,null,null,null,"castiglione olona","VA","C300"]
[null,null,null,null,"castiglione tinella","CN","C317"]
[null,null,null,null,"castiglione torinese","TO","C307"]
[null,null,null,null,"castignano","AP","C321"]
[null,null,null,null,"castilenti","TE","C322"]
[null,null,null,null,"castino","CN","C323"]
[null,null,null,null,"castione andevenno","SO","C325"]
[null,null,null,null,"castione della presolana","BG","C324"]
[null,null,null,null,"castions di strada","UD","C327"]
[null,null,null,null,"castiraga vidardo","LO","C329"]
[null,null,null,null,"casto","BS","C330"]
[null,null,null,null,"castorano","AP","C331"]
[null,null,null,null,"castrezzato","BS","C332"]
[null,null,null,null,"castri di lecce","LE","C334"]
[null,null,null,null,"castrignano de' greci","LE","C335"]
[null,null,null,null,"castrignano del capo","LE","C336"]
[null,null,null,null,"castro","BG","C337"]
[null,null,null,null,"castro","LE","M261"]
[null,null,null,null,"castro dei volsci","FR","C338"]
[null,null,null,null,"castrocaro terme e terra del sole","FC","C339"]
[null,null,null,null,"castrocielo","FR","C340"]
[null,null,null,null,"castrofilippo","AG","C341"]
[null,null,null,null,"castrolibero","CS","C108"]
[null,null,null,null,"castronno","VA","C343"]
[null,null,null,null,"castronovo di sicilia","PA","C344"]
[null,null,null,null,"castronuovo di sant'andrea","PZ","C345"]
[null,null,null,null,"castropignano","CB","C346"]
[null,null,null,null,"castroreale","ME","C347"]
[null,null,null,null,"castroregio","CS","C348"]
[null,null,null,null,"castrovillari","CS","C349"]
[null,null,null,null,"catania","CT","C351"]
[null,null,null,null,"catanzaro","CZ","C352"]
[null,null,null,null,"catenanuova","EN","C353"]
[null,null,null,null,"catignano","PE","C354"]
[null,null,null,null,"cattolica","RN","C357"]
[null,null,null,null,"cattolica eraclea","AG","C356"]
[null,null,null,null,"caulonia","RC","C285"]
[null,null,null,null,"cautano","BN","C359"]
[null,null,null,null,"cava de' tirreni","SA","C361"]
[null,null,null,null,"cava manara","PV","C360"]
[null,null,null,null,"cavacurta","LO","C362"]
[null,null,null,null,"cavaglia'","BI","C363"]
[null,null,null,null,"cavaglietto","NO","C364"]
[null,null,null,null,"cavaglio d'agogna","NO","C365"]
[null,null,null,null,"cavaglio-spoccia","VB","C367"]
[null,null,null,null,"cavagnolo","TO","C369"]
[null,null,null,null,"cavaion veronese","VR","C370"]
[null,null,null,null,"cavalese","TN","C372"]
[null,null,null,null,"cavallasca","CO","C374"]
[null,null,null,null,"cavallerleone","CN","C375"]
[null,null,null,null,"cavallermaggiore","CN","C376"]
[null,null,null,null,"cavallino","LE","C377"]
[null,null,null,null,"cavallino-treporti","VE","M308"]
[null,null,null,null,"cavallirio","NO","C378"]
[null,null,null,null,"cavareno","TN","C380"]
[null,null,null,null,"cavargna","CO","C381"]
[null,null,null,null,"cavaria con premezzo","VA","C382"]
[null,null,null,null,"cavarzere","VE","C383"]
[null,null,null,null,"cavaso del tomba","TV","C384"]
[null,null,null,null,"cavasso nuovo","PN","C385"]
[null,null,null,null,"cavatore","AL","C387"]
[null,null,null,null,"cavazzo carnico","UD","C389"]
[null,null,null,null,"cave","RM","C390"]
[null,null,null,null,"cavedago","TN","C392"]
[null,null,null,null,"cavedine","TN","C393"]
[null,null,null,null,"cavenago d'adda","LO","C394"]
[null,null,null,null,"cavenago di brianza","MI","C395"]
[null,null,null,null,"cavernago","BG","C396"]
[null,null,null,null,"cavezzo","MO","C398"]
[null,null,null,null,"cavizzana","TN","C400"]
[null,null,null,null,"cavour","TO","C404"]
[null,null,null,null,"cavriago","RE","C405"]
[null,null,null,null,"cavriana","MN","C406"]
[null,null,null,null,"cavriglia","AR","C407"]
[null,null,null,null,"cayman (isole)","EE","Z530"]
[null,null,null,null,"cazzago brabbia","VA","C409"]
[null,null,null,null,"cazzago san martino","BS","C408"]
[null,null,null,null,"cazzano di tramigna","VR","C412"]
[null,null,null,null,"cazzano sant'andrea","BG","C410"]
[null,null,null,null,"ceca repubblica","EE","Z156"]
[null,null,null,null,"ceccano","FR","C413"]
[null,null,null,null,"cecima","PV","C414"]
[null,null,null,null,"cecina","LI","C415"]
[null,null,null,null,"cecoslovacchia","EE","Z105"]
[null,null,null,null,"cedegolo","BS","C417"]
[null,null,null,null,"cedrasco","SO","C418"]
[null,null,null,null,"cefala' diana","PA","C420"]
[null,null,null,null,"cefalu'","PA","C421"]
[null,null,null,null,"ceggia","VE","C422"]
[null,null,null,null,"ceglie messapico","BR","C424"]
[null,null,null,null,"celano","AQ","C426"]
[null,null,null,null,"celenza sul trigno","CH","C428"]
[null,null,null,null,"celenza valfortore","FG","C429"]
[null,null,null,null,"celico","CS","C430"]
[null,null,null,null,"cella dati","CR","C435"]
[null,null,null,null,"cella monte","AL","C432"]
[null,null,null,null,"cellamare","BA","C436"]
[null,null,null,null,"cellara","CS","C437"]
[null,null,null,null,"cellarengo","AT","C438"]
[null,null,null,null,"cellatica","BS","C439"]
[null,null,null,null,"celle di bulgheria","SA","C444"]
[null,null,null,null,"celle di macra","CN","C441"]
[null,null,null,null,"celle enomondo","AT","C440"]
[null,null,null,null,"celle ligure","SV","C443"]
[null,null,null,null,"celle san vito","FG","C442"]
[null,null,null,null,"celleno","VT","C446"]
[null,null,null,null,"cellere","VT","C447"]
[null,null,null,null,"cellino attanasio","TE","C449"]
[null,null,null,null,"cellino san marco","BR","C448"]
[null,null,null,null,"cellio","VC","C450"]
[null,null,null,null,"cellole","CE","M262"]
[null,null,null,null,"cembra","TN","C452"]
[null,null,null,null,"cenadi","CZ","C453"]
[null,null,null,null,"cenate sopra","BG","C456"]
[null,null,null,null,"cenate sotto","BG","C457"]
[null,null,null,null,"cencenighe agordino","BL","C458"]
[null,null,null,null,"cene","BG","C459"]
[null,null,null,null,"ceneselli","RO","C461"]
[null,null,null,null,"cengio","SV","C463"]
[null,null,null,null,"centa san nicolo'","TN","C467"]
[null,null,null,null,"centallo","CN","C466"]
[null,null,null,null,"cento","FE","C469"]
[null,null,null,null,"centola","SA","C470"]
[null,null,null,null,"centrache","CZ","C472"]
[null,null,null,null,"centrafricana repubbli","EE","Z308"]
[null,null,null,null,"centuripe","EN","C471"]
[null,null,null,null,"cepagatti","PE","C474"]
[null,null,null,null,"ceppaloni","BN","C476"]
[null,null,null,null,"ceppo morelli","VB","C478"]
[null,null,null,null,"ceprano","FR","C479"]
[null,null,null,null,"cerami","EN","C480"]
[null,null,null,null,"ceranesi","GE","C481"]
[null,null,null,null,"cerano","NO","C483"]
[null,null,null,null,"cerano d'intelvi","CO","C482"]
[null,null,null,null,"ceranova","PV","C484"]
[null,null,null,null,"ceraso","SA","C485"]
[null,null,null,null,"cercemaggiore","CB","C486"]
[null,null,null,null,"cercenasco","TO","C487"]
[null,null,null,null,"cercepiccola","CB","C488"]
[null,null,null,null,"cerchiara di calabria","CS","C489"]
[null,null,null,null,"cerchio","AQ","C492"]
[null,null,null,null,"cercino","SO","C493"]
[null,null,null,null,"cercivento","UD","C494"]
[null,null,null,null,"cercola","NA","C495"]
[null,null,null,null,"cerda","PA","C496"]
[null,null,null,null,"cerea","VR","C498"]
[null,null,null,null,"ceregnano","RO","C500"]
[null,null,null,null,"cerenzia","KR","C501"]
[null,null,null,null,"ceres","TO","C497"]
[null,null,null,null,"ceresara","MN","C502"]
[null,null,null,null,"cereseto","AL","C503"]
[null,null,null,null,"ceresole alba","CN","C504"]
[null,null,null,null,"ceresole reale","TO","C505"]
[null,null,null,null,"cerete","BG","C506"]
[null,null,null,null,"ceretto lomellina","PV","C508"]
[null,null,null,null,"cergnago","PV","C509"]
[null,null,null,null,"ceriale","SV","C510"]
[null,null,null,null,"ceriana","IM","C511"]
[null,null,null,null,"ceriano laghetto","MI","C512"]
[null,null,null,null,"cerignale","PC","C513"]
[null,null,null,null,"cerignola","FG","C514"]
[null,null,null,null,"cerisano","CS","C515"]
[null,null,null,null,"cermenate","CO","C516"]
[null,null,null,null,"cermes .tscherms.","BZ","A022"]
[null,null,null,null,"cermignano","TE","C517"]
[null,null,null,null,"cernobbio","CO","C520"]
[null,null,null,null,"cernusco lombardone","LC","C521"]
[null,null,null,null,"cernusco sul naviglio","MI","C523"]
[null,null,null,null,"cerreto castello","BI","C526"]
[null,null,null,null,"cerreto d'asti","AT","C528"]
[null,null,null,null,"cerreto d'esi","AN","C524"]
[null,null,null,null,"cerreto di spoleto","PG","C527"]
[null,null,null,null,"cerreto grue","AL","C507"]
[null,null,null,null,"cerreto guidi","FI","C529"]
[null,null,null,null,"cerreto laziale","RM","C518"]
[null,null,null,null,"cerreto sannita","BN","C525"]
[null,null,null,null,"cerretto delle langhe","CN","C530"]
[null,null,null,null,"cerrina","AL","C531"]
[null,null,null,null,"cerrione","BI","C532"]
[null,null,null,null,"cerro al lambro","MI","C536"]
[null,null,null,null,"cerro al volturno","IS","C534"]
[null,null,null,null,"cerro maggiore","MI","C537"]
[null,null,null,null,"cerro tanaro","AT","C533"]
[null,null,null,null,"cerro veronese","VR","C538"]
[null,null,null,null,"cersosimo","PZ","C539"]
[null,null,null,null,"certaldo","FI","C540"]
[null,null,null,null,"certosa di pavia","PV","C541"]
[null,null,null,null,"cerva","CZ","C542"]
[null,null,null,null,"cervara di roma","RM","C543"]
[null,null,null,null,"cervarese santa croce","PD","C544"]
[null,null,null,null,"cervaro","FR","C545"]
[null,null,null,null,"cervasca","CN","C547"]
[null,null,null,null,"cervatto","VC","C548"]
[null,null,null,null,"cerveno","BS","C549"]
[null,null,null,null,"cervere","CN","C550"]
[null,null,null,null,"cervesina","PV","C551"]
[null,null,null,null,"cerveteri","RM","C552"]
[null,null,null,null,"cervia","RA","C553"]
[null,null,null,null,"cervicati","CS","C554"]
[null,null,null,null,"cervignano d'adda","LO","C555"]
[null,null,null,null,"cervignano del friuli","UD","C556"]
[null,null,null,null,"cervinara","AV","C557"]
[null,null,null,null,"cervino","CE","C558"]
[null,null,null,null,"cervo","IM","C559"]
[null,null,null,null,"cerzeto","CS","C560"]
[null,null,null,null,"cesa","CE","C561"]
[null,null,null,null,"cesana brianza","LC","C563"]
[null,null,null,null,"cesana torinese","TO","C564"]
[null,null,null,null,"cesano boscone","MI","C565"]
[null,null,null,null,"cesano maderno","MI","C566"]
[null,null,null,null,"cesara","VB","C567"]
[null,null,null,null,"cesaro'","ME","C568"]
[null,null,null,null,"cesate","MI","C569"]
[null,null,null,null,"cesena","FC","C573"]
[null,null,null,null,"cesenatico","FC","C574"]
[null,null,null,null,"cesinali","AV","C576"]
[null,null,null,null,"cesio","IM","C578"]
[null,null,null,null,"cesiomaggiore","BL","C577"]
[null,null,null,null,"cessalto","TV","C580"]
[null,null,null,null,"cessaniti","VV","C581"]
[null,null,null,null,"cessapalombo","MC","C582"]
[null,null,null,null,"cessole","AT","C583"]
[null,null,null,null,"cetara","SA","C584"]
[null,null,null,null,"ceto","BS","C585"]
[null,null,null,null,"cetona","SI","C587"]
[null,null,null,null,"cetraro","CS","C588"]
[null,null,null,null,"ceva","CN","C589"]
[null,null,null,null,"cevo","BS","C591"]
[null,null,null,null,"challand-saint-anselme","AO","C593"]
[null,null,null,null,"challand-saint-victor","AO","C594"]
[null,null,null,null,"chambave","AO","C595"]
[null,null,null,null,"chamois","AO","B491"]
[null,null,null,null,"champdepraz","AO","C596"]
[null,null,null,null,"champorcher","AO","B540"]
[null,null,null,null,"charvensod","AO","C598"]
[null,null,null,null,"chatillon","AO","C294"]
[null,null,null,null,"cherasco","CN","C599"]
[null,null,null,null,"cheremule","SS","C600"]
[null,null,null,null,"chialamberto","TO","C604"]
[null,null,null,null,"chiampo","VI","C605"]
[null,null,null,null,"chianche","AV","C606"]
[null,null,null,null,"chianciano terme","SI","C608"]
[null,null,null,null,"chianni","PI","C609"]
[null,null,null,null,"chianocco","TO","C610"]
[null,null,null,null,"chiaramonte gulfi","RG","C612"]
[null,null,null,null,"chiaramonti","SS","C613"]
[null,null,null,null,"chiarano","TV","C614"]
[null,null,null,null,"chiaravalle","AN","C615"]
[null,null,null,null,"chiaravalle centrale","CZ","C616"]
[null,null,null,null,"chiari","BS","C618"]
[null,null,null,null,"chiaromonte","PZ","C619"]
[null,null,null,null,"chiauci","IS","C620"]
[null,null,null,null,"chiavari","GE","C621"]
[null,null,null,null,"chiavenna","SO","C623"]
[null,null,null,null,"chiaverano","TO","C624"]
[null,null,null,null,"chienes .kiens.","BZ","C625"]
[null,null,null,null,"chieri","TO","C627"]
[null,null,null,null,"chies d'alpago","BL","C630"]
[null,null,null,null,"chiesa in valmalenco","SO","C628"]
[null,null,null,null,"chiesanuova","TO","C629"]
[null,null,null,null,"chiesina uzzanese","PT","C631"]
[null,null,null,null,"chieti","CH","C632"]
[null,null,null,null,"chieuti","FG","C633"]
[null,null,null,null,"chieve","CR","C634"]
[null,null,null,null,"chignolo d'isola","BG","C635"]
[null,null,null,null,"chignolo po","PV","C637"]
[null,null,null,null,"chioggia","VE","C638"]
[null,null,null,null,"chiomonte","TO","C639"]
[null,null,null,null,"chions","PN","C640"]
[null,null,null,null,"chiopris viscone","UD","C641"]
[null,null,null,null,"chitignano","AR","C648"]
[null,null,null,null,"chiuduno","BG","C649"]
[null,null,null,null,"chiuppano","VI","C650"]
[null,null,null,null,"chiuro","SO","C651"]
[null,null,null,null,"chiusa .klausen.","BZ","C652"]
[null,null,null,null,"chiusa di pesio","CN","C653"]
[null,null,null,null,"chiusa di san michele","TO","C655"]
[null,null,null,null,"chiusa sclafani","PA","C654"]
[null,null,null,null,"chiusaforte","UD","C656"]
[null,null,null,null,"chiusanico","IM","C657"]
[null,null,null,null,"chiusano d'asti","AT","C658"]
[null,null,null,null,"chiusano di san domenico","AV","C659"]
[null,null,null,null,"chiusavecchia","IM","C660"]
[null,null,null,null,"chiusdino","SI","C661"]
[null,null,null,null,"chiusi","SI","C662"]
[null,null,null,null,"chiusi della verna","AR","C663"]
[null,null,null,null,"chivasso","TO","C665"]
[null,null,null,null,"christmas (isola)","EE","Z702"]
[null,null,null,null,"ciad","EE","Z309"]
[null,null,null,null,"ciampino","RM","M272"]
[null,null,null,null,"cianciana","AG","C668"]
[null,null,null,null,"cibiana di cadore","BL","C672"]
[null,null,null,null,"cicagna","GE","C673"]
[null,null,null,null,"cicala","CZ","C674"]
[null,null,null,null,"cicciano","NA","C675"]
[null,null,null,null,"cicerale","SA","C676"]
[null,null,null,null,"ciciliano","RM","C677"]
[null,null,null,null,"cicognolo","CR","C678"]
[null,null,null,null,"ciconio","TO","C679"]
[null,null,null,null,"cigliano","VC","C680"]
[null,null,null,null,"ciglie'","CN","C681"]
[null,null,null,null,"cigognola","PV","C684"]
[null,null,null,null,"cigole","BS","C685"]
[null,null,null,null,"cilavegna","PV","C686"]
[null,null,null,null,"cile","EE","Z603"]
[null,null,null,null,"cimadolmo","TV","C689"]
[null,null,null,null,"cimbergo","BS","C691"]
[null,null,null,null,"cimego","TN","C694"]
[null,null,null,null,"cimina'","RC","C695"]
[null,null,null,null,"ciminna","PA","C696"]
[null,null,null,null,"cimitile","NA","C697"]
[null,null,null,null,"cimolais","PN","C699"]
[null,null,null,null,"cimone","TN","C700"]
[null,null,null,null,"cina repubblica popola","EE","Z210"]
[null,null,null,null,"cinaglio","AT","C701"]
[null,null,null,null,"cineto romano","RM","C702"]
[null,null,null,null,"cingia de' botti","CR","C703"]
[null,null,null,null,"cingoli","MC","C704"]
[null,null,null,null,"cinigiano","GR","C705"]
[null,null,null,null,"cinisello balsamo","MI","C707"]
[null,null,null,null,"cinisi","PA","C708"]
[null,null,null,null,"cino","SO","C709"]
[null,null,null,null,"cinquefrondi","RC","C710"]
[null,null,null,null,"cintano","TO","C711"]
[null,null,null,null,"cinte tesino","TN","C712"]
[null,null,null,null,"cinto caomaggiore","VE","C714"]
[null,null,null,null,"cinto euganeo","PD","C713"]
[null,null,null,null,"cinzano","TO","C715"]
[null,null,null,null,"ciorlano","CE","C716"]
[null,null,null,null,"cipressa","IM","C718"]
[null,null,null,null,"cipro","EE","Z211"]
[null,null,null,null,"circello","BN","C719"]
[null,null,null,null,"cirie'","TO","C722"]
[null,null,null,null,"cirigliano","MT","C723"]
[null,null,null,null,"cirimido","CO","C724"]
[null,null,null,null,"ciro'","KR","C725"]
[null,null,null,null,"ciro' marina","KR","C726"]
[null,null,null,null,"cis","TN","C727"]
[null,null,null,null,"cisano bergamasco","BG","C728"]
[null,null,null,null,"cisano sul neva","SV","C729"]
[null,null,null,null,"ciserano","BG","C730"]
[null,null,null,null,"ciskei","EE","Z367"]
[null,null,null,null,"cislago","VA","C732"]
[null,null,null,null,"cisliano","MI","C733"]
[null,null,null,null,"cismon del grappa","VI","C734"]
[null,null,null,null,"cison di valmarino","TV","C735"]
[null,null,null,null,"cissone","CN","C738"]
[null,null,null,null,"cisterna d'asti","AT","C739"]
[null,null,null,null,"cisterna di latina","LT","C740"]
[null,null,null,null,"cisternino","BR","C741"]
[null,null,null,null,"citerna","PG","C742"]
[null,null,null,null,"citta' del vaticano","EE","Z106"]
[null,null,null,null,"citta' della pieve","PG","C744"]
[null,null,null,null,"citta' di castello","PG","C745"]
[null,null,null,null,"citta' sant'angelo","PE","C750"]
[null,null,null,null,"cittadella","PD","C743"]
[null,null,null,null,"cittaducale","RI","C746"]
[null,null,null,null,"cittanova","RC","C747"]
[null,null,null,null,"cittareale","RI","C749"]
[null,null,null,null,"cittiglio","VA","C751"]
[null,null,null,null,"civate","LC","C752"]
[null,null,null,null,"civenna","CO","C754"]
[null,null,null,null,"civezza","IM","C755"]
[null,null,null,null,"civezzano","TN","C756"]
[null,null,null,null,"civiasco","VC","C757"]
[null,null,null,null,"cividale del friuli","UD","C758"]
[null,null,null,null,"cividate al piano","BG","C759"]
[null,null,null,null,"cividate camuno","BS","C760"]
[null,null,null,null,"civita","CS","C763"]
[null,null,null,null,"civita castellana","VT","C765"]
[null,null,null,null,"civita d'antino","AQ","C766"]
[null,null,null,null,"civitacampomarano","CB","C764"]
[null,null,null,null,"civitaluparella","CH","C768"]
[null,null,null,null,"civitanova del sannio","IS","C769"]
[null,null,null,null,"civitanova marche","MC","C770"]
[null,null,null,null,"civitaquana","PE","C771"]
[null,null,null,null,"civitavecchia","RM","C773"]
[null,null,null,null,"civitella alfedena","AQ","C778"]
[null,null,null,null,"civitella casanova","PE","C779"]
[null,null,null,null,"civitella d'agliano","VT","C780"]
[null,null,null,null,"civitella del tronto","TE","C781"]
[null,null,null,null,"civitella di romagna","FC","C777"]
[null,null,null,null,"civitella in val di chiana","AR","C774"]
[null,null,null,null,"civitella messer raimondo","CH","C776"]
[null,null,null,null,"civitella paganico","GR","C782"]
[null,null,null,null,"civitella roveto","AQ","C783"]
[null,null,null,null,"civitella san paolo","RM","C784"]
[null,null,null,null,"civo","SO","C785"]
[null,null,null,null,"claino con osteno","CO","C787"]
[null,null,null,null,"claut","PN","C790"]
[null,null,null,null,"clauzetto","PN","C791"]
[null,null,null,null,"clavesana","CN","C792"]
[null,null,null,null,"claviere","TO","C793"]
[null,null,null,null,"cles","TN","C794"]
[null,null,null,null,"cleto","CS","C795"]
[null,null,null,null,"clivio","VA","C796"]
[null,null,null,null,"cloz","TN","C797"]
[null,null,null,null,"clusone","BG","C800"]
[null,null,null,null,"coassolo torinese","TO","C801"]
[null,null,null,null,"coazze","TO","C803"]
[null,null,null,null,"coazzolo","AT","C804"]
[null,null,null,null,"coccaglio","BS","C806"]
[null,null,null,null,"cocconato","AT","C807"]
[null,null,null,null,"cocos (isole)","EE","Z212"]
[null,null,null,null,"cocquio-trevisago","VA","C810"]
[null,null,null,null,"cocullo","AQ","C811"]
[null,null,null,null,"codevigo","PD","C812"]
[null,null,null,null,"codevilla","PV","C813"]
[null,null,null,null,"codigoro","FE","C814"]
[null,null,null,null,"codogne'","TV","C815"]
[null,null,null,null,"codogno","LO","C816"]
[null,null,null,null,"codroipo","UD","C817"]
[null,null,null,null,"codrongianos","SS","C818"]
[null,null,null,null,"coggiola","BI","C819"]
[null,null,null,null,"cogliate","MI","C820"]
[null,null,null,null,"cogne","AO","C821"]
[null,null,null,null,"cogoleto","GE","C823"]
[null,null,null,null,"cogollo del cengio","VI","C824"]
[null,null,null,null,"cogorno","GE","C826"]
[null,null,null,null,"colazza","NO","C829"]
[null,null,null,null,"colbordolo","PU","C830"]
[null,null,null,null,"colere","BG","C835"]
[null,null,null,null,"colfelice","FR","C836"]
[null,null,null,null,"coli","PC","C838"]
[null,null,null,null,"colico","LC","C839"]
[null,null,null,null,"collagna","RE","C840"]
[null,null,null,null,"collalto sabino","RI","C841"]
[null,null,null,null,"collarmele","AQ","C844"]
[null,null,null,null,"collazzone","PG","C845"]
[null,null,null,null,"colle brianza","LC","C851"]
[null,null,null,null,"colle d'anchise","CB","C854"]
[null,null,null,null,"colle di tora","RI","C857"]
[null,null,null,null,"colle di val d'elsa","SI","C847"]
[null,null,null,null,"colle san magno","FR","C870"]
[null,null,null,null,"colle sannita","BN","C846"]
[null,null,null,null,"colle santa lucia","BL","C872"]
[null,null,null,null,"colle umberto","TV","C848"]
[null,null,null,null,"collebeato","BS","C850"]
[null,null,null,null,"collecchio","PR","C852"]
[null,null,null,null,"collecorvino","PE","C853"]
[null,null,null,null,"colledara","TE","C311"]
[null,null,null,null,"colledimacine","CH","C855"]
[null,null,null,null,"colledimezzo","CH","C856"]
[null,null,null,null,"colleferro","RM","C858"]
[null,null,null,null,"collegiove","RI","C859"]
[null,null,null,null,"collegno","TO","C860"]
[null,null,null,null,"collelongo","AQ","C862"]
[null,null,null,null,"collepardo","FR","C864"]
[null,null,null,null,"collepasso","LE","C865"]
[null,null,null,null,"collepietro","AQ","C866"]
[null,null,null,null,"colleretto castelnuovo","TO","C867"]
[null,null,null,null,"colleretto giacosa","TO","C868"]
[null,null,null,null,"collesalvetti","LI","C869"]
[null,null,null,null,"collesano","PA","C871"]
[null,null,null,null,"colletorto","CB","C875"]
[null,null,null,null,"collevecchio","RI","C876"]
[null,null,null,null,"colli a volturno","IS","C878"]
[null,null,null,null,"colli del tronto","AP","C877"]
[null,null,null,null,"colli sul velino","RI","C880"]
[null,null,null,null,"colliano","SA","C879"]
[null,null,null,null,"collinas","CA","C882"]
[null,null,null,null,"collio","BS","C883"]
[null,null,null,null,"collobiano","VC","C884"]
[null,null,null,null,"colloredo di monte albano","UD","C885"]
[null,null,null,null,"colmurano","MC","C886"]
[null,null,null,null,"colobraro","MT","C888"]
[null,null,null,null,"cologna veneta","VR","C890"]
[null,null,null,null,"cologne","BS","C893"]
[null,null,null,null,"cologno al serio","BG","C894"]
[null,null,null,null,"cologno monzese","MI","C895"]
[null,null,null,null,"colognola ai colli","VR","C897"]
[null,null,null,null,"colombia","EE","Z604"]
[null,null,null,null,"colonna","RM","C900"]
[null,null,null,null,"colonnella","TE","C901"]
[null,null,null,null,"colonno","CO","C902"]
[null,null,null,null,"colorina","SO","C903"]
[null,null,null,null,"colorno","PR","C904"]
[null,null,null,null,"colosimi","CS","C905"]
[null,null,null,null,"colturano","MI","C908"]
[null,null,null,null,"colzate","BG","C910"]
[null,null,null,null,"comabbio","VA","C911"]
[null,null,null,null,"comacchio","FE","C912"]
[null,null,null,null,"comano","MS","C914"]
[null,null,null,null,"comano terme","TN","M314"]
[null,null,null,null,"comazzo","LO","C917"]
[null,null,null,null,"comeglians","UD","C918"]
[null,null,null,null,"comelico superiore","BL","C920"]
[null,null,null,null,"comerio","VA","C922"]
[null,null,null,null,"comezzano-cizzago","BS","C925"]
[null,null,null,null,"comignago","NO","C926"]
[null,null,null,null,"comiso","RG","C927"]
[null,null,null,null,"comitini","AG","C928"]
[null,null,null,null,"comiziano","NA","C929"]
[null,null,null,null,"commessaggio","MN","C930"]
[null,null,null,null,"commezzadura","TN","C931"]
[null,null,null,null,"como","CO","C933"]
[null,null,null,null,"comore (isole)","EE","Z310"]
[null,null,null,null,"compiano","PR","C934"]
[null,null,null,null,"comun nuovo","BG","C937"]
[null,null,null,null,"comunanza","AP","C935"]
[null,null,null,null,"cona","VE","C938"]
[null,null,null,null,"conca casale","IS","C941"]
[null,null,null,null,"conca dei marini","SA","C940"]
[null,null,null,null,"conca della campania","CE","C939"]
[null,null,null,null,"concamarise","VR","C943"]
[null,null,null,null,"concei","TN","C944"]
[null,null,null,null,"concerviano","RI","C946"]
[null,null,null,null,"concesio","BS","C948"]
[null,null,null,null,"conco","VI","C949"]
[null,null,null,null,"concordia sagittaria","VE","C950"]
[null,null,null,null,"concordia sulla secchia","MO","C951"]
[null,null,null,null,"concorezzo","MI","C952"]
[null,null,null,null,"condino","TN","C953"]
[null,null,null,null,"condofuri","RC","C954"]
[null,null,null,null,"condove","TO","C955"]
[null,null,null,null,"condro'","ME","C956"]
[null,null,null,null,"conegliano","TV","C957"]
[null,null,null,null,"confienza","PV","C958"]
[null,null,null,null,"configni","RI","C959"]
[null,null,null,null,"conflenti","CZ","C960"]
[null,null,null,null,"congo brazzaville","EE","Z311"]
[null,null,null,null,"coniolo","AL","C962"]
[null,null,null,null,"conselice","RA","C963"]
[null,null,null,null,"conselve","PD","C964"]
[null,null,null,null,"consiglio di rumo","CO","C965"]
[null,null,null,null,"contessa entellina","PA","C968"]
[null,null,null,null,"contigliano","RI","C969"]
[null,null,null,null,"contrada","AV","C971"]
[null,null,null,null,"controguerra","TE","C972"]
[null,null,null,null,"controne","SA","C973"]
[null,null,null,null,"contursi terme","SA","C974"]
[null,null,null,null,"conversano","BA","C975"]
[null,null,null,null,"conza della campania","AV","C976"]
[null,null,null,null,"conzano","AL","C977"]
[null,null,null,null,"cook (isole)","EE","Z703"]
[null,null,null,null,"copertino","LE","C978"]
[null,null,null,null,"copiano","PV","C979"]
[null,null,null,null,"copparo","FE","C980"]
[null,null,null,null,"corana","PV","C982"]
[null,null,null,null,"corato","BA","C983"]
[null,null,null,null,"corbara","SA","C984"]
[null,null,null,null,"corbetta","MI","C986"]
[null,null,null,null,"corbola","RO","C987"]
[null,null,null,null,"corchiano","VT","C988"]
[null,null,null,null,"corciano","PG","C990"]
[null,null,null,null,"cordenons","PN","C991"]
[null,null,null,null,"cordignano","TV","C992"]
[null,null,null,null,"cordovado","PN","C993"]
[null,null,null,null,"corea del nord","EE","Z214"]
[null,null,null,null,"corea del sud","EE","Z213"]
[null,null,null,null,"coredo","TN","C994"]
[null,null,null,null,"coreglia antelminelli","LU","C996"]
[null,null,null,null,"coreglia ligure","GE","C995"]
[null,null,null,null,"coreno ausonio","FR","C998"]
[null,null,null,null,"corfinio","AQ","C999"]
[null,null,null,null,"cori","LT","D003"]
[null,null,null,null,"coriano","RN","D004"]
[null,null,null,null,"corigliano calabro","CS","D005"]
[null,null,null,null,"corigliano d'otranto","LE","D006"]
[null,null,null,null,"corinaldo","AN","D007"]
[null,null,null,null,"corio","TO","D008"]
[null,null,null,null,"corleone","PA","D009"]
[null,null,null,null,"corleto monforte","SA","D011"]
[null,null,null,null,"corleto perticara","PZ","D010"]
[null,null,null,null,"cormano","MI","D013"]
[null,null,null,null,"cormons","GO","D014"]
[null,null,null,null,"corna imagna","BG","D015"]
[null,null,null,null,"cornalba","BG","D016"]
[null,null,null,null,"cornale","PV","D017"]
[null,null,null,null,"cornaredo","MI","D018"]
[null,null,null,null,"cornate d'adda","MI","D019"]
[null,null,null,null,"cornedo all'isarco .karneid.","BZ","B799"]
[null,null,null,null,"cornedo vicentino","VI","D020"]
[null,null,null,null,"cornegliano laudense","LO","D021"]
[null,null,null,null,"corneliano d'alba","CN","D022"]
[null,null,null,null,"corniglio","PR","D026"]
[null,null,null,null,"corno di rosazzo","UD","D027"]
[null,null,null,null,"corno giovine","LO","D028"]
[null,null,null,null,"cornovecchio","LO","D029"]
[null,null,null,null,"cornuda","TV","D030"]
[null,null,null,null,"correggio","RE","D037"]
[null,null,null,null,"correzzana","MI","D038"]
[null,null,null,null,"correzzola","PD","D040"]
[null,null,null,null,"corrido","CO","D041"]
[null,null,null,null,"corridonia","MC","D042"]
[null,null,null,null,"corropoli","TE","D043"]
[null,null,null,null,"corsano","LE","D044"]
[null,null,null,null,"corsico","MI","D045"]
[null,null,null,null,"corsione","AT","D046"]
[null,null,null,null,"cortaccia sulla strada del vino .kurtatsch a.","BZ","D048"]
[null,null,null,null,"cortale","CZ","D049"]
[null,null,null,null,"cortandone","AT","D050"]
[null,null,null,null,"cortanze","AT","D051"]
[null,null,null,null,"cortazzone","AT","D052"]
[null,null,null,null,"corte brugnatella","PC","D054"]
[null,null,null,null,"corte de' cortesi con cignone","CR","D056"]
[null,null,null,null,"corte de' frati","CR","D057"]
[null,null,null,null,"corte franca","BS","D058"]
[null,null,null,null,"corte palasio","LO","D068"]
[null,null,null,null,"cortemaggiore","PC","D061"]
[null,null,null,null,"cortemilia","CN","D062"]
[null,null,null,null,"corteno golgi","BS","D064"]
[null,null,null,null,"cortenova","LC","D065"]
[null,null,null,null,"cortenuova","BG","D066"]
[null,null,null,null,"corteolona","PV","D067"]
[null,null,null,null,"cortiglione","AT","D072"]
[null,null,null,null,"cortina d'ampezzo","BL","A266"]
[null,null,null,null,"cortina sulla strada del vino .kurtinig an d.","BZ","D075"]
[null,null,null,null,"cortino","TE","D076"]
[null,null,null,null,"cortona","AR","D077"]
[null,null,null,null,"corvara","PE","D078"]
[null,null,null,null,"corvara in badia .corvara.","BZ","D079"]
[null,null,null,null,"corvino san quirico","PV","D081"]
[null,null,null,null,"corzano","BS","D082"]
[null,null,null,null,"coseano","UD","D085"]
[null,null,null,null,"cosenza","CS","D086"]
[null,null,null,null,"cosio d'arroscia","IM","D087"]
[null,null,null,null,"cosio valtellino","SO","D088"]
[null,null,null,null,"cosoleto","RC","D089"]
[null,null,null,null,"cossano belbo","CN","D093"]
[null,null,null,null,"cossano canavese","TO","D092"]
[null,null,null,null,"cossato","BI","D094"]
[null,null,null,null,"cosseria","SV","D095"]
[null,null,null,null,"cossignano","AP","D096"]
[null,null,null,null,"cossogno","VB","D099"]
[null,null,null,null,"cossoine","SS","D100"]
[null,null,null,null,"cossombrato","AT","D101"]
[null,null,null,null,"costa d'avorio","EE","Z313"]
[null,null,null,null,"costa de' nobili","PV","D109"]
[null,null,null,null,"costa di mezzate","BG","D110"]
[null,null,null,null,"costa di rovigo","RO","D105"]
[null,null,null,null,"costa di serina","BG","D111"]
[null,null,null,null,"costa masnaga","LC","D112"]
[null,null,null,null,"costa rica","EE","Z503"]
[null,null,null,null,"costa valle imagna","BG","D103"]
[null,null,null,null,"costa vescovato","AL","D102"]
[null,null,null,null,"costa volpino","BG","D117"]
[null,null,null,null,"costabissara","VI","D107"]
[null,null,null,null,"costacciaro","PG","D108"]
[null,null,null,null,"costanzana","VC","D113"]
[null,null,null,null,"costarainera","IM","D114"]
[null,null,null,null,"costermano","VR","D118"]
[null,null,null,null,"costigliole d'asti","AT","D119"]
[null,null,null,null,"costigliole saluzzo","CN","D120"]
[null,null,null,null,"cotignola","RA","D121"]
[null,null,null,null,"cotronei","KR","D123"]
[null,null,null,null,"cottanello","RI","D124"]
[null,null,null,null,"courmayeur","AO","D012"]
[null,null,null,null,"covo","BG","D126"]
[null,null,null,null,"cozzo","PV","D127"]
[null,null,null,null,"craco","MT","D128"]
[null,null,null,null,"crandola valsassina","LC","D131"]
[null,null,null,null,"cravagliana","VC","D132"]
[null,null,null,null,"cravanzana","CN","D133"]
[null,null,null,null,"craveggia","VB","D134"]
[null,null,null,null,"creazzo","VI","D136"]
[null,null,null,null,"crecchio","CH","D137"]
[null,null,null,null,"credaro","BG","D139"]
[null,null,null,null,"credera rubbiano","CR","D141"]
[null,null,null,null,"crema","CR","D142"]
[null,null,null,null,"cremella","LC","D143"]
[null,null,null,null,"cremenaga","VA","D144"]
[null,null,null,null,"cremeno","LC","D145"]
[null,null,null,null,"cremia","CO","D147"]
[null,null,null,null,"cremolino","AL","D149"]
[null,null,null,null,"cremona","CR","D150"]
[null,null,null,null,"cremosano","CR","D151"]
[null,null,null,null,"crescentino","VC","D154"]
[null,null,null,null,"crespadoro","VI","D156"]
[null,null,null,null,"crespano del grappa","TV","D157"]
[null,null,null,null,"crespellano","BO","D158"]
[null,null,null,null,"crespiatica","LO","D159"]
[null,null,null,null,"crespina","PI","D160"]
[null,null,null,null,"crespino","RO","D161"]
[null,null,null,null,"cressa","NO","D162"]
[null,null,null,null,"crevacuore","BI","D165"]
[null,null,null,null,"crevalcore","BO","D166"]
[null,null,null,null,"crevoladossola","VB","D168"]
[null,null,null,null,"crispano","NA","D170"]
[null,null,null,null,"crispiano","TA","D171"]
[null,null,null,null,"crissolo","CN","D172"]
[null,null,null,null,"croazia","EE","Z149"]
[null,null,null,null,"crocefieschi","GE","D175"]
[null,null,null,null,"crocetta del montello","TV","C670"]
[null,null,null,null,"crodo","VB","D177"]
[null,null,null,null,"crognaleto","TE","D179"]
[null,null,null,null,"cropalati","CS","D180"]
[null,null,null,null,"cropani","CZ","D181"]
[null,null,null,null,"crosa","BI","D182"]
[null,null,null,null,"crosia","CS","D184"]
[null,null,null,null,"crosio della valle","VA","D185"]
[null,null,null,null,"crotone","KR","D122"]
[null,null,null,null,"crotta d'adda","CR","D186"]
[null,null,null,null,"crova","VC","D187"]
[null,null,null,null,"croviana","TN","D188"]
[null,null,null,null,"crucoli","KR","D189"]
[null,null,null,null,"cuasso al monte","VA","D192"]
[null,null,null,null,"cuba","EE","Z504"]
[null,null,null,null,"cuccaro monferrato","AL","D194"]
[null,null,null,null,"cuccaro vetere","SA","D195"]
[null,null,null,null,"cucciago","CO","D196"]
[null,null,null,null,"cuceglio","TO","D197"]
[null,null,null,null,"cuggiono","MI","D198"]
[null,null,null,null,"cugliate-fabiasco","VA","D199"]
[null,null,null,null,"cuglieri","OR","D200"]
[null,null,null,null,"cugnoli","PE","D201"]
[null,null,null,null,"cumiana","TO","D202"]
[null,null,null,null,"cumignano sul naviglio","CR","D203"]
[null,null,null,null,"cunardo","VA","D204"]
[null,null,null,null,"cuneo","CN","D205"]
[null,null,null,null,"cunevo","TN","D206"]
[null,null,null,null,"cunico","AT","D207"]
[null,null,null,null,"cuorgne'","TO","D208"]
[null,null,null,null,"cupello","CH","D209"]
[null,null,null,null,"cupra marittima","AP","D210"]
[null,null,null,null,"cupramontana","AN","D211"]
[null,null,null,null,"cura carpignano","PV","B824"]
[null,null,null,null,"curcuris","OR","D214"]
[null,null,null,null,"cureggio","NO","D216"]
[null,null,null,null,"curiglia con monteviasco","VA","D217"]
[null,null,null,null,"curinga","CZ","D218"]
[null,null,null,null,"curino","BI","D219"]
[null,null,null,null,"curno","BG","D221"]
[null,null,null,null,"curon venosta .graun in vinschgau.","BZ","D222"]
[null,null,null,null,"cursi","LE","D223"]
[null,null,null,null,"cursolo-orasso","VB","D225"]
[null,null,null,null,"curtarolo","PD","D226"]
[null,null,null,null,"curtatone","MN","D227"]
[null,null,null,null,"curti","CE","D228"]
[null,null,null,null,"cusago","MI","D229"]
[null,null,null,null,"cusano milanino","MI","D231"]
[null,null,null,null,"cusano mutri","BN","D230"]
[null,null,null,null,"cusino","CO","D232"]
[null,null,null,null,"cusio","BG","D233"]
[null,null,null,null,"custonaci","TP","D234"]
[null,null,null,null,"cutigliano","PT","D235"]
[null,null,null,null,"cutro","KR","D236"]
[null,null,null,null,"cutrofiano","LE","D237"]
[null,null,null,null,"cuveglio","VA","D238"]
[null,null,null,null,"cuvio","VA","D239"]
[null,null,null,null,"dahomey o benin","EE","Z314"]
[null,null,null,null,"daiano","TN","D243"]
[null,null,null,null,"dairago","MI","D244"]
[null,null,null,null,"dalmine","BG","D245"]
[null,null,null,null,"dambel","TN","D246"]
[null,null,null,null,"danimarca","EE","Z107"]
[null,null,null,null,"danta di cadore","BL","D247"]
[null,null,null,null,"daone","TN","D248"]
[null,null,null,null,"dare'","TN","D250"]
[null,null,null,null,"darfo boario terme","BS","D251"]
[null,null,null,null,"dasa'","VV","D253"]
[null,null,null,null,"davagna","GE","D255"]
[null,null,null,null,"daverio","VA","D256"]
[null,null,null,null,"davoli","CZ","D257"]
[null,null,null,null,"dazio","SO","D258"]
[null,null,null,null,"decimomannu","CA","D259"]
[null,null,null,null,"decimoputzu","CA","D260"]
[null,null,null,null,"decollatura","CZ","D261"]
[null,null,null,null,"dego","SV","D264"]
[null,null,null,null,"deiva marina","SP","D265"]
[null,null,null,null,"delebio","SO","D266"]
[null,null,null,null,"delia","CL","D267"]
[null,null,null,null,"delianuova","RC","D268"]
[null,null,null,null,"deliceto","FG","D269"]
[null,null,null,null,"dello","BS","D270"]
[null,null,null,null,"demonte","CN","D271"]
[null,null,null,null,"denice","AL","D272"]
[null,null,null,null,"denno","TN","D273"]
[null,null,null,null,"dernice","AL","D277"]
[null,null,null,null,"derovere","CR","D278"]
[null,null,null,null,"deruta","PG","D279"]
[null,null,null,null,"dervio","LC","D280"]
[null,null,null,null,"desana","VC","D281"]
[null,null,null,null,"desenzano del garda","BS","D284"]
[null,null,null,null,"desio","MI","D286"]
[null,null,null,null,"desulo","NU","D287"]
[null,null,null,null,"diamante","CS","D289"]
[null,null,null,null,"diano arentino","IM","D293"]
[null,null,null,null,"diano castello","IM","D296"]
[null,null,null,null,"diano d'alba","CN","D291"]
[null,null,null,null,"diano marina","IM","D297"]
[null,null,null,null,"diano san pietro","IM","D298"]
[null,null,null,null,"dicomano","FI","D299"]
[null,null,null,null,"dignano","UD","D300"]
[null,null,null,null,"dimaro","TN","D302"]
[null,null,null,null,"dinami","VV","D303"]
[null,null,null,null,"dipendenze australiane","EE","Z900"]
[null,null,null,null,"dipendenze britanniche","EE","Z901"]
[null,null,null,null,"dipendenze canadesi","EE","Z800"]
[null,null,null,null,"dipendenze francesi","EE","Z902"]
[null,null,null,null,"dipendenze neozelandes","EE","Z903"]
[null,null,null,null,"dipendenze norvegesi (","EE","Z801"]
[null,null,null,null,"dipendenze russe","EE","Z802"]
[null,null,null,null,"dipendenze sudafricane","EE","Z906"]
[null,null,null,null,"dipendeze norvegesi (a","EE","Z904"]
[null,null,null,null,"dipendeze statunitensi","EE","Z905"]
[null,null,null,null,"dipignano","CS","D304"]
[null,null,null,null,"diso","LE","D305"]
[null,null,null,null,"divignano","NO","D309"]
[null,null,null,null,"dizzasco","CO","D310"]
[null,null,null,null,"dobbiaco .toblach.","BZ","D311"]
[null,null,null,null,"doberdo' del lago","GO","D312"]
[null,null,null,null,"dogliani","CN","D314"]
[null,null,null,null,"dogliola","CH","D315"]
[null,null,null,null,"dogna","UD","D316"]
[null,null,null,null,"dolce'","VR","D317"]
[null,null,null,null,"dolceacqua","IM","D318"]
[null,null,null,null,"dolcedo","IM","D319"]
[null,null,null,null,"dolegna del collio","GO","D321"]
[null,null,null,null,"dolianova","CA","D323"]
[null,null,null,null,"dolo","VE","D325"]
[null,null,null,null,"dolzago","LC","D327"]
[null,null,null,null,"domanico","CS","D328"]
[null,null,null,null,"domaso","CO","D329"]
[null,null,null,null,"domegge di cadore","BL","D330"]
[null,null,null,null,"domicella","AV","D331"]
[null,null,null,null,"dominicana republica","EE","Z505"]
[null,null,null,null,"domodossola","VB","D332"]
[null,null,null,null,"domus de maria","CA","D333"]
[null,null,null,null,"domusnovas","CA","D334"]
[null,null,null,null,"don","TN","D336"]
[null,null,null,null,"donato","BI","D339"]
[null,null,null,null,"dongo","CO","D341"]
[null,null,null,null,"donnas","AO","D338"]
[null,null,null,null,"donori","CA","D344"]
[null,null,null,null,"dorgali","NU","D345"]
[null,null,null,null,"dorio","LC","D346"]
[null,null,null,null,"dormelletto","NO","D347"]
[null,null,null,null,"dorno","PV","D348"]
[null,null,null,null,"dorsino","TN","D349"]
[null,null,null,null,"dorzano","BI","D350"]
[null,null,null,null,"dosolo","MN","D351"]
[null,null,null,null,"dossena","BG","D352"]
[null,null,null,null,"dosso del liro","CO","D355"]
[null,null,null,null,"doues","AO","D356"]
[null,null,null,null,"dovadola","FC","D357"]
[null,null,null,null,"dovera","CR","D358"]
[null,null,null,null,"dozza","BO","D360"]
[null,null,null,null,"dragoni","CE","D361"]
[null,null,null,null,"drapia","VV","D364"]
[null,null,null,null,"drena","TN","D365"]
[null,null,null,null,"drenchia","UD","D366"]
[null,null,null,null,"dresano","MI","D367"]
[null,null,null,null,"drezzo","CO","D369"]
[null,null,null,null,"drizzona","CR","D370"]
[null,null,null,null,"dro","TN","D371"]
[null,null,null,null,"dronero","CN","D372"]
[null,null,null,null,"druento","TO","D373"]
[null,null,null,null,"druogno","VB","D374"]
[null,null,null,null,"dualchi","NU","D376"]
[null,null,null,null,"dubino","SO","D377"]
[null,null,null,null,"due carrare","PD","M300"]
[null,null,null,null,"dueville","VI","D379"]
[null,null,null,null,"dugenta","BN","D380"]
[null,null,null,null,"duino-aurisina","TS","D383"]
[null,null,null,null,"dumenza","VA","D384"]
[null,null,null,null,"duno","VA","D385"]
[null,null,null,null,"durazzano","BN","D386"]
[null,null,null,null,"duronia","CB","C772"]
[null,null,null,null,"dusino san michele","AT","D388"]
[null,null,null,null,"eboli","SA","D390"]
[null,null,null,null,"ecuador","EE","Z605"]
[null,null,null,null,"edolo","BS","D391"]
[null,null,null,null,"egitto","EE","Z336"]
[null,null,null,null,"egna .neumarkt.","BZ","D392"]
[null,null,null,null,"el salvador","EE","Z506"]
[null,null,null,null,"elice","PE","D394"]
[null,null,null,null,"elini","NU","D395"]
[null,null,null,null,"ello","LC","D398"]
[null,null,null,null,"elmas","CA","D399"]
[null,null,null,null,"elva","CN","D401"]
[null,null,null,null,"emarese","AO","D402"]
[null,null,null,null,"emirati arabi uniti","EE","Z215"]
[null,null,null,null,"empoli","FI","D403"]
[null,null,null,null,"endine gaiano","BG","D406"]
[null,null,null,null,"enego","VI","D407"]
[null,null,null,null,"enemonzo","UD","D408"]
[null,null,null,null,"enna","EN","C342"]
[null,null,null,null,"entracque","CN","D410"]
[null,null,null,null,"entratico","BG","D411"]
[null,null,null,null,"envie","CN","D412"]
[null,null,null,null,"episcopia","PZ","D414"]
[null,null,null,null,"eraclea","VE","D415"]
[null,null,null,null,"erba","CO","D416"]
[null,null,null,null,"erbe'","VR","D419"]
[null,null,null,null,"erbezzo","VR","D420"]
[null,null,null,null,"erbusco","BS","D421"]
[null,null,null,null,"erchie","BR","D422"]
[null,null,null,null,"ercolano","NA","H243"]
[null,null,null,null,"erice","TP","D423"]
[null,null,null,null,"eritrea","EE","Z368"]
[null,null,null,null,"erli","SV","D424"]
[null,null,null,null,"erto e casso","PN","D426"]
[null,null,null,null,"erula","SS","M292"]
[null,null,null,null,"erve","LC","D428"]
[null,null,null,null,"esanatoglia","MC","D429"]
[null,null,null,null,"escalaplano","NU","D430"]
[null,null,null,null,"escolca","NU","D431"]
[null,null,null,null,"esine","BS","D434"]
[null,null,null,null,"esino lario","LC","D436"]
[null,null,null,null,"esperia","FR","D440"]
[null,null,null,null,"esporlatu","SS","D441"]
[null,null,null,null,"este","PD","D442"]
[null,null,null,null,"esterzili","NU","D443"]
[null,null,null,null,"estonia","EE","Z144"]
[null,null,null,null,"etiopia","EE","Z315"]
[null,null,null,null,"etroubles","AO","D444"]
[null,null,null,null,"eupilio","CO","D445"]
[null,null,null,null,"exilles","TO","D433"]
[null,null,null,null,"fabbrica curone","AL","D447"]
[null,null,null,null,"fabbriche di vallico","LU","D449"]
[null,null,null,null,"fabbrico","RE","D450"]
[null,null,null,null,"fabriano","AN","D451"]
[null,null,null,null,"fabrica di roma","VT","D452"]
[null,null,null,null,"fabrizia","VV","D453"]
[null,null,null,null,"fabro","TR","D454"]
[null,null,null,null,"faedis","UD","D455"]
[null,null,null,null,"faedo","TN","D457"]
[null,null,null,null,"faedo valtellino","SO","D456"]
[null,null,null,null,"faenza","RA","D458"]
[null,null,null,null,"faer oer (isole)","EE","Z108"]
[null,null,null,null,"faeto","FG","D459"]
[null,null,null,null,"fagagna","UD","D461"]
[null,null,null,null,"faggeto lario","CO","D462"]
[null,null,null,null,"faggiano","TA","D463"]
[null,null,null,null,"fagnano alto","AQ","D465"]
[null,null,null,null,"fagnano castello","CS","D464"]
[null,null,null,null,"fagnano olona","VA","D467"]
[null,null,null,null,"fai della paganella","TN","D468"]
[null,null,null,null,"faicchio","BN","D469"]
[null,null,null,null,"falcade","BL","D470"]
[null,null,null,null,"falciano del massico","CE","D471"]
[null,null,null,null,"falconara albanese","CS","D473"]
[null,null,null,null,"falconara marittima","AN","D472"]
[null,null,null,null,"falcone","ME","D474"]
[null,null,null,null,"faleria","VT","D475"]
[null,null,null,null,"falerna","CZ","D476"]
[null,null,null,null,"falerone","AP","D477"]
[null,null,null,null,"fallo","CH","D480"]
[null,null,null,null,"falmenta","VB","D481"]
[null,null,null,null,"faloppio","CO","D482"]
[null,null,null,null,"falvaterra","FR","D483"]
[null,null,null,null,"falzes .pfalzen.","BZ","D484"]
[null,null,null,null,"fanano","MO","D486"]
[null,null,null,null,"fanna","PN","D487"]
[null,null,null,null,"fano","PU","D488"]
[null,null,null,null,"fano adriano","TE","D489"]
[null,null,null,null,"fara filiorum petri","CH","D494"]
[null,null,null,null,"fara gera d'adda","BG","D490"]
[null,null,null,null,"fara in sabina","RI","D493"]
[null,null,null,null,"fara novarese","NO","D492"]
[null,null,null,null,"fara olivana con sola","BG","D491"]
[null,null,null,null,"fara san martino","CH","D495"]
[null,null,null,null,"fara vicentino","VI","D496"]
[null,null,null,null,"fardella","PZ","D497"]
[null,null,null,null,"farigliano","CN","D499"]
[null,null,null,null,"farindola","PE","D501"]
[null,null,null,null,"farini","PC","D502"]
[null,null,null,null,"farnese","VT","D503"]
[null,null,null,null,"farra d'alpago","BL","D506"]
[null,null,null,null,"farra d'isonzo","GO","D504"]
[null,null,null,null,"farra di soligo","TV","D505"]
[null,null,null,null,"fasano","BR","D508"]
[null,null,null,null,"fascia","GE","D509"]
[null,null,null,null,"fauglia","PI","D510"]
[null,null,null,null,"faule","CN","D511"]
[null,null,null,null,"favale di malvaro","GE","D512"]
[null,null,null,null,"favara","AG","D514"]
[null,null,null,null,"faver","TN","D516"]
[null,null,null,null,"favignana","TP","D518"]
[null,null,null,null,"favria","TO","D520"]
[null,null,null,null,"feisoglio","CN","D523"]
[null,null,null,null,"feletto","TO","D524"]
[null,null,null,null,"felino","PR","D526"]
[null,null,null,null,"felitto","SA","D527"]
[null,null,null,null,"felizzano","AL","D528"]
[null,null,null,null,"felonica","MN","D529"]
[null,null,null,null,"feltre","BL","D530"]
[null,null,null,null,"fenegro'","CO","D531"]
[null,null,null,null,"fenestrelle","TO","D532"]
[null,null,null,null,"fenis","AO","D537"]
[null,null,null,null,"ferentillo","TR","D538"]
[null,null,null,null,"ferentino","FR","D539"]
[null,null,null,null,"ferla","SR","D540"]
[null,null,null,null,"fermignano","PU","D541"]
[null,null,null,null,"fermo","AP","D542"]
[null,null,null,null,"ferno","VA","D543"]
[null,null,null,null,"feroleto antico","CZ","D544"]
[null,null,null,null,"feroleto della chiesa","RC","D545"]
[null,null,null,null,"ferrandina","MT","D547"]
[null,null,null,null,"ferrara","FE","D548"]
[null,null,null,null,"ferrara di monte baldo","VR","D549"]
[null,null,null,null,"ferrazzano","CB","D550"]
[null,null,null,null,"ferrera di varese","VA","D551"]
[null,null,null,null,"ferrera erbognone","PV","D552"]
[null,null,null,null,"ferrere","AT","D554"]
[null,null,null,null,"ferriere","PC","D555"]
[null,null,null,null,"ferruzzano","RC","D557"]
[null,null,null,null,"fiamignano","RI","D560"]
[null,null,null,null,"fiano","TO","D562"]
[null,null,null,null,"fiano romano","RM","D561"]
[null,null,null,null,"fiastra","MC","D564"]
[null,null,null,null,"fiave'","TN","D565"]
[null,null,null,null,"ficarazzi","PA","D567"]
[null,null,null,null,"ficarolo","RO","D568"]
[null,null,null,null,"ficarra","ME","D569"]
[null,null,null,null,"ficulle","TR","D570"]
[null,null,null,null,"fidenza","PR","B034"]
[null,null,null,null,"fie' allo sciliar .vols am schlern.","BZ","D571"]
[null,null,null,null,"fiera di primiero","TN","D572"]
[null,null,null,null,"fierozzo","TN","D573"]
[null,null,null,null,"fiesco","CR","D574"]
[null,null,null,null,"fiesole","FI","D575"]
[null,null,null,null,"fiesse","BS","D576"]
[null,null,null,null,"fiesso d'artico","VE","D578"]
[null,null,null,null,"fiesso umbertiano","RO","D577"]
[null,null,null,null,"figi o viti (isole)","EE","Z704"]
[null,null,null,null,"figino serenza","CO","D579"]
[null,null,null,null,"figline valdarno","FI","D583"]
[null,null,null,null,"figline vegliaturo","CS","D582"]
[null,null,null,null,"filacciano","RM","D586"]
[null,null,null,null,"filadelfia","VV","D587"]
[null,null,null,null,"filago","BG","D588"]
[null,null,null,null,"filandari","VV","D589"]
[null,null,null,null,"filattiera","MS","D590"]
[null,null,null,null,"filettino","FR","D591"]
[null,null,null,null,"filetto","CH","D592"]
[null,null,null,null,"filiano","PZ","D593"]
[null,null,null,null,"filighera","PV","D594"]
[null,null,null,null,"filignano","IS","D595"]
[null,null,null,null,"filippine","EE","Z216"]
[null,null,null,null,"filogaso","VV","D596"]
[null,null,null,null,"filottrano","AN","D597"]
[null,null,null,null,"finale emilia","MO","D599"]
[null,null,null,null,"finale ligure","SV","D600"]
[null,null,null,null,"finlandia","EE","Z109"]
[null,null,null,null,"fino del monte","BG","D604"]
[null,null,null,null,"fino mornasco","CO","D605"]
[null,null,null,null,"fiorano al serio","BG","D606"]
[null,null,null,null,"fiorano canavese","TO","D608"]
[null,null,null,null,"fiorano modenese","MO","D607"]
[null,null,null,null,"fiordimonte","MC","D609"]
[null,null,null,null,"fiorenzuola d'arda","PC","D611"]
[null,null,null,null,"firenze","FI","D612"]
[null,null,null,null,"firenzuola","FI","D613"]
[null,null,null,null,"firmo","CS","D614"]
[null,null,null,null,"fisciano","SA","D615"]
[null,null,null,null,"fiuggi","FR","A310"]
[null,null,null,null,"fiumalbo","MO","D617"]
[null,null,null,null,"fiumara","RC","D619"]
[null,null,null,null,"fiume veneto","PN","D621"]
[null,null,null,null,"fiumedinisi","ME","D622"]
[null,null,null,null,"fiumefreddo bruzio","CS","D624"]
[null,null,null,null,"fiumefreddo di sicilia","CT","D623"]
[null,null,null,null,"fiumicello","UD","D627"]
[null,null,null,null,"fiumicino","RM","M297"]
[null,null,null,null,"fiuminata","MC","D628"]
[null,null,null,null,"fivizzano","MS","D629"]
[null,null,null,null,"flaibano","UD","D630"]
[null,null,null,null,"flavon","TN","D631"]
[null,null,null,null,"flero","BS","D634"]
[null,null,null,null,"floresta","ME","D635"]
[null,null,null,null,"floridia","SR","D636"]
[null,null,null,null,"florinas","SS","D637"]
[null,null,null,null,"flumeri","AV","D638"]
[null,null,null,null,"fluminimaggiore","CA","D639"]
[null,null,null,null,"flussio","NU","D640"]
[null,null,null,null,"fobello","VC","D641"]
[null,null,null,null,"foggia","FG","D643"]
[null,null,null,null,"foglianise","BN","D644"]
[null,null,null,null,"fogliano redipuglia","GO","D645"]
[null,null,null,null,"foglizzo","TO","D646"]
[null,null,null,null,"foiano della chiana","AR","D649"]
[null,null,null,null,"foiano di val fortore","BN","D650"]
[null,null,null,null,"folgaria","TN","D651"]
[null,null,null,null,"folignano","AP","D652"]
[null,null,null,null,"foligno","PG","D653"]
[null,null,null,null,"follina","TV","D654"]
[null,null,null,null,"follo","SP","D655"]
[null,null,null,null,"follonica","GR","D656"]
[null,null,null,null,"fombio","LO","D660"]
[null,null,null,null,"fondachelli-fantina","ME","D661"]
[null,null,null,null,"fondi","LT","D662"]
[null,null,null,null,"fondo","TN","D663"]
[null,null,null,null,"fonni","NU","D665"]
[null,null,null,null,"fontainemore","AO","D666"]
[null,null,null,null,"fontana liri","FR","D667"]
[null,null,null,null,"fontanafredda","PN","D670"]
[null,null,null,null,"fontanarosa","AV","D671"]
[null,null,null,null,"fontanelice","BO","D668"]
[null,null,null,null,"fontanella","BG","D672"]
[null,null,null,null,"fontanellato","PR","D673"]
[null,null,null,null,"fontanelle","TV","D674"]
[null,null,null,null,"fontaneto d'agogna","NO","D675"]
[null,null,null,null,"fontanetto po","VC","D676"]
[null,null,null,null,"fontanigorda","GE","D677"]
[null,null,null,null,"fontanile","AT","D678"]
[null,null,null,null,"fontaniva","PD","D679"]
[null,null,null,null,"fonte","TV","D680"]
[null,null,null,null,"fonte nuova","RM","M309"]
[null,null,null,null,"fontecchio","AQ","D681"]
[null,null,null,null,"fontechiari","FR","D682"]
[null,null,null,null,"fontegreca","CE","D683"]
[null,null,null,null,"fonteno","BG","D684"]
[null,null,null,null,"fontevivo","PR","D685"]
[null,null,null,null,"fonzaso","BL","D686"]
[null,null,null,null,"foppolo","BG","D688"]
[null,null,null,null,"forano","RI","D689"]
[null,null,null,null,"force","AP","D691"]
[null,null,null,null,"forchia","BN","D693"]
[null,null,null,null,"forcola","SO","D694"]
[null,null,null,null,"fordongianus","OR","D695"]
[null,null,null,null,"forenza","PZ","D696"]
[null,null,null,null,"foresto sparso","BG","D697"]
[null,null,null,null,"forgaria nel friuli","UD","D700"]
[null,null,null,null,"forino","AV","D701"]
[null,null,null,null,"forio","NA","D702"]
[null,null,null,null,"forli'","FC","D704"]
[null,null,null,null,"forli' del sannio","IS","D703"]
[null,null,null,null,"forlimpopoli","FC","D705"]
[null,null,null,null,"formazza","VB","D706"]
[null,null,null,null,"formello","RM","D707"]
[null,null,null,null,"formia","LT","D708"]
[null,null,null,null,"formicola","CE","D709"]
[null,null,null,null,"formigara","CR","D710"]
[null,null,null,null,"formigine","MO","D711"]
[null,null,null,null,"formigliana","VC","D712"]
[null,null,null,null,"formignana","FE","D713"]
[null,null,null,null,"fornace","TN","D714"]
[null,null,null,null,"fornelli","IS","D715"]
[null,null,null,null,"forni avoltri","UD","D718"]
[null,null,null,null,"forni di sopra","UD","D719"]
[null,null,null,null,"forni di sotto","UD","D720"]
[null,null,null,null,"forno canavese","TO","D725"]
[null,null,null,null,"forno di zoldo","BL","D726"]
[null,null,null,null,"fornovo di taro","PR","D728"]
[null,null,null,null,"fornovo san giovanni","BG","D727"]
[null,null,null,null,"forte dei marmi","LU","D730"]
[null,null,null,null,"fortezza .franzensfesten.","BZ","D731"]
[null,null,null,null,"fortunago","PV","D732"]
[null,null,null,null,"forza d'agro'","ME","D733"]
[null,null,null,null,"fosciandora","LU","D734"]
[null,null,null,null,"fosdinovo","MS","D735"]
[null,null,null,null,"fossa","AQ","D736"]
[null,null,null,null,"fossacesia","CH","D738"]
[null,null,null,null,"fossalta di piave","VE","D740"]
[null,null,null,null,"fossalta di portogruaro","VE","D741"]
[null,null,null,null,"fossalto","CB","D737"]
[null,null,null,null,"fossano","CN","D742"]
[null,null,null,null,"fossato di vico","PG","D745"]
[null,null,null,null,"fossato serralta","CZ","D744"]
[null,null,null,null,"fosso'","VE","D748"]
[null,null,null,null,"fossombrone","PU","D749"]
[null,null,null,null,"foza","VI","D750"]
[null,null,null,null,"frabosa soprana","CN","D751"]
[null,null,null,null,"frabosa sottana","CN","D752"]
[null,null,null,null,"fraconalto","AL","D559"]
[null,null,null,null,"fragagnano","TA","D754"]
[null,null,null,null,"fragneto l'abate","BN","D755"]
[null,null,null,null,"fragneto monforte","BN","D756"]
[null,null,null,null,"fraine","CH","D757"]
[null,null,null,null,"framura","SP","D758"]
[null,null,null,null,"francavilla al mare","CH","D763"]
[null,null,null,null,"francavilla angitola","VV","D762"]
[null,null,null,null,"francavilla bisio","AL","D759"]
[null,null,null,null,"francavilla d'ete","AP","D760"]
[null,null,null,null,"francavilla di sicilia","ME","D765"]
[null,null,null,null,"francavilla fontana","BR","D761"]
[null,null,null,null,"francavilla in sinni","PZ","D766"]
[null,null,null,null,"francavilla marittima","CS","D764"]
[null,null,null,null,"francia","EE","Z110"]
[null,null,null,null,"francica","VV","D767"]
[null,null,null,null,"francofonte","SR","D768"]
[null,null,null,null,"francolise","CE","D769"]
[null,null,null,null,"frascaro","AL","D770"]
[null,null,null,null,"frascarolo","PV","D771"]
[null,null,null,null,"frascati","RM","D773"]
[null,null,null,null,"frascineto","CS","D774"]
[null,null,null,null,"frassilongo","TN","D775"]
[null,null,null,null,"frassinelle polesine","RO","D776"]
[null,null,null,null,"frassinello monferrato","AL","D777"]
[null,null,null,null,"frassineto po","AL","D780"]
[null,null,null,null,"frassinetto","TO","D781"]
[null,null,null,null,"frassino","CN","D782"]
[null,null,null,null,"frassinoro","MO","D783"]
[null,null,null,null,"frasso sabino","RI","D785"]
[null,null,null,null,"frasso telesino","BN","D784"]
[null,null,null,null,"fratta polesine","RO","D788"]
[null,null,null,null,"fratta todina","PG","D787"]
[null,null,null,null,"frattamaggiore","NA","D789"]
[null,null,null,null,"frattaminore","NA","D790"]
[null,null,null,null,"fratte rosa","PU","D791"]
[null,null,null,null,"frazzano'","ME","D793"]
[null,null,null,null,"fregona","TV","D794"]
[null,null,null,null,"fresagrandinaria","CH","D796"]
[null,null,null,null,"fresonara","AL","D797"]
[null,null,null,null,"frigento","AV","D798"]
[null,null,null,null,"frignano","CE","D799"]
[null,null,null,null,"frinco","AT","D802"]
[null,null,null,null,"frisa","CH","D803"]
[null,null,null,null,"frisanco","PN","D804"]
[null,null,null,null,"front","TO","D805"]
[null,null,null,null,"frontino","PU","D807"]
[null,null,null,null,"frontone","PU","D808"]
[null,null,null,null,"frosinone","FR","D810"]
[null,null,null,null,"frosolone","IS","D811"]
[null,null,null,null,"frossasco","TO","D812"]
[null,null,null,null,"frugarolo","AL","D813"]
[null,null,null,null,"fubine","AL","D814"]
[null,null,null,null,"fucecchio","FI","D815"]
[null,null,null,null,"fuipiano valle imagna","BG","D817"]
[null,null,null,null,"fumane","VR","D818"]
[null,null,null,null,"fumone","FR","D819"]
[null,null,null,null,"funes .villnoss.","BZ","D821"]
[null,null,null,null,"furci","CH","D823"]
[null,null,null,null,"furci siculo","ME","D824"]
[null,null,null,null,"furnari","ME","D825"]
[null,null,null,null,"furore","SA","D826"]
[null,null,null,null,"furtei","CA","D827"]
[null,null,null,null,"fuscaldo","CS","D828"]
[null,null,null,null,"fusignano","RA","D829"]
[null,null,null,null,"fusine","SO","D830"]
[null,null,null,null,"futani","SA","D832"]
[null,null,null,null,"gabbioneta binanuova","CR","D834"]
[null,null,null,null,"gabiano","AL","D835"]
[null,null,null,null,"gabicce mare","PU","D836"]
[null,null,null,null,"gabon","EE","Z316"]
[null,null,null,null,"gaby","AO","D839"]
[null,null,null,null,"gadesco pieve delmona","CR","D841"]
[null,null,null,null,"gadoni","NU","D842"]
[null,null,null,null,"gaeta","LT","D843"]
[null,null,null,null,"gaggi","ME","D844"]
[null,null,null,null,"gaggiano","MI","D845"]
[null,null,null,null,"gaggio montano","BO","D847"]
[null,null,null,null,"gaglianico","BI","D848"]
[null,null,null,null,"gagliano aterno","AQ","D850"]
[null,null,null,null,"gagliano castelferrato","EN","D849"]
[null,null,null,null,"gagliano del capo","LE","D851"]
[null,null,null,null,"gagliato","CZ","D852"]
[null,null,null,null,"gagliole","MC","D853"]
[null,null,null,null,"gaiarine","TV","D854"]
[null,null,null,null,"gaiba","RO","D855"]
[null,null,null,null,"gaiola","CN","D856"]
[null,null,null,null,"gaiole in chianti","SI","D858"]
[null,null,null,null,"gairo","NU","D859"]
[null,null,null,null,"gais .gais.","BZ","D860"]
[null,null,null,null,"galati mamertino","ME","D861"]
[null,null,null,null,"galatina","LE","D862"]
[null,null,null,null,"galatone","LE","D863"]
[null,null,null,null,"galatro","RC","D864"]
[null,null,null,null,"galbiate","LC","D865"]
[null,null,null,null,"galeata","FC","D867"]
[null,null,null,null,"galgagnano","LO","D868"]
[null,null,null,null,"gallarate","VA","D869"]
[null,null,null,null,"gallese","VT","D870"]
[null,null,null,null,"galliate","NO","D872"]
[null,null,null,null,"galliate lombardo","VA","D871"]
[null,null,null,null,"galliavola","PV","D873"]
[null,null,null,null,"gallicano","LU","D874"]
[null,null,null,null,"gallicano nel lazio","RM","D875"]
[null,null,null,null,"gallicchio","PZ","D876"]
[null,null,null,null,"galliera","BO","D878"]
[null,null,null,null,"galliera veneta","PD","D879"]
[null,null,null,null,"gallinaro","FR","D881"]
[null,null,null,null,"gallio","VI","D882"]
[null,null,null,null,"gallipoli","LE","D883"]
[null,null,null,null,"gallo matese","CE","D884"]
[null,null,null,null,"gallodoro","ME","D885"]
[null,null,null,null,"galluccio","CE","D886"]
[null,null,null,null,"galtelli","NU","D888"]
[null,null,null,null,"galzignano terme","PD","D889"]
[null,null,null,null,"gamalero","AL","D890"]
[null,null,null,null,"gambara","BS","D891"]
[null,null,null,null,"gambarana","PV","D892"]
[null,null,null,null,"gambasca","CN","D894"]
[null,null,null,null,"gambassi terme","FI","D895"]
[null,null,null,null,"gambatesa","CB","D896"]
[null,null,null,null,"gambellara","VI","D897"]
[null,null,null,null,"gamberale","CH","D898"]
[null,null,null,null,"gambettola","FC","D899"]
[null,null,null,null,"gambia","EE","Z317"]
[null,null,null,null,"gambolo'","PV","D901"]
[null,null,null,null,"gambugliano","VI","D902"]
[null,null,null,null,"gandellino","BG","D903"]
[null,null,null,null,"gandino","BG","D905"]
[null,null,null,null,"gandosso","BG","D906"]
[null,null,null,null,"gangi","PA","D907"]
[null,null,null,null,"garaguso","MT","D909"]
[null,null,null,null,"garbagna","AL","D910"]
[null,null,null,null,"garbagna novarese","NO","D911"]
[null,null,null,null,"garbagnate milanese","MI","D912"]
[null,null,null,null,"garbagnate monastero","LC","D913"]
[null,null,null,null,"garda","VR","D915"]
[null,null,null,null,"gardone riviera","BS","D917"]
[null,null,null,null,"gardone val trompia","BS","D918"]
[null,null,null,null,"garessio","CN","D920"]
[null,null,null,null,"gargallo","NO","D921"]
[null,null,null,null,"gargazzone .gargazon.","BZ","D923"]
[null,null,null,null,"gargnano","BS","D924"]
[null,null,null,null,"garlasco","PV","D925"]
[null,null,null,null,"garlate","LC","D926"]
[null,null,null,null,"garlenda","SV","D927"]
[null,null,null,null,"garniga terme","TN","D928"]
[null,null,null,null,"garzeno","CO","D930"]
[null,null,null,null,"garzigliana","TO","D931"]
[null,null,null,null,"gasperina","CZ","D932"]
[null,null,null,null,"gassino torinese","TO","D933"]
[null,null,null,null,"gattatico","RE","D934"]
[null,null,null,null,"gatteo","FC","D935"]
[null,null,null,null,"gattico","NO","D937"]
[null,null,null,null,"gattinara","VC","D938"]
[null,null,null,null,"gavardo","BS","D940"]
[null,null,null,null,"gavazzana","AL","D941"]
[null,null,null,null,"gavello","RO","D942"]
[null,null,null,null,"gaverina terme","BG","D943"]
[null,null,null,null,"gavi","AL","D944"]
[null,null,null,null,"gavignano","RM","D945"]
[null,null,null,null,"gavirate","VA","D946"]
[null,null,null,null,"gavoi","NU","D947"]
[null,null,null,null,"gavorrano","GR","D948"]
[null,null,null,null,"gaza territorio di","EE","Z218"]
[null,null,null,null,"gazoldo degli ippoliti","MN","D949"]
[null,null,null,null,"gazzada schianno","VA","D951"]
[null,null,null,null,"gazzaniga","BG","D952"]
[null,null,null,null,"gazzo padovano","PD","D956"]
[null,null,null,null,"gazzo veronese","VR","D957"]
[null,null,null,null,"gazzola","PC","D958"]
[null,null,null,null,"gazzuolo","MN","D959"]
[null,null,null,null,"gela","CL","D960"]
[null,null,null,null,"gemmano","RN","D961"]
[null,null,null,null,"gemona del friuli","UD","D962"]
[null,null,null,null,"gemonio","VA","D963"]
[null,null,null,null,"genazzano","RM","D964"]
[null,null,null,null,"genga","AN","D965"]
[null,null,null,null,"genivolta","CR","D966"]
[null,null,null,null,"genola","CN","D967"]
[null,null,null,null,"genoni","NU","D968"]
[null,null,null,null,"genova","GE","D969"]
[null,null,null,null,"genuri","CA","D970"]
[null,null,null,null,"genzano di lucania","PZ","D971"]
[null,null,null,null,"genzano di roma","RM","D972"]
[null,null,null,null,"genzone","PV","D973"]
[null,null,null,null,"georgia","EE","Z136"]
[null,null,null,null,"georgia","EE","Z254"]
[null,null,null,null,"gera lario","CO","D974"]
[null,null,null,null,"gerace","RC","D975"]
[null,null,null,null,"geraci siculo","PA","D977"]
[null,null,null,null,"gerano","RM","D978"]
[null,null,null,null,"gerenzago","PV","D980"]
[null,null,null,null,"gerenzano","VA","D981"]
[null,null,null,null,"gergei","NU","D982"]
[null,null,null,null,"germagnano","TO","D983"]
[null,null,null,null,"germagno","VB","D984"]
[null,null,null,null,"germania repubblica de","EE","Z111"]
[null,null,null,null,"germania repubblica fe","EE","Z112"]
[null,null,null,null,"germasino","CO","D986"]
[null,null,null,null,"germignaga","VA","D987"]
[null,null,null,null,"gerocarne","VV","D988"]
[null,null,null,null,"gerola alta","SO","D990"]
[null,null,null,null,"gerosa","BG","D991"]
[null,null,null,null,"gerre de' caprioli","CR","D993"]
[null,null,null,null,"gesico","CA","D994"]
[null,null,null,null,"gessate","MI","D995"]
[null,null,null,null,"gessopalena","CH","D996"]
[null,null,null,null,"gesturi","CA","D997"]
[null,null,null,null,"gesualdo","AV","D998"]
[null,null,null,null,"ghana","EE","Z318"]
[null,null,null,null,"ghedi","BS","D999"]
[null,null,null,null,"ghemme","NO","E001"]
[null,null,null,null,"ghiffa","VB","E003"]
[null,null,null,null,"ghilarza","OR","E004"]
[null,null,null,null,"ghisalba","BG","E006"]
[null,null,null,null,"ghislarengo","VC","E007"]
[null,null,null,null,"giacciano con baruchella","RO","E008"]
[null,null,null,null,"giaglione","TO","E009"]
[null,null,null,null,"giamaica","EE","Z507"]
[null,null,null,null,"gianico","BS","E010"]
[null,null,null,null,"giano dell'umbria","PG","E012"]
[null,null,null,null,"giano vetusto","CE","E011"]
[null,null,null,null,"giappone","EE","Z219"]
[null,null,null,null,"giardinello","PA","E013"]
[null,null,null,null,"giardini-naxos","ME","E014"]
[null,null,null,null,"giarole","AL","E015"]
[null,null,null,null,"giarratana","RG","E016"]
[null,null,null,null,"giarre","CT","E017"]
[null,null,null,null,"giave","SS","E019"]
[null,null,null,null,"giaveno","TO","E020"]
[null,null,null,null,"giavera del montello","TV","E021"]
[null,null,null,null,"giba","CA","E022"]
[null,null,null,null,"gibellina","TP","E023"]
[null,null,null,null,"gibilterra","EE","Z113"]
[null,null,null,null,"gibuti","EE","Z361"]
[null,null,null,null,"gifflenga","BI","E024"]
[null,null,null,null,"giffone","RC","E025"]
[null,null,null,null,"giffoni sei casali","SA","E026"]
[null,null,null,null,"giffoni valle piana","SA","E027"]
[null,null,null,null,"gignese","VB","E028"]
[null,null,null,null,"gignod","AO","E029"]
[null,null,null,null,"gilbert e ellice (isol","EE","Z705"]
[null,null,null,null,"gildone","CB","E030"]
[null,null,null,null,"gimigliano","CZ","E031"]
[null,null,null,null,"ginestra","PZ","E033"]
[null,null,null,null,"ginestra degli schiavoni","BN","E034"]
[null,null,null,null,"ginosa","TA","E036"]
[null,null,null,null,"gioi","SA","E037"]
[null,null,null,null,"gioia dei marsi","AQ","E040"]
[null,null,null,null,"gioia del colle","BA","E038"]
[null,null,null,null,"gioia sannitica","CE","E039"]
[null,null,null,null,"gioia tauro","RC","E041"]
[null,null,null,null,"gioiosa ionica","RC","E044"]
[null,null,null,null,"gioiosa marea","ME","E043"]
[null,null,null,null,"giordania","EE","Z220"]
[null,null,null,null,"giove","TR","E045"]
[null,null,null,null,"giovinazzo","BA","E047"]
[null,null,null,null,"giovo","TN","E048"]
[null,null,null,null,"girasole","NU","E049"]
[null,null,null,null,"girifalco","CZ","E050"]
[null,null,null,null,"gironico","CO","E051"]
[null,null,null,null,"gissi","CH","E052"]
[null,null,null,null,"giuggianello","LE","E053"]
[null,null,null,null,"giugliano in campania","NA","E054"]
[null,null,null,null,"giuliana","PA","E055"]
[null,null,null,null,"giuliano di roma","FR","E057"]
[null,null,null,null,"giuliano teatino","CH","E056"]
[null,null,null,null,"giulianova","TE","E058"]
[null,null,null,null,"giuncugnano","LU","E059"]
[null,null,null,null,"giungano","SA","E060"]
[null,null,null,null,"giurdignano","LE","E061"]
[null,null,null,null,"giussago","PV","E062"]
[null,null,null,null,"giussano","MI","E063"]
[null,null,null,null,"giustenice","SV","E064"]
[null,null,null,null,"giustino","TN","E065"]
[null,null,null,null,"giusvalla","SV","E066"]
[null,null,null,null,"givoletto","TO","E067"]
[null,null,null,null,"gizzeria","CZ","E068"]
[null,null,null,null,"glorenza .glurns.","BZ","E069"]
[null,null,null,null,"godega di sant'urbano","TV","E071"]
[null,null,null,null,"godiasco","PV","E072"]
[null,null,null,null,"godrano","PA","E074"]
[null,null,null,null,"goito","MN","E078"]
[null,null,null,null,"golasecca","VA","E079"]
[null,null,null,null,"golferenzo","PV","E081"]
[null,null,null,null,"golfo aranci","SS","M274"]
[null,null,null,null,"gombito","CR","E082"]
[null,null,null,null,"gonars","UD","E083"]
[null,null,null,null,"goni","CA","E084"]
[null,null,null,null,"gonnesa","CA","E086"]
[null,null,null,null,"gonnoscodina","OR","E087"]
[null,null,null,null,"gonnosfanadiga","CA","E085"]
[null,null,null,null,"gonnosno'","OR","D585"]
[null,null,null,null,"gonnostramatza","OR","E088"]
[null,null,null,null,"gonzaga","MN","E089"]
[null,null,null,null,"gordona","SO","E090"]
[null,null,null,null,"gorga","RM","E091"]
[null,null,null,null,"gorgo al monticano","TV","E092"]
[null,null,null,null,"gorgoglione","MT","E093"]
[null,null,null,null,"gorgonzola","MI","E094"]
[null,null,null,null,"goriano sicoli","AQ","E096"]
[null,null,null,null,"gorizia","GO","E098"]
[null,null,null,null,"gorla maggiore","VA","E101"]
[null,null,null,null,"gorla minore","VA","E102"]
[null,null,null,null,"gorlago","BG","E100"]
[null,null,null,null,"gorle","BG","E103"]
[null,null,null,null,"gornate-olona","VA","E104"]
[null,null,null,null,"gorno","BG","E106"]
[null,null,null,null,"goro","FE","E107"]
[null,null,null,null,"gorreto","GE","E109"]
[null,null,null,null,"gorzegno","CN","E111"]
[null,null,null,null,"gosaldo","BL","E113"]
[null,null,null,null,"gossolengo","PC","E114"]
[null,null,null,null,"gottasecca","CN","E115"]
[null,null,null,null,"gottolengo","BS","E116"]
[null,null,null,null,"govone","CN","E118"]
[null,null,null,null,"gozzano","NO","E120"]
[null,null,null,null,"gradara","PU","E122"]
[null,null,null,null,"gradisca d'isonzo","GO","E124"]
[null,null,null,null,"grado","GO","E125"]
[null,null,null,null,"gradoli","VT","E126"]
[null,null,null,null,"graffignana","LO","E127"]
[null,null,null,null,"graffignano","VT","E128"]
[null,null,null,null,"graglia","BI","E130"]
[null,null,null,null,"gragnano","NA","E131"]
[null,null,null,null,"gragnano trebbiense","PC","E132"]
[null,null,null,null,"grammichele","CT","E133"]
[null,null,null,null,"gran bretagna e irland","EE","Z114"]
[null,null,null,null,"grana","AT","E134"]
[null,null,null,null,"granaglione","BO","E135"]
[null,null,null,null,"granarolo dell'emilia","BO","E136"]
[null,null,null,null,"grancona","VI","E138"]
[null,null,null,null,"grandate","CO","E139"]
[null,null,null,null,"grandola ed uniti","CO","E141"]
[null,null,null,null,"graniti","ME","E142"]
[null,null,null,null,"granozzo con monticello","NO","E143"]
[null,null,null,null,"grantola","VA","E144"]
[null,null,null,null,"grantorto","PD","E145"]
[null,null,null,null,"granze","PD","E146"]
[null,null,null,null,"grassano","MT","E147"]
[null,null,null,null,"grassobbio","BG","E148"]
[null,null,null,null,"gratteri","PA","E149"]
[null,null,null,null,"grauno","TN","E150"]
[null,null,null,null,"gravedona","CO","E151"]
[null,null,null,null,"gravellona lomellina","PV","E152"]
[null,null,null,null,"gravellona toce","VB","E153"]
[null,null,null,null,"gravere","TO","E154"]
[null,null,null,null,"gravina di catania","CT","E156"]
[null,null,null,null,"gravina in puglia","BA","E155"]
[null,null,null,null,"grazzanise","CE","E158"]
[null,null,null,null,"grazzano badoglio","AT","E159"]
[null,null,null,null,"greccio","RI","E160"]
[null,null,null,null,"greci","AV","E161"]
[null,null,null,null,"grecia","EE","Z115"]
[null,null,null,null,"greggio","VC","E163"]
[null,null,null,null,"gremiasco","AL","E164"]
[null,null,null,null,"grenada","EE","Z524"]
[null,null,null,null,"gressan","AO","E165"]
[null,null,null,null,"gressoney-la-trinite'","AO","E167"]
[null,null,null,null,"gressoney-saint-jean","AO","E168"]
[null,null,null,null,"greve in chianti","FI","E169"]
[null,null,null,null,"grezzago","MI","E170"]
[null,null,null,null,"grezzana","VR","E171"]
[null,null,null,null,"griante","CO","E172"]
[null,null,null,null,"gricignano di aversa","CE","E173"]
[null,null,null,null,"grignasco","NO","E177"]
[null,null,null,null,"grigno","TN","E178"]
[null,null,null,null,"grimacco","UD","E179"]
[null,null,null,null,"grimaldi","CS","E180"]
[null,null,null,null,"grinzane cavour","CN","E182"]
[null,null,null,null,"grisignano di zocco","VI","E184"]
[null,null,null,null,"grisolia","CS","E185"]
[null,null,null,null,"grizzana morandi","BO","E187"]
[null,null,null,null,"groenlandia","EE","Z402"]
[null,null,null,null,"grognardo","AL","E188"]
[null,null,null,null,"gromo","BG","E189"]
[null,null,null,null,"grondona","AL","E191"]
[null,null,null,null,"grone","BG","E192"]
[null,null,null,null,"grontardo","CR","E193"]
[null,null,null,null,"gropello cairoli","PV","E195"]
[null,null,null,null,"gropparello","PC","E196"]
[null,null,null,null,"groscavallo","TO","E199"]
[null,null,null,null,"grosio","SO","E200"]
[null,null,null,null,"grosotto","SO","E201"]
[null,null,null,null,"grosseto","GR","E202"]
[null,null,null,null,"grosso","TO","E203"]
[null,null,null,null,"grottaferrata","RM","E204"]
[null,null,null,null,"grottaglie","TA","E205"]
[null,null,null,null,"grottaminarda","AV","E206"]
[null,null,null,null,"grottammare","AP","E207"]
[null,null,null,null,"grottazzolina","AP","E208"]
[null,null,null,null,"grotte","AG","E209"]
[null,null,null,null,"grotte di castro","VT","E210"]
[null,null,null,null,"grotteria","RC","E212"]
[null,null,null,null,"grottole","MT","E213"]
[null,null,null,null,"grottolella","AV","E214"]
[null,null,null,null,"gruaro","VE","E215"]
[null,null,null,null,"grugliasco","TO","E216"]
[null,null,null,null,"grumello cremonese ed uniti","CR","E217"]
[null,null,null,null,"grumello del monte","BG","E219"]
[null,null,null,null,"grumento nova","PZ","E221"]
[null,null,null,null,"grumes","TN","E222"]
[null,null,null,null,"grumo appula","BA","E223"]
[null,null,null,null,"grumo nevano","NA","E224"]
[null,null,null,null,"grumolo delle abbadesse","VI","E226"]
[null,null,null,null,"guadalupa","EE","Z508"]
[null,null,null,null,"guagnano","LE","E227"]
[null,null,null,null,"gualdo","MC","E228"]
[null,null,null,null,"gualdo cattaneo","PG","E229"]
[null,null,null,null,"gualdo tadino","PG","E230"]
[null,null,null,null,"gualtieri","RE","E232"]
[null,null,null,null,"gualtieri sicamino'","ME","E233"]
[null,null,null,null,"guam (isola)","EE","Z706"]
[null,null,null,null,"guamaggiore","CA","E234"]
[null,null,null,null,"guanzate","CO","E235"]
[null,null,null,null,"guarcino","FR","E236"]
[null,null,null,null,"guarda veneta","RO","E240"]
[null,null,null,null,"guardabosone","VC","E237"]
[null,null,null,null,"guardamiglio","LO","E238"]
[null,null,null,null,"guardavalle","CZ","E239"]
[null,null,null,null,"guardea","TR","E241"]
[null,null,null,null,"guardia lombardi","AV","E245"]
[null,null,null,null,"guardia perticara","PZ","E246"]
[null,null,null,null,"guardia piemontese","CS","E242"]
[null,null,null,null,"guardia sanframondi","BN","E249"]
[null,null,null,null,"guardiagrele","CH","E243"]
[null,null,null,null,"guardialfiera","CB","E244"]
[null,null,null,null,"guardiaregia","CB","E248"]
[null,null,null,null,"guardistallo","PI","E250"]
[null,null,null,null,"guarene","CN","E251"]
[null,null,null,null,"guasila","CA","E252"]
[null,null,null,null,"guastalla","RE","E253"]
[null,null,null,null,"guatemala","EE","Z509"]
[null,null,null,null,"guayana britannica","EE","Z606"]
[null,null,null,null,"guayana francese","EE","Z607"]
[null,null,null,null,"guazzora","AL","E255"]
[null,null,null,null,"gubbio","PG","E256"]
[null,null,null,null,"gudo visconti","MI","E258"]
[null,null,null,null,"guglionesi","CB","E259"]
[null,null,null,null,"guidizzolo","MN","E261"]
[null,null,null,null,"guidonia montecelio","RM","E263"]
[null,null,null,null,"guiglia","MO","E264"]
[null,null,null,null,"guilmi","CH","E266"]
[null,null,null,null,"guinea","EE","Z319"]
[null,null,null,null,"guinea bissau","EE","Z320"]
[null,null,null,null,"guinea equatoriale","EE","Z321"]
[null,null,null,null,"gurro","VB","E269"]
[null,null,null,null,"guspini","CA","E270"]
[null,null,null,null,"gussago","BS","E271"]
[null,null,null,null,"gussola","CR","E272"]
[null,null,null,null,"haiti","EE","Z510"]
[null,null,null,null,"honduras","EE","Z511"]
[null,null,null,null,"hone","AO","E273"]
[null,null,null,null,"hong kong","EE","Z221"]
[null,null,null,null,"idro","BS","E280"]
[null,null,null,null,"ifni","EE","Z323"]
[null,null,null,null,"iglesias","CA","E281"]
[null,null,null,null,"igliano","CN","E282"]
[null,null,null,null,"ilbono","NU","E283"]
[null,null,null,null,"illasi","VR","E284"]
[null,null,null,null,"illorai","SS","E285"]
[null,null,null,null,"imbersago","LC","E287"]
[null,null,null,null,"imer","TN","E288"]
[null,null,null,null,"imola","BO","E289"]
[null,null,null,null,"imperia","IM","E290"]
[null,null,null,null,"impruneta","FI","E291"]
[null,null,null,null,"inarzo","VA","E292"]
[null,null,null,null,"incisa in val d'arno","FI","E296"]
[null,null,null,null,"incisa scapaccino","AT","E295"]
[null,null,null,null,"incudine","BS","E297"]
[null,null,null,null,"india","EE","Z222"]
[null,null,null,null,"indonesia","EE","Z223"]
[null,null,null,null,"induno olona","VA","E299"]
[null,null,null,null,"ingria","TO","E301"]
[null,null,null,null,"intragna","VB","E304"]
[null,null,null,null,"introbio","LC","E305"]
[null,null,null,null,"introd","AO","E306"]
[null,null,null,null,"introdacqua","AQ","E307"]
[null,null,null,null,"introzzo","LC","E308"]
[null,null,null,null,"inverigo","CO","E309"]
[null,null,null,null,"inverno e monteleone","PV","E310"]
[null,null,null,null,"inverso pinasca","TO","E311"]
[null,null,null,null,"inveruno","MI","E313"]
[null,null,null,null,"invorio","NO","E314"]
[null,null,null,null,"inzago","MI","E317"]
[null,null,null,null,"ionadi","VV","E321"]
[null,null,null,null,"iran","EE","Z224"]
[null,null,null,null,"iraq","EE","Z225"]
[null,null,null,null,"irgoli","NU","E323"]
[null,null,null,null,"irian occidentale","EE","Z707"]
[null,null,null,null,"irlanda = eire","EE","Z116"]
[null,null,null,null,"irma","BS","E325"]
[null,null,null,null,"irsina","MT","E326"]
[null,null,null,null,"isasca","CN","E327"]
[null,null,null,null,"isca sullo ionio","CZ","E328"]
[null,null,null,null,"ischia","NA","E329"]
[null,null,null,null,"ischia di castro","VT","E330"]
[null,null,null,null,"ischitella","FG","E332"]
[null,null,null,null,"iseo","BS","E333"]
[null,null,null,null,"isera","TN","E334"]
[null,null,null,null,"isernia","IS","E335"]
[null,null,null,null,"isili","NU","E336"]
[null,null,null,null,"islanda","EE","Z117"]
[null,null,null,null,"isnello","PA","E337"]
[null,null,null,null,"isola d'asti","AT","E338"]
[null,null,null,null,"isola del cantone","GE","E341"]
[null,null,null,null,"isola del giglio","GR","E348"]
[null,null,null,null,"isola del gran sasso d'italia","TE","E343"]
[null,null,null,null,"isola del liri","FR","E340"]
[null,null,null,null,"isola del piano","PU","E351"]
[null,null,null,null,"isola della scala","VR","E349"]
[null,null,null,null,"isola delle femmine","PA","E350"]
[null,null,null,null,"isola di capo rizzuto","KR","E339"]
[null,null,null,null,"isola di fondra","BG","E353"]
[null,null,null,null,"isola dovarese","CR","E356"]
[null,null,null,null,"isola rizza","VR","E358"]
[null,null,null,null,"isola sant'antonio","AL","E360"]
[null,null,null,null,"isola vicentina","VI","E354"]
[null,null,null,null,"isolabella","TO","E345"]
[null,null,null,null,"isolabona","IM","E346"]
[null,null,null,null,"isole tremiti","FG","E363"]
[null,null,null,null,"isorella","BS","E364"]
[null,null,null,null,"ispani","SA","E365"]
[null,null,null,null,"ispica","RG","E366"]
[null,null,null,null,"ispra","VA","E367"]
[null,null,null,null,"israele","EE","Z226"]
[null,null,null,null,"issiglio","TO","E368"]
[null,null,null,null,"issime","AO","E369"]
[null,null,null,null,"isso","BG","E370"]
[null,null,null,null,"issogne","AO","E371"]
[null,null,null,null,"istrana","TV","E373"]
[null,null,null,null,"itala","ME","E374"]
[null,null,null,null,"itri","LT","E375"]
[null,null,null,null,"ittireddu","SS","E376"]
[null,null,null,null,"ittiri","SS","E377"]
[null,null,null,null,"iugoslavia","EE","Z118"]
[null,null,null,null,"ivano fracena","TN","E378"]
[null,null,null,null,"ivrea","TO","E379"]
[null,null,null,null,"izano","CR","E380"]
[null,null,null,null,"jacurso","CZ","E274"]
[null,null,null,null,"jelsi","CB","E381"]
[null,null,null,null,"jenne","RM","E382"]
[null,null,null,null,"jerago con orago","VA","E386"]
[null,null,null,null,"jerzu","NU","E387"]
[null,null,null,null,"jesi","AN","E388"]
[null,null,null,null,"jesolo","VE","C388"]
[null,null,null,null,"jolanda di savoia","FE","E320"]
[null,null,null,null,"joppolo","VV","E389"]
[null,null,null,null,"joppolo giancaxio","AG","E390"]
[null,null,null,null,"jovencan","AO","E391"]
[null,null,null,null,"kazakistan","EE","Z255"]
[null,null,null,null,"kenya","EE","Z322"]
[null,null,null,null,"kirghizistan","EE","Z256"]
[null,null,null,null,"kiribati","EE","Z731"]
[null,null,null,null,"kuwait","EE","Z227"]
[null,null,null,null,"l'aquila","AQ","A345"]
[null,null,null,null,"la cassa","TO","E394"]
[null,null,null,null,"la loggia","TO","E423"]
[null,null,null,null,"la maddalena","SS","E425"]
[null,null,null,null,"la magdeleine","AO","A308"]
[null,null,null,null,"la morra","CN","E430"]
[null,null,null,null,"la reunion (isole)","EE","Z324"]
[null,null,null,null,"la salle","AO","E458"]
[null,null,null,null,"la spezia","SP","E463"]
[null,null,null,null,"la thuile","AO","E470"]
[null,null,null,null,"la valle .wengen.","BZ","E491"]
[null,null,null,null,"la valle agordina","BL","E490"]
[null,null,null,null,"labico","RM","E392"]
[null,null,null,null,"labro","RI","E393"]
[null,null,null,null,"lacchiarella","MI","E395"]
[null,null,null,null,"lacco ameno","NA","E396"]
[null,null,null,null,"lacedonia","AV","E397"]
[null,null,null,null,"laces .latsch.","BZ","E398"]
[null,null,null,null,"laconi","NU","E400"]
[null,null,null,null,"ladispoli","RM","M212"]
[null,null,null,null,"laerru","SS","E401"]
[null,null,null,null,"laganadi","RC","E402"]
[null,null,null,null,"laghi","VI","E403"]
[null,null,null,null,"laglio","CO","E405"]
[null,null,null,null,"lagnasco","CN","E406"]
[null,null,null,null,"lago","CS","E407"]
[null,null,null,null,"lagonegro","PZ","E409"]
[null,null,null,null,"lagosanto","FE","E410"]
[null,null,null,null,"lagundo .algund.","BZ","E412"]
[null,null,null,null,"laigueglia","SV","E414"]
[null,null,null,null,"lainate","MI","E415"]
[null,null,null,null,"laino","CO","E416"]
[null,null,null,null,"laino borgo","CS","E417"]
[null,null,null,null,"laino castello","CS","E419"]
[null,null,null,null,"laion .lajen.","BZ","E420"]
[null,null,null,null,"laives .leifers.","BZ","E421"]
[null,null,null,null,"lajatico","PI","E413"]
[null,null,null,null,"lallio","BG","E422"]
[null,null,null,null,"lama dei peligni","CH","E424"]
[null,null,null,null,"lama mocogno","MO","E426"]
[null,null,null,null,"lambrugo","CO","E428"]
[null,null,null,null,"lamezia terme","CZ","M208"]
[null,null,null,null,"lamon","BL","E429"]
[null,null,null,null,"lampedusa e linosa","AG","E431"]
[null,null,null,null,"lamporecchio","PT","E432"]
[null,null,null,null,"lamporo","VC","E433"]
[null,null,null,null,"lana .lana.","BZ","E434"]
[null,null,null,null,"lanciano","CH","E435"]
[null,null,null,null,"landiona","NO","E436"]
[null,null,null,null,"landriano","PV","E437"]
[null,null,null,null,"langhirano","PR","E438"]
[null,null,null,null,"langosco","PV","E439"]
[null,null,null,null,"lanusei","NU","E441"]
[null,null,null,null,"lanuvio","RM","C767"]
[null,null,null,null,"lanzada","SO","E443"]
[null,null,null,null,"lanzo d'intelvi","CO","E444"]
[null,null,null,null,"lanzo torinese","TO","E445"]
[null,null,null,null,"laos","EE","Z228"]
[null,null,null,null,"lapedona","AP","E447"]
[null,null,null,null,"lapio","AV","E448"]
[null,null,null,null,"lappano","CS","E450"]
[null,null,null,null,"larciano","PT","E451"]
[null,null,null,null,"lardaro","TN","E452"]
[null,null,null,null,"lardirago","PV","E454"]
[null,null,null,null,"lari","PI","E455"]
[null,null,null,null,"lariano","RM","M207"]
[null,null,null,null,"larino","CB","E456"]
[null,null,null,null,"las plassas","CA","E464"]
[null,null,null,null,"lasa .laas.","BZ","E457"]
[null,null,null,null,"lascari","PA","E459"]
[null,null,null,null,"lasino","TN","E461"]
[null,null,null,null,"lasnigo","CO","E462"]
[null,null,null,null,"lastebasse","VI","E465"]
[null,null,null,null,"lastra a signa","FI","E466"]
[null,null,null,null,"latera","VT","E467"]
[null,null,null,null,"laterina","AR","E468"]
[null,null,null,null,"laterza","TA","E469"]
[null,null,null,null,"latiano","BR","E471"]
[null,null,null,null,"latina","LT","E472"]
[null,null,null,null,"latisana","UD","E473"]
[null,null,null,null,"latronico","PZ","E474"]
[null,null,null,null,"lattarico","CS","E475"]
[null,null,null,null,"lauco","UD","E476"]
[null,null,null,null,"laureana cilento","SA","E480"]
[null,null,null,null,"laureana di borrello","RC","E479"]
[null,null,null,null,"lauregno .laurein.","BZ","E481"]
[null,null,null,null,"laurenzana","PZ","E482"]
[null,null,null,null,"lauria","PZ","E483"]
[null,null,null,null,"lauriano","TO","E484"]
[null,null,null,null,"laurino","SA","E485"]
[null,null,null,null,"laurito","SA","E486"]
[null,null,null,null,"lauro","AV","E487"]
[null,null,null,null,"lavagna","GE","E488"]
[null,null,null,null,"lavagno","VR","E489"]
[null,null,null,null,"lavarone","TN","E492"]
[null,null,null,null,"lavello","PZ","E493"]
[null,null,null,null,"lavena ponte tresa","VA","E494"]
[null,null,null,null,"laveno-mombello","VA","E496"]
[null,null,null,null,"lavenone","BS","E497"]
[null,null,null,null,"laviano","SA","E498"]
[null,null,null,null,"lavis","TN","E500"]
[null,null,null,null,"lazise","VR","E502"]
[null,null,null,null,"lazzate","MI","E504"]
[null,null,null,null,"lecce","LE","E506"]
[null,null,null,null,"lecce nei marsi","AQ","E505"]
[null,null,null,null,"lecco","LC","E507"]
[null,null,null,null,"ledro","TN","M313"]
[null,null,null,null,"leffe","BG","E509"]
[null,null,null,null,"leggiuno","VA","E510"]
[null,null,null,null,"legnago","VR","E512"]
[null,null,null,null,"legnano","MI","E514"]
[null,null,null,null,"legnaro","PD","E515"]
[null,null,null,null,"lei","NU","E517"]
[null,null,null,null,"leini","TO","E518"]
[null,null,null,null,"leivi","GE","E519"]
[null,null,null,null,"lemie","TO","E520"]
[null,null,null,null,"lendinara","RO","E522"]
[null,null,null,null,"leni","ME","E523"]
[null,null,null,null,"lenna","BG","E524"]
[null,null,null,null,"lenno","CO","E525"]
[null,null,null,null,"leno","BS","E526"]
[null,null,null,null,"lenola","LT","E527"]
[null,null,null,null,"lenta","VC","E528"]
[null,null,null,null,"lentate sul seveso","MI","E530"]
[null,null,null,null,"lentella","CH","E531"]
[null,null,null,null,"lentiai","BL","C562"]
[null,null,null,null,"lentini","SR","E532"]
[null,null,null,null,"leonessa","RI","E535"]
[null,null,null,null,"leonforte","EN","E536"]
[null,null,null,null,"leporano","TA","E537"]
[null,null,null,null,"lequile","LE","E538"]
[null,null,null,null,"lequio berria","CN","E540"]
[null,null,null,null,"lequio tanaro","CN","E539"]
[null,null,null,null,"lercara friddi","PA","E541"]
[null,null,null,null,"lerici","SP","E542"]
[null,null,null,null,"lerma","AL","E543"]
[null,null,null,null,"lesa","NO","E544"]
[null,null,null,null,"lesegno","CN","E546"]
[null,null,null,null,"lesignano de' bagni","PR","E547"]
[null,null,null,null,"lesina","FG","E549"]
[null,null,null,null,"lesmo","MI","E550"]
[null,null,null,null,"lesotho","EE","Z359"]
[null,null,null,null,"lessolo","TO","E551"]
[null,null,null,null,"lessona","BI","E552"]
[null,null,null,null,"lestizza","UD","E553"]
[null,null,null,null,"letino","CE","E554"]
[null,null,null,null,"letojanni","ME","E555"]
[null,null,null,null,"lettere","NA","E557"]
[null,null,null,null,"lettomanoppello","PE","E558"]
[null,null,null,null,"lettonia","EE","Z145"]
[null,null,null,null,"lettopalena","CH","E559"]
[null,null,null,null,"levanto","SP","E560"]
[null,null,null,null,"levate","BG","E562"]
[null,null,null,null,"leverano","LE","E563"]
[null,null,null,null,"levice","CN","E564"]
[null,null,null,null,"levico terme","TN","E565"]
[null,null,null,null,"levone","TO","E566"]
[null,null,null,null,"lezzeno","CO","E569"]
[null,null,null,null,"libano","EE","Z229"]
[null,null,null,null,"liberi","CE","E570"]
[null,null,null,null,"liberia","EE","Z325"]
[null,null,null,null,"libia","EE","Z326"]
[null,null,null,null,"librizzi","ME","E571"]
[null,null,null,null,"licata","AG","E573"]
[null,null,null,null,"licciana nardi","MS","E574"]
[null,null,null,null,"licenza","RM","E576"]
[null,null,null,null,"licodia eubea","CT","E578"]
[null,null,null,null,"liechtenstein","EE","Z119"]
[null,null,null,null,"lierna","LC","E581"]
[null,null,null,null,"lignana","VC","E583"]
[null,null,null,null,"lignano sabbiadoro","UD","E584"]
[null,null,null,null,"ligonchio","RE","E585"]
[null,null,null,null,"ligosullo","UD","E586"]
[null,null,null,null,"lillianes","AO","E587"]
[null,null,null,null,"limana","BL","E588"]
[null,null,null,null,"limatola","BN","E589"]
[null,null,null,null,"limbadi","VV","E590"]
[null,null,null,null,"limbiate","MI","E591"]
[null,null,null,null,"limena","PD","E592"]
[null,null,null,null,"limido comasco","CO","E593"]
[null,null,null,null,"limina","ME","E594"]
[null,null,null,null,"limone piemonte","CN","E597"]
[null,null,null,null,"limone sul garda","BS","E596"]
[null,null,null,null,"limosano","CB","E599"]
[null,null,null,null,"linarolo","PV","E600"]
[null,null,null,null,"linguaglossa","CT","E602"]
[null,null,null,null,"lioni","AV","E605"]
[null,null,null,null,"lipari","ME","E606"]
[null,null,null,null,"lipomo","CO","E607"]
[null,null,null,null,"lirio","PV","E608"]
[null,null,null,null,"liscate","MI","E610"]
[null,null,null,null,"liscia","CH","E611"]
[null,null,null,null,"lisciano niccone","PG","E613"]
[null,null,null,null,"lisignago","TN","E614"]
[null,null,null,null,"lisio","CN","E615"]
[null,null,null,null,"lissone","MI","E617"]
[null,null,null,null,"lituania","EE","Z146"]
[null,null,null,null,"liveri","NA","E620"]
[null,null,null,null,"livigno","SO","E621"]
[null,null,null,null,"livinallongo del col di lana","BL","E622"]
[null,null,null,null,"livo","CO","E623"]
[null,null,null,null,"livo","TN","E624"]
[null,null,null,null,"livorno","LI","E625"]
[null,null,null,null,"livorno ferraris","VC","E626"]
[null,null,null,null,"livraga","LO","E627"]
[null,null,null,null,"lizzanello","LE","E629"]
[null,null,null,null,"lizzano","TA","E630"]
[null,null,null,null,"lizzano in belvedere","BO","A771"]
[null,null,null,null,"loano","SV","E632"]
[null,null,null,null,"loazzolo","AT","E633"]
[null,null,null,null,"locana","TO","E635"]
[null,null,null,null,"locate di triulzi","MI","E639"]
[null,null,null,null,"locate varesino","CO","E638"]
[null,null,null,null,"locatello","BG","E640"]
[null,null,null,null,"loceri","NU","E644"]
[null,null,null,null,"locorotondo","BA","E645"]
[null,null,null,null,"locri","RC","D976"]
[null,null,null,null,"loculi","NU","E646"]
[null,null,null,null,"lode'","NU","E647"]
[null,null,null,null,"lodi","LO","E648"]
[null,null,null,null,"lodi vecchio","LO","E651"]
[null,null,null,null,"lodine","NU","E649"]
[null,null,null,null,"lodrino","BS","E652"]
[null,null,null,null,"lograto","BS","E654"]
[null,null,null,null,"loiano","BO","E655"]
[null,null,null,null,"loiri porto san paolo","SS","M275"]
[null,null,null,null,"lomagna","LC","E656"]
[null,null,null,null,"lomaso","TN","E658"]
[null,null,null,null,"lomazzo","CO","E659"]
[null,null,null,null,"lombardore","TO","E660"]
[null,null,null,null,"lombriasco","TO","E661"]
[null,null,null,null,"lomello","PV","E662"]
[null,null,null,null,"lona lases","TN","E664"]
[null,null,null,null,"lonate ceppino","VA","E665"]
[null,null,null,null,"lonate pozzolo","VA","E666"]
[null,null,null,null,"lonato","BS","E667"]
[null,null,null,null,"lonato del garda","BS","M312"]
[null,null,null,null,"londa","FI","E668"]
[null,null,null,null,"longano","IS","E669"]
[null,null,null,null,"longare","VI","E671"]
[null,null,null,null,"longarone","BL","E672"]
[null,null,null,null,"longhena","BS","E673"]
[null,null,null,null,"longi","ME","E674"]
[null,null,null,null,"longiano","FC","E675"]
[null,null,null,null,"longobardi","CS","E677"]
[null,null,null,null,"longobucco","CS","E678"]
[null,null,null,null,"longone al segrino","CO","E679"]
[null,null,null,null,"longone sabino","RI","E681"]
[null,null,null,null,"lonigo","VI","E682"]
[null,null,null,null,"loranze'","TO","E683"]
[null,null,null,null,"loreggia","PD","E684"]
[null,null,null,null,"loreglia","VB","E685"]
[null,null,null,null,"lorenzago di cadore","BL","E687"]
[null,null,null,null,"lorenzana","PI","E688"]
[null,null,null,null,"loreo","RO","E689"]
[null,null,null,null,"loreto","AN","E690"]
[null,null,null,null,"loreto aprutino","PE","E691"]
[null,null,null,null,"loria","TV","E692"]
[null,null,null,null,"loro ciuffenna","AR","E693"]
[null,null,null,null,"loro piceno","MC","E694"]
[null,null,null,null,"lorsica","GE","E695"]
[null,null,null,null,"losine","BS","E698"]
[null,null,null,null,"lotzorai","NU","E700"]
[null,null,null,null,"lovere","BG","E704"]
[null,null,null,null,"lovero","SO","E705"]
[null,null,null,null,"lozio","BS","E706"]
[null,null,null,null,"lozza","VA","E707"]
[null,null,null,null,"lozzo atestino","PD","E709"]
[null,null,null,null,"lozzo di cadore","BL","E708"]
[null,null,null,null,"lozzolo","VC","E711"]
[null,null,null,null,"lu","AL","E712"]
[null,null,null,null,"lubriano","VT","E713"]
[null,null,null,null,"lucca","LU","E715"]
[null,null,null,null,"lucca sicula","AG","E714"]
[null,null,null,null,"lucera","FG","E716"]
[null,null,null,null,"lucignano","AR","E718"]
[null,null,null,null,"lucinasco","IM","E719"]
[null,null,null,null,"lucito","CB","E722"]
[null,null,null,null,"luco dei marsi","AQ","E723"]
[null,null,null,null,"lucoli","AQ","E724"]
[null,null,null,null,"lugagnano val d'arda","PC","E726"]
[null,null,null,null,"lugnacco","TO","E727"]
[null,null,null,null,"lugnano in teverina","TR","E729"]
[null,null,null,null,"lugo","RA","E730"]
[null,null,null,null,"lugo di vicenza","VI","E731"]
[null,null,null,null,"luino","VA","E734"]
[null,null,null,null,"luisago","CO","E735"]
[null,null,null,null,"lula","NU","E736"]
[null,null,null,null,"lumarzo","GE","E737"]
[null,null,null,null,"lumezzane","BS","E738"]
[null,null,null,null,"lunamatrona","CA","E742"]
[null,null,null,null,"lunano","PU","E743"]
[null,null,null,null,"lungavilla","PV","B387"]
[null,null,null,null,"lungro","CS","E745"]
[null,null,null,null,"luogosano","AV","E746"]
[null,null,null,null,"luogosanto","SS","E747"]
[null,null,null,null,"lupara","CB","E748"]
[null,null,null,null,"lurago d'erba","CO","E749"]
[null,null,null,null,"lurago marinone","CO","E750"]
[null,null,null,null,"lurano","BG","E751"]
[null,null,null,null,"luras","SS","E752"]
[null,null,null,null,"lurate caccivio","CO","E753"]
[null,null,null,null,"lusciano","CE","E754"]
[null,null,null,null,"luserna","TN","E757"]
[null,null,null,null,"luserna san giovanni","TO","E758"]
[null,null,null,null,"lusernetta","TO","E759"]
[null,null,null,null,"lusevera","UD","E760"]
[null,null,null,null,"lusia","RO","E761"]
[null,null,null,null,"lusiana","VI","E762"]
[null,null,null,null,"lusiglie'","TO","E763"]
[null,null,null,null,"luson .lusen.","BZ","E764"]
[null,null,null,null,"lussemburgo","EE","Z120"]
[null,null,null,null,"lustra","SA","E767"]
[null,null,null,null,"luvinate","VA","E769"]
[null,null,null,null,"luzzana","BG","E770"]
[null,null,null,null,"luzzara","RE","E772"]
[null,null,null,null,"luzzi","CS","E773"]
[null,null,null,null,"macao","EE","Z231"]
[null,null,null,null,"maccagno","VA","E775"]
[null,null,null,null,"maccastorna","LO","E777"]
[null,null,null,null,"macchia d'isernia","IS","E778"]
[null,null,null,null,"macchia valfortore","CB","E780"]
[null,null,null,null,"macchiagodena","IS","E779"]
[null,null,null,null,"macedonia","EE","Z148"]
[null,null,null,null,"macello","TO","E782"]
[null,null,null,null,"macerata","MC","E783"]
[null,null,null,null,"macerata campania","CE","E784"]
[null,null,null,null,"macerata feltria","PU","E785"]
[null,null,null,null,"macherio","MI","E786"]
[null,null,null,null,"maclodio","BS","E787"]
[null,null,null,null,"macomer","NU","E788"]
[null,null,null,null,"macquarie (isole)","EE","Z708"]
[null,null,null,null,"macra","CN","E789"]
[null,null,null,null,"macugnaga","VB","E790"]
[null,null,null,null,"madagascar","EE","Z327"]
[null,null,null,null,"maddaloni","CE","E791"]
[null,null,null,null,"madesimo","SO","E342"]
[null,null,null,null,"madignano","CR","E793"]
[null,null,null,null,"madone","BG","E794"]
[null,null,null,null,"madonna del sasso","VB","E795"]
[null,null,null,null,"maenza","LT","E798"]
[null,null,null,null,"mafalda","CB","E799"]
[null,null,null,null,"magasa","BS","E800"]
[null,null,null,null,"magenta","MI","E801"]
[null,null,null,null,"maggiora","NO","E803"]
[null,null,null,null,"magherno","PV","E804"]
[null,null,null,null,"magione","PG","E805"]
[null,null,null,null,"magisano","CZ","E806"]
[null,null,null,null,"magliano alfieri","CN","E809"]
[null,null,null,null,"magliano alpi","CN","E808"]
[null,null,null,null,"magliano de' marsi","AQ","E811"]
[null,null,null,null,"magliano di tenna","AP","E807"]
[null,null,null,null,"magliano in toscana","GR","E810"]
[null,null,null,null,"magliano romano","RM","E813"]
[null,null,null,null,"magliano sabina","RI","E812"]
[null,null,null,null,"magliano vetere","SA","E814"]
[null,null,null,null,"maglie","LE","E815"]
[null,null,null,null,"magliolo","SV","E816"]
[null,null,null,null,"maglione","TO","E817"]
[null,null,null,null,"magnacavallo","MN","E818"]
[null,null,null,null,"magnago","MI","E819"]
[null,null,null,null,"magnano","BI","E821"]
[null,null,null,null,"magnano in riviera","UD","E820"]
[null,null,null,null,"magomadas","NU","E825"]
[null,null,null,null,"magre' sulla strada del vino .margreid an de.","BZ","E829"]
[null,null,null,null,"magreglio","CO","E830"]
[null,null,null,null,"maida","CZ","E834"]
[null,null,null,null,"maiera'","CS","E835"]
[null,null,null,null,"maierato","VV","E836"]
[null,null,null,null,"maiolati spontini","AN","E837"]
[null,null,null,null,"maiolo","PU","E838"]
[null,null,null,null,"maiori","SA","E839"]
[null,null,null,null,"mairago","LO","E840"]
[null,null,null,null,"mairano","BS","E841"]
[null,null,null,null,"maissana","SP","E842"]
[null,null,null,null,"majano","UD","E833"]
[null,null,null,null,"malagnino","CR","E843"]
[null,null,null,null,"malalbergo","BO","E844"]
[null,null,null,null,"malawi","EE","Z328"]
[null,null,null,null,"malaysia","EE","Z230"]
[null,null,null,null,"malaysia","EE","Z247"]
[null,null,null,null,"malborghetto-valbruna","UD","E847"]
[null,null,null,null,"malcesine","VR","E848"]
[null,null,null,null,"maldive","EE","Z232"]
[null,null,null,null,"male'","TN","E850"]
[null,null,null,null,"malegno","BS","E851"]
[null,null,null,null,"maleo","LO","E852"]
[null,null,null,null,"malesco","VB","E853"]
[null,null,null,null,"maletto","CT","E854"]
[null,null,null,null,"malfa","ME","E855"]
[null,null,null,null,"malgesso","VA","E856"]
[null,null,null,null,"malgrate","LC","E858"]
[null,null,null,null,"mali","EE","Z329"]
[null,null,null,null,"malito","CS","E859"]
[null,null,null,null,"mallare","SV","E860"]
[null,null,null,null,"malles venosta .mals.","BZ","E862"]
[null,null,null,null,"malnate","VA","E863"]
[null,null,null,null,"malo","VI","E864"]
[null,null,null,null,"malonno","BS","E865"]
[null,null,null,null,"malosco","TN","E866"]
[null,null,null,null,"malta","EE","Z121"]
[null,null,null,null,"maltignano","AP","E868"]
[null,null,null,null,"malvagna","ME","E869"]
[null,null,null,null,"malvicino","AL","E870"]
[null,null,null,null,"malvine o falkland (is","EE","Z609"]
[null,null,null,null,"malvito","CS","E872"]
[null,null,null,null,"mammola","RC","E873"]
[null,null,null,null,"mamoiada","NU","E874"]
[null,null,null,null,"man (isola)","EE","Z122"]
[null,null,null,null,"manciano","GR","E875"]
[null,null,null,null,"mandanici","ME","E876"]
[null,null,null,null,"mandas","CA","E877"]
[null,null,null,null,"mandatoriccio","CS","E878"]
[null,null,null,null,"mandela","RM","B632"]
[null,null,null,null,"mandello del lario","LC","E879"]
[null,null,null,null,"mandello vitta","NO","E880"]
[null,null,null,null,"manduria","TA","E882"]
[null,null,null,null,"manerba del garda","BS","E883"]
[null,null,null,null,"manerbio","BS","E884"]
[null,null,null,null,"manfredonia","FG","E885"]
[null,null,null,null,"mango","CN","E887"]
[null,null,null,null,"mangone","CS","E888"]
[null,null,null,null,"maniace","CT","M283"]
[null,null,null,null,"maniago","PN","E889"]
[null,null,null,null,"manocalzati","AV","E891"]
[null,null,null,null,"manoppello","PE","E892"]
[null,null,null,null,"mansue'","TV","E893"]
[null,null,null,null,"manta","CN","E894"]
[null,null,null,null,"mantello","SO","E896"]
[null,null,null,null,"mantova","MN","E897"]
[null,null,null,null,"manzano","UD","E899"]
[null,null,null,null,"manziana","RM","E900"]
[null,null,null,null,"mapello","BG","E901"]
[null,null,null,null,"mara","SS","E902"]
[null,null,null,null,"maracalagonis","CA","E903"]
[null,null,null,null,"maranello","MO","E904"]
[null,null,null,null,"marano di napoli","NA","E906"]
[null,null,null,null,"marano di valpolicella","VR","E911"]
[null,null,null,null,"marano equo","RM","E908"]
[null,null,null,null,"marano lagunare","UD","E910"]
[null,null,null,null,"marano marchesato","CS","E914"]
[null,null,null,null,"marano principato","CS","E915"]
[null,null,null,null,"marano sul panaro","MO","E905"]
[null,null,null,null,"marano ticino","NO","E907"]
[null,null,null,null,"marano vicentino","VI","E912"]
[null,null,null,null,"maranzana","AT","E917"]
[null,null,null,null,"maratea","PZ","E919"]
[null,null,null,null,"marcallo con casone","MI","E921"]
[null,null,null,null,"marcaria","MN","E922"]
[null,null,null,null,"marcedusa","CZ","E923"]
[null,null,null,null,"marcellina","RM","E924"]
[null,null,null,null,"marcellinara","CZ","E925"]
[null,null,null,null,"marcetelli","RI","E927"]
[null,null,null,null,"marcheno","BS","E928"]
[null,null,null,null,"marchirolo","VA","E929"]
[null,null,null,null,"marciana","LI","E930"]
[null,null,null,null,"marciana marina","LI","E931"]
[null,null,null,null,"marcianise","CE","E932"]
[null,null,null,null,"marciano della chiana","AR","E933"]
[null,null,null,null,"marcignago","PV","E934"]
[null,null,null,null,"marcon","VE","E936"]
[null,null,null,null,"marcus (isole)","EE","Z709"]
[null,null,null,null,"marebbe .enneberg.","BZ","E938"]
[null,null,null,null,"marene","CN","E939"]
[null,null,null,null,"mareno di piave","TV","E940"]
[null,null,null,null,"marentino","TO","E941"]
[null,null,null,null,"maretto","AT","E944"]
[null,null,null,null,"margarita","CN","E945"]
[null,null,null,null,"margherita di savoia","FG","E946"]
[null,null,null,null,"margno","LC","E947"]
[null,null,null,null,"mariana mantovana","MN","E949"]
[null,null,null,null,"marianne (isole)","EE","Z710"]
[null,null,null,null,"mariano comense","CO","E951"]
[null,null,null,null,"mariano del friuli","GO","E952"]
[null,null,null,null,"marianopoli","CL","E953"]
[null,null,null,null,"mariglianella","NA","E954"]
[null,null,null,null,"marigliano","NA","E955"]
[null,null,null,null,"marina di gioiosa ionica","RC","E956"]
[null,null,null,null,"marineo","PA","E957"]
[null,null,null,null,"marino","RM","E958"]
[null,null,null,null,"marlengo .marling.","BZ","E959"]
[null,null,null,null,"marliana","PT","E960"]
[null,null,null,null,"marmentino","BS","E961"]
[null,null,null,null,"marmirolo","MN","E962"]
[null,null,null,null,"marmora","CN","E963"]
[null,null,null,null,"marnate","VA","E965"]
[null,null,null,null,"marocco","EE","Z330"]
[null,null,null,null,"marone","BS","E967"]
[null,null,null,null,"maropati","RC","E968"]
[null,null,null,null,"marostica","VI","E970"]
[null,null,null,null,"marradi","FI","E971"]
[null,null,null,null,"marrubiu","OR","E972"]
[null,null,null,null,"marsaglia","CN","E973"]
[null,null,null,null,"marsala","TP","E974"]
[null,null,null,null,"marsciano","PG","E975"]
[null,null,null,null,"marshall (isole)","EE","Z711"]
[null,null,null,null,"marsico nuovo","PZ","E976"]
[null,null,null,null,"marsicovetere","PZ","E977"]
[null,null,null,null,"marta","VT","E978"]
[null,null,null,null,"martano","LE","E979"]
[null,null,null,null,"martellago","VE","E980"]
[null,null,null,null,"martello .martell.","BZ","E981"]
[null,null,null,null,"martignacco","UD","E982"]
[null,null,null,null,"martignana di po","CR","E983"]
[null,null,null,null,"martignano","LE","E984"]
[null,null,null,null,"martina franca","TA","E986"]
[null,null,null,null,"martinengo","BG","E987"]
[null,null,null,null,"martiniana po","CN","E988"]
[null,null,null,null,"martinica","EE","Z513"]
[null,null,null,null,"martinsicuro","TE","E989"]
[null,null,null,null,"martirano","CZ","E990"]
[null,null,null,null,"martirano lombardo","CZ","E991"]
[null,null,null,null,"martis","SS","E992"]
[null,null,null,null,"martone","RC","E993"]
[null,null,null,null,"marudo","LO","E994"]
[null,null,null,null,"maruggio","TA","E995"]
[null,null,null,null,"marzabotto","BO","B689"]
[null,null,null,null,"marzano","PV","E999"]
[null,null,null,null,"marzano appio","CE","E998"]
[null,null,null,null,"marzano di nola","AV","E997"]
[null,null,null,null,"marzi","CS","F001"]
[null,null,null,null,"marzio","VA","F002"]
[null,null,null,null,"masainas","CA","M270"]
[null,null,null,null,"masate","MI","F003"]
[null,null,null,null,"mascali","CT","F004"]
[null,null,null,null,"mascalucia","CT","F005"]
[null,null,null,null,"maschito","PZ","F006"]
[null,null,null,null,"masciago primo","VA","F007"]
[null,null,null,null,"maser","TV","F009"]
[null,null,null,null,"masera","VB","F010"]
[null,null,null,null,"masera' di padova","PD","F011"]
[null,null,null,null,"maserada sul piave","TV","F012"]
[null,null,null,null,"masi","PD","F013"]
[null,null,null,null,"masi torello","FE","F016"]
[null,null,null,null,"masio","AL","F015"]
[null,null,null,null,"maslianico","CO","F017"]
[null,null,null,null,"mason vicentino","VI","F019"]
[null,null,null,null,"masone","GE","F020"]
[null,null,null,null,"massa","MS","F023"]
[null,null,null,null,"massa d'albe","AQ","F022"]
[null,null,null,null,"massa di somma","NA","M289"]
[null,null,null,null,"massa e cozzile","PT","F025"]
[null,null,null,null,"massa fermana","AP","F021"]
[null,null,null,null,"massa fiscaglia","FE","F026"]
[null,null,null,null,"massa lombarda","RA","F029"]
[null,null,null,null,"massa lubrense","NA","F030"]
[null,null,null,null,"massa marittima","GR","F032"]
[null,null,null,null,"massa martana","PG","F024"]
[null,null,null,null,"massafra","TA","F027"]
[null,null,null,null,"massalengo","LO","F028"]
[null,null,null,null,"massanzago","PD","F033"]
[null,null,null,null,"massarosa","LU","F035"]
[null,null,null,null,"massazza","BI","F037"]
[null,null,null,null,"massello","TO","F041"]
[null,null,null,null,"masserano","BI","F042"]
[null,null,null,null,"massignano","AP","F044"]
[null,null,null,null,"massimeno","TN","F045"]
[null,null,null,null,"massimino","SV","F046"]
[null,null,null,null,"massino visconti","NO","F047"]
[null,null,null,null,"massiola","VB","F048"]
[null,null,null,null,"masullas","OR","F050"]
[null,null,null,null,"matelica","MC","F051"]
[null,null,null,null,"matera","MT","F052"]
[null,null,null,null,"mathi","TO","F053"]
[null,null,null,null,"matino","LE","F054"]
[null,null,null,null,"matrice","CB","F055"]
[null,null,null,null,"mattie","TO","F058"]
[null,null,null,null,"mattinata","FG","F059"]
[null,null,null,null,"mauritania","EE","Z331"]
[null,null,null,null,"maurizio","EE","Z332"]
[null,null,null,null,"mazara del vallo","TP","F061"]
[null,null,null,null,"mazzano","BS","F063"]
[null,null,null,null,"mazzano romano","RM","F064"]
[null,null,null,null,"mazzarino","CL","F065"]
[null,null,null,null,"mazzarra' sant'andrea","ME","F066"]
[null,null,null,null,"mazzarrone","CT","M271"]
[null,null,null,null,"mazze'","TO","F067"]
[null,null,null,null,"mazzin","TN","F068"]
[null,null,null,null,"mazzo di valtellina","SO","F070"]
[null,null,null,null,"meana di susa","TO","F074"]
[null,null,null,null,"meana sardo","NU","F073"]
[null,null,null,null,"meda","MI","F078"]
[null,null,null,null,"mede","PV","F080"]
[null,null,null,null,"medea","GO","F081"]
[null,null,null,null,"medesano","PR","F082"]
[null,null,null,null,"medicina","BO","F083"]
[null,null,null,null,"mediglia","MI","F084"]
[null,null,null,null,"medolago","BG","F085"]
[null,null,null,null,"medole","MN","F086"]
[null,null,null,null,"medolla","MO","F087"]
[null,null,null,null,"meduna di livenza","TV","F088"]
[null,null,null,null,"meduno","PN","F089"]
[null,null,null,null,"megliadino san fidenzio","PD","F091"]
[null,null,null,null,"megliadino san vitale","PD","F092"]
[null,null,null,null,"meina","NO","F093"]
[null,null,null,null,"mel","BL","F094"]
[null,null,null,null,"melara","RO","F095"]
[null,null,null,null,"melazzo","AL","F096"]
[null,null,null,null,"meldola","FC","F097"]
[null,null,null,null,"mele","GE","F098"]
[null,null,null,null,"melegnano","MI","F100"]
[null,null,null,null,"melendugno","LE","F101"]
[null,null,null,null,"meleti","LO","F102"]
[null,null,null,null,"melfi","PZ","F104"]
[null,null,null,null,"melicucca'","RC","F105"]
[null,null,null,null,"melicucco","RC","F106"]
[null,null,null,null,"melilli","SR","F107"]
[null,null,null,null,"melissa","KR","F108"]
[null,null,null,null,"melissano","LE","F109"]
[null,null,null,null,"melito di napoli","NA","F111"]
[null,null,null,null,"melito di porto salvo","RC","F112"]
[null,null,null,null,"melito irpino","AV","F110"]
[null,null,null,null,"melizzano","BN","F113"]
[null,null,null,null,"melle","CN","F114"]
[null,null,null,null,"mello","SO","F115"]
[null,null,null,null,"melpignano","LE","F117"]
[null,null,null,null,"meltina .molten.","BZ","F118"]
[null,null,null,null,"melzo","MI","F119"]
[null,null,null,null,"menaggio","CO","F120"]
[null,null,null,null,"menarola","SO","F121"]
[null,null,null,null,"menconico","PV","F122"]
[null,null,null,null,"mendatica","IM","F123"]
[null,null,null,null,"mendicino","CS","F125"]
[null,null,null,null,"menfi","AG","F126"]
[null,null,null,null,"mentana","RM","F127"]
[null,null,null,null,"meolo","VE","F130"]
[null,null,null,null,"merana","AL","F131"]
[null,null,null,null,"merano .meran.","BZ","F132"]
[null,null,null,null,"merate","LC","F133"]
[null,null,null,null,"mercallo","VA","F134"]
[null,null,null,null,"mercatello sul metauro","PU","F135"]
[null,null,null,null,"mercatino conca","PU","F136"]
[null,null,null,null,"mercato san severino","SA","F138"]
[null,null,null,null,"mercato saraceno","FC","F139"]
[null,null,null,null,"mercenasco","TO","F140"]
[null,null,null,null,"mercogliano","AV","F141"]
[null,null,null,null,"mereto di tomba","UD","F144"]
[null,null,null,null,"mergo","AN","F145"]
[null,null,null,null,"mergozzo","VB","F146"]
[null,null,null,null,"meri'","ME","F147"]
[null,null,null,null,"merlara","PD","F148"]
[null,null,null,null,"merlino","LO","F149"]
[null,null,null,null,"merone","CO","F151"]
[null,null,null,null,"mesagne","BR","F152"]
[null,null,null,null,"mese","SO","F153"]
[null,null,null,null,"mesenzana","VA","F154"]
[null,null,null,null,"mesero","MI","F155"]
[null,null,null,null,"mesola","FE","F156"]
[null,null,null,null,"mesoraca","KR","F157"]
[null,null,null,null,"messico","EE","Z514"]
[null,null,null,null,"messina","ME","F158"]
[null,null,null,null,"mestrino","PD","F161"]
[null,null,null,null,"meta","NA","F162"]
[null,null,null,null,"meugliano","TO","F164"]
[null,null,null,null,"mezzago","MI","F165"]
[null,null,null,null,"mezzana","TN","F168"]
[null,null,null,null,"mezzana bigli","PV","F170"]
[null,null,null,null,"mezzana mortigliengo","BI","F167"]
[null,null,null,null,"mezzana rabattone","PV","F171"]
[null,null,null,null,"mezzane di sotto","VR","F172"]
[null,null,null,null,"mezzanego","GE","F173"]
[null,null,null,null,"mezzani","PR","F174"]
[null,null,null,null,"mezzanino","PV","F175"]
[null,null,null,null,"mezzano","TN","F176"]
[null,null,null,null,"mezzegra","CO","F181"]
[null,null,null,null,"mezzenile","TO","F182"]
[null,null,null,null,"mezzocorona","TN","F183"]
[null,null,null,null,"mezzojuso","PA","F184"]
[null,null,null,null,"mezzoldo","BG","F186"]
[null,null,null,null,"mezzolombardo","TN","F187"]
[null,null,null,null,"mezzomerico","NO","F188"]
[null,null,null,null,"miagliano","BI","F189"]
[null,null,null,null,"miane","TV","F190"]
[null,null,null,null,"miasino","NO","F191"]
[null,null,null,null,"miazzina","VB","F192"]
[null,null,null,null,"micigliano","RI","F193"]
[null,null,null,null,"micronesia stati feder","EE","Z735"]
[null,null,null,null,"midway (isole)","EE","Z712"]
[null,null,null,null,"miggiano","LE","F194"]
[null,null,null,null,"miglianico","CH","F196"]
[null,null,null,null,"migliarino","FE","F198"]
[null,null,null,null,"migliaro","FE","F199"]
[null,null,null,null,"miglierina","CZ","F200"]
[null,null,null,null,"miglionico","MT","F201"]
[null,null,null,null,"mignanego","GE","F202"]
[null,null,null,null,"mignano monte lungo","CE","F203"]
[null,null,null,null,"milano","MI","F205"]
[null,null,null,null,"milazzo","ME","F206"]
[null,null,null,null,"milena","CL","E618"]
[null,null,null,null,"mileto","VV","F207"]
[null,null,null,null,"milis","OR","F208"]
[null,null,null,null,"militello in val di catania","CT","F209"]
[null,null,null,null,"militello rosmarino","ME","F210"]
[null,null,null,null,"millesimo","SV","F213"]
[null,null,null,null,"milo","CT","F214"]
[null,null,null,null,"milzano","BS","F216"]
[null,null,null,null,"mineo","CT","F217"]
[null,null,null,null,"minerbe","VR","F218"]
[null,null,null,null,"minerbio","BO","F219"]
[null,null,null,null,"minervino di lecce","LE","F221"]
[null,null,null,null,"minervino murge","BA","F220"]
[null,null,null,null,"minori","SA","F223"]
[null,null,null,null,"minturno","LT","F224"]
[null,null,null,null,"minucciano","LU","F225"]
[null,null,null,null,"mioglia","SV","F226"]
[null,null,null,null,"mira","VE","F229"]
[null,null,null,null,"mirabella eclano","AV","F230"]
[null,null,null,null,"mirabella imbaccari","CT","F231"]
[null,null,null,null,"mirabello","FE","F235"]
[null,null,null,null,"mirabello monferrato","AL","F232"]
[null,null,null,null,"mirabello sannitico","CB","F233"]
[null,null,null,null,"miradolo terme","PV","F238"]
[null,null,null,null,"miranda","IS","F239"]
[null,null,null,null,"mirandola","MO","F240"]
[null,null,null,null,"mirano","VE","F241"]
[null,null,null,null,"mirto","ME","F242"]
[null,null,null,null,"misano adriatico","RN","F244"]
[null,null,null,null,"misano di gera d'adda","BG","F243"]
[null,null,null,null,"misilmeri","PA","F246"]
[null,null,null,null,"misinto","MI","F247"]
[null,null,null,null,"missaglia","LC","F248"]
[null,null,null,null,"missanello","PZ","F249"]
[null,null,null,null,"misterbianco","CT","F250"]
[null,null,null,null,"mistretta","ME","F251"]
[null,null,null,null,"moasca","AT","F254"]
[null,null,null,null,"moconesi","GE","F256"]
[null,null,null,null,"modena","MO","F257"]
[null,null,null,null,"modica","RG","F258"]
[null,null,null,null,"modigliana","FC","F259"]
[null,null,null,null,"modolo","NU","F261"]
[null,null,null,null,"modugno","BA","F262"]
[null,null,null,null,"moena","TN","F263"]
[null,null,null,null,"moggio","LC","F265"]
[null,null,null,null,"moggio udinese","UD","F266"]
[null,null,null,null,"moglia","MN","F267"]
[null,null,null,null,"mogliano","MC","F268"]
[null,null,null,null,"mogliano veneto","TV","F269"]
[null,null,null,null,"mogorella","OR","F270"]
[null,null,null,null,"mogoro","OR","F272"]
[null,null,null,null,"moiano","BN","F274"]
[null,null,null,null,"moimacco","UD","F275"]
[null,null,null,null,"moio alcantara","ME","F277"]
[null,null,null,null,"moio de' calvi","BG","F276"]
[null,null,null,null,"moio della civitella","SA","F278"]
[null,null,null,null,"moiola","CN","F279"]
[null,null,null,null,"mola di bari","BA","F280"]
[null,null,null,null,"molare","AL","F281"]
[null,null,null,null,"molazzana","LU","F283"]
[null,null,null,null,"moldavia","EE","Z140"]
[null,null,null,null,"molfetta","BA","F284"]
[null,null,null,null,"molina aterno","AQ","M255"]
[null,null,null,null,"molina di ledro","TN","F286"]
[null,null,null,null,"molinara","BN","F287"]
[null,null,null,null,"molinella","BO","F288"]
[null,null,null,null,"molini di triora","IM","F290"]
[null,null,null,null,"molino dei torti","AL","F293"]
[null,null,null,null,"molise","CB","F294"]
[null,null,null,null,"moliterno","PZ","F295"]
[null,null,null,null,"mollia","VC","F297"]
[null,null,null,null,"molochio","RC","F301"]
[null,null,null,null,"molteno","LC","F304"]
[null,null,null,null,"moltrasio","CO","F305"]
[null,null,null,null,"molvena","VI","F306"]
[null,null,null,null,"molveno","TN","F307"]
[null,null,null,null,"mombaldone","AT","F308"]
[null,null,null,null,"mombarcaro","CN","F309"]
[null,null,null,null,"mombaroccio","PU","F310"]
[null,null,null,null,"mombaruzzo","AT","F311"]
[null,null,null,null,"mombasiglio","CN","F312"]
[null,null,null,null,"mombello di torino","TO","F315"]
[null,null,null,null,"mombello monferrato","AL","F313"]
[null,null,null,null,"mombercelli","AT","F316"]
[null,null,null,null,"momo","NO","F317"]
[null,null,null,null,"mompantero","TO","F318"]
[null,null,null,null,"mompeo","RI","F319"]
[null,null,null,null,"momperone","AL","F320"]
[null,null,null,null,"monacilioni","CB","F322"]
[null,null,null,null,"monaco","EE","Z123"]
[null,null,null,null,"monale","AT","F323"]
[null,null,null,null,"monasterace","RC","F324"]
[null,null,null,null,"monastero bormida","AT","F325"]
[null,null,null,null,"monastero di lanzo","TO","F327"]
[null,null,null,null,"monastero di vasco","CN","F326"]
[null,null,null,null,"monasterolo casotto","CN","F329"]
[null,null,null,null,"monasterolo del castello","BG","F328"]
[null,null,null,null,"monasterolo di savigliano","CN","F330"]
[null,null,null,null,"monastier di treviso","TV","F332"]
[null,null,null,null,"monastir","CA","F333"]
[null,null,null,null,"moncalieri","TO","F335"]
[null,null,null,null,"moncalvo","AT","F336"]
[null,null,null,null,"moncenisio","TO","D553"]
[null,null,null,null,"moncestino","AL","F337"]
[null,null,null,null,"monchiero","CN","F338"]
[null,null,null,null,"monchio delle corti","PR","F340"]
[null,null,null,null,"monclassico","TN","F341"]
[null,null,null,null,"moncrivello","VC","F342"]
[null,null,null,null,"moncucco torinese","AT","F343"]
[null,null,null,null,"mondaino","RN","F346"]
[null,null,null,null,"mondavio","PU","F347"]
[null,null,null,null,"mondolfo","PU","F348"]
[null,null,null,null,"mondovi'","CN","F351"]
[null,null,null,null,"mondragone","CE","F352"]
[null,null,null,null,"moneglia","GE","F354"]
[null,null,null,null,"monesiglio","CN","F355"]
[null,null,null,null,"monfalcone","GO","F356"]
[null,null,null,null,"monforte d'alba","CN","F358"]
[null,null,null,null,"monforte san giorgio","ME","F359"]
[null,null,null,null,"monfumo","TV","F360"]
[null,null,null,null,"mongardino","AT","F361"]
[null,null,null,null,"monghidoro","BO","F363"]
[null,null,null,null,"mongiana","VV","F364"]
[null,null,null,null,"mongiardino ligure","AL","F365"]
[null,null,null,null,"mongiuffi melia","ME","F368"]
[null,null,null,null,"mongolia","EE","Z233"]
[null,null,null,null,"mongrando","BI","F369"]
[null,null,null,null,"mongrassano","CS","F370"]
[null,null,null,null,"monguelfo .welsberg.","BZ","F371"]
[null,null,null,null,"monguzzo","CO","F372"]
[null,null,null,null,"moniga del garda","BS","F373"]
[null,null,null,null,"monleale","AL","F374"]
[null,null,null,null,"monno","BS","F375"]
[null,null,null,null,"monopoli","BA","F376"]
[null,null,null,null,"monreale","PA","F377"]
[null,null,null,null,"monrupino","TS","F378"]
[null,null,null,null,"monsampietro morico","AP","F379"]
[null,null,null,null,"monsampolo del tronto","AP","F380"]
[null,null,null,null,"monsano","AN","F381"]
[null,null,null,null,"monselice","PD","F382"]
[null,null,null,null,"monserrato","CA","F383"]
[null,null,null,null,"monsummano terme","PT","F384"]
[null,null,null,null,"monta'","CN","F385"]
[null,null,null,null,"montabone","AT","F386"]
[null,null,null,null,"montacuto","AL","F387"]
[null,null,null,null,"montafia","AT","F390"]
[null,null,null,null,"montagano","CB","F391"]
[null,null,null,null,"montagna .montan.","BZ","F392"]
[null,null,null,null,"montagna in valtellina","SO","F393"]
[null,null,null,null,"montagnana","PD","F394"]
[null,null,null,null,"montagnareale","ME","F395"]
[null,null,null,null,"montagne","TN","F396"]
[null,null,null,null,"montaguto","AV","F397"]
[null,null,null,null,"montaione","FI","F398"]
[null,null,null,null,"montalbano elicona","ME","F400"]
[null,null,null,null,"montalbano jonico","MT","F399"]
[null,null,null,null,"montalcino","SI","F402"]
[null,null,null,null,"montaldeo","AL","F403"]
[null,null,null,null,"montaldo bormida","AL","F404"]
[null,null,null,null,"montaldo di mondovi'","CN","F405"]
[null,null,null,null,"montaldo roero","CN","F408"]
[null,null,null,null,"montaldo scarampi","AT","F409"]
[null,null,null,null,"montaldo torinese","TO","F407"]
[null,null,null,null,"montale","PT","F410"]
[null,null,null,null,"montalenghe","TO","F411"]
[null,null,null,null,"montallegro","AG","F414"]
[null,null,null,null,"montalto delle marche","AP","F415"]
[null,null,null,null,"montalto di castro","VT","F419"]
[null,null,null,null,"montalto dora","TO","F420"]
[null,null,null,null,"montalto ligure","IM","F406"]
[null,null,null,null,"montalto pavese","PV","F417"]
[null,null,null,null,"montalto uffugo","CS","F416"]
[null,null,null,null,"montanaro","TO","F422"]
[null,null,null,null,"montanaso lombardo","LO","F423"]
[null,null,null,null,"montanera","CN","F424"]
[null,null,null,null,"montano antilia","SA","F426"]
[null,null,null,null,"montano lucino","CO","F427"]
[null,null,null,null,"montappone","AP","F428"]
[null,null,null,null,"montaquila","IS","F429"]
[null,null,null,null,"montasola","RI","F430"]
[null,null,null,null,"montauro","CZ","F432"]
[null,null,null,null,"montazzoli","CH","F433"]
[null,null,null,null,"monte argentario","GR","F437"]
[null,null,null,null,"monte castello di vibio","PG","F456"]
[null,null,null,null,"monte cavallo","MC","F460"]
[null,null,null,null,"monte cerignone","PU","F467"]
[null,null,null,null,"monte colombo","RN","F476"]
[null,null,null,null,"monte cremasco","CR","F434"]
[null,null,null,null,"monte di malo","VI","F486"]
[null,null,null,null,"monte di procida","NA","F488"]
[null,null,null,null,"monte giberto","AP","F517"]
[null,null,null,null,"monte grimano terme","PU","F524"]
[null,null,null,null,"monte isola","BS","F532"]
[null,null,null,null,"monte marenzo","LC","F561"]
[null,null,null,null,"monte porzio","PU","F589"]
[null,null,null,null,"monte porzio catone","RM","F590"]
[null,null,null,null,"monte rinaldo","AP","F599"]
[null,null,null,null,"monte roberto","AN","F600"]
[null,null,null,null,"monte romano","VT","F603"]
[null,null,null,null,"monte san biagio","LT","F616"]
[null,null,null,null,"monte san giacomo","SA","F618"]
[null,null,null,null,"monte san giovanni campano","FR","F620"]
[null,null,null,null,"monte san giovanni in sabina","RI","F619"]
[null,null,null,null,"monte san giusto","MC","F621"]
[null,null,null,null,"monte san martino","MC","F622"]
[null,null,null,null,"monte san pietrangeli","AP","F626"]
[null,null,null,null,"monte san pietro","BO","F627"]
[null,null,null,null,"monte san savino","AR","F628"]
[null,null,null,null,"monte san vito","AN","F634"]
[null,null,null,null,"monte sant'angelo","FG","F631"]
[null,null,null,null,"monte santa maria tiberina","PG","F629"]
[null,null,null,null,"monte urano","AP","F653"]
[null,null,null,null,"monte vidon combatte","AP","F664"]
[null,null,null,null,"monte vidon corrado","AP","F665"]
[null,null,null,null,"montebello della battaglia","PV","F440"]
[null,null,null,null,"montebello di bertona","PE","F441"]
[null,null,null,null,"montebello ionico","RC","D746"]
[null,null,null,null,"montebello sul sangro","CH","B268"]
[null,null,null,null,"montebello vicentino","VI","F442"]
[null,null,null,null,"montebelluna","TV","F443"]
[null,null,null,null,"montebruno","GE","F445"]
[null,null,null,null,"montebuono","RI","F446"]
[null,null,null,null,"montecalvo in foglia","PU","F450"]
[null,null,null,null,"montecalvo irpino","AV","F448"]
[null,null,null,null,"montecalvo versiggia","PV","F449"]
[null,null,null,null,"montecarlo","LU","F452"]
[null,null,null,null,"montecarotto","AN","F453"]
[null,null,null,null,"montecassiano","MC","F454"]
[null,null,null,null,"montecastello","AL","F455"]
[null,null,null,null,"montecastrilli","TR","F457"]
[null,null,null,null,"montecatini terme","PT","A561"]
[null,null,null,null,"montecatini val di cecina","PI","F458"]
[null,null,null,null,"montecchia di crosara","VR","F461"]
[null,null,null,null,"montecchio","TR","F462"]
[null,null,null,null,"montecchio emilia","RE","F463"]
[null,null,null,null,"montecchio maggiore","VI","F464"]
[null,null,null,null,"montecchio precalcino","VI","F465"]
[null,null,null,null,"montechiaro d'acqui","AL","F469"]
[null,null,null,null,"montechiaro d'asti","AT","F468"]
[null,null,null,null,"montechiarugolo","PR","F473"]
[null,null,null,null,"monteciccardo","PU","F474"]
[null,null,null,null,"montecilfone","CB","F475"]
[null,null,null,null,"montecompatri","RM","F477"]
[null,null,null,null,"montecopiolo","PU","F478"]
[null,null,null,null,"montecorice","SA","F479"]
[null,null,null,null,"montecorvino pugliano","SA","F480"]
[null,null,null,null,"montecorvino rovella","SA","F481"]
[null,null,null,null,"montecosaro","MC","F482"]
[null,null,null,null,"montecrestese","VB","F483"]
[null,null,null,null,"montecreto","MO","F484"]
[null,null,null,null,"montedinove","AP","F487"]
[null,null,null,null,"montedoro","CL","F489"]
[null,null,null,null,"montefalcione","AV","F491"]
[null,null,null,null,"montefalco","PG","F492"]
[null,null,null,null,"montefalcone appennino","AP","F493"]
[null,null,null,null,"montefalcone di val fortore","BN","F494"]
[null,null,null,null,"montefalcone nel sannio","CB","F495"]
[null,null,null,null,"montefano","MC","F496"]
[null,null,null,null,"montefelcino","PU","F497"]
[null,null,null,null,"monteferrante","CH","F498"]
[null,null,null,null,"montefiascone","VT","F499"]
[null,null,null,null,"montefino","TE","F500"]
[null,null,null,null,"montefiore conca","RN","F502"]
[null,null,null,null,"montefiore dell'aso","AP","F501"]
[null,null,null,null,"montefiorino","MO","F503"]
[null,null,null,null,"monteflavio","RM","F504"]
[null,null,null,null,"monteforte cilento","SA","F507"]
[null,null,null,null,"monteforte d'alpone","VR","F508"]
[null,null,null,null,"monteforte irpino","AV","F506"]
[null,null,null,null,"montefortino","AP","F509"]
[null,null,null,null,"montefranco","TR","F510"]
[null,null,null,null,"montefredane","AV","F511"]
[null,null,null,null,"montefusco","AV","F512"]
[null,null,null,null,"montegabbione","TR","F513"]
[null,null,null,null,"montegalda","VI","F514"]
[null,null,null,null,"montegaldella","VI","F515"]
[null,null,null,null,"montegallo","AP","F516"]
[null,null,null,null,"montegioco","AL","F518"]
[null,null,null,null,"montegiordano","CS","F519"]
[null,null,null,null,"montegiorgio","AP","F520"]
[null,null,null,null,"montegranaro","AP","F522"]
[null,null,null,null,"montegridolfo","RN","F523"]
[null,null,null,null,"montegrino valtravaglia","VA","F526"]
[null,null,null,null,"montegrosso d'asti","AT","F527"]
[null,null,null,null,"montegrosso pian latte","IM","F528"]
[null,null,null,null,"montegrotto terme","PD","F529"]
[null,null,null,null,"monteiasi","TA","F531"]
[null,null,null,null,"montelabbate","PU","F533"]
[null,null,null,null,"montelanico","RM","F534"]
[null,null,null,null,"montelapiano","CH","F535"]
[null,null,null,null,"monteleone d'orvieto","TR","F543"]
[null,null,null,null,"monteleone di fermo","AP","F536"]
[null,null,null,null,"monteleone di puglia","FG","F538"]
[null,null,null,null,"monteleone di spoleto","PG","F540"]
[null,null,null,null,"monteleone rocca doria","SS","F542"]
[null,null,null,null,"monteleone sabino","RI","F541"]
[null,null,null,null,"montelepre","PA","F544"]
[null,null,null,null,"montelibretti","RM","F545"]
[null,null,null,null,"montella","AV","F546"]
[null,null,null,null,"montello","BG","F547"]
[null,null,null,null,"montelongo","CB","F548"]
[null,null,null,null,"montelparo","AP","F549"]
[null,null,null,null,"montelupo albese","CN","F550"]
[null,null,null,null,"montelupo fiorentino","FI","F551"]
[null,null,null,null,"montelupone","MC","F552"]
[null,null,null,null,"montemaggiore al metauro","PU","F555"]
[null,null,null,null,"montemaggiore belsito","PA","F553"]
[null,null,null,null,"montemagno","AT","F556"]
[null,null,null,null,"montemale di cuneo","CN","F558"]
[null,null,null,null,"montemarano","AV","F559"]
[null,null,null,null,"montemarciano","AN","F560"]
[null,null,null,null,"montemarzino","AL","F562"]
[null,null,null,null,"montemesola","TA","F563"]
[null,null,null,null,"montemezzo","CO","F564"]
[null,null,null,null,"montemignaio","AR","F565"]
[null,null,null,null,"montemiletto","AV","F566"]
[null,null,null,null,"montemilone","PZ","F568"]
[null,null,null,null,"montemitro","CB","F569"]
[null,null,null,null,"montemonaco","AP","F570"]
[null,null,null,null,"montemurlo","PO","F572"]
[null,null,null,null,"montemurro","PZ","F573"]
[null,null,null,null,"montenars","UD","F574"]
[null,null,null,null,"montenero di bisaccia","CB","F576"]
[null,null,null,null,"montenero sabino","RI","F579"]
[null,null,null,null,"montenero val cocchiara","IS","F580"]
[null,null,null,null,"montenerodomo","CH","F578"]
[null,null,null,null,"monteodorisio","CH","F582"]
[null,null,null,null,"montepaone","CZ","F586"]
[null,null,null,null,"monteparano","TA","F587"]
[null,null,null,null,"monteprandone","AP","F591"]
[null,null,null,null,"montepulciano","SI","F592"]
[null,null,null,null,"monterado","AN","F593"]
[null,null,null,null,"monterchi","AR","F594"]
[null,null,null,null,"montereale","AQ","F595"]
[null,null,null,null,"montereale valcellina","PN","F596"]
[null,null,null,null,"monterenzio","BO","F597"]
[null,null,null,null,"monteriggioni","SI","F598"]
[null,null,null,null,"monteroduni","IS","F601"]
[null,null,null,null,"monteroni d'arbia","SI","F605"]
[null,null,null,null,"monteroni di lecce","LE","F604"]
[null,null,null,null,"monterosi","VT","F606"]
[null,null,null,null,"monterosso al mare","SP","F609"]
[null,null,null,null,"monterosso almo","RG","F610"]
[null,null,null,null,"monterosso calabro","VV","F607"]
[null,null,null,null,"monterosso grana","CN","F608"]
[null,null,null,null,"monterotondo","RM","F611"]
[null,null,null,null,"monterotondo marittimo","GR","F612"]
[null,null,null,null,"monterubbiano","AP","F614"]
[null,null,null,null,"montesano salentino","LE","F623"]
[null,null,null,null,"montesano sulla marcellana","SA","F625"]
[null,null,null,null,"montesarchio","BN","F636"]
[null,null,null,null,"montescaglioso","MT","F637"]
[null,null,null,null,"montescano","PV","F638"]
[null,null,null,null,"montescheno","VB","F639"]
[null,null,null,null,"montescudaio","PI","F640"]
[null,null,null,null,"montescudo","RN","F641"]
[null,null,null,null,"montese","MO","F642"]
[null,null,null,null,"montesegale","PV","F644"]
[null,null,null,null,"montesilvano","PE","F646"]
[null,null,null,null,"montespertoli","FI","F648"]
[null,null,null,null,"monteu da po","TO","F651"]
[null,null,null,null,"monteu roero","CN","F654"]
[null,null,null,null,"montevago","AG","F655"]
[null,null,null,null,"montevarchi","AR","F656"]
[null,null,null,null,"montevecchia","LC","F657"]
[null,null,null,null,"monteveglio","BO","F659"]
[null,null,null,null,"monteverde","AV","F660"]
[null,null,null,null,"monteverdi marittimo","PI","F661"]
[null,null,null,null,"monteviale","VI","F662"]
[null,null,null,null,"montezemolo","CN","F666"]
[null,null,null,null,"monti","SS","F667"]
[null,null,null,null,"montiano","FC","F668"]
[null,null,null,null,"monticelli brusati","BS","F672"]
[null,null,null,null,"monticelli d'ongina","PC","F671"]
[null,null,null,null,"monticelli pavese","PV","F670"]
[null,null,null,null,"monticello brianza","LC","F674"]
[null,null,null,null,"monticello conte otto","VI","F675"]
[null,null,null,null,"monticello d'alba","CN","F669"]
[null,null,null,null,"montichiari","BS","F471"]
[null,null,null,null,"monticiano","SI","F676"]
[null,null,null,null,"montieri","GR","F677"]
[null,null,null,null,"montiglio monferrato","AT","M302"]
[null,null,null,null,"montignoso","MS","F679"]
[null,null,null,null,"montirone","BS","F680"]
[null,null,null,null,"montjovet","AO","F367"]
[null,null,null,null,"montodine","CR","F681"]
[null,null,null,null,"montoggio","GE","F682"]
[null,null,null,null,"montone","PG","F685"]
[null,null,null,null,"montopoli di sabina","RI","F687"]
[null,null,null,null,"montopoli in val d'arno","PI","F686"]
[null,null,null,null,"montorfano","CO","F688"]
[null,null,null,null,"montorio al vomano","TE","F690"]
[null,null,null,null,"montorio nei frentani","CB","F689"]
[null,null,null,null,"montorio romano","RM","F692"]
[null,null,null,null,"montoro inferiore","AV","F693"]
[null,null,null,null,"montoro superiore","AV","F694"]
[null,null,null,null,"montorso vicentino","VI","F696"]
[null,null,null,null,"montottone","AP","F697"]
[null,null,null,null,"montresta","NU","F698"]
[null,null,null,null,"montserrat","EE","Z531"]
[null,null,null,null,"montu' beccaria","PV","F701"]
[null,null,null,null,"monvalle","VA","F703"]
[null,null,null,null,"monza","MI","F704"]
[null,null,null,null,"monzambano","MN","F705"]
[null,null,null,null,"monzuno","BO","F706"]
[null,null,null,null,"morano calabro","CS","F708"]
[null,null,null,null,"morano sul po","AL","F707"]
[null,null,null,null,"moransengo","AT","F709"]
[null,null,null,null,"moraro","GO","F710"]
[null,null,null,null,"morazzone","VA","F711"]
[null,null,null,null,"morbegno","SO","F712"]
[null,null,null,null,"morbello","AL","F713"]
[null,null,null,null,"morciano di leuca","LE","F716"]
[null,null,null,null,"morciano di romagna","RN","F715"]
[null,null,null,null,"morcone","BN","F717"]
[null,null,null,null,"mordano","BO","F718"]
[null,null,null,null,"morengo","BG","F720"]
[null,null,null,null,"mores","SS","F721"]
[null,null,null,null,"moresco","AP","F722"]
[null,null,null,null,"moretta","CN","F723"]
[null,null,null,null,"morfasso","PC","F724"]
[null,null,null,null,"morgano","TV","F725"]
[null,null,null,null,"morgex","AO","F726"]
[null,null,null,null,"morgongiori","OR","F727"]
[null,null,null,null,"mori","TN","F728"]
[null,null,null,null,"moriago della battaglia","TV","F729"]
[null,null,null,null,"moricone","RM","F730"]
[null,null,null,null,"morigerati","SA","F731"]
[null,null,null,null,"morimondo","MI","D033"]
[null,null,null,null,"morino","AQ","F732"]
[null,null,null,null,"moriondo torinese","TO","F733"]
[null,null,null,null,"morlupo","RM","F734"]
[null,null,null,null,"mormanno","CS","F735"]
[null,null,null,null,"mornago","VA","F736"]
[null,null,null,null,"mornese","AL","F737"]
[null,null,null,null,"mornico al serio","BG","F738"]
[null,null,null,null,"mornico losana","PV","F739"]
[null,null,null,null,"morolo","FR","F740"]
[null,null,null,null,"morozzo","CN","F743"]
[null,null,null,null,"morra de sanctis","AV","F744"]
[null,null,null,null,"morro d'alba","AN","F745"]
[null,null,null,null,"morro d'oro","TE","F747"]
[null,null,null,null,"morro reatino","RI","F746"]
[null,null,null,null,"morrone del sannio","CB","F748"]
[null,null,null,null,"morrovalle","MC","F749"]
[null,null,null,null,"morsano al tagliamento","PN","F750"]
[null,null,null,null,"morsasco","AL","F751"]
[null,null,null,null,"mortara","PV","F754"]
[null,null,null,null,"mortegliano","UD","F756"]
[null,null,null,null,"morterone","LC","F758"]
[null,null,null,null,"moruzzo","UD","F760"]
[null,null,null,null,"moscazzano","CR","F761"]
[null,null,null,null,"moschiano","AV","F762"]
[null,null,null,null,"mosciano sant'angelo","TE","F764"]
[null,null,null,null,"moscufo","PE","F765"]
[null,null,null,null,"moso in passiria .moos in passeier.","BZ","F766"]
[null,null,null,null,"mossa","GO","F767"]
[null,null,null,null,"mossano","VI","F768"]
[null,null,null,null,"mosso","BI","M304"]
[null,null,null,null,"motta baluffi","CR","F771"]
[null,null,null,null,"motta camastra","ME","F772"]
[null,null,null,null,"motta d'affermo","ME","F773"]
[null,null,null,null,"motta de' conti","VC","F774"]
[null,null,null,null,"motta di livenza","TV","F770"]
[null,null,null,null,"motta montecorvino","FG","F777"]
[null,null,null,null,"motta san giovanni","RC","F779"]
[null,null,null,null,"motta sant'anastasia","CT","F781"]
[null,null,null,null,"motta santa lucia","CZ","F780"]
[null,null,null,null,"motta visconti","MI","F783"]
[null,null,null,null,"mottafollone","CS","F775"]
[null,null,null,null,"mottalciata","BI","F776"]
[null,null,null,null,"motteggiana","MN","B012"]
[null,null,null,null,"mottola","TA","F784"]
[null,null,null,null,"mozambico","EE","Z333"]
[null,null,null,null,"mozzagrogna","CH","F785"]
[null,null,null,null,"mozzanica","BG","F786"]
[null,null,null,null,"mozzate","CO","F788"]
[null,null,null,null,"mozzecane","VR","F789"]
[null,null,null,null,"mozzo","BG","F791"]
[null,null,null,null,"muccia","MC","F793"]
[null,null,null,null,"muggia","TS","F795"]
[null,null,null,null,"muggio'","MI","F797"]
[null,null,null,null,"mugnano del cardinale","AV","F798"]
[null,null,null,null,"mugnano di napoli","NA","F799"]
[null,null,null,null,"mulazzano","LO","F801"]
[null,null,null,null,"mulazzo","MS","F802"]
[null,null,null,null,"mura","BS","F806"]
[null,null,null,null,"muravera","CA","F808"]
[null,null,null,null,"murazzano","CN","F809"]
[null,null,null,null,"murello","CN","F811"]
[null,null,null,null,"murialdo","SV","F813"]
[null,null,null,null,"murisengo","AL","F814"]
[null,null,null,null,"murlo","SI","F815"]
[null,null,null,null,"muro leccese","LE","F816"]
[null,null,null,null,"muro lucano","PZ","F817"]
[null,null,null,null,"muros","SS","F818"]
[null,null,null,null,"muscoline","BS","F820"]
[null,null,null,null,"musei","CA","F822"]
[null,null,null,null,"musile di piave","VE","F826"]
[null,null,null,null,"musso","CO","F828"]
[null,null,null,null,"mussolente","VI","F829"]
[null,null,null,null,"mussomeli","CL","F830"]
[null,null,null,null,"muzzana del turgnano","UD","F832"]
[null,null,null,null,"muzzano","BI","F833"]
[null,null,null,null,"nago-torbole","TN","F835"]
[null,null,null,null,"nalles .nals.","BZ","F836"]
[null,null,null,null,"namibia o africa del s","EE","Z300"]
[null,null,null,null,"nanno","TN","F837"]
[null,null,null,null,"nanto","VI","F838"]
[null,null,null,null,"napoli","NA","F839"]
[null,null,null,null,"narbolia","OR","F840"]
[null,null,null,null,"narcao","CA","F841"]
[null,null,null,null,"nardo'","LE","F842"]
[null,null,null,null,"nardodipace","VV","F843"]
[null,null,null,null,"narni","TR","F844"]
[null,null,null,null,"naro","AG","F845"]
[null,null,null,null,"narzole","CN","F846"]
[null,null,null,null,"nasino","SV","F847"]
[null,null,null,null,"naso","ME","F848"]
[null,null,null,null,"naturno .naturns.","BZ","F849"]
[null,null,null,null,"nauru","EE","Z713"]
[null,null,null,null,"nave","BS","F851"]
[null,null,null,null,"nave san rocco","TN","F853"]
[null,null,null,null,"navelli","AQ","F852"]
[null,null,null,null,"naz sciaves .natz schabs.","BZ","F856"]
[null,null,null,null,"nazzano","RM","F857"]
[null,null,null,null,"ne","GE","F858"]
[null,null,null,null,"nebbiuno","NO","F859"]
[null,null,null,null,"negrar","VR","F861"]
[null,null,null,null,"neirone","GE","F862"]
[null,null,null,null,"neive","CN","F863"]
[null,null,null,null,"nembro","BG","F864"]
[null,null,null,null,"nemi","RM","F865"]
[null,null,null,null,"nemoli","PZ","F866"]
[null,null,null,null,"neoneli","OR","F867"]
[null,null,null,null,"nepal","EE","Z234"]
[null,null,null,null,"nepi","VT","F868"]
[null,null,null,null,"nereto","TE","F870"]
[null,null,null,null,"nerola","RM","F871"]
[null,null,null,null,"nervesa della battaglia","TV","F872"]
[null,null,null,null,"nerviano","MI","F874"]
[null,null,null,null,"nespolo","RI","F876"]
[null,null,null,null,"nesso","CO","F877"]
[null,null,null,null,"netro","BI","F878"]
[null,null,null,null,"nettuno","RM","F880"]
[null,null,null,null,"neviano","LE","F881"]
[null,null,null,null,"neviano degli arduini","PR","F882"]
[null,null,null,null,"neviglie","CN","F883"]
[null,null,null,null,"niardo","BS","F884"]
[null,null,null,null,"nibbiano","PC","F885"]
[null,null,null,null,"nibbiola","NO","F886"]
[null,null,null,null,"nibionno","LC","F887"]
[null,null,null,null,"nicaragua","EE","Z515"]
[null,null,null,null,"nichelino","TO","F889"]
[null,null,null,null,"nicolosi","CT","F890"]
[null,null,null,null,"nicorvo","PV","F891"]
[null,null,null,null,"nicosia","EN","F892"]
[null,null,null,null,"nicotera","VV","F893"]
[null,null,null,null,"niella belbo","CN","F894"]
[null,null,null,null,"niella tanaro","CN","F895"]
[null,null,null,null,"niger","EE","Z334"]
[null,null,null,null,"nigeria","EE","Z335"]
[null,null,null,null,"nimis","UD","F898"]
[null,null,null,null,"niscemi","CL","F899"]
[null,null,null,null,"nissoria","EN","F900"]
[null,null,null,null,"niue o savage (isole)","EE","Z714"]
[null,null,null,null,"nizza di sicilia","ME","F901"]
[null,null,null,null,"nizza monferrato","AT","F902"]
[null,null,null,null,"noale","VE","F904"]
[null,null,null,null,"noasca","TO","F906"]
[null,null,null,null,"nocara","CS","F907"]
[null,null,null,null,"nocciano","PE","F908"]
[null,null,null,null,"nocera inferiore","SA","F912"]
[null,null,null,null,"nocera superiore","SA","F913"]
[null,null,null,null,"nocera terinese","CZ","F910"]
[null,null,null,null,"nocera umbra","PG","F911"]
[null,null,null,null,"noceto","PR","F914"]
[null,null,null,null,"noci","BA","F915"]
[null,null,null,null,"nociglia","LE","F916"]
[null,null,null,null,"noepoli","PZ","F917"]
[null,null,null,null,"nogara","VR","F918"]
[null,null,null,null,"nogaredo","TN","F920"]
[null,null,null,null,"nogarole rocca","VR","F921"]
[null,null,null,null,"nogarole vicentino","VI","F922"]
[null,null,null,null,"noicattaro","BA","F923"]
[null,null,null,null,"nola","NA","F924"]
[null,null,null,null,"nole","TO","F925"]
[null,null,null,null,"noli","SV","F926"]
[null,null,null,null,"nomaglio","TO","F927"]
[null,null,null,null,"nomi","TN","F929"]
[null,null,null,null,"nonantola","MO","F930"]
[null,null,null,null,"none","TO","F931"]
[null,null,null,null,"nonio","VB","F932"]
[null,null,null,null,"noragugume","NU","F933"]
[null,null,null,null,"norbello","OR","F934"]
[null,null,null,null,"norcia","PG","F935"]
[null,null,null,null,"norfolk (isole)","EE","Z715"]
[null,null,null,null,"norma","LT","F937"]
[null,null,null,null,"normanne (isole)","EE","Z124"]
[null,null,null,null,"norvegia","EE","Z125"]
[null,null,null,null,"nosate","MI","F939"]
[null,null,null,null,"notaresco","TE","F942"]
[null,null,null,null,"noto","SR","F943"]
[null,null,null,null,"nova levante .welschnofen.","BZ","F949"]
[null,null,null,null,"nova milanese","MI","F944"]
[null,null,null,null,"nova ponente .deutschnofen.","BZ","F950"]
[null,null,null,null,"nova siri","MT","A942"]
[null,null,null,null,"novafeltria","PU","F137"]
[null,null,null,null,"novaledo","TN","F947"]
[null,null,null,null,"novalesa","TO","F948"]
[null,null,null,null,"novara","NO","F952"]
[null,null,null,null,"novara di sicilia","ME","F951"]
[null,null,null,null,"novate mezzola","SO","F956"]
[null,null,null,null,"novate milanese","MI","F955"]
[null,null,null,null,"nove","VI","F957"]
[null,null,null,null,"novedrate","CO","F958"]
[null,null,null,null,"novellara","RE","F960"]
[null,null,null,null,"novello","CN","F961"]
[null,null,null,null,"noventa di piave","VE","F963"]
[null,null,null,null,"noventa padovana","PD","F962"]
[null,null,null,null,"noventa vicentina","VI","F964"]
[null,null,null,null,"novi di modena","MO","F966"]
[null,null,null,null,"novi ligure","AL","F965"]
[null,null,null,null,"novi velia","SA","F967"]
[null,null,null,null,"noviglio","MI","F968"]
[null,null,null,null,"novoli","LE","F970"]
[null,null,null,null,"nucetto","CN","F972"]
[null,null,null,null,"nughedu san nicolo'","SS","F975"]
[null,null,null,null,"nughedu santa vittoria","OR","F974"]
[null,null,null,null,"nule","SS","F976"]
[null,null,null,null,"nulvi","SS","F977"]
[null,null,null,null,"numana","AN","F978"]
[null,null,null,null,"nuoro","NU","F979"]
[null,null,null,null,"nuova caledonia e dipe","EE","Z716"]
[null,null,null,null,"nuova guinea","EE","Z718"]
[null,null,null,null,"nuova zelanda","EE","Z719"]
[null,null,null,null,"nuove ebridi condom. f","EE","Z717"]
[null,null,null,null,"nurachi","OR","F980"]
[null,null,null,null,"nuragus","NU","F981"]
[null,null,null,null,"nurallao","NU","F982"]
[null,null,null,null,"nuraminis","CA","F983"]
[null,null,null,null,"nureci","OR","F985"]
[null,null,null,null,"nurri","NU","F986"]
[null,null,null,null,"nus","AO","F987"]
[null,null,null,null,"nusco","AV","F988"]
[null,null,null,null,"nuvolento","BS","F989"]
[null,null,null,null,"nuvolera","BS","F990"]
[null,null,null,null,"nuxis","CA","F991"]
[null,null,null,null,"occhieppo inferiore","BI","F992"]
[null,null,null,null,"occhieppo superiore","BI","F993"]
[null,null,null,null,"occhiobello","RO","F994"]
[null,null,null,null,"occimiano","AL","F995"]
[null,null,null,null,"ocre","AQ","F996"]
[null,null,null,null,"odalengo grande","AL","F997"]
[null,null,null,null,"odalengo piccolo","AL","F998"]
[null,null,null,null,"oderzo","TV","F999"]
[null,null,null,null,"odolo","BS","G001"]
[null,null,null,null,"ofena","AQ","G002"]
[null,null,null,null,"offagna","AN","G003"]
[null,null,null,null,"offanengo","CR","G004"]
[null,null,null,null,"offida","AP","G005"]
[null,null,null,null,"offlaga","BS","G006"]
[null,null,null,null,"oggebbio","VB","G007"]
[null,null,null,null,"oggiona con santo stefano","VA","G008"]
[null,null,null,null,"oggiono","LC","G009"]
[null,null,null,null,"oglianico","TO","G010"]
[null,null,null,null,"ogliastro cilento","SA","G011"]
[null,null,null,null,"olbia","SS","G015"]
[null,null,null,null,"olcenengo","VC","G016"]
[null,null,null,null,"oldenico","VC","G018"]
[null,null,null,null,"oleggio","NO","G019"]
[null,null,null,null,"oleggio castello","NO","G020"]
[null,null,null,null,"olevano di lomellina","PV","G021"]
[null,null,null,null,"olevano romano","RM","G022"]
[null,null,null,null,"olevano sul tusciano","SA","G023"]
[null,null,null,null,"olgiate comasco","CO","G025"]
[null,null,null,null,"olgiate molgora","LC","G026"]
[null,null,null,null,"olgiate olona","VA","G028"]
[null,null,null,null,"olginate","LC","G030"]
[null,null,null,null,"oliena","NU","G031"]
[null,null,null,null,"oliva gessi","PV","G032"]
[null,null,null,null,"olivadi","CZ","G034"]
[null,null,null,null,"oliveri","ME","G036"]
[null,null,null,null,"oliveto citra","SA","G039"]
[null,null,null,null,"oliveto lario","LC","G040"]
[null,null,null,null,"oliveto lucano","MT","G037"]
[null,null,null,null,"olivetta san michele","IM","G041"]
[null,null,null,null,"olivola","AL","G042"]
[null,null,null,null,"ollastra","OR","G043"]
[null,null,null,null,"ollolai","NU","G044"]
[null,null,null,null,"ollomont","AO","G045"]
[null,null,null,null,"olmedo","SS","G046"]
[null,null,null,null,"olmeneta","CR","G047"]
[null,null,null,null,"olmo al brembo","BG","G049"]
[null,null,null,null,"olmo gentile","AT","G048"]
[null,null,null,null,"oltre il colle","BG","G050"]
[null,null,null,null,"oltressenda alta","BG","G054"]
[null,null,null,null,"oltrona di san mamette","CO","G056"]
[null,null,null,null,"olzai","NU","G058"]
[null,null,null,null,"oman","EE","Z235"]
[null,null,null,null,"ome","BS","G061"]
[null,null,null,null,"omegna","VB","G062"]
[null,null,null,null,"omignano","SA","G063"]
[null,null,null,null,"onani","NU","G064"]
[null,null,null,null,"onano","VT","G065"]
[null,null,null,null,"oncino","CN","G066"]
[null,null,null,null,"oneta","BG","G068"]
[null,null,null,null,"onifai","NU","G070"]
[null,null,null,null,"oniferi","NU","G071"]
[null,null,null,null,"ono san pietro","BS","G074"]
[null,null,null,null,"onore","BG","G075"]
[null,null,null,null,"onzo","SV","G076"]
[null,null,null,null,"opera","MI","G078"]
[null,null,null,null,"opi","AQ","G079"]
[null,null,null,null,"oppeano","VR","G080"]
[null,null,null,null,"oppido lucano","PZ","G081"]
[null,null,null,null,"oppido mamertina","RC","G082"]
[null,null,null,null,"ora .auer.","BZ","G083"]
[null,null,null,null,"orani","NU","G084"]
[null,null,null,null,"oratino","CB","G086"]
[null,null,null,null,"orbassano","TO","G087"]
[null,null,null,null,"orbetello","GR","G088"]
[null,null,null,null,"orciano di pesaro","PU","G089"]
[null,null,null,null,"orciano pisano","PI","G090"]
[null,null,null,null,"orco feglino","SV","D522"]
[null,null,null,null,"ordona","FG","M266"]
[null,null,null,null,"orero","GE","G093"]
[null,null,null,null,"orgiano","VI","G095"]
[null,null,null,null,"orgosolo","NU","G097"]
[null,null,null,null,"oria","BR","G098"]
[null,null,null,null,"oricola","AQ","G102"]
[null,null,null,null,"origgio","VA","G103"]
[null,null,null,null,"orino","VA","G105"]
[null,null,null,null,"orio al serio","BG","G108"]
[null,null,null,null,"orio canavese","TO","G109"]
[null,null,null,null,"orio litta","LO","G107"]
[null,null,null,null,"oriolo","CS","G110"]
[null,null,null,null,"oriolo romano","VT","G111"]
[null,null,null,null,"oristano","OR","G113"]
[null,null,null,null,"ormea","CN","G114"]
[null,null,null,null,"ormelle","TV","G115"]
[null,null,null,null,"ornago","MI","G116"]
[null,null,null,null,"ornavasso","VB","G117"]
[null,null,null,null,"ornica","BG","G118"]
[null,null,null,null,"orosei","NU","G119"]
[null,null,null,null,"orotelli","NU","G120"]
[null,null,null,null,"orria","SA","G121"]
[null,null,null,null,"orroli","NU","G122"]
[null,null,null,null,"orsago","TV","G123"]
[null,null,null,null,"orsara bormida","AL","G124"]
[null,null,null,null,"orsara di puglia","FG","G125"]
[null,null,null,null,"orsenigo","CO","G126"]
[null,null,null,null,"orsogna","CH","G128"]
[null,null,null,null,"orsomarso","CS","G129"]
[null,null,null,null,"orta di atella","CE","G130"]
[null,null,null,null,"orta nova","FG","G131"]
[null,null,null,null,"orta san giulio","NO","G134"]
[null,null,null,null,"ortacesus","CA","G133"]
[null,null,null,null,"orte","VT","G135"]
[null,null,null,null,"ortelle","LE","G136"]
[null,null,null,null,"ortezzano","AP","G137"]
[null,null,null,null,"ortignano raggiolo","AR","G139"]
[null,null,null,null,"ortisei .st ulrich.","BZ","G140"]
[null,null,null,null,"ortona","CH","G141"]
[null,null,null,null,"ortona dei marsi","AQ","G142"]
[null,null,null,null,"ortonovo","SP","G143"]
[null,null,null,null,"ortovero","SV","G144"]
[null,null,null,null,"ortucchio","AQ","G145"]
[null,null,null,null,"ortueri","NU","G146"]
[null,null,null,null,"orune","NU","G147"]
[null,null,null,null,"orvieto","TR","G148"]
[null,null,null,null,"orvinio","RI","B595"]
[null,null,null,null,"orzinuovi","BS","G149"]
[null,null,null,null,"orzivecchi","BS","G150"]
[null,null,null,null,"osasco","TO","G151"]
[null,null,null,null,"osasio","TO","G152"]
[null,null,null,null,"oschiri","SS","G153"]
[null,null,null,null,"osidda","NU","G154"]
[null,null,null,null,"osiglia","SV","G155"]
[null,null,null,null,"osilo","SS","G156"]
[null,null,null,null,"osimo","AN","G157"]
[null,null,null,null,"osini","NU","G158"]
[null,null,null,null,"osio sopra","BG","G159"]
[null,null,null,null,"osio sotto","BG","G160"]
[null,null,null,null,"osmate","VA","E529"]
[null,null,null,null,"osnago","LC","G161"]
[null,null,null,null,"osoppo","UD","G163"]
[null,null,null,null,"ospedaletti","IM","G164"]
[null,null,null,null,"ospedaletto","TN","G168"]
[null,null,null,null,"ospedaletto d'alpinolo","AV","G165"]
[null,null,null,null,"ospedaletto euganeo","PD","G167"]
[null,null,null,null,"ospedaletto lodigiano","LO","G166"]
[null,null,null,null,"ospitale di cadore","BL","G169"]
[null,null,null,null,"ospitaletto","BS","G170"]
[null,null,null,null,"ossago lodigiano","LO","G171"]
[null,null,null,null,"ossana","TN","G173"]
[null,null,null,null,"ossi","SS","G178"]
[null,null,null,null,"ossimo","BS","G179"]
[null,null,null,null,"ossona","MI","G181"]
[null,null,null,null,"ossuccio","CO","G182"]
[null,null,null,null,"ostana","CN","G183"]
[null,null,null,null,"ostellato","FE","G184"]
[null,null,null,null,"ostiano","CR","G185"]
[null,null,null,null,"ostiglia","MN","G186"]
[null,null,null,null,"ostra","AN","F401"]
[null,null,null,null,"ostra vetere","AN","F581"]
[null,null,null,null,"ostuni","BR","G187"]
[null,null,null,null,"otranto","LE","G188"]
[null,null,null,null,"otricoli","TR","G189"]
[null,null,null,null,"ottana","NU","G191"]
[null,null,null,null,"ottati","SA","G192"]
[null,null,null,null,"ottaviano","NA","G190"]
[null,null,null,null,"ottiglio","AL","G193"]
[null,null,null,null,"ottobiano","PV","G194"]
[null,null,null,null,"ottone","PC","G195"]
[null,null,null,null,"oulx","TO","G196"]
[null,null,null,null,"ovada","AL","G197"]
[null,null,null,null,"ovaro","UD","G198"]
[null,null,null,null,"oviglio","AL","G199"]
[null,null,null,null,"ovindoli","AQ","G200"]
[null,null,null,null,"ovodda","NU","G201"]
[null,null,null,null,"oyace","AO","G012"]
[null,null,null,null,"ozegna","TO","G202"]
[null,null,null,null,"ozieri","SS","G203"]
[null,null,null,null,"ozzano dell'emilia","BO","G205"]
[null,null,null,null,"ozzano monferrato","AL","G204"]
[null,null,null,null,"ozzero","MI","G206"]
[null,null,null,null,"pabillonis","CA","G207"]
[null,null,null,null,"pace del mela","ME","G209"]
[null,null,null,null,"paceco","TP","G208"]
[null,null,null,null,"pacentro","AQ","G210"]
[null,null,null,null,"pachino","SR","G211"]
[null,null,null,null,"paciano","PG","G212"]
[null,null,null,null,"padenghe sul garda","BS","G213"]
[null,null,null,null,"padergnone","TN","G214"]
[null,null,null,null,"paderna","AL","G215"]
[null,null,null,null,"paderno d'adda","LC","G218"]
[null,null,null,null,"paderno del grappa","TV","G221"]
[null,null,null,null,"paderno dugnano","MI","G220"]
[null,null,null,null,"paderno franciacorta","BS","G217"]
[null,null,null,null,"paderno ponchielli","CR","G222"]
[null,null,null,null,"padova","PD","G224"]
[null,null,null,null,"padria","SS","G225"]
[null,null,null,null,"padru","SS","M301"]
[null,null,null,null,"padula","SA","G226"]
[null,null,null,null,"paduli","BN","G227"]
[null,null,null,null,"paesana","CN","G228"]
[null,null,null,null,"paese","TV","G229"]
[null,null,null,null,"paesi bassi","EE","Z126"]
[null,null,null,null,"pagani","SA","G230"]
[null,null,null,null,"paganico sabino","RI","G232"]
[null,null,null,null,"pagazzano","BG","G233"]
[null,null,null,null,"pagliara","ME","G234"]
[null,null,null,null,"paglieta","CH","G237"]
[null,null,null,null,"pagnacco","UD","G238"]
[null,null,null,null,"pagno","CN","G240"]
[null,null,null,null,"pagnona","LC","G241"]
[null,null,null,null,"pago del vallo di lauro","AV","G242"]
[null,null,null,null,"pago veiano","BN","G243"]
[null,null,null,null,"paisco loveno","BS","G247"]
[null,null,null,null,"paitone","BS","G248"]
[null,null,null,null,"pakistan","EE","Z236"]
[null,null,null,null,"paladina","BG","G249"]
[null,null,null,null,"palagano","MO","G250"]
[null,null,null,null,"palagianello","TA","G251"]
[null,null,null,null,"palagiano","TA","G252"]
[null,null,null,null,"palagonia","CT","G253"]
[null,null,null,null,"palaia","PI","G254"]
[null,null,null,null,"palanzano","PR","G255"]
[null,null,null,null,"palata","CB","G257"]
[null,null,null,null,"palau","EE","Z734"]
[null,null,null,null,"palau","SS","G258"]
[null,null,null,null,"palazzago","BG","G259"]
[null,null,null,null,"palazzo adriano","PA","G263"]
[null,null,null,null,"palazzo canavese","TO","G262"]
[null,null,null,null,"palazzo pignano","CR","G260"]
[null,null,null,null,"palazzo san gervasio","PZ","G261"]
[null,null,null,null,"palazzolo acreide","SR","G267"]
[null,null,null,null,"palazzolo dello stella","UD","G268"]
[null,null,null,null,"palazzolo sull'oglio","BS","G264"]
[null,null,null,null,"palazzolo vercellese","VC","G266"]
[null,null,null,null,"palazzuolo sul senio","FI","G270"]
[null,null,null,null,"palena","CH","G271"]
[null,null,null,null,"palermiti","CZ","G272"]
[null,null,null,null,"palermo","PA","G273"]
[null,null,null,null,"palestrina","RM","G274"]
[null,null,null,null,"palestro","PV","G275"]
[null,null,null,null,"paliano","FR","G276"]
[null,null,null,null,"palizzi","RC","G277"]
[null,null,null,null,"pallagorio","KR","G278"]
[null,null,null,null,"pallanzeno","VB","G280"]
[null,null,null,null,"pallare","SV","G281"]
[null,null,null,null,"palma campania","NA","G283"]
[null,null,null,null,"palma di montechiaro","AG","G282"]
[null,null,null,null,"palmanova","UD","G284"]
[null,null,null,null,"palmariggi","LE","G285"]
[null,null,null,null,"palmas arborea","OR","G286"]
[null,null,null,null,"palmi","RC","G288"]
[null,null,null,null,"palmiano","AP","G289"]
[null,null,null,null,"palmoli","CH","G290"]
[null,null,null,null,"palo del colle","BA","G291"]
[null,null,null,null,"palombara sabina","RM","G293"]
[null,null,null,null,"palombaro","CH","G294"]
[null,null,null,null,"palomonte","SA","G292"]
[null,null,null,null,"palosco","BG","G295"]
[null,null,null,null,"palu'","VR","G297"]
[null,null,null,null,"palu' del fersina","TN","G296"]
[null,null,null,null,"paludi","CS","G298"]
[null,null,null,null,"paluzza","UD","G300"]
[null,null,null,null,"pamparato","CN","G302"]
[null,null,null,null,"panama","EE","Z516"]
[null,null,null,null,"panama zona del canale","EE","Z517"]
[null,null,null,null,"pancalieri","TO","G303"]
[null,null,null,null,"pancarana","PV","G304"]
[null,null,null,null,"panchia'","TN","G305"]
[null,null,null,null,"pandino","CR","G306"]
[null,null,null,null,"panettieri","CS","G307"]
[null,null,null,null,"panicale","PG","G308"]
[null,null,null,null,"pannarano","BN","G311"]
[null,null,null,null,"panni","FG","G312"]
[null,null,null,null,"pantelleria","TP","G315"]
[null,null,null,null,"pantigliate","MI","G316"]
[null,null,null,null,"paola","CS","G317"]
[null,null,null,null,"paolisi","BN","G318"]
[null,null,null,null,"papasidero","CS","G320"]
[null,null,null,null,"papozze","RO","G323"]
[null,null,null,null,"papuasia","EE","Z720"]
[null,null,null,null,"parabiago","MI","G324"]
[null,null,null,null,"parabita","LE","G325"]
[null,null,null,null,"paraguay","EE","Z610"]
[null,null,null,null,"paratico","BS","G327"]
[null,null,null,null,"parcines .partschins.","BZ","G328"]
[null,null,null,null,"pare'","CO","G329"]
[null,null,null,null,"parella","TO","G330"]
[null,null,null,null,"parenti","CS","G331"]
[null,null,null,null,"parete","CE","G333"]
[null,null,null,null,"pareto","AL","G334"]
[null,null,null,null,"parghelia","VV","G335"]
[null,null,null,null,"parlasco","LC","G336"]
[null,null,null,null,"parma","PR","G337"]
[null,null,null,null,"parodi ligure","AL","G338"]
[null,null,null,null,"paroldo","CN","G339"]
[null,null,null,null,"parolise","AV","G340"]
[null,null,null,null,"parona","PV","G342"]
[null,null,null,null,"parrano","TR","G344"]
[null,null,null,null,"parre","BG","G346"]
[null,null,null,null,"partanna","TP","G347"]
[null,null,null,null,"partinico","PA","G348"]
[null,null,null,null,"paruzzaro","NO","G349"]
[null,null,null,null,"parzanica","BG","G350"]
[null,null,null,null,"pasian di prato","UD","G352"]
[null,null,null,null,"pasiano di pordenone","PN","G353"]
[null,null,null,null,"paspardo","BS","G354"]
[null,null,null,null,"pasqua (isola)","EE","Z721"]
[null,null,null,null,"passerano marmorito","AT","G358"]
[null,null,null,null,"passignano sul trasimeno","PG","G359"]
[null,null,null,null,"passirano","BS","G361"]
[null,null,null,null,"pastena","FR","G362"]
[null,null,null,null,"pastorano","CE","G364"]
[null,null,null,null,"pastrengo","VR","G365"]
[null,null,null,null,"pasturana","AL","G367"]
[null,null,null,null,"pasturo","LC","G368"]
[null,null,null,null,"paterno","PZ","M269"]
[null,null,null,null,"paterno calabro","CS","G372"]
[null,null,null,null,"paterno'","CT","G371"]
[null,null,null,null,"paternopoli","AV","G370"]
[null,null,null,null,"patrica","FR","G374"]
[null,null,null,null,"pattada","SS","G376"]
[null,null,null,null,"patti","ME","G377"]
[null,null,null,null,"patu'","LE","G378"]
[null,null,null,null,"pau","OR","G379"]
[null,null,null,null,"paularo","UD","G381"]
[null,null,null,null,"pauli arbarei","CA","G382"]
[null,null,null,null,"paulilatino","OR","G384"]
[null,null,null,null,"paullo","MI","G385"]
[null,null,null,null,"paupisi","BN","G386"]
[null,null,null,null,"pavarolo","TO","G387"]
[null,null,null,null,"pavia","PV","G388"]
[null,null,null,null,"pavia di udine","UD","G389"]
[null,null,null,null,"pavone canavese","TO","G392"]
[null,null,null,null,"pavone del mella","BS","G391"]
[null,null,null,null,"pavullo nel frignano","MO","G393"]
[null,null,null,null,"pazzano","RC","G394"]
[null,null,null,null,"peccioli","PI","G395"]
[null,null,null,null,"pecco","TO","G396"]
[null,null,null,null,"pecetto di valenza","AL","G397"]
[null,null,null,null,"pecetto torinese","TO","G398"]
[null,null,null,null,"pecorara","PC","G399"]
[null,null,null,null,"pedace","CS","G400"]
[null,null,null,null,"pedara","CT","G402"]
[null,null,null,null,"pedaso","AP","G403"]
[null,null,null,null,"pedavena","BL","G404"]
[null,null,null,null,"pedemonte","VI","G406"]
[null,null,null,null,"pederobba","TV","G408"]
[null,null,null,null,"pedesina","SO","G410"]
[null,null,null,null,"pedivigliano","CS","G411"]
[null,null,null,null,"pedrengo","BG","G412"]
[null,null,null,null,"peglio","PU","G416"]
[null,null,null,null,"peglio","CO","G415"]
[null,null,null,null,"pegognaga","MN","G417"]
[null,null,null,null,"peia","BG","G418"]
[null,null,null,null,"pejo","TN","G419"]
[null,null,null,null,"pelago","FI","G420"]
[null,null,null,null,"pella","NO","G421"]
[null,null,null,null,"pellegrino parmense","PR","G424"]
[null,null,null,null,"pellezzano","SA","G426"]
[null,null,null,null,"pellio intelvi","CO","G427"]
[null,null,null,null,"pellizzano","TN","G428"]
[null,null,null,null,"pelugo","TN","G429"]
[null,null,null,null,"penango","AT","G430"]
[null,null,null,null,"penna in teverina","TR","G432"]
[null,null,null,null,"penna san giovanni","MC","G436"]
[null,null,null,null,"penna sant'andrea","TE","G437"]
[null,null,null,null,"pennabilli","PU","G433"]
[null,null,null,null,"pennadomo","CH","G434"]
[null,null,null,null,"pennapiedimonte","CH","G435"]
[null,null,null,null,"penne","PE","G438"]
[null,null,null,null,"pentone","CZ","G439"]
[null,null,null,null,"perano","CH","G441"]
[null,null,null,null,"perarolo di cadore","BL","G442"]
[null,null,null,null,"perca .percha.","BZ","G443"]
[null,null,null,null,"percile","RM","G444"]
[null,null,null,null,"perdasdefogu","NU","G445"]
[null,null,null,null,"perdaxius","CA","G446"]
[null,null,null,null,"perdifumo","SA","G447"]
[null,null,null,null,"perego","LC","G448"]
[null,null,null,null,"pereto","AQ","G449"]
[null,null,null,null,"perfugas","SS","G450"]
[null,null,null,null,"pergine valdarno","AR","G451"]
[null,null,null,null,"pergine valsugana","TN","G452"]
[null,null,null,null,"pergola","PU","G453"]
[null,null,null,null,"perinaldo","IM","G454"]
[null,null,null,null,"perito","SA","G455"]
[null,null,null,null,"perledo","LC","G456"]
[null,null,null,null,"perletto","CN","G457"]
[null,null,null,null,"perlo","CN","G458"]
[null,null,null,null,"perloz","AO","G459"]
[null,null,null,null,"pernumia","PD","G461"]
[null,null,null,null,"pero","MI","C013"]
[null,null,null,null,"perosa argentina","TO","G463"]
[null,null,null,null,"perosa canavese","TO","G462"]
[null,null,null,null,"perrero","TO","G465"]
[null,null,null,null,"persico dosimo","CR","G469"]
[null,null,null,null,"pertengo","VC","G471"]
[null,null,null,null,"pertica alta","BS","G474"]
[null,null,null,null,"pertica bassa","BS","G475"]
[null,null,null,null,"pertosa","SA","G476"]
[null,null,null,null,"pertusio","TO","G477"]
[null,null,null,null,"peru'","EE","Z611"]
[null,null,null,null,"perugia","PG","G478"]
[null,null,null,null,"pesaro","PU","G479"]
[null,null,null,null,"pescaglia","LU","G480"]
[null,null,null,null,"pescantina","VR","G481"]
[null,null,null,null,"pescara","PE","G482"]
[null,null,null,null,"pescarolo ed uniti","CR","G483"]
[null,null,null,null,"pescasseroli","AQ","G484"]
[null,null,null,null,"pescate","LC","G485"]
[null,null,null,null,"pesche","IS","G486"]
[null,null,null,null,"peschici","FG","G487"]
[null,null,null,null,"peschiera borromeo","MI","G488"]
[null,null,null,null,"peschiera del garda","VR","G489"]
[null,null,null,null,"pescia","PT","G491"]
[null,null,null,null,"pescina","AQ","G492"]
[null,null,null,null,"pesco sannita","BN","G494"]
[null,null,null,null,"pescocostanzo","AQ","G493"]
[null,null,null,null,"pescolanciano","IS","G495"]
[null,null,null,null,"pescopagano","PZ","G496"]
[null,null,null,null,"pescopennataro","IS","G497"]
[null,null,null,null,"pescorocchiano","RI","G498"]
[null,null,null,null,"pescosansonesco","PE","G499"]
[null,null,null,null,"pescosolido","FR","G500"]
[null,null,null,null,"pessano con bornago","MI","G502"]
[null,null,null,null,"pessina cremonese","CR","G504"]
[null,null,null,null,"pessinetto","TO","G505"]
[null,null,null,null,"petacciato","CB","G506"]
[null,null,null,null,"petilia policastro","KR","G508"]
[null,null,null,null,"petina","SA","G509"]
[null,null,null,null,"petralia soprana","PA","G510"]
[null,null,null,null,"petralia sottana","PA","G511"]
[null,null,null,null,"petrella salto","RI","G513"]
[null,null,null,null,"petrella tifernina","CB","G512"]
[null,null,null,null,"petriano","PU","G514"]
[null,null,null,null,"petriolo","MC","G515"]
[null,null,null,null,"petritoli","AP","G516"]
[null,null,null,null,"petrizzi","CZ","G517"]
[null,null,null,null,"petrona'","CZ","G518"]
[null,null,null,null,"petrosino","TP","M281"]
[null,null,null,null,"petruro irpino","AV","G519"]
[null,null,null,null,"pettenasco","NO","G520"]
[null,null,null,null,"pettinengo","BI","G521"]
[null,null,null,null,"pettineo","ME","G522"]
[null,null,null,null,"pettoranello del molise","IS","G523"]
[null,null,null,null,"pettorano sul gizio","AQ","G524"]
[null,null,null,null,"pettorazza grimani","RO","G525"]
[null,null,null,null,"peveragno","CN","G526"]
[null,null,null,null,"pezzana","VC","G528"]
[null,null,null,null,"pezzaze","BS","G529"]
[null,null,null,null,"pezzolo valle uzzone","CN","G532"]
[null,null,null,null,"piacenza","PC","G535"]
[null,null,null,null,"piacenza d'adige","PD","G534"]
[null,null,null,null,"piadena","CR","G536"]
[null,null,null,null,"piagge","PU","G537"]
[null,null,null,null,"piaggine","SA","G538"]
[null,null,null,null,"pian camuno","BS","G546"]
[null,null,null,null,"pian di sco","AR","G552"]
[null,null,null,null,"piana crixia","SV","G542"]
[null,null,null,null,"piana degli albanesi","PA","G543"]
[null,null,null,null,"piana di monte verna","CE","G541"]
[null,null,null,null,"piancastagnaio","SI","G547"]
[null,null,null,null,"piancogno","BS","G549"]
[null,null,null,null,"piandimeleto","PU","G551"]
[null,null,null,null,"piane crati","CS","G553"]
[null,null,null,null,"pianella","PE","G555"]
[null,null,null,null,"pianello del lario","CO","G556"]
[null,null,null,null,"pianello val tidone","PC","G557"]
[null,null,null,null,"pianengo","CR","G558"]
[null,null,null,null,"pianezza","TO","G559"]
[null,null,null,null,"pianezze","VI","G560"]
[null,null,null,null,"pianfei","CN","G561"]
[null,null,null,null,"pianico","BG","G564"]
[null,null,null,null,"pianiga","VE","G565"]
[null,null,null,null,"piano di sorrento","NA","G568"]
[null,null,null,null,"pianopoli","CZ","D546"]
[null,null,null,null,"pianoro","BO","G570"]
[null,null,null,null,"piansano","VT","G571"]
[null,null,null,null,"piantedo","SO","G572"]
[null,null,null,null,"piario","BG","G574"]
[null,null,null,null,"piasco","CN","G575"]
[null,null,null,null,"piateda","SO","G576"]
[null,null,null,null,"piatto","BI","G577"]
[null,null,null,null,"piazza al serchio","LU","G582"]
[null,null,null,null,"piazza armerina","EN","G580"]
[null,null,null,null,"piazza brembana","BG","G579"]
[null,null,null,null,"piazzatorre","BG","G583"]
[null,null,null,null,"piazzola sul brenta","PD","G587"]
[null,null,null,null,"piazzolo","BG","G588"]
[null,null,null,null,"picciano","PE","G589"]
[null,null,null,null,"picerno","PZ","G590"]
[null,null,null,null,"picinisco","FR","G591"]
[null,null,null,null,"pico","FR","G592"]
[null,null,null,null,"piea","AT","G593"]
[null,null,null,null,"piedicavallo","BI","G594"]
[null,null,null,null,"piedimonte etneo","CT","G597"]
[null,null,null,null,"piedimonte matese","CE","G596"]
[null,null,null,null,"piedimonte san germano","FR","G598"]
[null,null,null,null,"piedimulera","VB","G600"]
[null,null,null,null,"piegaro","PG","G601"]
[null,null,null,null,"pienza","SI","G602"]
[null,null,null,null,"pieranica","CR","G603"]
[null,null,null,null,"pietra de' giorgi","PV","G612"]
[null,null,null,null,"pietra ligure","SV","G605"]
[null,null,null,null,"pietra marazzi","AL","G619"]
[null,null,null,null,"pietrabbondante","IS","G606"]
[null,null,null,null,"pietrabruna","IM","G607"]
[null,null,null,null,"pietracamela","TE","G608"]
[null,null,null,null,"pietracatella","CB","G609"]
[null,null,null,null,"pietracupa","CB","G610"]
[null,null,null,null,"pietradefusi","AV","G611"]
[null,null,null,null,"pietraferrazzana","CH","G613"]
[null,null,null,null,"pietrafitta","CS","G615"]
[null,null,null,null,"pietragalla","PZ","G616"]
[null,null,null,null,"pietralunga","PG","G618"]
[null,null,null,null,"pietramelara","CE","G620"]
[null,null,null,null,"pietramontecorvino","FG","G604"]
[null,null,null,null,"pietranico","PE","G621"]
[null,null,null,null,"pietrapaola","CS","G622"]
[null,null,null,null,"pietrapertosa","PZ","G623"]
[null,null,null,null,"pietraperzia","EN","G624"]
[null,null,null,null,"pietraporzio","CN","G625"]
[null,null,null,null,"pietraroja","BN","G626"]
[null,null,null,null,"pietrarubbia","PU","G627"]
[null,null,null,null,"pietrasanta","LU","G628"]
[null,null,null,null,"pietrastornina","AV","G629"]
[null,null,null,null,"pietravairano","CE","G630"]
[null,null,null,null,"pietrelcina","BN","G631"]
[null,null,null,null,"pieve a nievole","PT","G636"]
[null,null,null,null,"pieve albignola","PV","G635"]
[null,null,null,null,"pieve d'alpago","BL","G638"]
[null,null,null,null,"pieve d'olmi","CR","G647"]
[null,null,null,null,"pieve del cairo","PV","G639"]
[null,null,null,null,"pieve di bono","TN","G641"]
[null,null,null,null,"pieve di cadore","BL","G642"]
[null,null,null,null,"pieve di cento","BO","G643"]
[null,null,null,null,"pieve di coriano","MN","G633"]
[null,null,null,null,"pieve di ledro","TN","G644"]
[null,null,null,null,"pieve di soligo","TV","G645"]
[null,null,null,null,"pieve di teco","IM","G632"]
[null,null,null,null,"pieve emanuele","MI","G634"]
[null,null,null,null,"pieve fissiraga","LO","G096"]
[null,null,null,null,"pieve fosciana","LU","G648"]
[null,null,null,null,"pieve ligure","GE","G646"]
[null,null,null,null,"pieve porto morone","PV","G650"]
[null,null,null,null,"pieve san giacomo","CR","G651"]
[null,null,null,null,"pieve santo stefano","AR","G653"]
[null,null,null,null,"pieve tesino","TN","G656"]
[null,null,null,null,"pieve torina","MC","G657"]
[null,null,null,null,"pieve vergonte","VB","G658"]
[null,null,null,null,"pievebovigliana","MC","G637"]
[null,null,null,null,"pievepelago","MO","G649"]
[null,null,null,null,"piglio","FR","G659"]
[null,null,null,null,"pigna","IM","G660"]
[null,null,null,null,"pignataro interamna","FR","G662"]
[null,null,null,null,"pignataro maggiore","CE","G661"]
[null,null,null,null,"pignola","PZ","G663"]
[null,null,null,null,"pignone","SP","G664"]
[null,null,null,null,"pigra","CO","G665"]
[null,null,null,null,"pila","VC","G666"]
[null,null,null,null,"pimentel","CA","G669"]
[null,null,null,null,"pimonte","NA","G670"]
[null,null,null,null,"pinarolo po","PV","G671"]
[null,null,null,null,"pinasca","TO","G672"]
[null,null,null,null,"pincara","RO","G673"]
[null,null,null,null,"pinerolo","TO","G674"]
[null,null,null,null,"pineto","TE","F831"]
[null,null,null,null,"pino d'asti","AT","G676"]
[null,null,null,null,"pino sulla sponda del lago maggiore","VA","G677"]
[null,null,null,null,"pino torinese","TO","G678"]
[null,null,null,null,"pinzano al tagliamento","PN","G680"]
[null,null,null,null,"pinzolo","TN","G681"]
[null,null,null,null,"piobbico","PU","G682"]
[null,null,null,null,"piobesi d'alba","CN","G683"]
[null,null,null,null,"piobesi torinese","TO","G684"]
[null,null,null,null,"piode","VC","G685"]
[null,null,null,null,"pioltello","MI","G686"]
[null,null,null,null,"piombino","LI","G687"]
[null,null,null,null,"piombino dese","PD","G688"]
[null,null,null,null,"pioraco","MC","G690"]
[null,null,null,null,"piossasco","TO","G691"]
[null,null,null,null,"piova' massaia","AT","G692"]
[null,null,null,null,"piove di sacco","PD","G693"]
[null,null,null,null,"piovene rocchette","VI","G694"]
[null,null,null,null,"piovera","AL","G695"]
[null,null,null,null,"piozzano","PC","G696"]
[null,null,null,null,"piozzo","CN","G697"]
[null,null,null,null,"piraino","ME","G699"]
[null,null,null,null,"pisa","PI","G702"]
[null,null,null,null,"pisano","NO","G703"]
[null,null,null,null,"piscina","TO","G705"]
[null,null,null,null,"piscinas","CA","M291"]
[null,null,null,null,"pisciotta","SA","G707"]
[null,null,null,null,"pisogne","BS","G710"]
[null,null,null,null,"pisoniano","RM","G704"]
[null,null,null,null,"pisticci","MT","G712"]
[null,null,null,null,"pistoia","PT","G713"]
[null,null,null,null,"pitcarin e dipendenze","EE","Z722"]
[null,null,null,null,"piteglio","PT","G715"]
[null,null,null,null,"pitigliano","GR","G716"]
[null,null,null,null,"piubega","MN","G717"]
[null,null,null,null,"piuro","SO","G718"]
[null,null,null,null,"piverone","TO","G719"]
[null,null,null,null,"pizzale","PV","G720"]
[null,null,null,null,"pizzighettone","CR","G721"]
[null,null,null,null,"pizzo","VV","G722"]
[null,null,null,null,"pizzoferrato","CH","G724"]
[null,null,null,null,"pizzoli","AQ","G726"]
[null,null,null,null,"pizzone","IS","G727"]
[null,null,null,null,"pizzoni","VV","G728"]
[null,null,null,null,"placanica","RC","G729"]
[null,null,null,null,"plataci","CS","G733"]
[null,null,null,null,"platania","CZ","G734"]
[null,null,null,null,"plati'","RC","G735"]
[null,null,null,null,"plaus .plaus.","BZ","G299"]
[null,null,null,null,"plesio","CO","G737"]
[null,null,null,null,"ploaghe","SS","G740"]
[null,null,null,null,"plodio","SV","G741"]
[null,null,null,null,"pocapaglia","CN","G742"]
[null,null,null,null,"pocenia","UD","G743"]
[null,null,null,null,"podenzana","MS","G746"]
[null,null,null,null,"podenzano","PC","G747"]
[null,null,null,null,"pofi","FR","G749"]
[null,null,null,null,"poggiardo","LE","G751"]
[null,null,null,null,"poggibonsi","SI","G752"]
[null,null,null,null,"poggio a caiano","PO","G754"]
[null,null,null,null,"poggio berni","RN","G755"]
[null,null,null,null,"poggio bustone","RI","G756"]
[null,null,null,null,"poggio catino","RI","G757"]
[null,null,null,null,"poggio imperiale","FG","G761"]
[null,null,null,null,"poggio mirteto","RI","G763"]
[null,null,null,null,"poggio moiano","RI","G764"]
[null,null,null,null,"poggio nativo","RI","G765"]
[null,null,null,null,"poggio picenze","AQ","G766"]
[null,null,null,null,"poggio renatico","FE","G768"]
[null,null,null,null,"poggio rusco","MN","G753"]
[null,null,null,null,"poggio san lorenzo","RI","G770"]
[null,null,null,null,"poggio san marcello","AN","G771"]
[null,null,null,null,"poggio san vicino","MC","D566"]
[null,null,null,null,"poggio sannita","IS","B317"]
[null,null,null,null,"poggiodomo","PG","G758"]
[null,null,null,null,"poggiofiorito","CH","G760"]
[null,null,null,null,"poggiomarino","NA","G762"]
[null,null,null,null,"poggioreale","TP","G767"]
[null,null,null,null,"poggiorsini","BA","G769"]
[null,null,null,null,"poggiridenti","SO","G431"]
[null,null,null,null,"pogliano milanese","MI","G772"]
[null,null,null,null,"pognana lario","CO","G773"]
[null,null,null,null,"pognano","BG","G774"]
[null,null,null,null,"pogno","NO","G775"]
[null,null,null,null,"poiana maggiore","VI","G776"]
[null,null,null,null,"poirino","TO","G777"]
[null,null,null,null,"polaveno","BS","G779"]
[null,null,null,null,"polcenigo","PN","G780"]
[null,null,null,null,"polesella","RO","G782"]
[null,null,null,null,"polesine parmense","PR","G783"]
[null,null,null,null,"poli","RM","G784"]
[null,null,null,null,"polia","VV","G785"]
[null,null,null,null,"policoro","MT","G786"]
[null,null,null,null,"polignano a mare","BA","G787"]
[null,null,null,null,"polinago","MO","G789"]
[null,null,null,null,"polinesia francese (is","EE","Z723"]
[null,null,null,null,"polino","TR","G790"]
[null,null,null,null,"polistena","RC","G791"]
[null,null,null,null,"polizzi generosa","PA","G792"]
[null,null,null,null,"polla","SA","G793"]
[null,null,null,null,"pollein","AO","G794"]
[null,null,null,null,"pollena trocchia","NA","G795"]
[null,null,null,null,"pollenza","MC","F567"]
[null,null,null,null,"pollica","SA","G796"]
[null,null,null,null,"pollina","PA","G797"]
[null,null,null,null,"pollone","BI","G798"]
[null,null,null,null,"pollutri","CH","G799"]
[null,null,null,null,"polonghera","CN","G800"]
[null,null,null,null,"polonia","EE","Z127"]
[null,null,null,null,"polpenazze del garda","BS","G801"]
[null,null,null,null,"polverara","PD","G802"]
[null,null,null,null,"polverigi","AN","G803"]
[null,null,null,null,"pomarance","PI","G804"]
[null,null,null,null,"pomaretto","TO","G805"]
[null,null,null,null,"pomarico","MT","G806"]
[null,null,null,null,"pomaro monferrato","AL","G807"]
[null,null,null,null,"pomarolo","TN","G808"]
[null,null,null,null,"pombia","NO","G809"]
[null,null,null,null,"pomezia","RM","G811"]
[null,null,null,null,"pomigliano d'arco","NA","G812"]
[null,null,null,null,"pompei","NA","G813"]
[null,null,null,null,"pompeiana","IM","G814"]
[null,null,null,null,"pompiano","BS","G815"]
[null,null,null,null,"pomponesco","MN","G816"]
[null,null,null,null,"pompu","OR","G817"]
[null,null,null,null,"poncarale","BS","G818"]
[null,null,null,null,"ponderano","BI","G820"]
[null,null,null,null,"ponna","CO","G821"]
[null,null,null,null,"ponsacco","PI","G822"]
[null,null,null,null,"ponso","PD","G823"]
[null,null,null,null,"pont canavese","TO","G826"]
[null,null,null,null,"pontassieve","FI","G825"]
[null,null,null,null,"pontboset","AO","G545"]
[null,null,null,null,"ponte","BN","G827"]
[null,null,null,null,"ponte buggianese","PT","G833"]
[null,null,null,null,"ponte dell'olio","PC","G842"]
[null,null,null,null,"ponte di legno","BS","G844"]
[null,null,null,null,"ponte di piave","TV","G846"]
[null,null,null,null,"ponte gardena .waidbruck.","BZ","G830"]
[null,null,null,null,"ponte in valtellina","SO","G829"]
[null,null,null,null,"ponte lambro","CO","G847"]
[null,null,null,null,"ponte nelle alpi","BL","B662"]
[null,null,null,null,"ponte nizza","PV","G851"]
[null,null,null,null,"ponte nossa","BG","F941"]
[null,null,null,null,"ponte san nicolo'","PD","G855"]
[null,null,null,null,"ponte san pietro","BG","G856"]
[null,null,null,null,"pontebba","UD","G831"]
[null,null,null,null,"pontecagnano faiano","SA","G834"]
[null,null,null,null,"pontecchio polesine","RO","G836"]
[null,null,null,null,"pontechianale","CN","G837"]
[null,null,null,null,"pontecorvo","FR","G838"]
[null,null,null,null,"pontecurone","AL","G839"]
[null,null,null,null,"pontedassio","IM","G840"]
[null,null,null,null,"pontedera","PI","G843"]
[null,null,null,null,"pontelandolfo","BN","G848"]
[null,null,null,null,"pontelatone","CE","G849"]
[null,null,null,null,"pontelongo","PD","G850"]
[null,null,null,null,"pontenure","PC","G852"]
[null,null,null,null,"ponteranica","BG","G853"]
[null,null,null,null,"pontestura","AL","G858"]
[null,null,null,null,"pontevico","BS","G859"]
[null,null,null,null,"pontey","AO","G860"]
[null,null,null,null,"ponti","AL","G861"]
[null,null,null,null,"ponti sul mincio","MN","G862"]
[null,null,null,null,"pontida","BG","G864"]
[null,null,null,null,"pontinia","LT","G865"]
[null,null,null,null,"pontinvrea","SV","G866"]
[null,null,null,null,"pontirolo nuovo","BG","G867"]
[null,null,null,null,"pontoglio","BS","G869"]
[null,null,null,null,"pontremoli","MS","G870"]
[null,null,null,null,"pont-saint-martin","AO","G854"]
[null,null,null,null,"ponza","LT","G871"]
[null,null,null,null,"ponzano di fermo","AP","G873"]
[null,null,null,null,"ponzano monferrato","AL","G872"]
[null,null,null,null,"ponzano romano","RM","G874"]
[null,null,null,null,"ponzano veneto","TV","G875"]
[null,null,null,null,"ponzone","AL","G877"]
[null,null,null,null,"popoli","PE","G878"]
[null,null,null,null,"poppi","AR","G879"]
[null,null,null,null,"porano","TR","G881"]
[null,null,null,null,"porcari","LU","G882"]
[null,null,null,null,"porcia","PN","G886"]
[null,null,null,null,"pordenone","PN","G888"]
[null,null,null,null,"porlezza","CO","G889"]
[null,null,null,null,"pornassio","IM","G890"]
[null,null,null,null,"porpetto","UD","G891"]
[null,null,null,null,"porretta terme","BO","A558"]
[null,null,null,null,"portacomaro","AT","G894"]
[null,null,null,null,"portalbera","PV","G895"]
[null,null,null,null,"porte","TO","G900"]
[null,null,null,null,"portici","NA","G902"]
[null,null,null,null,"portico di caserta","CE","G903"]
[null,null,null,null,"portico e san benedetto","FC","G904"]
[null,null,null,null,"portigliola","RC","G905"]
[null,null,null,null,"porto azzurro","LI","E680"]
[null,null,null,null,"porto ceresio","VA","G906"]
[null,null,null,null,"porto cesareo","LE","M263"]
[null,null,null,null,"porto empedocle","AG","F299"]
[null,null,null,null,"porto mantovano","MN","G917"]
[null,null,null,null,"porto recanati","MC","G919"]
[null,null,null,null,"porto san giorgio","AP","G920"]
[null,null,null,null,"porto sant'elpidio","AP","G921"]
[null,null,null,null,"porto tolle","RO","G923"]
[null,null,null,null,"porto torres","SS","G924"]
[null,null,null,null,"porto valtravaglia","VA","G907"]
[null,null,null,null,"porto viro","RO","G926"]
[null,null,null,null,"portobuffole'","TV","G909"]
[null,null,null,null,"portocannone","CB","G910"]
[null,null,null,null,"portoferraio","LI","G912"]
[null,null,null,null,"portofino","GE","G913"]
[null,null,null,null,"portogallo","EE","Z128"]
[null,null,null,null,"portogruaro","VE","G914"]
[null,null,null,null,"portomaggiore","FE","G916"]
[null,null,null,null,"portopalo di capo passero","SR","M257"]
[null,null,null,null,"portoscuso","CA","G922"]
[null,null,null,null,"portovenere","SP","G925"]
[null,null,null,null,"portula","BI","G927"]
[null,null,null,null,"posada","NU","G929"]
[null,null,null,null,"posina","VI","G931"]
[null,null,null,null,"positano","SA","G932"]
[null,null,null,null,"possagno","TV","G933"]
[null,null,null,null,"posta","RI","G934"]
[null,null,null,null,"posta fibreno","FR","G935"]
[null,null,null,null,"postal .burgstall.","BZ","G936"]
[null,null,null,null,"postalesio","SO","G937"]
[null,null,null,null,"postiglione","SA","G939"]
[null,null,null,null,"postua","VC","G940"]
[null,null,null,null,"potenza","PZ","G942"]
[null,null,null,null,"potenza picena","MC","F632"]
[null,null,null,null,"pove del grappa","VI","G943"]
[null,null,null,null,"povegliano","TV","G944"]
[null,null,null,null,"povegliano veronese","VR","G945"]
[null,null,null,null,"poviglio","RE","G947"]
[null,null,null,null,"povoletto","UD","G949"]
[null,null,null,null,"pozza di fassa","TN","G950"]
[null,null,null,null,"pozzaglia sabina","RI","G951"]
[null,null,null,null,"pozzaglio ed uniti","CR","B914"]
[null,null,null,null,"pozzallo","RG","G953"]
[null,null,null,null,"pozzilli","IS","G954"]
[null,null,null,null,"pozzo d'adda","MI","G955"]
[null,null,null,null,"pozzol groppo","AL","G960"]
[null,null,null,null,"pozzolengo","BS","G959"]
[null,null,null,null,"pozzoleone","VI","G957"]
[null,null,null,null,"pozzolo formigaro","AL","G961"]
[null,null,null,null,"pozzomaggiore","SS","G962"]
[null,null,null,null,"pozzonovo","PD","G963"]
[null,null,null,null,"pozzuoli","NA","G964"]
[null,null,null,null,"pozzuolo del friuli","UD","G966"]
[null,null,null,null,"pozzuolo martesana","MI","G965"]
[null,null,null,null,"pradalunga","BG","G968"]
[null,null,null,null,"pradamano","UD","G969"]
[null,null,null,null,"pradleves","CN","G970"]
[null,null,null,null,"pragelato","TO","G973"]
[null,null,null,null,"praia a mare","CS","G975"]
[null,null,null,null,"praiano","SA","G976"]
[null,null,null,null,"pralboino","BS","G977"]
[null,null,null,null,"prali","TO","G978"]
[null,null,null,null,"pralormo","TO","G979"]
[null,null,null,null,"pralungo","BI","G980"]
[null,null,null,null,"pramaggiore","VE","G981"]
[null,null,null,null,"pramollo","TO","G982"]
[null,null,null,null,"prarolo","VC","G985"]
[null,null,null,null,"prarostino","TO","G986"]
[null,null,null,null,"prasco","AL","G987"]
[null,null,null,null,"prascorsano","TO","G988"]
[null,null,null,null,"praso","TN","G989"]
[null,null,null,null,"prata camportaccio","SO","G993"]
[null,null,null,null,"prata d'ansidonia","AQ","G992"]
[null,null,null,null,"prata di pordenone","PN","G994"]
[null,null,null,null,"prata di principato ultra","AV","G990"]
[null,null,null,null,"prata sannita","CE","G991"]
[null,null,null,null,"pratella","CE","G995"]
[null,null,null,null,"pratiglione","TO","G997"]
[null,null,null,null,"prato","PO","G999"]
[null,null,null,null,"prato allo stelvio .prad am stilfserjoch.","BZ","H004"]
[null,null,null,null,"prato carnico","UD","H002"]
[null,null,null,null,"prato sesia","NO","H001"]
[null,null,null,null,"pratola peligna","AQ","H007"]
[null,null,null,null,"pratola serra","AV","H006"]
[null,null,null,null,"pratovecchio","AR","H008"]
[null,null,null,null,"pravisdomini","PN","H010"]
[null,null,null,null,"pray","BI","G974"]
[null,null,null,null,"prazzo","CN","H011"]
[null,null,null,null,"pre'-saint-didier","AO","H042"]
[null,null,null,null,"precenicco","UD","H014"]
[null,null,null,null,"preci","PG","H015"]
[null,null,null,null,"predappio","FC","H017"]
[null,null,null,null,"predazzo","TN","H018"]
[null,null,null,null,"predoi .prettau.","BZ","H019"]
[null,null,null,null,"predore","BG","H020"]
[null,null,null,null,"predosa","AL","H021"]
[null,null,null,null,"preganziol","TV","H022"]
[null,null,null,null,"pregnana milanese","MI","H026"]
[null,null,null,null,"prela'","IM","H027"]
[null,null,null,null,"premana","LC","H028"]
[null,null,null,null,"premariacco","UD","H029"]
[null,null,null,null,"premeno","VB","H030"]
[null,null,null,null,"premia","VB","H033"]
[null,null,null,null,"premilcuore","FC","H034"]
[null,null,null,null,"premolo","BG","H036"]
[null,null,null,null,"premosello-chiovenda","VB","H037"]
[null,null,null,null,"preone","UD","H038"]
[null,null,null,null,"preore","TN","H039"]
[null,null,null,null,"prepotto","UD","H040"]
[null,null,null,null,"preseglie","BS","H043"]
[null,null,null,null,"presenzano","CE","H045"]
[null,null,null,null,"presezzo","BG","H046"]
[null,null,null,null,"presicce","LE","H047"]
[null,null,null,null,"pressana","VR","H048"]
[null,null,null,null,"prestine","BS","H050"]
[null,null,null,null,"pretoro","CH","H052"]
[null,null,null,null,"prevalle","BS","H055"]
[null,null,null,null,"prezza","AQ","H056"]
[null,null,null,null,"prezzo","TN","H057"]
[null,null,null,null,"priero","CN","H059"]
[null,null,null,null,"prignano cilento","SA","H062"]
[null,null,null,null,"prignano sulla secchia","MO","H061"]
[null,null,null,null,"primaluna","LC","H063"]
[null,null,null,null,"priocca","CN","H068"]
[null,null,null,null,"priola","CN","H069"]
[null,null,null,null,"priolo gargallo","SR","M279"]
[null,null,null,null,"priverno","LT","G698"]
[null,null,null,null,"prizzi","PA","H070"]
[null,null,null,null,"proceno","VT","H071"]
[null,null,null,null,"procida","NA","H072"]
[null,null,null,null,"propata","GE","H073"]
[null,null,null,null,"proserpio","CO","H074"]
[null,null,null,null,"prossedi","LT","H076"]
[null,null,null,null,"provaglio d'iseo","BS","H078"]
[null,null,null,null,"provaglio val sabbia","BS","H077"]
[null,null,null,null,"proves .proveis.","BZ","H081"]
[null,null,null,null,"provvidenti","CB","H083"]
[null,null,null,null,"prunetto","CN","H085"]
[null,null,null,null,"puegnago sul garda","BS","H086"]
[null,null,null,null,"puerto rico","EE","Z518"]
[null,null,null,null,"puglianello","BN","H087"]
[null,null,null,null,"pula","CA","H088"]
[null,null,null,null,"pulfero","UD","H089"]
[null,null,null,null,"pulsano","TA","H090"]
[null,null,null,null,"pumenengo","BG","H091"]
[null,null,null,null,"puos d'alpago","BL","H092"]
[null,null,null,null,"pusiano","CO","H094"]
[null,null,null,null,"putifigari","SS","H095"]
[null,null,null,null,"putignano","BA","H096"]
[null,null,null,null,"qatar","EE","Z237"]
[null,null,null,null,"quadrelle","AV","H097"]
[null,null,null,null,"quadri","CH","H098"]
[null,null,null,null,"quagliuzzo","TO","H100"]
[null,null,null,null,"qualiano","NA","H101"]
[null,null,null,null,"quaranti","AT","H102"]
[null,null,null,null,"quaregna","BI","H103"]
[null,null,null,null,"quargnento","AL","H104"]
[null,null,null,null,"quarna sopra","VB","H106"]
[null,null,null,null,"quarna sotto","VB","H107"]
[null,null,null,null,"quarona","VC","H108"]
[null,null,null,null,"quarrata","PT","H109"]
[null,null,null,null,"quart","AO","H110"]
[null,null,null,null,"quarto","NA","H114"]
[null,null,null,null,"quarto d'altino","VE","H117"]
[null,null,null,null,"quartu sant'elena","CA","H118"]
[null,null,null,null,"quartucciu","CA","H119"]
[null,null,null,null,"quassolo","TO","H120"]
[null,null,null,null,"quattordio","AL","H121"]
[null,null,null,null,"quattro castella","RE","H122"]
[null,null,null,null,"quero","BL","H124"]
[null,null,null,null,"quiliano","SV","H126"]
[null,null,null,null,"quincinetto","TO","H127"]
[null,null,null,null,"quindici","AV","H128"]
[null,null,null,null,"quingentole","MN","H129"]
[null,null,null,null,"quintano","CR","H130"]
[null,null,null,null,"quinto di treviso","TV","H131"]
[null,null,null,null,"quinto vercellese","VC","H132"]
[null,null,null,null,"quinto vicentino","VI","H134"]
[null,null,null,null,"quinzano d'oglio","BS","H140"]
[null,null,null,null,"quistello","MN","H143"]
[null,null,null,null,"quittengo","BI","H145"]
[null,null,null,null,"rabbi","TN","H146"]
[null,null,null,null,"racale","LE","H147"]
[null,null,null,null,"racalmuto","AG","H148"]
[null,null,null,null,"racconigi","CN","H150"]
[null,null,null,null,"raccuja","ME","H151"]
[null,null,null,null,"racines .ratschings.","BZ","H152"]
[null,null,null,null,"radda in chianti","SI","H153"]
[null,null,null,null,"raddusa","CT","H154"]
[null,null,null,null,"radicofani","SI","H156"]
[null,null,null,null,"radicondoli","SI","H157"]
[null,null,null,null,"raffadali","AG","H159"]
[null,null,null,null,"ragalna","CT","M287"]
[null,null,null,null,"ragogna","UD","H161"]
[null,null,null,null,"ragoli","TN","H162"]
[null,null,null,null,"ragusa","RG","H163"]
[null,null,null,null,"raiano","AQ","H166"]
[null,null,null,null,"ramacca","CT","H168"]
[null,null,null,null,"ramiseto","RE","G654"]
[null,null,null,null,"ramponio verna","CO","H171"]
[null,null,null,null,"rancio valcuvia","VA","H173"]
[null,null,null,null,"ranco","VA","H174"]
[null,null,null,null,"randazzo","CT","H175"]
[null,null,null,null,"ranica","BG","H176"]
[null,null,null,null,"ranzanico","BG","H177"]
[null,null,null,null,"ranzo","IM","H180"]
[null,null,null,null,"rapagnano","AP","H182"]
[null,null,null,null,"rapallo","GE","H183"]
[null,null,null,null,"rapino","CH","H184"]
[null,null,null,null,"rapolano terme","SI","H185"]
[null,null,null,null,"rapolla","PZ","H186"]
[null,null,null,null,"rapone","PZ","H187"]
[null,null,null,null,"rassa","VC","H188"]
[null,null,null,null,"rasun anterselva .rasen antholz.","BZ","H189"]
[null,null,null,null,"rasura","SO","H192"]
[null,null,null,null,"ravanusa","AG","H194"]
[null,null,null,null,"ravarino","MO","H195"]
[null,null,null,null,"ravascletto","UD","H196"]
[null,null,null,null,"ravello","SA","H198"]
[null,null,null,null,"ravenna","RA","H199"]
[null,null,null,null,"raveo","UD","H200"]
[null,null,null,null,"raviscanina","CE","H202"]
[null,null,null,null,"re","VB","H203"]
[null,null,null,null,"rea","PV","H204"]
[null,null,null,null,"realmonte","AG","H205"]
[null,null,null,null,"reana del roiale","UD","H206"]
[null,null,null,null,"reano","TO","H207"]
[null,null,null,null,"recale","CE","H210"]
[null,null,null,null,"recanati","MC","H211"]
[null,null,null,null,"recco","GE","H212"]
[null,null,null,null,"recetto","NO","H213"]
[null,null,null,null,"recoaro terme","VI","H214"]
[null,null,null,null,"redavalle","PV","H216"]
[null,null,null,null,"redondesco","MN","H218"]
[null,null,null,null,"refrancore","AT","H219"]
[null,null,null,null,"refrontolo","TV","H220"]
[null,null,null,null,"regalbuto","EN","H221"]
[null,null,null,null,"reggello","FI","H222"]
[null,null,null,null,"reggio di calabria","RC","H224"]
[null,null,null,null,"reggio nell'emilia","RE","H223"]
[null,null,null,null,"reggiolo","RE","H225"]
[null,null,null,null,"reino","BN","H227"]
[null,null,null,null,"reitano","ME","H228"]
[null,null,null,null,"remanzacco","UD","H229"]
[null,null,null,null,"remedello","BS","H230"]
[null,null,null,null,"renate","MI","H233"]
[null,null,null,null,"rende","CS","H235"]
[null,null,null,null,"renon .ritten.","BZ","H236"]
[null,null,null,null,"resana","TV","H238"]
[null,null,null,null,"rescaldina","MI","H240"]
[null,null,null,null,"resia","UD","H242"]
[null,null,null,null,"resiutta","UD","H244"]
[null,null,null,null,"resuttano","CL","H245"]
[null,null,null,null,"retorbido","PV","H246"]
[null,null,null,null,"revello","CN","H247"]
[null,null,null,null,"revere","MN","H248"]
[null,null,null,null,"revigliasco d'asti","AT","H250"]
[null,null,null,null,"revine lago","TV","H253"]
[null,null,null,null,"revo'","TN","H254"]
[null,null,null,null,"rezzago","CO","H255"]
[null,null,null,null,"rezzato","BS","H256"]
[null,null,null,null,"rezzo","IM","H257"]
[null,null,null,null,"rezzoaglio","GE","H258"]
[null,null,null,null,"rhemes-notre-dame","AO","H262"]
[null,null,null,null,"rhemes-saint-georges","AO","H263"]
[null,null,null,null,"rho","MI","H264"]
[null,null,null,null,"riace","RC","H265"]
[null,null,null,null,"rialto","SV","H266"]
[null,null,null,null,"riano","RM","H267"]
[null,null,null,null,"riardo","CE","H268"]
[null,null,null,null,"ribera","AG","H269"]
[null,null,null,null,"ribordone","TO","H270"]
[null,null,null,null,"ricadi","VV","H271"]
[null,null,null,null,"ricaldone","AL","H272"]
[null,null,null,null,"riccia","CB","H273"]
[null,null,null,null,"riccione","RN","H274"]
[null,null,null,null,"ricco' del golfo di spezia","SP","H275"]
[null,null,null,null,"ricengo","CR","H276"]
[null,null,null,null,"ricigliano","SA","H277"]
[null,null,null,null,"riese pio x","TV","H280"]
[null,null,null,null,"riesi","CL","H281"]
[null,null,null,null,"rieti","RI","H282"]
[null,null,null,null,"rifiano .riffian.","BZ","H284"]
[null,null,null,null,"rifreddo","CN","H285"]
[null,null,null,null,"rignano flaminio","RM","H288"]
[null,null,null,null,"rignano garganico","FG","H287"]
[null,null,null,null,"rignano sull'arno","FI","H286"]
[null,null,null,null,"rigolato","UD","H289"]
[null,null,null,null,"rima san giuseppe","VC","H291"]
[null,null,null,null,"rimasco","VC","H292"]
[null,null,null,null,"rimella","VC","H293"]
[null,null,null,null,"rimini","RN","H294"]
[null,null,null,null,"rio di pusteria .muhlbach.","BZ","H299"]
[null,null,null,null,"rio marina","LI","H305"]
[null,null,null,null,"rio nell'elba","LI","H297"]
[null,null,null,null,"rio saliceto","RE","H298"]
[null,null,null,null,"riofreddo","RM","H300"]
[null,null,null,null,"riola sardo","OR","H301"]
[null,null,null,null,"riolo terme","RA","H302"]
[null,null,null,null,"riolunato","MO","H303"]
[null,null,null,null,"riomaggiore","SP","H304"]
[null,null,null,null,"rionero in vulture","PZ","H307"]
[null,null,null,null,"rionero sannitico","IS","H308"]
[null,null,null,null,"ripa teatina","CH","H320"]
[null,null,null,null,"ripabottoni","CB","H311"]
[null,null,null,null,"ripacandida","PZ","H312"]
[null,null,null,null,"ripalimosani","CB","H313"]
[null,null,null,null,"ripalta arpina","CR","H314"]
[null,null,null,null,"ripalta cremasca","CR","H315"]
[null,null,null,null,"ripalta guerina","CR","H316"]
[null,null,null,null,"riparbella","PI","H319"]
[null,null,null,null,"ripatransone","AP","H321"]
[null,null,null,null,"ripe","AN","H322"]
[null,null,null,null,"ripe san ginesio","MC","H323"]
[null,null,null,null,"ripi","FR","H324"]
[null,null,null,null,"riposto","CT","H325"]
[null,null,null,null,"rittana","CN","H326"]
[null,null,null,null,"riva del garda","TN","H330"]
[null,null,null,null,"riva di solto","BG","H331"]
[null,null,null,null,"riva ligure","IM","H328"]
[null,null,null,null,"riva presso chieri","TO","H337"]
[null,null,null,null,"riva valdobbia","VC","H329"]
[null,null,null,null,"rivalba","TO","H333"]
[null,null,null,null,"rivalta bormida","AL","H334"]
[null,null,null,null,"rivalta di torino","TO","H335"]
[null,null,null,null,"rivamonte agordino","BL","H327"]
[null,null,null,null,"rivanazzano","PV","H336"]
[null,null,null,null,"rivara","TO","H338"]
[null,null,null,null,"rivarolo canavese","TO","H340"]
[null,null,null,null,"rivarolo del re ed uniti","CR","H341"]
[null,null,null,null,"rivarolo mantovano","MN","H342"]
[null,null,null,null,"rivarone","AL","H343"]
[null,null,null,null,"rivarossa","TO","H344"]
[null,null,null,null,"rive","VC","H346"]
[null,null,null,null,"rive d'arcano","UD","H347"]
[null,null,null,null,"rivello","PZ","H348"]
[null,null,null,null,"rivergaro","PC","H350"]
[null,null,null,null,"rivignano","UD","H352"]
[null,null,null,null,"rivisondoli","AQ","H353"]
[null,null,null,null,"rivodutri","RI","H354"]
[null,null,null,null,"rivoli","TO","H355"]
[null,null,null,null,"rivoli veronese","VR","H356"]
[null,null,null,null,"rivolta d'adda","CR","H357"]
[null,null,null,null,"rizziconi","RC","H359"]
[null,null,null,null,"ro","FE","H360"]
[null,null,null,null,"roana","VI","H361"]
[null,null,null,null,"roaschia","CN","H362"]
[null,null,null,null,"roascio","CN","H363"]
[null,null,null,null,"roasio","VC","H365"]
[null,null,null,null,"roatto","AT","H366"]
[null,null,null,null,"robassomero","TO","H367"]
[null,null,null,null,"robbiate","LC","G223"]
[null,null,null,null,"robbio","PV","H369"]
[null,null,null,null,"robecchetto con induno","MI","H371"]
[null,null,null,null,"robecco d'oglio","CR","H372"]
[null,null,null,null,"robecco pavese","PV","H375"]
[null,null,null,null,"robecco sul naviglio","MI","H373"]
[null,null,null,null,"robella","AT","H376"]
[null,null,null,null,"robilante","CN","H377"]
[null,null,null,null,"roburent","CN","H378"]
[null,null,null,null,"rocca canavese","TO","H386"]
[null,null,null,null,"rocca canterano","RM","H387"]
[null,null,null,null,"rocca ciglie'","CN","H391"]
[null,null,null,null,"rocca d'arazzo","AT","H392"]
[null,null,null,null,"rocca d'evandro","CE","H398"]
[null,null,null,null,"rocca de' baldi","CN","H395"]
[null,null,null,null,"rocca de' giorgi","PV","H396"]
[null,null,null,null,"rocca di botte","AQ","H399"]
[null,null,null,null,"rocca di cambio","AQ","H400"]
[null,null,null,null,"rocca di cave","RM","H401"]
[null,null,null,null,"rocca di mezzo","AQ","H402"]
[null,null,null,null,"rocca di neto","KR","H403"]
[null,null,null,null,"rocca di papa","RM","H404"]
[null,null,null,null,"rocca grimalda","AL","H414"]
[null,null,null,null,"rocca imperiale","CS","H416"]
[null,null,null,null,"rocca massima","LT","H421"]
[null,null,null,null,"rocca pia","AQ","H429"]
[null,null,null,null,"rocca pietore","BL","H379"]
[null,null,null,null,"rocca priora","RM","H432"]
[null,null,null,null,"rocca san casciano","FC","H437"]
[null,null,null,null,"rocca san felice","AV","H438"]
[null,null,null,null,"rocca san giovanni","CH","H439"]
[null,null,null,null,"rocca santa maria","TE","H440"]
[null,null,null,null,"rocca santo stefano","RM","H441"]
[null,null,null,null,"rocca sinibalda","RI","H446"]
[null,null,null,null,"rocca susella","PV","H450"]
[null,null,null,null,"roccabascerana","AV","H382"]
[null,null,null,null,"roccabernarda","KR","H383"]
[null,null,null,null,"roccabianca","PR","H384"]
[null,null,null,null,"roccabruna","CN","H385"]
[null,null,null,null,"roccacasale","AQ","H389"]
[null,null,null,null,"roccadarce","FR","H393"]
[null,null,null,null,"roccadaspide","SA","H394"]
[null,null,null,null,"roccafiorita","ME","H405"]
[null,null,null,null,"roccafluvione","AP","H390"]
[null,null,null,null,"roccaforte del greco","RC","H408"]
[null,null,null,null,"roccaforte ligure","AL","H406"]
[null,null,null,null,"roccaforte mondovi'","CN","H407"]
[null,null,null,null,"roccaforzata","TA","H409"]
[null,null,null,null,"roccafranca","BS","H410"]
[null,null,null,null,"roccagiovine","RM","H411"]
[null,null,null,null,"roccagloriosa","SA","H412"]
[null,null,null,null,"roccagorga","LT","H413"]
[null,null,null,null,"roccalbegna","GR","H417"]
[null,null,null,null,"roccalumera","ME","H418"]
[null,null,null,null,"roccamandolfi","IS","H420"]
[null,null,null,null,"roccamena","PA","H422"]
[null,null,null,null,"roccamonfina","CE","H423"]
[null,null,null,null,"roccamontepiano","CH","H424"]
[null,null,null,null,"roccamorice","PE","H425"]
[null,null,null,null,"roccanova","PZ","H426"]
[null,null,null,null,"roccantica","RI","H427"]
[null,null,null,null,"roccapalumba","PA","H428"]
[null,null,null,null,"roccapiemonte","SA","H431"]
[null,null,null,null,"roccarainola","NA","H433"]
[null,null,null,null,"roccaraso","AQ","H434"]
[null,null,null,null,"roccaromana","CE","H436"]
[null,null,null,null,"roccascalegna","CH","H442"]
[null,null,null,null,"roccasecca","FR","H443"]
[null,null,null,null,"roccasecca dei volsci","LT","H444"]
[null,null,null,null,"roccasicura","IS","H445"]
[null,null,null,null,"roccasparvera","CN","H447"]
[null,null,null,null,"roccaspinalveti","CH","H448"]
[null,null,null,null,"roccastrada","GR","H449"]
[null,null,null,null,"roccavaldina","ME","H380"]
[null,null,null,null,"roccaverano","AT","H451"]
[null,null,null,null,"roccavignale","SV","H452"]
[null,null,null,null,"roccavione","CN","H453"]
[null,null,null,null,"roccavivara","CB","H454"]
[null,null,null,null,"roccella ionica","RC","H456"]
[null,null,null,null,"roccella valdemone","ME","H455"]
[null,null,null,null,"rocchetta a volturno","IS","H458"]
[null,null,null,null,"rocchetta belbo","CN","H462"]
[null,null,null,null,"rocchetta di vara","SP","H461"]
[null,null,null,null,"rocchetta e croce","CE","H459"]
[null,null,null,null,"rocchetta ligure","AL","H465"]
[null,null,null,null,"rocchetta nervina","IM","H460"]
[null,null,null,null,"rocchetta palafea","AT","H466"]
[null,null,null,null,"rocchetta sant'antonio","FG","H467"]
[null,null,null,null,"rocchetta tanaro","AT","H468"]
[null,null,null,null,"rodano","MI","H470"]
[null,null,null,null,"roddi","CN","H472"]
[null,null,null,null,"roddino","CN","H473"]
[null,null,null,null,"rodello","CN","H474"]
[null,null,null,null,"rodengo .rodeneck.","BZ","H475"]
[null,null,null,null,"rodengo-saiano","BS","H477"]
[null,null,null,null,"rodero","CO","H478"]
[null,null,null,null,"rodi garganico","FG","H480"]
[null,null,null,null,"rodi' milici","ME","H479"]
[null,null,null,null,"rodigo","MN","H481"]
[null,null,null,null,"roe' volciano","BS","H484"]
[null,null,null,null,"rofrano","SA","H485"]
[null,null,null,null,"rogeno","LC","H486"]
[null,null,null,null,"roggiano gravina","CS","H488"]
[null,null,null,null,"roghudi","RC","H489"]
[null,null,null,null,"rogliano","CS","H490"]
[null,null,null,null,"rognano","PV","H491"]
[null,null,null,null,"rogno","BG","H492"]
[null,null,null,null,"rogolo","SO","H493"]
[null,null,null,null,"roiate","RM","H494"]
[null,null,null,null,"roio del sangro","CH","H495"]
[null,null,null,null,"roisan","AO","H497"]
[null,null,null,null,"roletto","TO","H498"]
[null,null,null,null,"rolo","RE","H500"]
[null,null,null,null,"roma","RM","H501"]
[null,null,null,null,"romagnano al monte","SA","H503"]
[null,null,null,null,"romagnano sesia","NO","H502"]
[null,null,null,null,"romagnese","PV","H505"]
[null,null,null,null,"romallo","TN","H506"]
[null,null,null,null,"romana","SS","H507"]
[null,null,null,null,"romanengo","CR","H508"]
[null,null,null,null,"romania","EE","Z129"]
[null,null,null,null,"romano canavese","TO","H511"]
[null,null,null,null,"romano d'ezzelino","VI","H512"]
[null,null,null,null,"romano di lombardia","BG","H509"]
[null,null,null,null,"romans d'isonzo","GO","H514"]
[null,null,null,null,"rombiolo","VV","H516"]
[null,null,null,null,"romeno","TN","H517"]
[null,null,null,null,"romentino","NO","H518"]
[null,null,null,null,"rometta","ME","H519"]
[null,null,null,null,"ronago","CO","H521"]
[null,null,null,null,"ronca'","VR","H522"]
[null,null,null,null,"roncade","TV","H523"]
[null,null,null,null,"roncadelle","BS","H525"]
[null,null,null,null,"roncaro","PV","H527"]
[null,null,null,null,"roncegno","TN","H528"]
[null,null,null,null,"roncello","MI","H529"]
[null,null,null,null,"ronchi dei legionari","GO","H531"]
[null,null,null,null,"ronchi valsugana","TN","H532"]
[null,null,null,null,"ronchis","UD","H533"]
[null,null,null,null,"ronciglione","VT","H534"]
[null,null,null,null,"ronco all'adige","VR","H540"]
[null,null,null,null,"ronco biellese","BI","H538"]
[null,null,null,null,"ronco briantino","MI","H537"]
[null,null,null,null,"ronco canavese","TO","H539"]
[null,null,null,null,"ronco scrivia","GE","H536"]
[null,null,null,null,"roncobello","BG","H535"]
[null,null,null,null,"roncoferraro","MN","H541"]
[null,null,null,null,"roncofreddo","FC","H542"]
[null,null,null,null,"roncola","BG","H544"]
[null,null,null,null,"roncone","TN","H545"]
[null,null,null,null,"rondanina","GE","H546"]
[null,null,null,null,"rondissone","TO","H547"]
[null,null,null,null,"ronsecco","VC","H549"]
[null,null,null,null,"ronzo-chienis","TN","M303"]
[null,null,null,null,"ronzone","TN","H552"]
[null,null,null,null,"roppolo","BI","H553"]
[null,null,null,null,"rora'","TO","H554"]
[null,null,null,null,"rosa'","VI","H556"]
[null,null,null,null,"rosarno","RC","H558"]
[null,null,null,null,"rosasco","PV","H559"]
[null,null,null,null,"rosate","MI","H560"]
[null,null,null,null,"rosazza","BI","H561"]
[null,null,null,null,"rosciano","PE","H562"]
[null,null,null,null,"roscigno","SA","H564"]
[null,null,null,null,"rose","CS","H565"]
[null,null,null,null,"rosello","CH","H566"]
[null,null,null,null,"roseto capo spulico","CS","H572"]
[null,null,null,null,"roseto degli abruzzi","TE","F585"]
[null,null,null,null,"roseto valfortore","FG","H568"]
[null,null,null,null,"rosignano marittimo","LI","H570"]
[null,null,null,null,"rosignano monferrato","AL","H569"]
[null,null,null,null,"rosolina","RO","H573"]
[null,null,null,null,"rosolini","SR","H574"]
[null,null,null,null,"rosora","AN","H575"]
[null,null,null,null,"rossa","VC","H577"]
[null,null,null,null,"rossana","CN","H578"]
[null,null,null,null,"rossano","CS","H579"]
[null,null,null,null,"rossano veneto","VI","H580"]
[null,null,null,null,"rossiglione","GE","H581"]
[null,null,null,null,"rosta","TO","H583"]
[null,null,null,null,"rota d'imagna","BG","H584"]
[null,null,null,null,"rota greca","CS","H585"]
[null,null,null,null,"rotella","AP","H588"]
[null,null,null,null,"rotello","CB","H589"]
[null,null,null,null,"rotonda","PZ","H590"]
[null,null,null,null,"rotondella","MT","H591"]
[null,null,null,null,"rotondi","AV","H592"]
[null,null,null,null,"rottofreno","PC","H593"]
[null,null,null,null,"rotzo","VI","H594"]
[null,null,null,null,"roure","TO","H555"]
[null,null,null,null,"rovagnate","LC","H596"]
[null,null,null,null,"rovasenda","VC","H364"]
[null,null,null,null,"rovato","BS","H598"]
[null,null,null,null,"rovegno","GE","H599"]
[null,null,null,null,"rovellasca","CO","H601"]
[null,null,null,null,"rovello porro","CO","H602"]
[null,null,null,null,"roverbella","MN","H604"]
[null,null,null,null,"roverchiara","VR","H606"]
[null,null,null,null,"rovere' della luna","TN","H607"]
[null,null,null,null,"rovere' veronese","VR","H608"]
[null,null,null,null,"roveredo di gua'","VR","H610"]
[null,null,null,null,"roveredo in piano","PN","H609"]
[null,null,null,null,"rovereto","TN","H612"]
[null,null,null,null,"rovescala","PV","H614"]
[null,null,null,null,"rovetta","BG","H615"]
[null,null,null,null,"roviano","RM","H618"]
[null,null,null,null,"rovigo","RO","H620"]
[null,null,null,null,"rovito","CS","H621"]
[null,null,null,null,"rovolon","PD","H622"]
[null,null,null,null,"rozzano","MI","H623"]
[null,null,null,null,"ruanda","EE","Z338"]
[null,null,null,null,"rubano","PD","H625"]
[null,null,null,null,"rubiana","TO","H627"]
[null,null,null,null,"rubiera","RE","H628"]
[null,null,null,null,"ruda","UD","H629"]
[null,null,null,null,"rudiano","BS","H630"]
[null,null,null,null,"rueglio","TO","H631"]
[null,null,null,null,"ruffano","LE","H632"]
[null,null,null,null,"ruffia","CN","H633"]
[null,null,null,null,"ruffre'","TN","H634"]
[null,null,null,null,"rufina","FI","H635"]
[null,null,null,null,"ruinas","OR","F271"]
[null,null,null,null,"ruino","PV","H637"]
[null,null,null,null,"rumo","TN","H639"]
[null,null,null,null,"ruoti","PZ","H641"]
[null,null,null,null,"russi","RA","H642"]
[null,null,null,null,"russia","EE","Z154"]
[null,null,null,null,"rutigliano","BA","H643"]
[null,null,null,null,"rutino","SA","H644"]
[null,null,null,null,"ruviano","CE","H165"]
[null,null,null,null,"ruvo del monte","PZ","H646"]
[null,null,null,null,"ruvo di puglia","BA","H645"]
[null,null,null,null,"ryukyu (isole)","EE","Z238"]
[null,null,null,null,"sabaudia","LT","H647"]
[null,null,null,null,"sabbia","VC","H648"]
[null,null,null,null,"sabbio chiese","BS","H650"]
[null,null,null,null,"sabbioneta","MN","H652"]
[null,null,null,null,"sacco","SA","H654"]
[null,null,null,null,"saccolongo","PD","H655"]
[null,null,null,null,"sacile","PN","H657"]
[null,null,null,null,"sacrofano","RM","H658"]
[null,null,null,null,"sadali","NU","H659"]
[null,null,null,null,"sagama","NU","H661"]
[null,null,null,null,"sagliano micca","BI","H662"]
[null,null,null,null,"sagrado","GO","H665"]
[null,null,null,null,"sagron mis","TN","H666"]
[null,null,null,null,"sahara spagnolo","EE","Z339"]
[null,null,null,null,"saint lucia","EE","Z527"]
[null,null,null,null,"saint pierre et miquel","EE","Z403"]
[null,null,null,null,"saint vincent e granad","EE","Z528"]
[null,null,null,null,"saint-christophe","AO","H669"]
[null,null,null,null,"saint-denis","AO","H670"]
[null,null,null,null,"saint-marcel","AO","H671"]
[null,null,null,null,"saint-nicolas","AO","H672"]
[null,null,null,null,"saint-oyen","AO","H673"]
[null,null,null,null,"saint-pierre","AO","H674"]
[null,null,null,null,"saint-rhemy-en-bosses","AO","H675"]
[null,null,null,null,"saint-vincent","AO","H676"]
[null,null,null,null,"sala baganza","PR","H682"]
[null,null,null,null,"sala biellese","BI","H681"]
[null,null,null,null,"sala bolognese","BO","H678"]
[null,null,null,null,"sala comacina","CO","H679"]
[null,null,null,null,"sala consilina","SA","H683"]
[null,null,null,null,"sala monferrato","AL","H677"]
[null,null,null,null,"salandra","MT","H687"]
[null,null,null,null,"salaparuta","TP","H688"]
[null,null,null,null,"salara","RO","H689"]
[null,null,null,null,"salasco","VC","H690"]
[null,null,null,null,"salassa","TO","H691"]
[null,null,null,null,"salbertrand","TO","H684"]
[null,null,null,null,"salcedo","VI","F810"]
[null,null,null,null,"salcito","CB","H693"]
[null,null,null,null,"sale","AL","H694"]
[null,null,null,null,"sale delle langhe","CN","H695"]
[null,null,null,null,"sale marasino","BS","H699"]
[null,null,null,null,"sale san giovanni","CN","H704"]
[null,null,null,null,"salemi","TP","H700"]
[null,null,null,null,"salento","SA","H686"]
[null,null,null,null,"salerano canavese","TO","H702"]
[null,null,null,null,"salerano sul lambro","LO","H701"]
[null,null,null,null,"salerno","SA","H703"]
[null,null,null,null,"saletto","PD","H705"]
[null,null,null,null,"salgareda","TV","H706"]
[null,null,null,null,"sali vercellese","VC","H707"]
[null,null,null,null,"salice salentino","LE","H708"]
[null,null,null,null,"saliceto","CN","H710"]
[null,null,null,null,"salisano","RI","H713"]
[null,null,null,null,"salizzole","VR","H714"]
[null,null,null,null,"salle","PE","H715"]
[null,null,null,null,"salmour","CN","H716"]
[null,null,null,null,"salo'","BS","H717"]
[null,null,null,null,"salomone","EE","Z724"]
[null,null,null,null,"salorno .salurn.","BZ","H719"]
[null,null,null,null,"salsomaggiore terme","PR","H720"]
[null,null,null,null,"saltara","PU","H721"]
[null,null,null,null,"saltrio","VA","H723"]
[null,null,null,null,"saludecio","RN","H724"]
[null,null,null,null,"saluggia","VC","H725"]
[null,null,null,null,"salussola","BI","H726"]
[null,null,null,null,"saluzzo","CN","H727"]
[null,null,null,null,"salve","LE","H729"]
[null,null,null,null,"salvirola","CR","H731"]
[null,null,null,null,"salvitelle","SA","H732"]
[null,null,null,null,"salza di pinerolo","TO","H734"]
[null,null,null,null,"salza irpina","AV","H733"]
[null,null,null,null,"salzano","VE","H735"]
[null,null,null,null,"samarate","VA","H736"]
[null,null,null,null,"samassi","CA","H738"]
[null,null,null,null,"samatzai","CA","H739"]
[null,null,null,null,"sambuca di sicilia","AG","H743"]
[null,null,null,null,"sambuca pistoiese","PT","H744"]
[null,null,null,null,"sambuci","RM","H745"]
[null,null,null,null,"sambuco","CN","H746"]
[null,null,null,null,"sammichele di bari","BA","H749"]
[null,null,null,null,"samo","RC","H013"]
[null,null,null,null,"samoa (isole)","EE","Z726"]
[null,null,null,null,"samoa americane (isole","EE","Z725"]
[null,null,null,null,"samolaco","SO","H752"]
[null,null,null,null,"samone","TO","H753"]
[null,null,null,null,"samone","TN","H754"]
[null,null,null,null,"sampeyre","CN","H755"]
[null,null,null,null,"samugheo","OR","H756"]
[null,null,null,null,"san bartolomeo al mare","IM","H763"]
[null,null,null,null,"san bartolomeo in galdo","BN","H764"]
[null,null,null,null,"san bartolomeo val cavargna","CO","H760"]
[null,null,null,null,"san basile","CS","H765"]
[null,null,null,null,"san basilio","CA","H766"]
[null,null,null,null,"san bassano","CR","H767"]
[null,null,null,null,"san bellino","RO","H768"]
[null,null,null,null,"san benedetto belbo","CN","H770"]
[null,null,null,null,"san benedetto dei marsi","AQ","H772"]
[null,null,null,null,"san benedetto del tronto","AP","H769"]
[null,null,null,null,"san benedetto in perillis","AQ","H773"]
[null,null,null,null,"san benedetto po","MN","H771"]
[null,null,null,null,"san benedetto ullano","CS","H774"]
[null,null,null,null,"san benedetto val di sambro","BO","G566"]
[null,null,null,null,"san benigno canavese","TO","H775"]
[null,null,null,null,"san bernardino verbano","VB","H777"]
[null,null,null,null,"san biagio della cima","IM","H780"]
[null,null,null,null,"san biagio di callalta","TV","H781"]
[null,null,null,null,"san biagio platani","AG","H778"]
[null,null,null,null,"san biagio saracinisco","FR","H779"]
[null,null,null,null,"san biase","CB","H782"]
[null,null,null,null,"san bonifacio","VR","H783"]
[null,null,null,null,"san buono","CH","H784"]
[null,null,null,null,"san calogero","VV","H785"]
[null,null,null,null,"san candido .innichen.","BZ","H786"]
[null,null,null,null,"san canzian d'isonzo","GO","H787"]
[null,null,null,null,"san carlo canavese","TO","H789"]
[null,null,null,null,"san casciano dei bagni","SI","H790"]
[null,null,null,null,"san casciano in val di pesa","FI","H791"]
[null,null,null,null,"san cassiano","LE","M264"]
[null,null,null,null,"san cataldo","CL","H792"]
[null,null,null,null,"san cesareo","RM","M295"]
[null,null,null,null,"san cesario di lecce","LE","H793"]
[null,null,null,null,"san cesario sul panaro","MO","H794"]
[null,null,null,null,"san chirico nuovo","PZ","H795"]
[null,null,null,null,"san chirico raparo","PZ","H796"]
[null,null,null,null,"san cipirello","PA","H797"]
[null,null,null,null,"san cipriano d'aversa","CE","H798"]
[null,null,null,null,"san cipriano picentino","SA","H800"]
[null,null,null,null,"san cipriano po","PV","H799"]
[null,null,null,null,"san clemente","RN","H801"]
[null,null,null,null,"san colombano al lambro","MI","H803"]
[null,null,null,null,"san colombano belmonte","TO","H804"]
[null,null,null,null,"san colombano certenoli","GE","H802"]
[null,null,null,null,"san cono","CT","H805"]
[null,null,null,null,"san cosmo albanese","CS","H806"]
[null,null,null,null,"san costantino albanese","PZ","H808"]
[null,null,null,null,"san costantino calabro","VV","H807"]
[null,null,null,null,"san costanzo","PU","H809"]
[null,null,null,null,"san cristoforo","AL","H810"]
[null,null,null,null,"san damiano al colle","PV","H814"]
[null,null,null,null,"san damiano d'asti","AT","H811"]
[null,null,null,null,"san damiano macra","CN","H812"]
[null,null,null,null,"san daniele del friuli","UD","H816"]
[null,null,null,null,"san daniele po","CR","H815"]
[null,null,null,null,"san demetrio corone","CS","H818"]
[null,null,null,null,"san demetrio ne' vestini","AQ","H819"]
[null,null,null,null,"san didero","TO","H820"]
[null,null,null,null,"san dona' di piave","VE","H823"]
[null,null,null,null,"san donaci","BR","H822"]
[null,null,null,null,"san donato di lecce","LE","H826"]
[null,null,null,null,"san donato di ninea","CS","H825"]
[null,null,null,null,"san donato milanese","MI","H827"]
[null,null,null,null,"san donato val di comino","FR","H824"]
[null,null,null,null,"san dorligo della valle","TS","D324"]
[null,null,null,null,"san fedele intelvi","CO","H830"]
[null,null,null,null,"san fele","PZ","H831"]
[null,null,null,null,"san felice a cancello","CE","H834"]
[null,null,null,null,"san felice circeo","LT","H836"]
[null,null,null,null,"san felice del benaco","BS","H838"]
[null,null,null,null,"san felice del molise","CB","H833"]
[null,null,null,null,"san felice sul panaro","MO","H835"]
[null,null,null,null,"san ferdinando","RC","M277"]
[null,null,null,null,"san ferdinando di puglia","FG","H839"]
[null,null,null,null,"san fermo della battaglia","CO","H840"]
[null,null,null,null,"san fili","CS","H841"]
[null,null,null,null,"san filippo del mela","ME","H842"]
[null,null,null,null,"san fior","TV","H843"]
[null,null,null,null,"san fiorano","LO","H844"]
[null,null,null,null,"san floriano del collio","GO","H845"]
[null,null,null,null,"san floro","CZ","H846"]
[null,null,null,null,"san francesco al campo","TO","H847"]
[null,null,null,null,"san fratello","ME","H850"]
[null,null,null,null,"san gavino monreale","CA","H856"]
[null,null,null,null,"san gemini","TR","H857"]
[null,null,null,null,"san genesio atesino .jenesien.","BZ","H858"]
[null,null,null,null,"san genesio ed uniti","PV","H859"]
[null,null,null,null,"san gennaro vesuviano","NA","H860"]
[null,null,null,null,"san germano chisone","TO","H862"]
[null,null,null,null,"san germano dei berici","VI","H863"]
[null,null,null,null,"san germano vercellese","VC","H861"]
[null,null,null,null,"san gervasio bresciano","BS","H865"]
[null,null,null,null,"san giacomo degli schiavoni","CB","H867"]
[null,null,null,null,"san giacomo delle segnate","MN","H870"]
[null,null,null,null,"san giacomo filippo","SO","H868"]
[null,null,null,null,"san giacomo vercellese","VC","B952"]
[null,null,null,null,"san gillio","TO","H873"]
[null,null,null,null,"san gimignano","SI","H875"]
[null,null,null,null,"san ginesio","MC","H876"]
[null,null,null,null,"san giorgio a cremano","NA","H892"]
[null,null,null,null,"san giorgio a liri","FR","H880"]
[null,null,null,null,"san giorgio albanese","CS","H881"]
[null,null,null,null,"san giorgio canavese","TO","H890"]
[null,null,null,null,"san giorgio del sannio","BN","H894"]
[null,null,null,null,"san giorgio della richinvelda","PN","H891"]
[null,null,null,null,"san giorgio delle pertiche","PD","H893"]
[null,null,null,null,"san giorgio di lomellina","PV","H885"]
[null,null,null,null,"san giorgio di mantova","MN","H883"]
[null,null,null,null,"san giorgio di nogaro","UD","H895"]
[null,null,null,null,"san giorgio di pesaro","PU","H886"]
[null,null,null,null,"san giorgio di piano","BO","H896"]
[null,null,null,null,"san giorgio in bosco","PD","H897"]
[null,null,null,null,"san giorgio ionico","TA","H882"]
[null,null,null,null,"san giorgio la molara","BN","H898"]
[null,null,null,null,"san giorgio lucano","MT","H888"]
[null,null,null,null,"san giorgio monferrato","AL","H878"]
[null,null,null,null,"san giorgio morgeto","RC","H889"]
[null,null,null,null,"san giorgio piacentino","PC","H887"]
[null,null,null,null,"san giorgio scarampi","AT","H899"]
[null,null,null,null,"san giorgio su legnano","MI","H884"]
[null,null,null,null,"san giorio di susa","TO","H900"]
[null,null,null,null,"san giovanni a piro","SA","H907"]
[null,null,null,null,"san giovanni al natisone","UD","H906"]
[null,null,null,null,"san giovanni bianco","BG","H910"]
[null,null,null,null,"san giovanni d'asso","SI","H911"]
[null,null,null,null,"san giovanni del dosso","MN","H912"]
[null,null,null,null,"san giovanni di gerace","RC","H903"]
[null,null,null,null,"san giovanni gemini","AG","H914"]
[null,null,null,null,"san giovanni ilarione","VR","H916"]
[null,null,null,null,"san giovanni in croce","CR","H918"]
[null,null,null,null,"san giovanni in fiore","CS","H919"]
[null,null,null,null,"san giovanni in galdo","CB","H920"]
[null,null,null,null,"san giovanni in marignano","RN","H921"]
[null,null,null,null,"san giovanni in persiceto","BO","G467"]
[null,null,null,null,"san giovanni incarico","FR","H917"]
[null,null,null,null,"san giovanni la punta","CT","H922"]
[null,null,null,null,"san giovanni lipioni","CH","H923"]
[null,null,null,null,"san giovanni lupatoto","VR","H924"]
[null,null,null,null,"san giovanni rotondo","FG","H926"]
[null,null,null,null,"san giovanni suergiu","CA","G287"]
[null,null,null,null,"san giovanni teatino","CH","D690"]
[null,null,null,null,"san giovanni valdarno","AR","H901"]
[null,null,null,null,"san giuliano del sannio","CB","H928"]
[null,null,null,null,"san giuliano di puglia","CB","H929"]
[null,null,null,null,"san giuliano milanese","MI","H930"]
[null,null,null,null,"san giuliano terme","PI","A562"]
[null,null,null,null,"san giuseppe jato","PA","H933"]
[null,null,null,null,"san giuseppe vesuviano","NA","H931"]
[null,null,null,null,"san giustino","PG","H935"]
[null,null,null,null,"san giusto canavese","TO","H936"]
[null,null,null,null,"san godenzo","FI","H937"]
[null,null,null,null,"san gregorio d'ippona","VV","H941"]
[null,null,null,null,"san gregorio da sassola","RM","H942"]
[null,null,null,null,"san gregorio di catania","CT","H940"]
[null,null,null,null,"san gregorio magno","SA","H943"]
[null,null,null,null,"san gregorio matese","CE","H939"]
[null,null,null,null,"san gregorio nelle alpi","BL","H938"]
[null,null,null,null,"san kitts e nevis","EE","Z533"]
[null,null,null,null,"san lazzaro di savena","BO","H945"]
[null,null,null,null,"san leo","PU","H949"]
[null,null,null,null,"san leonardo","UD","H951"]
[null,null,null,null,"san leonardo in passiria .st leonhard in pas.","BZ","H952"]
[null,null,null,null,"san leucio del sannio","BN","H953"]
[null,null,null,null,"san lorenzello","BN","H955"]
[null,null,null,null,"san lorenzo","RC","H959"]
[null,null,null,null,"san lorenzo al mare","IM","H957"]
[null,null,null,null,"san lorenzo bellizzi","CS","H961"]
[null,null,null,null,"san lorenzo del vallo","CS","H962"]
[null,null,null,null,"san lorenzo di sebato .st lorenzen.","BZ","H956"]
[null,null,null,null,"san lorenzo in banale","TN","H966"]
[null,null,null,null,"san lorenzo in campo","PU","H958"]
[null,null,null,null,"san lorenzo isontino","GO","H964"]
[null,null,null,null,"san lorenzo maggiore","BN","H967"]
[null,null,null,null,"san lorenzo nuovo","VT","H969"]
[null,null,null,null,"san luca","RC","H970"]
[null,null,null,null,"san lucido","CS","H971"]
[null,null,null,null,"san lupo","BN","H973"]
[null,null,null,null,"san mango d'aquino","CZ","H976"]
[null,null,null,null,"san mango piemonte","SA","H977"]
[null,null,null,null,"san mango sul calore","AV","H975"]
[null,null,null,null,"san marcellino","CE","H978"]
[null,null,null,null,"san marcello","AN","H979"]
[null,null,null,null,"san marcello pistoiese","PT","H980"]
[null,null,null,null,"san marco argentano","CS","H981"]
[null,null,null,null,"san marco d'alunzio","ME","H982"]
[null,null,null,null,"san marco dei cavoti","BN","H984"]
[null,null,null,null,"san marco evangelista","CE","F043"]
[null,null,null,null,"san marco in lamis","FG","H985"]
[null,null,null,null,"san marco la catola","FG","H986"]
[null,null,null,null,"san marino","EE","Z130"]
[null,null,null,null,"san martino al tagliamento","PN","H999"]
[null,null,null,null,"san martino alfieri","AT","H987"]
[null,null,null,null,"san martino buon albergo","VR","I003"]
[null,null,null,null,"san martino canavese","TO","H997"]
[null,null,null,null,"san martino d'agri","PZ","H994"]
[null,null,null,null,"san martino dall'argine","MN","I005"]
[null,null,null,null,"san martino del lago","CR","I007"]
[null,null,null,null,"san martino di finita","CS","H992"]
[null,null,null,null,"san martino di lupari","PD","I008"]
[null,null,null,null,"san martino di venezze","RO","H996"]
[null,null,null,null,"san martino in badia .st martin in thurn.","BZ","H988"]
[null,null,null,null,"san martino in passiria .st martin in passei.","BZ","H989"]
[null,null,null,null,"san martino in pensilis","CB","H990"]
[null,null,null,null,"san martino in rio","RE","I011"]
[null,null,null,null,"san martino in strada","LO","I012"]
[null,null,null,null,"san martino sannita","BN","I002"]
[null,null,null,null,"san martino siccomario","PV","I014"]
[null,null,null,null,"san martino sulla marrucina","CH","H991"]
[null,null,null,null,"san martino valle caudina","AV","I016"]
[null,null,null,null,"san marzano di san giuseppe","TA","I018"]
[null,null,null,null,"san marzano oliveto","AT","I017"]
[null,null,null,null,"san marzano sul sarno","SA","I019"]
[null,null,null,null,"san massimo","CB","I023"]
[null,null,null,null,"san maurizio canavese","TO","I024"]
[null,null,null,null,"san maurizio d'opaglio","NO","I025"]
[null,null,null,null,"san mauro castelverde","PA","I028"]
[null,null,null,null,"san mauro cilento","SA","I031"]
[null,null,null,null,"san mauro di saline","VR","H712"]
[null,null,null,null,"san mauro forte","MT","I029"]
[null,null,null,null,"san mauro la bruca","SA","I032"]
[null,null,null,null,"san mauro marchesato","KR","I026"]
[null,null,null,null,"san mauro pascoli","FC","I027"]
[null,null,null,null,"san mauro torinese","TO","I030"]
[null,null,null,null,"san michele al tagliamento","VE","I040"]
[null,null,null,null,"san michele all'adige","TN","I042"]
[null,null,null,null,"san michele di ganzaria","CT","I035"]
[null,null,null,null,"san michele di serino","AV","I034"]
[null,null,null,null,"san michele mondovi'","CN","I037"]
[null,null,null,null,"san michele salentino","BR","I045"]
[null,null,null,null,"san miniato","PI","I046"]
[null,null,null,null,"san nazario","VI","I047"]
[null,null,null,null,"san nazzaro","BN","I049"]
[null,null,null,null,"san nazzaro sesia","NO","I052"]
[null,null,null,null,"san nazzaro val cavargna","CO","I051"]
[null,null,null,null,"san nicola arcella","CS","I060"]
[null,null,null,null,"san nicola baronia","AV","I061"]
[null,null,null,null,"san nicola da crissa","VV","I058"]
[null,null,null,null,"san nicola dell'alto","KR","I057"]
[null,null,null,null,"san nicola la strada","CE","I056"]
[null,null,null,null,"san nicola manfredi","BN","I062"]
[null,null,null,null,"san nicolo' d'arcidano","OR","A368"]
[null,null,null,null,"san nicolo' di comelico","BL","I063"]
[null,null,null,null,"san nicolo' gerrei","CA","G383"]
[null,null,null,null,"san pancrazio .st pankraz.","BZ","I065"]
[null,null,null,null,"san pancrazio salentino","BR","I066"]
[null,null,null,null,"san paolo","BS","G407"]
[null,null,null,null,"san paolo albanese","PZ","B906"]
[null,null,null,null,"san paolo bel sito","NA","I073"]
[null,null,null,null,"san paolo cervo","BI","I074"]
[null,null,null,null,"san paolo d'argon","BG","B310"]
[null,null,null,null,"san paolo di civitate","FG","I072"]
[null,null,null,null,"san paolo di jesi","AN","I071"]
[null,null,null,null,"san paolo solbrito","AT","I076"]
[null,null,null,null,"san pellegrino terme","BG","I079"]
[null,null,null,null,"san pier d'isonzo","GO","I082"]
[null,null,null,null,"san pier niceto","ME","I084"]
[null,null,null,null,"san piero a sieve","FI","I085"]
[null,null,null,null,"san piero patti","ME","I086"]
[null,null,null,null,"san pietro a maida","CZ","I093"]
[null,null,null,null,"san pietro al natisone","UD","I092"]
[null,null,null,null,"san pietro al tanagro","SA","I089"]
[null,null,null,null,"san pietro apostolo","CZ","I095"]
[null,null,null,null,"san pietro avellana","IS","I096"]
[null,null,null,null,"san pietro clarenza","CT","I098"]
[null,null,null,null,"san pietro di cadore","BL","I088"]
[null,null,null,null,"san pietro di carida'","RC","I102"]
[null,null,null,null,"san pietro di feletto","TV","I103"]
[null,null,null,null,"san pietro di morubio","VR","I105"]
[null,null,null,null,"san pietro in amantea","CS","I108"]
[null,null,null,null,"san pietro in cariano","VR","I109"]
[null,null,null,null,"san pietro in casale","BO","I110"]
[null,null,null,null,"san pietro in cerro","PC","G788"]
[null,null,null,null,"san pietro in gu","PD","I107"]
[null,null,null,null,"san pietro in guarano","CS","I114"]
[null,null,null,null,"san pietro in lama","LE","I115"]
[null,null,null,null,"san pietro infine","CE","I113"]
[null,null,null,null,"san pietro mosezzo","NO","I116"]
[null,null,null,null,"san pietro mussolino","VI","I117"]
[null,null,null,null,"san pietro val lemina","TO","I090"]
[null,null,null,null,"san pietro vernotico","BR","I119"]
[null,null,null,null,"san pietro viminario","PD","I120"]
[null,null,null,null,"san pio delle camere","AQ","I121"]
[null,null,null,null,"san polo d'enza","RE","I123"]
[null,null,null,null,"san polo dei cavalieri","RM","I125"]
[null,null,null,null,"san polo di piave","TV","I124"]
[null,null,null,null,"san polo matese","CB","I122"]
[null,null,null,null,"san ponso","TO","I126"]
[null,null,null,null,"san possidonio","MO","I128"]
[null,null,null,null,"san potito sannitico","CE","I130"]
[null,null,null,null,"san potito ultra","AV","I129"]
[null,null,null,null,"san prisco","CE","I131"]
[null,null,null,null,"san procopio","RC","I132"]
[null,null,null,null,"san prospero","MO","I133"]
[null,null,null,null,"san quirico d'orcia","SI","I135"]
[null,null,null,null,"san quirino","PN","I136"]
[null,null,null,null,"san raffaele cimena","TO","I137"]
[null,null,null,null,"san remo","IM","I138"]
[null,null,null,null,"san roberto","RC","I139"]
[null,null,null,null,"san rocco al porto","LO","I140"]
[null,null,null,null,"san romano in garfagnana","LU","I142"]
[null,null,null,null,"san rufo","SA","I143"]
[null,null,null,null,"san salvatore di fitalia","ME","I147"]
[null,null,null,null,"san salvatore monferrato","AL","I144"]
[null,null,null,null,"san salvatore telesino","BN","I145"]
[null,null,null,null,"san salvo","CH","I148"]
[null,null,null,null,"san sebastiano al vesuvio","NA","I151"]
[null,null,null,null,"san sebastiano curone","AL","I150"]
[null,null,null,null,"san sebastiano da po","TO","I152"]
[null,null,null,null,"san secondo di pinerolo","TO","I154"]
[null,null,null,null,"san secondo parmense","PR","I153"]
[null,null,null,null,"san severino lucano","PZ","I157"]
[null,null,null,null,"san severino marche","MC","I156"]
[null,null,null,null,"san severo","FG","I158"]
[null,null,null,null,"san siro","CO","I162"]
[null,null,null,null,"san sossio baronia","AV","I163"]
[null,null,null,null,"san sostene","CZ","I164"]
[null,null,null,null,"san sosti","CS","I165"]
[null,null,null,null,"san sperate","CA","I166"]
[null,null,null,null,"san tammaro","CE","I261"]
[null,null,null,null,"san teodoro","ME","I328"]
[null,null,null,null,"san teodoro","NU","I329"]
[null,null,null,null,"san tomaso agordino","BL","I347"]
[null,null,null,null,"san valentino in abruzzo citeriore","PE","I376"]
[null,null,null,null,"san valentino torio","SA","I377"]
[null,null,null,null,"san venanzo","TR","I381"]
[null,null,null,null,"san vendemiano","TV","I382"]
[null,null,null,null,"san vero milis","OR","I384"]
[null,null,null,null,"san vincenzo","LI","I390"]
[null,null,null,null,"san vincenzo la costa","CS","I388"]
[null,null,null,null,"san vincenzo valle roveto","AQ","I389"]
[null,null,null,null,"san vitaliano","NA","I391"]
[null,null,null,null,"san vito","CA","I402"]
[null,null,null,null,"san vito al tagliamento","PN","I403"]
[null,null,null,null,"san vito al torre","UD","I404"]
[null,null,null,null,"san vito chietino","CH","I394"]
[null,null,null,null,"san vito dei normanni","BR","I396"]
[null,null,null,null,"san vito di cadore","BL","I392"]
[null,null,null,null,"san vito di fagagna","UD","I405"]
[null,null,null,null,"san vito di leguzzano","VI","I401"]
[null,null,null,null,"san vito lo capo","TP","I407"]
[null,null,null,null,"san vito romano","RM","I400"]
[null,null,null,null,"san vito sullo ionio","CZ","I393"]
[null,null,null,null,"san vittore del lazio","FR","I408"]
[null,null,null,null,"san vittore olona","MI","I409"]
[null,null,null,null,"san zeno di montagna","VR","I414"]
[null,null,null,null,"san zeno naviglio","BS","I412"]
[null,null,null,null,"san zenone al lambro","MI","I415"]
[null,null,null,null,"san zenone al po","PV","I416"]
[null,null,null,null,"san zenone degli ezzelini","TV","I417"]
[null,null,null,null,"sanarica","LE","H757"]
[null,null,null,null,"sandigliano","BI","H821"]
[null,null,null,null,"sandrigo","VI","H829"]
[null,null,null,null,"sanfre'","CN","H851"]
[null,null,null,null,"sanfront","CN","H852"]
[null,null,null,null,"sangano","TO","H855"]
[null,null,null,null,"sangiano","VA","H872"]
[null,null,null,null,"sangineto","CS","H877"]
[null,null,null,null,"sanguinetto","VR","H944"]
[null,null,null,null,"sanluri","CA","H974"]
[null,null,null,null,"sannazzaro de' burgondi","PV","I048"]
[null,null,null,null,"sannicandro di bari","BA","I053"]
[null,null,null,null,"sannicandro garganico","FG","I054"]
[null,null,null,null,"sannicola","LE","I059"]
[null,null,null,null,"sansepolcro","AR","I155"]
[null,null,null,null,"sant'agapito","IS","I189"]
[null,null,null,null,"sant'agata bolognese","BO","I191"]
[null,null,null,null,"sant'agata de' goti","BN","I197"]
[null,null,null,null,"sant'agata del bianco","RC","I198"]
[null,null,null,null,"sant'agata di esaro","CS","I192"]
[null,null,null,null,"sant'agata di militello","ME","I199"]
[null,null,null,null,"sant'agata di puglia","FG","I193"]
[null,null,null,null,"sant'agata feltria","PU","I201"]
[null,null,null,null,"sant'agata fossili","AL","I190"]
[null,null,null,null,"sant'agata li battiati","CT","I202"]
[null,null,null,null,"sant'agata sul santerno","RA","I196"]
[null,null,null,null,"sant'agnello","NA","I208"]
[null,null,null,null,"sant'agostino","FE","I209"]
[null,null,null,null,"sant'albano stura","CN","I210"]
[null,null,null,null,"sant'alessio con vialone","PV","I213"]
[null,null,null,null,"sant'alessio in aspromonte","RC","I214"]
[null,null,null,null,"sant'alessio siculo","ME","I215"]
[null,null,null,null,"sant'alfio","CT","I216"]
[null,null,null,null,"sant'ambrogio di torino","TO","I258"]
[null,null,null,null,"sant'ambrogio di valpolicella","VR","I259"]
[null,null,null,null,"sant'ambrogio sul garigliano","FR","I256"]
[null,null,null,null,"sant'anastasia","NA","I262"]
[null,null,null,null,"sant'anatolia di narco","PG","I263"]
[null,null,null,null,"sant'andrea apostolo dello ionio","CZ","I266"]
[null,null,null,null,"sant'andrea del garigliano","FR","I265"]
[null,null,null,null,"sant'andrea di conza","AV","I264"]
[null,null,null,null,"sant'andrea frius","CA","I271"]
[null,null,null,null,"sant'angelo a cupolo","BN","I277"]
[null,null,null,null,"sant'angelo a fasanella","SA","I278"]
[null,null,null,null,"sant'angelo a scala","AV","I280"]
[null,null,null,null,"sant'angelo all'esca","AV","I279"]
[null,null,null,null,"sant'angelo d'alife","CE","I273"]
[null,null,null,null,"sant'angelo dei lombardi","AV","I281"]
[null,null,null,null,"sant'angelo del pesco","IS","I282"]
[null,null,null,null,"sant'angelo di brolo","ME","I283"]
[null,null,null,null,"sant'angelo di piove di sacco","PD","I275"]
[null,null,null,null,"sant'angelo in lizzola","PU","I285"]
[null,null,null,null,"sant'angelo in pontano","MC","I286"]
[null,null,null,null,"sant'angelo in vado","PU","I287"]
[null,null,null,null,"sant'angelo le fratte","PZ","I288"]
[null,null,null,null,"sant'angelo limosano","CB","I289"]
[null,null,null,null,"sant'angelo lodigiano","LO","I274"]
[null,null,null,null,"sant'angelo lomellina","PV","I276"]
[null,null,null,null,"sant'angelo muxaro","AG","I290"]
[null,null,null,null,"sant'angelo romano","RM","I284"]
[null,null,null,null,"sant'anna arresi","CA","M209"]
[null,null,null,null,"sant'anna d'alfaedo","VR","I292"]
[null,null,null,null,"sant'antimo","NA","I293"]
[null,null,null,null,"sant'antioco","CA","I294"]
[null,null,null,null,"sant'antonino di susa","TO","I296"]
[null,null,null,null,"sant'antonio abate","NA","I300"]
[null,null,null,null,"sant'antonio di gallura","SS","M276"]
[null,null,null,null,"sant'apollinare","FR","I302"]
[null,null,null,null,"sant'arcangelo","PZ","I305"]
[null,null,null,null,"sant'arcangelo trimonte","BN","F557"]
[null,null,null,null,"sant'arpino","CE","I306"]
[null,null,null,null,"sant'arsenio","SA","I307"]
[null,null,null,null,"sant'egidio alla vibrata","TE","I318"]
[null,null,null,null,"sant'egidio del monte albino","SA","I317"]
[null,null,null,null,"sant'elena","PD","I319"]
[null,null,null,null,"sant'elena sannita","IS","B466"]
[null,null,null,null,"sant'elia a pianisi","CB","I320"]
[null,null,null,null,"sant'elia fiumerapido","FR","I321"]
[null,null,null,null,"sant'elpidio a mare","AP","I324"]
[null,null,null,null,"sant'eufemia a maiella","PE","I332"]
[null,null,null,null,"sant'eufemia d'aspromonte","RC","I333"]
[null,null,null,null,"sant'eusanio del sangro","CH","I335"]
[null,null,null,null,"sant'eusanio forconese","AQ","I336"]
[null,null,null,null,"sant'ilario d'enza","RE","I342"]
[null,null,null,null,"sant'ilario dello ionio","RC","I341"]
[null,null,null,null,"sant'ippolito","PU","I344"]
[null,null,null,null,"sant'olcese","GE","I346"]
[null,null,null,null,"sant'omero","TE","I348"]
[null,null,null,null,"sant'omobono imagna","BG","I349"]
[null,null,null,null,"sant'onofrio","VV","I350"]
[null,null,null,null,"sant'oreste","RM","I352"]
[null,null,null,null,"sant'orsola terme","TN","I354"]
[null,null,null,null,"sant'urbano","PD","I375"]
[null,null,null,null,"santa brigida","BG","I168"]
[null,null,null,null,"santa caterina albanese","CS","I171"]
[null,null,null,null,"santa caterina dello ionio","CZ","I170"]
[null,null,null,null,"santa caterina villarmosa","CL","I169"]
[null,null,null,null,"santa cesarea terme","LE","I172"]
[null,null,null,null,"santa cristina d'aspromonte","RC","I176"]
[null,null,null,null,"santa cristina e bissone","PV","I175"]
[null,null,null,null,"santa cristina gela","PA","I174"]
[null,null,null,null,"santa cristina valgardena .st christina in g.","BZ","I173"]
[null,null,null,null,"santa croce camerina","RG","I178"]
[null,null,null,null,"santa croce del sannio","BN","I179"]
[null,null,null,null,"santa croce di magliano","CB","I181"]
[null,null,null,null,"santa croce sull'arno","PI","I177"]
[null,null,null,null,"santa domenica talao","CS","I183"]
[null,null,null,null,"santa domenica vittoria","ME","I184"]
[null,null,null,null,"santa elisabetta","AG","I185"]
[null,null,null,null,"santa fiora","GR","I187"]
[null,null,null,null,"santa flavia","PA","I188"]
[null,null,null,null,"santa giuletta","PV","I203"]
[null,null,null,null,"santa giusta","OR","I205"]
[null,null,null,null,"santa giustina","BL","I206"]
[null,null,null,null,"santa giustina in colle","PD","I207"]
[null,null,null,null,"santa luce","PI","I217"]
[null,null,null,null,"santa lucia del mela","ME","I220"]
[null,null,null,null,"santa lucia di piave","TV","I221"]
[null,null,null,null,"santa lucia di serino","AV","I219"]
[null,null,null,null,"santa margherita d'adige","PD","I226"]
[null,null,null,null,"santa margherita di belice","AG","I224"]
[null,null,null,null,"santa margherita di staffora","PV","I230"]
[null,null,null,null,"santa margherita ligure","GE","I225"]
[null,null,null,null,"santa maria a monte","PI","I232"]
[null,null,null,null,"santa maria a vico","CE","I233"]
[null,null,null,null,"santa maria capua vetere","CE","I234"]
[null,null,null,null,"santa maria coghinas","SS","M284"]
[null,null,null,null,"santa maria del cedro","CS","C717"]
[null,null,null,null,"santa maria del molise","IS","I238"]
[null,null,null,null,"santa maria della versa","PV","I237"]
[null,null,null,null,"santa maria di licodia","CT","I240"]
[null,null,null,null,"santa maria di sala","VE","I242"]
[null,null,null,null,"santa maria hoe'","LC","I243"]
[null,null,null,null,"santa maria imbaro","CH","I244"]
[null,null,null,null,"santa maria la carita'","NA","M273"]
[null,null,null,null,"santa maria la fossa","CE","I247"]
[null,null,null,null,"santa maria la longa","UD","I248"]
[null,null,null,null,"santa maria maggiore","VB","I249"]
[null,null,null,null,"santa maria nuova","AN","I251"]
[null,null,null,null,"santa marina","SA","I253"]
[null,null,null,null,"santa marina salina","ME","I254"]
[null,null,null,null,"santa marinella","RM","I255"]
[null,null,null,null,"santa ninfa","TP","I291"]
[null,null,null,null,"santa paolina","AV","I301"]
[null,null,null,null,"santa severina","KR","I308"]
[null,null,null,null,"santa sofia","FC","I310"]
[null,null,null,null,"santa sofia d'epiro","CS","I309"]
[null,null,null,null,"santa teresa di riva","ME","I311"]
[null,null,null,null,"santa teresa gallura","SS","I312"]
[null,null,null,null,"santa venerina","CT","I314"]
[null,null,null,null,"santa vittoria d'alba","CN","I316"]
[null,null,null,null,"santa vittoria in matenano","AP","I315"]
[null,null,null,null,"santadi","CA","I182"]
[null,null,null,null,"santarcangelo di romagna","RN","I304"]
[null,null,null,null,"sante marie","AQ","I326"]
[null,null,null,null,"sant'elena isola","EE","Z340"]
[null,null,null,null,"santena","TO","I327"]
[null,null,null,null,"santeramo in colle","BA","I330"]
[null,null,null,null,"santhia'","VC","I337"]
[null,null,null,null,"santi cosma e damiano","LT","I339"]
[null,null,null,null,"santo stefano al mare","IM","I365"]
[null,null,null,null,"santo stefano belbo","CN","I367"]
[null,null,null,null,"santo stefano d'aveto","GE","I368"]
[null,null,null,null,"santo stefano del sole","AV","I357"]
[null,null,null,null,"santo stefano di cadore","BL","C919"]
[null,null,null,null,"santo stefano di camastra","ME","I370"]
[null,null,null,null,"santo stefano di magra","SP","I363"]
[null,null,null,null,"santo stefano di rogliano","CS","I359"]
[null,null,null,null,"santo stefano di sessanio","AQ","I360"]
[null,null,null,null,"santo stefano in aspromonte","RC","I371"]
[null,null,null,null,"santo stefano lodigiano","LO","I362"]
[null,null,null,null,"santo stefano quisquina","AG","I356"]
[null,null,null,null,"santo stefano roero","CN","I372"]
[null,null,null,null,"santo stefano ticino","MI","I361"]
[null,null,null,null,"santo stino di livenza","VE","I373"]
[null,null,null,null,"santomenna","SA","I260"]
[null,null,null,null,"santopadre","FR","I351"]
[null,null,null,null,"santorso","VI","I353"]
[null,null,null,null,"santu lussurgiu","OR","I374"]
[null,null,null,null,"sanza","SA","I410"]
[null,null,null,null,"sanzeno","TN","I411"]
[null,null,null,null,"sao tome' e principe (","EE","Z341"]
[null,null,null,null,"saonara","PD","I418"]
[null,null,null,null,"saponara","ME","I420"]
[null,null,null,null,"sappada","BL","I421"]
[null,null,null,null,"sapri","SA","I422"]
[null,null,null,null,"saracena","CS","I423"]
[null,null,null,null,"saracinesco","RM","I424"]
[null,null,null,null,"sarcedo","VI","I425"]
[null,null,null,null,"sarconi","PZ","I426"]
[null,null,null,null,"sardara","CA","I428"]
[null,null,null,null,"sardigliano","AL","I429"]
[null,null,null,null,"sarego","VI","I430"]
[null,null,null,null,"sarentino .sarntal.","BZ","I431"]
[null,null,null,null,"sarezzano","AL","I432"]
[null,null,null,null,"sarezzo","BS","I433"]
[null,null,null,null,"sarmato","PC","I434"]
[null,null,null,null,"sarmede","TV","I435"]
[null,null,null,null,"sarnano","MC","I436"]
[null,null,null,null,"sarnico","BG","I437"]
[null,null,null,null,"sarno","SA","I438"]
[null,null,null,null,"sarnonico","TN","I439"]
[null,null,null,null,"saronno","VA","I441"]
[null,null,null,null,"sarre","AO","I442"]
[null,null,null,null,"sarroch","CA","I443"]
[null,null,null,null,"sarsina","FC","I444"]
[null,null,null,null,"sarteano","SI","I445"]
[null,null,null,null,"sartirana lomellina","PV","I447"]
[null,null,null,null,"sarule","NU","I448"]
[null,null,null,null,"sarzana","SP","I449"]
[null,null,null,null,"sassano","SA","I451"]
[null,null,null,null,"sassari","SS","I452"]
[null,null,null,null,"sassello","SV","I453"]
[null,null,null,null,"sassetta","LI","I454"]
[null,null,null,null,"sassinoro","BN","I455"]
[null,null,null,null,"sasso di castalda","PZ","I457"]
[null,null,null,null,"sasso marconi","BO","G972"]
[null,null,null,null,"sassocorvaro","PU","I459"]
[null,null,null,null,"sassofeltrio","PU","I460"]
[null,null,null,null,"sassoferrato","AN","I461"]
[null,null,null,null,"sassuolo","MO","I462"]
[null,null,null,null,"satriano","CZ","I463"]
[null,null,null,null,"satriano di lucania","PZ","G614"]
[null,null,null,null,"sauris","UD","I464"]
[null,null,null,null,"sauze d'oulx","TO","I466"]
[null,null,null,null,"sauze di cesana","TO","I465"]
[null,null,null,null,"sava","TA","I467"]
[null,null,null,null,"savelli","KR","I468"]
[null,null,null,null,"saviano","NA","I469"]
[null,null,null,null,"savigliano","CN","I470"]
[null,null,null,null,"savignano irpino","AV","I471"]
[null,null,null,null,"savignano sul panaro","MO","I473"]
[null,null,null,null,"savignano sul rubicone","FC","I472"]
[null,null,null,null,"savigno","BO","I474"]
[null,null,null,null,"savignone","GE","I475"]
[null,null,null,null,"saviore dell'adamello","BS","I476"]
[null,null,null,null,"savoca","ME","I477"]
[null,null,null,null,"savogna","UD","I478"]
[null,null,null,null,"savogna d'isonzo","GO","I479"]
[null,null,null,null,"savoia di lucania","PZ","H730"]
[null,null,null,null,"savona","SV","I480"]
[null,null,null,null,"scafa","PE","I482"]
[null,null,null,null,"scafati","SA","I483"]
[null,null,null,null,"scagnello","CN","I484"]
[null,null,null,null,"scala","SA","I486"]
[null,null,null,null,"scala coeli","CS","I485"]
[null,null,null,null,"scaldasole","PV","I487"]
[null,null,null,null,"scalea","CS","I489"]
[null,null,null,null,"scalenghe","TO","I490"]
[null,null,null,null,"scaletta zanclea","ME","I492"]
[null,null,null,null,"scampitella","AV","I493"]
[null,null,null,null,"scandale","KR","I494"]
[null,null,null,null,"scandiano","RE","I496"]
[null,null,null,null,"scandicci","FI","B962"]
[null,null,null,null,"scandolara ravara","CR","I497"]
[null,null,null,null,"scandolara ripa d'oglio","CR","I498"]
[null,null,null,null,"scandriglia","RI","I499"]
[null,null,null,null,"scanno","AQ","I501"]
[null,null,null,null,"scano di montiferro","OR","I503"]
[null,null,null,null,"scansano","GR","I504"]
[null,null,null,null,"scanzano jonico","MT","M256"]
[null,null,null,null,"scanzorosciate","BG","I506"]
[null,null,null,null,"scapoli","IS","I507"]
[null,null,null,null,"scarlino","GR","I510"]
[null,null,null,null,"scarmagno","TO","I511"]
[null,null,null,null,"scarnafigi","CN","I512"]
[null,null,null,null,"scarperia","FI","I514"]
[null,null,null,null,"scena .schonna.","BZ","I519"]
[null,null,null,null,"scerni","CH","I520"]
[null,null,null,null,"scheggia e pascelupo","PG","I522"]
[null,null,null,null,"scheggino","PG","I523"]
[null,null,null,null,"schiavi di abruzzo","CH","I526"]
[null,null,null,null,"schiavon","VI","I527"]
[null,null,null,null,"schignano","CO","I529"]
[null,null,null,null,"schilpario","BG","I530"]
[null,null,null,null,"schio","VI","I531"]
[null,null,null,null,"schivenoglia","MN","I532"]
[null,null,null,null,"sciacca","AG","I533"]
[null,null,null,null,"sciara","PA","I534"]
[null,null,null,null,"scicli","RG","I535"]
[null,null,null,null,"scido","RC","I536"]
[null,null,null,null,"scigliano","CS","D290"]
[null,null,null,null,"scilla","RC","I537"]
[null,null,null,null,"scillato","PA","I538"]
[null,null,null,null,"sciolze","TO","I539"]
[null,null,null,null,"scisciano","NA","I540"]
[null,null,null,null,"sclafani bagni","PA","I541"]
[null,null,null,null,"scontrone","AQ","I543"]
[null,null,null,null,"scopa","VC","I544"]
[null,null,null,null,"scopello","VC","I545"]
[null,null,null,null,"scoppito","AQ","I546"]
[null,null,null,null,"scordia","CT","I548"]
[null,null,null,null,"scorrano","LE","I549"]
[null,null,null,null,"scorze'","VE","I551"]
[null,null,null,null,"scurcola marsicana","AQ","I553"]
[null,null,null,null,"scurelle","TN","I554"]
[null,null,null,null,"scurzolengo","AT","I555"]
[null,null,null,null,"seborga","IM","I556"]
[null,null,null,null,"secinaro","AQ","I558"]
[null,null,null,null,"secli'","LE","I559"]
[null,null,null,null,"secugnago","LO","I561"]
[null,null,null,null,"sedegliano","UD","I562"]
[null,null,null,null,"sedico","BL","I563"]
[null,null,null,null,"sedilo","OR","I564"]
[null,null,null,null,"sedini","SS","I565"]
[null,null,null,null,"sedriano","MI","I566"]
[null,null,null,null,"sedrina","BG","I567"]
[null,null,null,null,"sefro","MC","I569"]
[null,null,null,null,"segariu","CA","I570"]
[null,null,null,null,"seggiano","GR","I571"]
[null,null,null,null,"segni","RM","I573"]
[null,null,null,null,"segonzano","TN","I576"]
[null,null,null,null,"segrate","MI","I577"]
[null,null,null,null,"segusino","TV","I578"]
[null,null,null,null,"seicelle (isole)","EE","Z342"]
[null,null,null,null,"selargius","CA","I580"]
[null,null,null,null,"selci","RI","I581"]
[null,null,null,null,"selegas","CA","I582"]
[null,null,null,null,"sellano","PG","I585"]
[null,null,null,null,"sellero","BS","I588"]
[null,null,null,null,"sellia","CZ","I589"]
[null,null,null,null,"sellia marina","CZ","I590"]
[null,null,null,null,"selva dei molini .muhlwald.","BZ","I593"]
[null,null,null,null,"selva di cadore","BL","I592"]
[null,null,null,null,"selva di progno","VR","I594"]
[null,null,null,null,"selva di val gardena .wolkenstein in groeden.","BZ","I591"]
[null,null,null,null,"selvazzano dentro","PD","I595"]
[null,null,null,null,"selve marcone","BI","I596"]
[null,null,null,null,"selvino","BG","I597"]
[null,null,null,null,"semestene","SS","I598"]
[null,null,null,null,"semiana","PV","I599"]
[null,null,null,null,"seminara","RC","I600"]
[null,null,null,null,"semproniano","GR","I601"]
[null,null,null,null,"senago","MI","I602"]
[null,null,null,null,"senales .schnals.","BZ","I604"]
[null,null,null,null,"senale-san felice .unsere liebe frau im wald.","BZ","I603"]
[null,null,null,null,"senegal","EE","Z343"]
[null,null,null,null,"seneghe","OR","I605"]
[null,null,null,null,"senerchia","AV","I606"]
[null,null,null,null,"seniga","BS","I607"]
[null,null,null,null,"senigallia","AN","I608"]
[null,null,null,null,"senis","OR","I609"]
[null,null,null,null,"senise","PZ","I610"]
[null,null,null,null,"senna comasco","CO","I611"]
[null,null,null,null,"senna lodigiana","LO","I612"]
[null,null,null,null,"sennariolo","OR","I613"]
[null,null,null,null,"sennori","SS","I614"]
[null,null,null,null,"senorbi'","CA","I615"]
[null,null,null,null,"sepino","CB","I618"]
[null,null,null,null,"seppiana","VB","I619"]
[null,null,null,null,"sequals","PN","I621"]
[null,null,null,null,"seravezza","LU","I622"]
[null,null,null,null,"serdiana","CA","I624"]
[null,null,null,null,"seregno","MI","I625"]
[null,null,null,null,"seren del grappa","BL","I626"]
[null,null,null,null,"sergnano","CR","I627"]
[null,null,null,null,"seriate","BG","I628"]
[null,null,null,null,"serina","BG","I629"]
[null,null,null,null,"serino","AV","I630"]
[null,null,null,null,"serle","BS","I631"]
[null,null,null,null,"sermide","MN","I632"]
[null,null,null,null,"sermoneta","LT","I634"]
[null,null,null,null,"sernaglia della battaglia","TV","I635"]
[null,null,null,null,"sernio","SO","I636"]
[null,null,null,null,"serole","AT","I637"]
[null,null,null,null,"serra d'aiello","CS","I642"]
[null,null,null,null,"serra de' conti","AN","I643"]
[null,null,null,null,"serra pedace","CS","I650"]
[null,null,null,null,"serra ricco'","GE","I640"]
[null,null,null,null,"serra san bruno","VV","I639"]
[null,null,null,null,"serra san quirico","AN","I653"]
[null,null,null,null,"serra sant'abbondio","PU","I654"]
[null,null,null,null,"serracapriola","FG","I641"]
[null,null,null,null,"serradifalco","CL","I644"]
[null,null,null,null,"serralunga d'alba","CN","I646"]
[null,null,null,null,"serralunga di crea","AL","I645"]
[null,null,null,null,"serramanna","CA","I647"]
[null,null,null,null,"serramazzoni","MO","F357"]
[null,null,null,null,"serramezzana","SA","I648"]
[null,null,null,null,"serramonacesca","PE","I649"]
[null,null,null,null,"serrapetrona","MC","I651"]
[null,null,null,null,"serrara fontana","NA","I652"]
[null,null,null,null,"serrastretta","CZ","I655"]
[null,null,null,null,"serrata","RC","I656"]
[null,null,null,null,"serravalle a po","MN","I662"]
[null,null,null,null,"serravalle di chienti","MC","I661"]
[null,null,null,null,"serravalle langhe","CN","I659"]
[null,null,null,null,"serravalle pistoiese","PT","I660"]
[null,null,null,null,"serravalle scrivia","AL","I657"]
[null,null,null,null,"serravalle sesia","VC","I663"]
[null,null,null,null,"serre","SA","I666"]
[null,null,null,null,"serrenti","CA","I667"]
[null,null,null,null,"serri","NU","I668"]
[null,null,null,null,"serrone","FR","I669"]
[null,null,null,null,"serrungarina","PU","I670"]
[null,null,null,null,"sersale","CZ","I671"]
[null,null,null,null,"servigliano","AP","C070"]
[null,null,null,null,"sessa aurunca","CE","I676"]
[null,null,null,null,"sessa cilento","SA","I677"]
[null,null,null,null,"sessame","AT","I678"]
[null,null,null,null,"sessano del molise","IS","I679"]
[null,null,null,null,"sesta godano","SP","E070"]
[null,null,null,null,"sestino","AR","I681"]
[null,null,null,null,"sesto .sexten.","BZ","I687"]
[null,null,null,null,"sesto al reghena","PN","I686"]
[null,null,null,null,"sesto calende","VA","I688"]
[null,null,null,null,"sesto campano","IS","I682"]
[null,null,null,null,"sesto ed uniti","CR","I683"]
[null,null,null,null,"sesto fiorentino","FI","I684"]
[null,null,null,null,"sesto san giovanni","MI","I690"]
[null,null,null,null,"sestola","MO","I689"]
[null,null,null,null,"sestri levante","GE","I693"]
[null,null,null,null,"sestriere","TO","I692"]
[null,null,null,null,"sestu","CA","I695"]
[null,null,null,null,"settala","MI","I696"]
[null,null,null,null,"settefrati","FR","I697"]
[null,null,null,null,"settime","AT","I698"]
[null,null,null,null,"settimo milanese","MI","I700"]
[null,null,null,null,"settimo rottaro","TO","I701"]
[null,null,null,null,"settimo san pietro","CA","I699"]
[null,null,null,null,"settimo torinese","TO","I703"]
[null,null,null,null,"settimo vittone","TO","I702"]
[null,null,null,null,"settingiano","CZ","I704"]
[null,null,null,null,"setzu","CA","I705"]
[null,null,null,null,"seui","NU","I706"]
[null,null,null,null,"seulo","NU","I707"]
[null,null,null,null,"seveso","MI","I709"]
[null,null,null,null,"sezzadio","AL","I711"]
[null,null,null,null,"sezze","LT","I712"]
[null,null,null,null,"sfruz","TN","I714"]
[null,null,null,null,"sgonico","TS","I715"]
[null,null,null,null,"sgurgola","FR","I716"]
[null,null,null,null,"siamaggiore","OR","I717"]
[null,null,null,null,"siamanna","OR","I718"]
[null,null,null,null,"siano","SA","I720"]
[null,null,null,null,"siapiccia","OR","I721"]
[null,null,null,null,"sicignano degli alburni","SA","M253"]
[null,null,null,null,"siculiana","AG","I723"]
[null,null,null,null,"siddi","CA","I724"]
[null,null,null,null,"siderno","RC","I725"]
[null,null,null,null,"siena","SI","I726"]
[null,null,null,null,"sierra leone","EE","Z344"]
[null,null,null,null,"sigillo","PG","I727"]
[null,null,null,null,"signa","FI","I728"]
[null,null,null,null,"sikkim","EE","Z239"]
[null,null,null,null,"silandro .schlanders.","BZ","I729"]
[null,null,null,null,"silanus","NU","I730"]
[null,null,null,null,"silea","TV","F116"]
[null,null,null,null,"siligo","SS","I732"]
[null,null,null,null,"siliqua","CA","I734"]
[null,null,null,null,"silius","CA","I735"]
[null,null,null,null,"sillano","LU","I737"]
[null,null,null,null,"sillavengo","NO","I736"]
[null,null,null,null,"silvano d'orba","AL","I738"]
[null,null,null,null,"silvano pietra","PV","I739"]
[null,null,null,null,"silvi","TE","I741"]
[null,null,null,null,"simala","OR","I742"]
[null,null,null,null,"simaxis","OR","I743"]
[null,null,null,null,"simbario","VV","I744"]
[null,null,null,null,"simeri crichi","CZ","I745"]
[null,null,null,null,"sinagra","ME","I747"]
[null,null,null,null,"sinalunga","SI","A468"]
[null,null,null,null,"sindia","NU","I748"]
[null,null,null,null,"singapore","EE","Z248"]
[null,null,null,null,"sini","OR","I749"]
[null,null,null,null,"sinio","CN","I750"]
[null,null,null,null,"siniscola","NU","I751"]
[null,null,null,null,"sinnai","CA","I752"]
[null,null,null,null,"sinopoli","RC","I753"]
[null,null,null,null,"siracusa","SR","I754"]
[null,null,null,null,"siria","EE","Z240"]
[null,null,null,null,"sirignano","AV","I756"]
[null,null,null,null,"siris","OR","I757"]
[null,null,null,null,"sirmione","BS","I633"]
[null,null,null,null,"sirolo","AN","I758"]
[null,null,null,null,"sirone","LC","I759"]
[null,null,null,null,"siror","TN","I760"]
[null,null,null,null,"sirtori","LC","I761"]
[null,null,null,null,"sissa","PR","I763"]
[null,null,null,null,"siurgus donigala","CA","I765"]
[null,null,null,null,"siziano","PV","E265"]
[null,null,null,null,"sizzano","NO","I767"]
[null,null,null,null,"slovacchia","EE","Z155"]
[null,null,null,null,"slovenia","EE","Z150"]
[null,null,null,null,"sluderno .schluderns.","BZ","I771"]
[null,null,null,null,"smarano","TN","I772"]
[null,null,null,null,"smerillo","AP","I774"]
[null,null,null,null,"soave","VR","I775"]
[null,null,null,null,"socchieve","UD","I777"]
[null,null,null,null,"soddi'","OR","I778"]
[null,null,null,null,"sogliano al rubicone","FC","I779"]
[null,null,null,null,"sogliano cavour","LE","I780"]
[null,null,null,null,"soglio","AT","I781"]
[null,null,null,null,"soiano del lago","BS","I782"]
[null,null,null,null,"solagna","VI","I783"]
[null,null,null,null,"solarino","SR","I785"]
[null,null,null,null,"solaro","MI","I786"]
[null,null,null,null,"solarolo","RA","I787"]
[null,null,null,null,"solarolo rainerio","CR","I790"]
[null,null,null,null,"solarussa","OR","I791"]
[null,null,null,null,"solbiate","CO","I792"]
[null,null,null,null,"solbiate arno","VA","I793"]
[null,null,null,null,"solbiate olona","VA","I794"]
[null,null,null,null,"soldano","IM","I796"]
[null,null,null,null,"soleminis","CA","I797"]
[null,null,null,null,"solero","AL","I798"]
[null,null,null,null,"solesino","PD","I799"]
[null,null,null,null,"soleto","LE","I800"]
[null,null,null,null,"solferino","MN","I801"]
[null,null,null,null,"soliera","MO","I802"]
[null,null,null,null,"solignano","PR","I803"]
[null,null,null,null,"solofra","AV","I805"]
[null,null,null,null,"solonghello","AL","I808"]
[null,null,null,null,"solopaca","BN","I809"]
[null,null,null,null,"solto collina","BG","I812"]
[null,null,null,null,"solza","BG","I813"]
[null,null,null,null,"somaglia","LO","I815"]
[null,null,null,null,"somalia","EE","Z345"]
[null,null,null,null,"somalia francese","EE","Z346"]
[null,null,null,null,"somano","CN","I817"]
[null,null,null,null,"somma lombardo","VA","I819"]
[null,null,null,null,"somma vesuviana","NA","I820"]
[null,null,null,null,"sommacampagna","VR","I821"]
[null,null,null,null,"sommariva del bosco","CN","I822"]
[null,null,null,null,"sommariva perno","CN","I823"]
[null,null,null,null,"sommatino","CL","I824"]
[null,null,null,null,"sommo","PV","I825"]
[null,null,null,null,"sona","VR","I826"]
[null,null,null,null,"soncino","CR","I827"]
[null,null,null,null,"sondalo","SO","I828"]
[null,null,null,null,"sondrio","SO","I829"]
[null,null,null,null,"songavazzo","BG","I830"]
[null,null,null,null,"sonico","BS","I831"]
[null,null,null,null,"sonnino","LT","I832"]
[null,null,null,null,"soprana","BI","I835"]
[null,null,null,null,"sora","FR","I838"]
[null,null,null,null,"soraga","TN","I839"]
[null,null,null,null,"soragna","PR","I840"]
[null,null,null,null,"sorano","GR","I841"]
[null,null,null,null,"sorbo san basile","CZ","I844"]
[null,null,null,null,"sorbo serpico","AV","I843"]
[null,null,null,null,"sorbolo","PR","I845"]
[null,null,null,null,"sordevolo","BI","I847"]
[null,null,null,null,"sordio","LO","I848"]
[null,null,null,null,"soresina","CR","I849"]
[null,null,null,null,"sorga'","VR","I850"]
[null,null,null,null,"sorgono","NU","I851"]
[null,null,null,null,"sori","GE","I852"]
[null,null,null,null,"sorianello","VV","I853"]
[null,null,null,null,"soriano calabro","VV","I854"]
[null,null,null,null,"soriano nel cimino","VT","I855"]
[null,null,null,null,"sorico","CO","I856"]
[null,null,null,null,"soriso","NO","I857"]
[null,null,null,null,"sorisole","BG","I858"]
[null,null,null,null,"sormano","CO","I860"]
[null,null,null,null,"sorradile","OR","I861"]
[null,null,null,null,"sorrento","NA","I862"]
[null,null,null,null,"sorso","SS","I863"]
[null,null,null,null,"sortino","SR","I864"]
[null,null,null,null,"sospiro","CR","I865"]
[null,null,null,null,"sospirolo","BL","I866"]
[null,null,null,null,"sossano","VI","I867"]
[null,null,null,null,"sostegno","BI","I868"]
[null,null,null,null,"sotto il monte giovanni xxiii","BG","I869"]
[null,null,null,null,"sover","TN","I871"]
[null,null,null,null,"soverato","CZ","I872"]
[null,null,null,null,"sovere","BG","I873"]
[null,null,null,null,"soveria mannelli","CZ","I874"]
[null,null,null,null,"soveria simeri","CZ","I875"]
[null,null,null,null,"soverzene","BL","I876"]
[null,null,null,null,"sovicille","SI","I877"]
[null,null,null,null,"sovico","MI","I878"]
[null,null,null,null,"sovizzo","VI","I879"]
[null,null,null,null,"sovramonte","BL","I673"]
[null,null,null,null,"sozzago","NO","I880"]
[null,null,null,null,"spadafora","ME","I881"]
[null,null,null,null,"spadola","VV","I884"]
[null,null,null,null,"spagna","EE","Z131"]
[null,null,null,null,"sparanise","CE","I885"]
[null,null,null,null,"sparone","TO","I886"]
[null,null,null,null,"specchia","LE","I887"]
[null,null,null,null,"spello","PG","I888"]
[null,null,null,null,"spera","TN","I889"]
[null,null,null,null,"sperlinga","EN","I891"]
[null,null,null,null,"sperlonga","LT","I892"]
[null,null,null,null,"sperone","AV","I893"]
[null,null,null,null,"spessa","PV","I894"]
[null,null,null,null,"spezzano albanese","CS","I895"]
[null,null,null,null,"spezzano della sila","CS","I896"]
[null,null,null,null,"spezzano piccolo","CS","I898"]
[null,null,null,null,"spiazzo","TN","I899"]
[null,null,null,null,"spigno monferrato","AL","I901"]
[null,null,null,null,"spigno saturnia","LT","I902"]
[null,null,null,null,"spilamberto","MO","I903"]
[null,null,null,null,"spilimbergo","PN","I904"]
[null,null,null,null,"spilinga","VV","I905"]
[null,null,null,null,"spinadesco","CR","I906"]
[null,null,null,null,"spinazzola","BA","I907"]
[null,null,null,null,"spinea","VE","I908"]
[null,null,null,null,"spineda","CR","I909"]
[null,null,null,null,"spinete","CB","I910"]
[null,null,null,null,"spineto scrivia","AL","I911"]
[null,null,null,null,"spinetoli","AP","I912"]
[null,null,null,null,"spino d'adda","CR","I914"]
[null,null,null,null,"spinone al lago","BG","I916"]
[null,null,null,null,"spinoso","PZ","I917"]
[null,null,null,null,"spirano","BG","I919"]
[null,null,null,null,"spoleto","PG","I921"]
[null,null,null,null,"spoltore","PE","I922"]
[null,null,null,null,"spongano","LE","I923"]
[null,null,null,null,"spormaggiore","TN","I924"]
[null,null,null,null,"sporminore","TN","I925"]
[null,null,null,null,"spotorno","SV","I926"]
[null,null,null,null,"spresiano","TV","I927"]
[null,null,null,null,"spriana","SO","I928"]
[null,null,null,null,"squillace","CZ","I929"]
[null,null,null,null,"squinzano","LE","I930"]
[null,null,null,null,"sry lanka o ceylon","EE","Z209"]
[null,null,null,null,"staffolo","AN","I932"]
[null,null,null,null,"stagno lombardo","CR","I935"]
[null,null,null,null,"staiti","RC","I936"]
[null,null,null,null,"staletti","CZ","I937"]
[null,null,null,null,"stanghella","PD","I938"]
[null,null,null,null,"staranzano","GO","I939"]
[null,null,null,null,"stati uniti d'america","EE","Z404"]
[null,null,null,null,"statte","TA","M298"]
[null,null,null,null,"stazzano","AL","I941"]
[null,null,null,null,"stazzema","LU","I942"]
[null,null,null,null,"stazzona","CO","I943"]
[null,null,null,null,"stefanaconi","VV","I945"]
[null,null,null,null,"stella","SV","I946"]
[null,null,null,null,"stella cilento","SA","G887"]
[null,null,null,null,"stellanello","SV","I947"]
[null,null,null,null,"stelvio .stilfs.","BZ","I948"]
[null,null,null,null,"stenico","TN","I949"]
[null,null,null,null,"sternatia","LE","I950"]
[null,null,null,null,"stezzano","BG","I951"]
[null,null,null,null,"stia","AR","I952"]
[null,null,null,null,"stienta","RO","I953"]
[null,null,null,null,"stigliano","MT","I954"]
[null,null,null,null,"stignano","RC","I955"]
[null,null,null,null,"stilo","RC","I956"]
[null,null,null,null,"stimigliano","RI","I959"]
[null,null,null,null,"stintino","SS","M290"]
[null,null,null,null,"stio","SA","I960"]
[null,null,null,null,"stornara","FG","I962"]
[null,null,null,null,"stornarella","FG","I963"]
[null,null,null,null,"storo","TN","I964"]
[null,null,null,null,"stra","VE","I965"]
[null,null,null,null,"stradella","PV","I968"]
[null,null,null,null,"strambinello","TO","I969"]
[null,null,null,null,"strambino","TO","I970"]
[null,null,null,null,"strangolagalli","FR","I973"]
[null,null,null,null,"stregna","UD","I974"]
[null,null,null,null,"strembo","TN","I975"]
[null,null,null,null,"stresa","VB","I976"]
[null,null,null,null,"strevi","AL","I977"]
[null,null,null,null,"striano","NA","I978"]
[null,null,null,null,"strigno","TN","I979"]
[null,null,null,null,"strona","BI","I980"]
[null,null,null,null,"stroncone","TR","I981"]
[null,null,null,null,"strongoli","KR","I982"]
[null,null,null,null,"stroppiana","VC","I984"]
[null,null,null,null,"stroppo","CN","I985"]
[null,null,null,null,"strozza","BG","I986"]
[null,null,null,null,"sturno","AV","I990"]
[null,null,null,null,"suardi","PV","B014"]
[null,null,null,null,"subbiano","AR","I991"]
[null,null,null,null,"subiaco","RM","I992"]
[null,null,null,null,"succivo","CE","I993"]
[null,null,null,null,"sudafricana repubblica","EE","Z347"]
[null,null,null,null,"sudan","EE","Z348"]
[null,null,null,null,"sueglio","LC","I994"]
[null,null,null,null,"suelli","CA","I995"]
[null,null,null,null,"suello","LC","I996"]
[null,null,null,null,"suisio","BG","I997"]
[null,null,null,null,"sulbiate","MI","I998"]
[null,null,null,null,"sulmona","AQ","I804"]
[null,null,null,null,"sulzano","BS","L002"]
[null,null,null,null,"sumirago","VA","L003"]
[null,null,null,null,"summonte","AV","L004"]
[null,null,null,null,"suni","NU","L006"]
[null,null,null,null,"suno","NO","L007"]
[null,null,null,null,"supersano","LE","L008"]
[null,null,null,null,"supino","FR","L009"]
[null,null,null,null,"surano","LE","L010"]
[null,null,null,null,"surbo","LE","L011"]
[null,null,null,null,"suriname ex guayana ol","EE","Z608"]
[null,null,null,null,"susa","TO","L013"]
[null,null,null,null,"susegana","TV","L014"]
[null,null,null,null,"sustinente","MN","L015"]
[null,null,null,null,"sutera","CL","L016"]
[null,null,null,null,"sutri","VT","L017"]
[null,null,null,null,"sutrio","UD","L018"]
[null,null,null,null,"suvereto","LI","L019"]
[null,null,null,null,"suzzara","MN","L020"]
[null,null,null,null,"svezia","EE","Z132"]
[null,null,null,null,"svizzera","EE","Z133"]
[null,null,null,null,"swaziland","EE","Z349"]
[null,null,null,null,"taceno","LC","L022"]
[null,null,null,null,"tadasuni","OR","L023"]
[null,null,null,null,"taggia","IM","L024"]
[null,null,null,null,"tagikistan","EE","Z257"]
[null,null,null,null,"tagliacozzo","AQ","L025"]
[null,null,null,null,"taglio di po","RO","L026"]
[null,null,null,null,"tagliolo monferrato","AL","L027"]
[null,null,null,null,"taibon agordino","BL","L030"]
[null,null,null,null,"taino","VA","L032"]
[null,null,null,null,"taio","TN","L033"]
[null,null,null,null,"taipana","UD","G736"]
[null,null,null,null,"taiwan o formosa","EE","Z217"]
[null,null,null,null,"talamello","PU","L034"]
[null,null,null,null,"talamona","SO","L035"]
[null,null,null,null,"talana","NU","L036"]
[null,null,null,null,"taleggio","BG","L037"]
[null,null,null,null,"talla","AR","L038"]
[null,null,null,null,"talmassons","UD","L039"]
[null,null,null,null,"tambre","BL","L040"]
[null,null,null,null,"tanganica","EE","Z350"]
[null,null,null,null,"tanzania","EE","Z357"]
[null,null,null,null,"taormina","ME","L042"]
[null,null,null,null,"tapogliano","UD","L044"]
[null,null,null,null,"tarano","RI","L046"]
[null,null,null,null,"taranta peligna","CH","L047"]
[null,null,null,null,"tarantasca","CN","L048"]
[null,null,null,null,"taranto","TA","L049"]
[null,null,null,null,"tarcento","UD","L050"]
[null,null,null,null,"tarquinia","VT","D024"]
[null,null,null,null,"tarsia","CS","L055"]
[null,null,null,null,"tartano","SO","L056"]
[null,null,null,null,"tarvisio","UD","L057"]
[null,null,null,null,"tarzo","TV","L058"]
[null,null,null,null,"tassarolo","AL","L059"]
[null,null,null,null,"tassullo","TN","L060"]
[null,null,null,null,"taurano","AV","L061"]
[null,null,null,null,"taurasi","AV","L062"]
[null,null,null,null,"taurianova","RC","L063"]
[null,null,null,null,"taurisano","LE","L064"]
[null,null,null,null,"tavagnacco","UD","L065"]
[null,null,null,null,"tavagnasco","TO","L066"]
[null,null,null,null,"tavarnelle val di pesa","FI","L067"]
[null,null,null,null,"tavazzano con villavesco","LO","F260"]
[null,null,null,null,"tavenna","CB","L069"]
[null,null,null,null,"taverna","CZ","L070"]
[null,null,null,null,"tavernerio","CO","L071"]
[null,null,null,null,"tavernola bergamasca","BG","L073"]
[null,null,null,null,"tavernole sul mella","BS","C698"]
[null,null,null,null,"taviano","LE","L074"]
[null,null,null,null,"tavigliano","BI","L075"]
[null,null,null,null,"tavoleto","PU","L078"]
[null,null,null,null,"tavullia","PU","L081"]
[null,null,null,null,"teana","PZ","L082"]
[null,null,null,null,"teano","CE","L083"]
[null,null,null,null,"teggiano","SA","D292"]
[null,null,null,null,"teglio","SO","L084"]
[null,null,null,null,"teglio veneto","VE","L085"]
[null,null,null,null,"telese terme","BN","L086"]
[null,null,null,null,"telgate","BG","L087"]
[null,null,null,null,"telti","SS","L088"]
[null,null,null,null,"telve","TN","L089"]
[null,null,null,null,"telve di sopra","TN","L090"]
[null,null,null,null,"tempio pausania","SS","L093"]
[null,null,null,null,"temu'","BS","L094"]
[null,null,null,null,"tenna","TN","L096"]
[null,null,null,null,"tenno","TN","L097"]
[null,null,null,null,"teolo","PD","L100"]
[null,null,null,null,"teor","UD","L101"]
[null,null,null,null,"teora","AV","L102"]
[null,null,null,null,"teramo","TE","L103"]
[null,null,null,null,"terdobbiate","NO","L104"]
[null,null,null,null,"terelle","FR","L105"]
[null,null,null,null,"terento .terenten.","BZ","L106"]
[null,null,null,null,"terenzo","PR","E548"]
[null,null,null,null,"tergu","SS","M282"]
[null,null,null,null,"terlago","TN","L107"]
[null,null,null,null,"terlano .terlan.","BZ","L108"]
[null,null,null,null,"terlizzi","BA","L109"]
[null,null,null,null,"terme vigliatore","ME","M210"]
[null,null,null,null,"termeno sulla strada del vino .tramin an der.","BZ","L111"]
[null,null,null,null,"termini imerese","PA","L112"]
[null,null,null,null,"termoli","CB","L113"]
[null,null,null,null,"ternate","VA","L115"]
[null,null,null,null,"ternengo","BI","L116"]
[null,null,null,null,"terni","TR","L117"]
[null,null,null,null,"terno d'isola","BG","L118"]
[null,null,null,null,"terracina","LT","L120"]
[null,null,null,null,"terragnolo","TN","L121"]
[null,null,null,null,"terralba","OR","L122"]
[null,null,null,null,"terranova da sibari","CS","L124"]
[null,null,null,null,"terranova dei passerini","LO","L125"]
[null,null,null,null,"terranova di pollino","PZ","L126"]
[null,null,null,null,"terranova sappo minulio","RC","L127"]
[null,null,null,null,"terranuova bracciolini","AR","L123"]
[null,null,null,null,"terrasini","PA","L131"]
[null,null,null,null,"terrassa padovana","PD","L132"]
[null,null,null,null,"terravecchia","CS","L134"]
[null,null,null,null,"terrazzo","VR","L136"]
[null,null,null,null,"terres","TN","L137"]
[null,null,null,null,"terricciola","PI","L138"]
[null,null,null,null,"terruggia","AL","L139"]
[null,null,null,null,"tertenia","NU","L140"]
[null,null,null,null,"terzigno","NA","L142"]
[null,null,null,null,"terzo","AL","L143"]
[null,null,null,null,"terzo di aquileia","UD","L144"]
[null,null,null,null,"terzolas","TN","L145"]
[null,null,null,null,"terzorio","IM","L146"]
[null,null,null,null,"tesero","TN","L147"]
[null,null,null,null,"tesimo .tisens.","BZ","L149"]
[null,null,null,null,"tessennano","VT","L150"]
[null,null,null,null,"testico","SV","L152"]
[null,null,null,null,"teti","NU","L153"]
[null,null,null,null,"teulada","CA","L154"]
[null,null,null,null,"teverola","CE","L155"]
[null,null,null,null,"tezze sul brenta","VI","L156"]
[null,null,null,null,"thailandia","EE","Z241"]
[null,null,null,null,"thiene","VI","L157"]
[null,null,null,null,"thiesi","SS","L158"]
[null,null,null,null,"tiana","NU","L160"]
[null,null,null,null,"tiarno di sopra","TN","L162"]
[null,null,null,null,"tiarno di sotto","TN","L163"]
[null,null,null,null,"ticengo","CR","L164"]
[null,null,null,null,"ticineto","AL","L165"]
[null,null,null,null,"tiggiano","LE","L166"]
[null,null,null,null,"tiglieto","GE","L167"]
[null,null,null,null,"tigliole","AT","L168"]
[null,null,null,null,"tignale","BS","L169"]
[null,null,null,null,"timor (isola)","EE","Z242"]
[null,null,null,null,"tinnura","NU","L172"]
[null,null,null,null,"tione degli abruzzi","AQ","L173"]
[null,null,null,null,"tione di trento","TN","L174"]
[null,null,null,null,"tirano","SO","L175"]
[null,null,null,null,"tires .tiers.","BZ","L176"]
[null,null,null,null,"tiriolo","CZ","L177"]
[null,null,null,null,"tirolo .tirol.","BZ","L178"]
[null,null,null,null,"tissi","SS","L180"]
[null,null,null,null,"tito","PZ","L181"]
[null,null,null,null,"tivoli","RM","L182"]
[null,null,null,null,"tizzano val parma","PR","L183"]
[null,null,null,null,"toano","RE","L184"]
[null,null,null,null,"tocco caudio","BN","L185"]
[null,null,null,null,"tocco da casauria","PE","L186"]
[null,null,null,null,"toceno","VB","L187"]
[null,null,null,null,"todi","PG","L188"]
[null,null,null,null,"toffia","RI","L189"]
[null,null,null,null,"togo","EE","Z351"]
[null,null,null,null,"toirano","SV","L190"]
[null,null,null,null,"tokelau o isole dell'u","EE","Z727"]
[null,null,null,null,"tolentino","MC","L191"]
[null,null,null,null,"tolfa","RM","L192"]
[null,null,null,null,"tollegno","BI","L193"]
[null,null,null,null,"tollo","CH","L194"]
[null,null,null,null,"tolmezzo","UD","L195"]
[null,null,null,null,"tolve","PZ","L197"]
[null,null,null,null,"tombolo","PD","L199"]
[null,null,null,null,"ton","TN","L200"]
[null,null,null,null,"tonadico","TN","L201"]
[null,null,null,null,"tonara","NU","L202"]
[null,null,null,null,"tonco","AT","L203"]
[null,null,null,null,"tonengo","AT","L204"]
[null,null,null,null,"tonezza del cimone","VI","D717"]
[null,null,null,null,"tonga o isole degli am","EE","Z728"]
[null,null,null,null,"tora e piccilli","CE","L205"]
[null,null,null,null,"torano castello","CS","L206"]
[null,null,null,null,"torano nuovo","TE","L207"]
[null,null,null,null,"torbole casaglia","BS","L210"]
[null,null,null,null,"torcegno","TN","L211"]
[null,null,null,null,"torchiara","SA","L212"]
[null,null,null,null,"torchiarolo","BR","L213"]
[null,null,null,null,"torella dei lombardi","AV","L214"]
[null,null,null,null,"torella del sannio","CB","L215"]
[null,null,null,null,"torgiano","PG","L216"]
[null,null,null,null,"torgnon","AO","L217"]
[null,null,null,null,"torino","TO","L219"]
[null,null,null,null,"torino di sangro","CH","L218"]
[null,null,null,null,"toritto","BA","L220"]
[null,null,null,null,"torlino vimercati","CR","L221"]
[null,null,null,null,"tornaco","NO","L223"]
[null,null,null,null,"tornareccio","CH","L224"]
[null,null,null,null,"tornata","CR","L225"]
[null,null,null,null,"tornimparte","AQ","L227"]
[null,null,null,null,"torno","CO","L228"]
[null,null,null,null,"tornolo","PR","L229"]
[null,null,null,null,"toro","CB","L230"]
[null,null,null,null,"torpe'","NU","L231"]
[null,null,null,null,"torraca","SA","L233"]
[null,null,null,null,"torralba","SS","L235"]
[null,null,null,null,"torrazza coste","PV","L237"]
[null,null,null,null,"torrazza piemonte","TO","L238"]
[null,null,null,null,"torrazzo","BI","L239"]
[null,null,null,null,"torre annunziata","NA","L245"]
[null,null,null,null,"torre beretti e castellaro","PV","L250"]
[null,null,null,null,"torre boldone","BG","L251"]
[null,null,null,null,"torre bormida","CN","L252"]
[null,null,null,null,"torre cajetani","FR","L243"]
[null,null,null,null,"torre canavese","TO","L247"]
[null,null,null,null,"torre d'arese","PV","L256"]
[null,null,null,null,"torre d'isola","PV","L269"]
[null,null,null,null,"torre de' busi","LC","L257"]
[null,null,null,null,"torre de' negri","PV","L262"]
[null,null,null,null,"torre de' passeri","PE","L263"]
[null,null,null,null,"torre de' picenardi","CR","L258"]
[null,null,null,null,"torre de' roveri","BG","L265"]
[null,null,null,null,"torre del greco","NA","L259"]
[null,null,null,null,"torre di mosto","VE","L267"]
[null,null,null,null,"torre di ruggiero","CZ","L240"]
[null,null,null,null,"torre di santa maria","SO","L244"]
[null,null,null,null,"torre le nocelle","AV","L272"]
[null,null,null,null,"torre mondovi'","CN","L241"]
[null,null,null,null,"torre orsaia","SA","L274"]
[null,null,null,null,"torre pallavicina","BG","L276"]
[null,null,null,null,"torre pellice","TO","L277"]
[null,null,null,null,"torre san giorgio","CN","L278"]
[null,null,null,null,"torre san patrizio","AP","L279"]
[null,null,null,null,"torre santa susanna","BR","L280"]
[null,null,null,null,"torreano","UD","L246"]
[null,null,null,null,"torrebelvicino","VI","L248"]
[null,null,null,null,"torrebruna","CH","L253"]
[null,null,null,null,"torrecuso","BN","L254"]
[null,null,null,null,"torreglia","PD","L270"]
[null,null,null,null,"torregrotta","ME","L271"]
[null,null,null,null,"torremaggiore","FG","L273"]
[null,null,null,null,"torrenova","ME","M286"]
[null,null,null,null,"torresina","CN","L281"]
[null,null,null,null,"torretta","PA","L282"]
[null,null,null,null,"torrevecchia pia","PV","L285"]
[null,null,null,null,"torrevecchia teatina","CH","L284"]
[null,null,null,null,"torri del benaco","VR","L287"]
[null,null,null,null,"torri di quartesolo","VI","L297"]
[null,null,null,null,"torri in sabina","RI","L286"]
[null,null,null,null,"torriana","RN","I550"]
[null,null,null,null,"torrice","FR","L290"]
[null,null,null,null,"torricella","TA","L294"]
[null,null,null,null,"torricella del pizzo","CR","L296"]
[null,null,null,null,"torricella in sabina","RI","L293"]
[null,null,null,null,"torricella peligna","CH","L291"]
[null,null,null,null,"torricella sicura","TE","L295"]
[null,null,null,null,"torricella verzate","PV","L292"]
[null,null,null,null,"torriglia","GE","L298"]
[null,null,null,null,"torrile","PR","L299"]
[null,null,null,null,"torrioni","AV","L301"]
[null,null,null,null,"torrita di siena","SI","L303"]
[null,null,null,null,"torrita tiberina","RM","L302"]
[null,null,null,null,"tortoli'","NU","A355"]
[null,null,null,null,"tortona","AL","L304"]
[null,null,null,null,"tortora","CS","L305"]
[null,null,null,null,"tortorella","SA","L306"]
[null,null,null,null,"tortoreto","TE","L307"]
[null,null,null,null,"tortorici","ME","L308"]
[null,null,null,null,"torviscosa","UD","L309"]
[null,null,null,null,"toscolano-maderno","BS","L312"]
[null,null,null,null,"tossicia","TE","L314"]
[null,null,null,null,"tovo di sant'agata","SO","L316"]
[null,null,null,null,"tovo san giacomo","SV","L315"]
[null,null,null,null,"trabia","PA","L317"]
[null,null,null,null,"tradate","VA","L319"]
[null,null,null,null,"tramatza","OR","L321"]
[null,null,null,null,"trambileno","TN","L322"]
[null,null,null,null,"tramonti","SA","L323"]
[null,null,null,null,"tramonti di sopra","PN","L324"]
[null,null,null,null,"tramonti di sotto","PN","L325"]
[null,null,null,null,"tramutola","PZ","L326"]
[null,null,null,null,"trana","TO","L327"]
[null,null,null,null,"trani","BA","L328"]
[null,null,null,null,"transacqua","TN","L329"]
[null,null,null,null,"traona","SO","L330"]
[null,null,null,null,"trapani","TP","L331"]
[null,null,null,null,"trappeto","PA","L332"]
[null,null,null,null,"trarego viggiona","VB","L333"]
[null,null,null,null,"trasacco","AQ","L334"]
[null,null,null,null,"trasaghis","UD","L335"]
[null,null,null,null,"trasquera","VB","L336"]
[null,null,null,null,"tratalias","CA","L337"]
[null,null,null,null,"trausella","TO","L338"]
[null,null,null,null,"travaco' siccomario","PV","I236"]
[null,null,null,null,"travagliato","BS","L339"]
[null,null,null,null,"travedona-monate","VA","L342"]
[null,null,null,null,"traversella","TO","L345"]
[null,null,null,null,"traversetolo","PR","L346"]
[null,null,null,null,"traves","TO","L340"]
[null,null,null,null,"travesio","PN","L347"]
[null,null,null,null,"travo","PC","L348"]
[null,null,null,null,"trebaseleghe","PD","L349"]
[null,null,null,null,"trebisacce","CS","L353"]
[null,null,null,null,"trecasali","PR","L354"]
[null,null,null,null,"trecase","NA","M280"]
[null,null,null,null,"trecastagni","CT","L355"]
[null,null,null,null,"trecate","NO","L356"]
[null,null,null,null,"trecchina","PZ","L357"]
[null,null,null,null,"trecenta","RO","L359"]
[null,null,null,null,"tredozio","FC","L361"]
[null,null,null,null,"treglio","CH","L363"]
[null,null,null,null,"tregnago","VR","L364"]
[null,null,null,null,"treia","MC","L366"]
[null,null,null,null,"treiso","CN","L367"]
[null,null,null,null,"tremenico","LC","L368"]
[null,null,null,null,"tremestieri etneo","CT","L369"]
[null,null,null,null,"tremezzo","CO","L371"]
[null,null,null,null,"tremosine","BS","L372"]
[null,null,null,null,"trenta","CS","L375"]
[null,null,null,null,"trentinara","SA","L377"]
[null,null,null,null,"trento","TN","L378"]
[null,null,null,null,"trentola ducenta","CE","L379"]
[null,null,null,null,"trenzano","BS","L380"]
[null,null,null,null,"treppo carnico","UD","L381"]
[null,null,null,null,"treppo grande","UD","L382"]
[null,null,null,null,"trepuzzi","LE","L383"]
[null,null,null,null,"trequanda","SI","L384"]
[null,null,null,null,"tres","TN","L385"]
[null,null,null,null,"tresana","MS","L386"]
[null,null,null,null,"trescore balneario","BG","L388"]
[null,null,null,null,"trescore cremasco","CR","L389"]
[null,null,null,null,"tresigallo","FE","L390"]
[null,null,null,null,"tresivio","SO","L392"]
[null,null,null,null,"tresnuraghes","OR","L393"]
[null,null,null,null,"trevenzuolo","VR","L396"]
[null,null,null,null,"trevi","PG","L397"]
[null,null,null,null,"trevi nel lazio","FR","L398"]
[null,null,null,null,"trevico","AV","L399"]
[null,null,null,null,"treviglio","BG","L400"]
[null,null,null,null,"trevignano","TV","L402"]
[null,null,null,null,"trevignano romano","RM","L401"]
[null,null,null,null,"treville","AL","L403"]
[null,null,null,null,"treviolo","BG","L404"]
[null,null,null,null,"treviso","TV","L407"]
[null,null,null,null,"treviso bresciano","BS","L406"]
[null,null,null,null,"trezzano rosa","MI","L408"]
[null,null,null,null,"trezzano sul naviglio","MI","L409"]
[null,null,null,null,"trezzo sull'adda","MI","L411"]
[null,null,null,null,"trezzo tinella","CN","L410"]
[null,null,null,null,"trezzone","CO","L413"]
[null,null,null,null,"tribano","PD","L414"]
[null,null,null,null,"tribiano","MI","L415"]
[null,null,null,null,"tribogna","GE","L416"]
[null,null,null,null,"tricarico","MT","L418"]
[null,null,null,null,"tricase","LE","L419"]
[null,null,null,null,"tricerro","VC","L420"]
[null,null,null,null,"tricesimo","UD","L421"]
[null,null,null,null,"trichiana","BL","L422"]
[null,null,null,null,"triei","NU","L423"]
[null,null,null,null,"trieste","TS","L424"]
[null,null,null,null,"triggiano","BA","L425"]
[null,null,null,null,"trigolo","CR","L426"]
[null,null,null,null,"trinidad e tobago","EE","Z612"]
[null,null,null,null,"trinita'","CN","L427"]
[null,null,null,null,"trinita' d'agultu e vignola","SS","L428"]
[null,null,null,null,"trinitapoli","FG","B915"]
[null,null,null,null,"trino vercellese","VC","L429"]
[null,null,null,null,"triora","IM","L430"]
[null,null,null,null,"tripi","ME","L431"]
[null,null,null,null,"trisobbio","AL","L432"]
[null,null,null,null,"trissino","VI","L433"]
[null,null,null,null,"triuggio","MI","L434"]
[null,null,null,null,"trivento","CB","L435"]
[null,null,null,null,"trivero","BI","L436"]
[null,null,null,null,"trivigliano","FR","L437"]
[null,null,null,null,"trivignano udinese","UD","L438"]
[null,null,null,null,"trivigno","PZ","L439"]
[null,null,null,null,"trivolzio","PV","L440"]
[null,null,null,null,"trodena .truden.","BZ","L444"]
[null,null,null,null,"trofarello","TO","L445"]
[null,null,null,null,"troia","FG","L447"]
[null,null,null,null,"troina","EN","L448"]
[null,null,null,null,"tromello","PV","L449"]
[null,null,null,null,"trontano","VB","L450"]
[null,null,null,null,"tronzano lago maggiore","VA","A705"]
[null,null,null,null,"tronzano vercellese","VC","L451"]
[null,null,null,null,"tropea","VV","L452"]
[null,null,null,null,"trovo","PV","L453"]
[null,null,null,null,"truccazzano","MI","L454"]
[null,null,null,null,"tubre .taufers in munsterthal.","BZ","L455"]
[null,null,null,null,"tuenno","TN","L457"]
[null,null,null,null,"tufara","CB","L458"]
[null,null,null,null,"tufillo","CH","L459"]
[null,null,null,null,"tufino","NA","L460"]
[null,null,null,null,"tufo","AV","L461"]
[null,null,null,null,"tuglie","LE","L462"]
[null,null,null,null,"tuili","CA","L463"]
[null,null,null,null,"tula","SS","L464"]
[null,null,null,null,"tunisia","EE","Z352"]
[null,null,null,null,"tuoro sul trasimeno","PG","L466"]
[null,null,null,null,"turania","RI","G507"]
[null,null,null,null,"turano lodigiano","LO","L469"]
[null,null,null,null,"turate","CO","L470"]
[null,null,null,null,"turbigo","MI","L471"]
[null,null,null,null,"turchia","EE","Z243"]
[null,null,null,null,"turi","BA","L472"]
[null,null,null,null,"turkmenistan","EE","Z258"]
[null,null,null,null,"turks e caicos (isole)","EE","Z519"]
[null,null,null,null,"turri","CA","L473"]
[null,null,null,null,"turriaco","GO","L474"]
[null,null,null,null,"turrivalignani","PE","L475"]
[null,null,null,null,"tursi","MT","L477"]
[null,null,null,null,"tusa","ME","L478"]
[null,null,null,null,"tuscania","VT","L310"]
[null,null,null,null,"tuvalu","EE","Z732"]
[null,null,null,null,"ubiale clanezzo","BG","C789"]
[null,null,null,null,"uboldo","VA","L480"]
[null,null,null,null,"ucraina","EE","Z138"]
[null,null,null,null,"ucria","ME","L482"]
[null,null,null,null,"udine","UD","L483"]
[null,null,null,null,"uganda","EE","Z353"]
[null,null,null,null,"ugento","LE","L484"]
[null,null,null,null,"uggiano la chiesa","LE","L485"]
[null,null,null,null,"uggiate-trevano","CO","L487"]
[null,null,null,null,"ula' tirso","OR","L488"]
[null,null,null,null,"ulassai","NU","L489"]
[null,null,null,null,"ultimo .ulten.","BZ","L490"]
[null,null,null,null,"umbertide","PG","D786"]
[null,null,null,null,"umbriatico","KR","L492"]
[null,null,null,null,"ungheria","EE","Z134"]
[null,null,null,null,"urago d'oglio","BS","L494"]
[null,null,null,null,"uras","OR","L496"]
[null,null,null,null,"urbana","PD","L497"]
[null,null,null,null,"urbania","PU","L498"]
[null,null,null,null,"urbe","SV","L499"]
[null,null,null,null,"urbino","PU","L500"]
[null,null,null,null,"urbisaglia","MC","L501"]
[null,null,null,null,"urgnano","BG","L502"]
[null,null,null,null,"uri","SS","L503"]
[null,null,null,null,"urss","EE","Z135"]
[null,null,null,null,"uruguay","EE","Z613"]
[null,null,null,null,"ururi","CB","L505"]
[null,null,null,null,"urzulei","NU","L506"]
[null,null,null,null,"uscio","GE","L507"]
[null,null,null,null,"usellus","OR","L508"]
[null,null,null,null,"usini","SS","L509"]
[null,null,null,null,"usmate velate","MI","L511"]
[null,null,null,null,"ussana","CA","L512"]
[null,null,null,null,"ussaramanna","CA","L513"]
[null,null,null,null,"ussassai","NU","L514"]
[null,null,null,null,"usseaux","TO","L515"]
[null,null,null,null,"usseglio","TO","L516"]
[null,null,null,null,"ussita","MC","L517"]
[null,null,null,null,"ustica","PA","L519"]
[null,null,null,null,"uta","CA","L521"]
[null,null,null,null,"uzbekistan","EE","Z259"]
[null,null,null,null,"uzzano","PT","L522"]
[null,null,null,null,"vaccarizzo albanese","CS","L524"]
[null,null,null,null,"vacone","RI","L525"]
[null,null,null,null,"vacri","CH","L526"]
[null,null,null,null,"vadena .pfatten.","BZ","L527"]
[null,null,null,null,"vado ligure","SV","L528"]
[null,null,null,null,"vagli sotto","LU","L533"]
[null,null,null,null,"vaglia","FI","L529"]
[null,null,null,null,"vaglio basilicata","PZ","L532"]
[null,null,null,null,"vaglio serra","AT","L531"]
[null,null,null,null,"vaiano","PO","L537"]
[null,null,null,null,"vaiano cremasco","CR","L535"]
[null,null,null,null,"vaie","TO","L538"]
[null,null,null,null,"vailate","CR","L539"]
[null,null,null,null,"vairano patenora","CE","L540"]
[null,null,null,null,"vajont","PN","M265"]
[null,null,null,null,"val della torre","TO","L555"]
[null,null,null,null,"val di nizza","PV","L562"]
[null,null,null,null,"val di vizze .pfitsch.","BZ","L564"]
[null,null,null,null,"val masino","SO","L638"]
[null,null,null,null,"val rezzo","CO","H259"]
[null,null,null,null,"valbondione","BG","L544"]
[null,null,null,null,"valbrembo","BG","L545"]
[null,null,null,null,"valbrevenna","GE","L546"]
[null,null,null,null,"valbrona","CO","L547"]
[null,null,null,null,"valda","TN","L550"]
[null,null,null,null,"valdagno","VI","L551"]
[null,null,null,null,"valdaora .olang.","BZ","L552"]
[null,null,null,null,"valdastico","VI","L554"]
[null,null,null,null,"valdengo","BI","L556"]
[null,null,null,null,"valderice","TP","G319"]
[null,null,null,null,"valdidentro","SO","L557"]
[null,null,null,null,"valdieri","CN","L558"]
[null,null,null,null,"valdina","ME","L561"]
[null,null,null,null,"valdisotto","SO","L563"]
[null,null,null,null,"valdobbiadene","TV","L565"]
[null,null,null,null,"valduggia","VC","L566"]
[null,null,null,null,"valeggio","PV","L568"]
[null,null,null,null,"valeggio sul mincio","VR","L567"]
[null,null,null,null,"valentano","VT","L569"]
[null,null,null,null,"valenza","AL","L570"]
[null,null,null,null,"valenzano","BA","L571"]
[null,null,null,null,"valera fratta","LO","L572"]
[null,null,null,null,"valfabbrica","PG","L573"]
[null,null,null,null,"valfenera","AT","L574"]
[null,null,null,null,"valfloriana","TN","L575"]
[null,null,null,null,"valfurva","SO","L576"]
[null,null,null,null,"valganna","VA","L577"]
[null,null,null,null,"valgioie","TO","L578"]
[null,null,null,null,"valgoglio","BG","L579"]
[null,null,null,null,"valgrana","CN","L580"]
[null,null,null,null,"valgreghentino","LC","L581"]
[null,null,null,null,"valgrisenche","AO","L582"]
[null,null,null,null,"valguarnera caropepe","EN","L583"]
[null,null,null,null,"vallada agordina","BL","L584"]
[null,null,null,null,"vallanzengo","BI","L586"]
[null,null,null,null,"vallarsa","TN","L588"]
[null,null,null,null,"vallata","AV","L589"]
[null,null,null,null,"valle agricola","CE","L594"]
[null,null,null,null,"valle aurina .ahrntal.","BZ","L595"]
[null,null,null,null,"valle castellana","TE","L597"]
[null,null,null,null,"valle dell'angelo","SA","G540"]
[null,null,null,null,"valle di cadore","BL","L590"]
[null,null,null,null,"valle di casies .gsies.","BZ","L601"]
[null,null,null,null,"valle di maddaloni","CE","L591"]
[null,null,null,null,"valle lomellina","PV","L593"]
[null,null,null,null,"valle mosso","BI","L606"]
[null,null,null,null,"valle salimbene","PV","L617"]
[null,null,null,null,"valle san nicolao","BI","L620"]
[null,null,null,null,"vallebona","IM","L596"]
[null,null,null,null,"vallecorsa","FR","L598"]
[null,null,null,null,"vallecrosia","IM","L599"]
[null,null,null,null,"valledolmo","PA","L603"]
[null,null,null,null,"valledoria","SS","L604"]
[null,null,null,null,"vallefiorita","CZ","I322"]
[null,null,null,null,"vallelonga","VV","L607"]
[null,null,null,null,"vallelunga pratameno","CL","L609"]
[null,null,null,null,"vallemaio","FR","L605"]
[null,null,null,null,"vallepietra","RM","L611"]
[null,null,null,null,"vallerano","VT","L612"]
[null,null,null,null,"vallermosa","CA","L613"]
[null,null,null,null,"vallerotonda","FR","L614"]
[null,null,null,null,"vallesaccarda","AV","L616"]
[null,null,null,null,"valleve","BG","L623"]
[null,null,null,null,"valli del pasubio","VI","L624"]
[null,null,null,null,"vallinfreda","RM","L625"]
[null,null,null,null,"vallio terme","BS","L626"]
[null,null,null,null,"vallo della lucania","SA","L628"]
[null,null,null,null,"vallo di nera","PG","L627"]
[null,null,null,null,"vallo torinese","TO","L629"]
[null,null,null,null,"valloriate","CN","L631"]
[null,null,null,null,"valmacca","AL","L633"]
[null,null,null,null,"valmadrera","LC","L634"]
[null,null,null,null,"valmala","CN","L636"]
[null,null,null,null,"valmontone","RM","L639"]
[null,null,null,null,"valmorea","CO","L640"]
[null,null,null,null,"valmozzola","PR","L641"]
[null,null,null,null,"valnegra","BG","L642"]
[null,null,null,null,"valpelline","AO","L643"]
[null,null,null,null,"valperga","TO","L644"]
[null,null,null,null,"valprato soana","TO","B510"]
[null,null,null,null,"valsavarenche","AO","L647"]
[null,null,null,null,"valsecca","BG","L649"]
[null,null,null,null,"valsinni","MT","D513"]
[null,null,null,null,"valsolda","CO","C936"]
[null,null,null,null,"valstagna","VI","L650"]
[null,null,null,null,"valstrona","VB","L651"]
[null,null,null,null,"valtopina","PG","L653"]
[null,null,null,null,"valtorta","BG","L655"]
[null,null,null,null,"valtournenche","AO","L654"]
[null,null,null,null,"valva","SA","L656"]
[null,null,null,null,"valvasone","PN","L657"]
[null,null,null,null,"valverde","CT","L658"]
[null,null,null,null,"valverde","PV","L659"]
[null,null,null,null,"valvestino","BS","L468"]
[null,null,null,null,"vandoies .vintl.","BZ","L660"]
[null,null,null,null,"vanuatu","EE","Z733"]
[null,null,null,null,"vanzaghello","MI","L664"]
[null,null,null,null,"vanzago","MI","L665"]
[null,null,null,null,"vanzone con san carlo","VB","L666"]
[null,null,null,null,"vaprio d'adda","MI","L667"]
[null,null,null,null,"vaprio d'agogna","NO","L668"]
[null,null,null,null,"varallo","VC","L669"]
[null,null,null,null,"varallo pombia","NO","L670"]
[null,null,null,null,"varano borghi","VA","L671"]
[null,null,null,null,"varano de' melegari","PR","L672"]
[null,null,null,null,"varapodio","RC","L673"]
[null,null,null,null,"varazze","SV","L675"]
[null,null,null,null,"varco sabino","RI","L676"]
[null,null,null,null,"varedo","MI","L677"]
[null,null,null,null,"varena","TN","L678"]
[null,null,null,null,"varenna","LC","L680"]
[null,null,null,null,"varese","VA","L682"]
[null,null,null,null,"varese ligure","SP","L681"]
[null,null,null,null,"varisella","TO","L685"]
[null,null,null,null,"varmo","UD","L686"]
[null,null,null,null,"varna .vahrn.","BZ","L687"]
[null,null,null,null,"varsi","PR","L689"]
[null,null,null,null,"varzi","PV","L690"]
[null,null,null,null,"varzo","VB","L691"]
[null,null,null,null,"vas","BL","L692"]
[null,null,null,null,"vasanello","VT","A701"]
[null,null,null,null,"vasia","IM","L693"]
[null,null,null,null,"vasto","CH","E372"]
[null,null,null,null,"vastogirardi","IS","L696"]
[null,null,null,null,"vattaro","TN","L697"]
[null,null,null,null,"vauda canavese","TO","L698"]
[null,null,null,null,"vazzano","VV","L699"]
[null,null,null,null,"vazzola","TV","L700"]
[null,null,null,null,"vecchiano","PI","L702"]
[null,null,null,null,"vedano al lambro","MI","L704"]
[null,null,null,null,"vedano olona","VA","L703"]
[null,null,null,null,"veddasca","VA","L705"]
[null,null,null,null,"vedelago","TV","L706"]
[null,null,null,null,"vedeseta","BG","L707"]
[null,null,null,null,"veduggio con colzano","MI","L709"]
[null,null,null,null,"veggiano","PD","L710"]
[null,null,null,null,"veglie","LE","L711"]
[null,null,null,null,"veglio","BI","L712"]
[null,null,null,null,"vejano","VT","L713"]
[null,null,null,null,"veleso","CO","L715"]
[null,null,null,null,"velezzo lomellina","PV","L716"]
[null,null,null,null,"velletri","RM","L719"]
[null,null,null,null,"vellezzo bellini","PV","L720"]
[null,null,null,null,"velo d'astico","VI","L723"]
[null,null,null,null,"velo veronese","VR","L722"]
[null,null,null,null,"velturno .feldthurns.","BZ","L724"]
[null,null,null,null,"venafro","IS","L725"]
[null,null,null,null,"venaria reale","TO","L727"]
[null,null,null,null,"venarotta","AP","L728"]
[null,null,null,null,"venasca","CN","L729"]
[null,null,null,null,"venaus","TO","L726"]
[null,null,null,null,"vendone","SV","L730"]
[null,null,null,null,"vendrogno","LC","L731"]
[null,null,null,null,"venegono inferiore","VA","L733"]
[null,null,null,null,"venegono superiore","VA","L734"]
[null,null,null,null,"venetico","ME","L735"]
[null,null,null,null,"venezia","VE","L736"]
[null,null,null,null,"venezuela","EE","Z614"]
[null,null,null,null,"veniano","CO","L737"]
[null,null,null,null,"venosa","PZ","L738"]
[null,null,null,null,"venticano","AV","L739"]
[null,null,null,null,"ventimiglia","IM","L741"]
[null,null,null,null,"ventimiglia di sicilia","PA","L740"]
[null,null,null,null,"ventotene","LT","L742"]
[null,null,null,null,"venzone","UD","L743"]
[null,null,null,null,"verano .voran.","BZ","L745"]
[null,null,null,null,"verano brianza","MI","L744"]
[null,null,null,null,"verbania","VB","L746"]
[null,null,null,null,"verbicaro","CS","L747"]
[null,null,null,null,"vercana","CO","L748"]
[null,null,null,null,"verceia","SO","L749"]
[null,null,null,null,"vercelli","VC","L750"]
[null,null,null,null,"vercurago","LC","L751"]
[null,null,null,null,"verdellino","BG","L752"]
[null,null,null,null,"verdello","BG","L753"]
[null,null,null,null,"verderio inferiore","LC","L755"]
[null,null,null,null,"verderio superiore","LC","L756"]
[null,null,null,null,"verduno","CN","L758"]
[null,null,null,null,"vergato","BO","L762"]
[null,null,null,null,"vergemoli","LU","L763"]
[null,null,null,null,"verghereto","FC","L764"]
[null,null,null,null,"vergiate","VA","L765"]
[null,null,null,null,"vergini americane (iso","EE","Z520"]
[null,null,null,null,"vermezzo","MI","L768"]
[null,null,null,null,"vermiglio","TN","L769"]
[null,null,null,null,"vernante","CN","L771"]
[null,null,null,null,"vernasca","PC","L772"]
[null,null,null,null,"vernate","MI","L773"]
[null,null,null,null,"vernazza","SP","L774"]
[null,null,null,null,"vernio","PO","L775"]
[null,null,null,null,"vernole","LE","L776"]
[null,null,null,null,"verolanuova","BS","L777"]
[null,null,null,null,"verolavecchia","BS","L778"]
[null,null,null,null,"verolengo","TO","L779"]
[null,null,null,null,"veroli","FR","L780"]
[null,null,null,null,"verona","VR","L781"]
[null,null,null,null,"veronella","VR","D193"]
[null,null,null,null,"verrayes","AO","L783"]
[null,null,null,null,"verres","AO","C282"]
[null,null,null,null,"verretto","PV","L784"]
[null,null,null,null,"verrone","BI","L785"]
[null,null,null,null,"verrua po","PV","L788"]
[null,null,null,null,"verrua savoia","TO","L787"]
[null,null,null,null,"vertemate con minoprio","CO","L792"]
[null,null,null,null,"vertova","BG","L795"]
[null,null,null,null,"verucchio","RN","L797"]
[null,null,null,null,"veruno","NO","L798"]
[null,null,null,null,"vervio","SO","L799"]
[null,null,null,null,"vervo'","TN","L800"]
[null,null,null,null,"verzegnis","UD","L801"]
[null,null,null,null,"verzino","KR","L802"]
[null,null,null,null,"verzuolo","CN","L804"]
[null,null,null,null,"vescovana","PD","L805"]
[null,null,null,null,"vescovato","CR","L806"]
[null,null,null,null,"vesime","AT","L807"]
[null,null,null,null,"vespolate","NO","L808"]
[null,null,null,null,"vessalico","IM","L809"]
[null,null,null,null,"vestenanova","VR","L810"]
[null,null,null,null,"vestigne'","TO","L811"]
[null,null,null,null,"vestone","BS","L812"]
[null,null,null,null,"vestreno","LC","L813"]
[null,null,null,null,"vetralla","VT","L814"]
[null,null,null,null,"vetto","RE","L815"]
[null,null,null,null,"vezza d'alba","CN","L817"]
[null,null,null,null,"vezza d'oglio","BS","L816"]
[null,null,null,null,"vezzano","TN","L821"]
[null,null,null,null,"vezzano ligure","SP","L819"]
[null,null,null,null,"vezzano sul crostolo","RE","L820"]
[null,null,null,null,"vezzi portio","SV","L823"]
[null,null,null,null,"viadana","MN","L826"]
[null,null,null,null,"viadanica","BG","L827"]
[null,null,null,null,"viagrande","CT","L828"]
[null,null,null,null,"viale d'asti","AT","L829"]
[null,null,null,null,"vialfre'","TO","L830"]
[null,null,null,null,"viano","RE","L831"]
[null,null,null,null,"viareggio","LU","L833"]
[null,null,null,null,"viarigi","AT","L834"]
[null,null,null,null,"vibo valentia","VV","F537"]
[null,null,null,null,"vibonati","SA","L835"]
[null,null,null,null,"vicalvi","FR","L836"]
[null,null,null,null,"vicari","PA","L837"]
[null,null,null,null,"vicchio","FI","L838"]
[null,null,null,null,"vicenza","VI","L840"]
[null,null,null,null,"vico canavese","TO","L548"]
[null,null,null,null,"vico del gargano","FG","L842"]
[null,null,null,null,"vico equense","NA","L845"]
[null,null,null,null,"vico nel lazio","FR","L843"]
[null,null,null,null,"vicoforte","CN","L841"]
[null,null,null,null,"vicoli","PE","L846"]
[null,null,null,null,"vicolungo","NO","L847"]
[null,null,null,null,"vicopisano","PI","L850"]
[null,null,null,null,"vicovaro","RM","L851"]
[null,null,null,null,"viddalba","SS","M259"]
[null,null,null,null,"vidigulfo","PV","L854"]
[null,null,null,null,"vidor","TV","L856"]
[null,null,null,null,"vidracco","TO","L857"]
[null,null,null,null,"vieste","FG","L858"]
[null,null,null,null,"vietnam","EE","Z251"]
[null,null,null,null,"vietnam del nord","EE","Z245"]
[null,null,null,null,"vietnam del sud","EE","Z244"]
[null,null,null,null,"vietri di potenza","PZ","L859"]
[null,null,null,null,"vietri sul mare","SA","L860"]
[null,null,null,null,"viganella","VB","L864"]
[null,null,null,null,"vigano san martino","BG","L865"]
[null,null,null,null,"vigano'","LC","L866"]
[null,null,null,null,"vigarano mainarda","FE","L868"]
[null,null,null,null,"vigasio","VR","L869"]
[null,null,null,null,"vigevano","PV","L872"]
[null,null,null,null,"viggianello","PZ","L873"]
[null,null,null,null,"viggiano","PZ","L874"]
[null,null,null,null,"viggiu'","VA","L876"]
[null,null,null,null,"vighizzolo d'este","PD","L878"]
[null,null,null,null,"vigliano biellese","BI","L880"]
[null,null,null,null,"vigliano d'asti","AT","L879"]
[null,null,null,null,"vignale monferrato","AL","L881"]
[null,null,null,null,"vignanello","VT","L882"]
[null,null,null,null,"vignate","MI","L883"]
[null,null,null,null,"vignola","MO","L885"]
[null,null,null,null,"vignola falesina","TN","L886"]
[null,null,null,null,"vignole borbera","AL","L887"]
[null,null,null,null,"vignolo","CN","L888"]
[null,null,null,null,"vignone","VB","L889"]
[null,null,null,null,"vigo di cadore","BL","L890"]
[null,null,null,null,"vigo di fassa","TN","L893"]
[null,null,null,null,"vigo rendena","TN","L903"]
[null,null,null,null,"vigodarzere","PD","L892"]
[null,null,null,null,"vigolo","BG","L894"]
[null,null,null,null,"vigolo vattaro","TN","L896"]
[null,null,null,null,"vigolzone","PC","L897"]
[null,null,null,null,"vigone","TO","L898"]
[null,null,null,null,"vigonovo","VE","L899"]
[null,null,null,null,"vigonza","PD","L900"]
[null,null,null,null,"viguzzolo","AL","L904"]
[null,null,null,null,"villa agnedo","TN","L910"]
[null,null,null,null,"villa bartolomea","VR","L912"]
[null,null,null,null,"villa basilica","LU","L913"]
[null,null,null,null,"villa biscossi","PV","L917"]
[null,null,null,null,"villa carcina","BS","L919"]
[null,null,null,null,"villa castelli","BR","L920"]
[null,null,null,null,"villa celiera","PE","L922"]
[null,null,null,null,"villa collemandina","LU","L926"]
[null,null,null,null,"villa cortese","MI","L928"]
[null,null,null,null,"villa d'adda","BG","L929"]
[null,null,null,null,"villa d'alme'","BG","A215"]
[null,null,null,null,"villa d'ogna","BG","L938"]
[null,null,null,null,"villa del bosco","BI","L933"]
[null,null,null,null,"villa del conte","PD","L934"]
[null,null,null,null,"villa di briano","CE","D801"]
[null,null,null,null,"villa di chiavenna","SO","L907"]
[null,null,null,null,"villa di serio","BG","L936"]
[null,null,null,null,"villa di tirano","SO","L908"]
[null,null,null,null,"villa estense","PD","L937"]
[null,null,null,null,"villa faraldi","IM","L943"]
[null,null,null,null,"villa guardia","CO","L956"]
[null,null,null,null,"villa lagarina","TN","L957"]
[null,null,null,null,"villa latina","FR","A081"]
[null,null,null,null,"villa literno","CE","L844"]
[null,null,null,null,"villa minozzo","RE","L969"]
[null,null,null,null,"villa poma","MN","F804"]
[null,null,null,null,"villa rendena","TN","M006"]
[null,null,null,null,"villa san giovanni","RC","M018"]
[null,null,null,null,"villa san giovanni in tuscia","VT","H913"]
[null,null,null,null,"villa san pietro","CA","I118"]
[null,null,null,null,"villa san secondo","AT","M019"]
[null,null,null,null,"villa sant'angelo","AQ","M023"]
[null,null,null,null,"villa sant'antonio","OR","I298"]
[null,null,null,null,"villa santa lucia","FR","L905"]
[null,null,null,null,"villa santa lucia degli abruzzi","AQ","M021"]
[null,null,null,null,"villa santa maria","CH","M022"]
[null,null,null,null,"villa santina","UD","L909"]
[null,null,null,null,"villa santo stefano","FR","I364"]
[null,null,null,null,"villa verde","OR","A609"]
[null,null,null,null,"villa vicentina","UD","M034"]
[null,null,null,null,"villabassa .niederdorf.","BZ","L915"]
[null,null,null,null,"villabate","PA","L916"]
[null,null,null,null,"villachiara","BS","L923"]
[null,null,null,null,"villacidro","CA","L924"]
[null,null,null,null,"villadeati","AL","L931"]
[null,null,null,null,"villadose","RO","L939"]
[null,null,null,null,"villadossola","VB","L906"]
[null,null,null,null,"villafalletto","CN","L942"]
[null,null,null,null,"villafranca d'asti","AT","L945"]
[null,null,null,null,"villafranca di verona","VR","L949"]
[null,null,null,null,"villafranca in lunigiana","MS","L946"]
[null,null,null,null,"villafranca padovana","PD","L947"]
[null,null,null,null,"villafranca piemonte","TO","L948"]
[null,null,null,null,"villafranca sicula","AG","L944"]
[null,null,null,null,"villafranca tirrena","ME","L950"]
[null,null,null,null,"villafrati","PA","L951"]
[null,null,null,null,"villaga","VI","L952"]
[null,null,null,null,"villagrande strisaili","NU","L953"]
[null,null,null,null,"villalago","AQ","L958"]
[null,null,null,null,"villalba","CL","L959"]
[null,null,null,null,"villalfonsina","CH","L961"]
[null,null,null,null,"villalvernia","AL","L963"]
[null,null,null,null,"villamagna","CH","L964"]
[null,null,null,null,"villamaina","AV","L965"]
[null,null,null,null,"villamar","CA","L966"]
[null,null,null,null,"villamarzana","RO","L967"]
[null,null,null,null,"villamassargia","CA","L968"]
[null,null,null,null,"villamiroglio","AL","L970"]
[null,null,null,null,"villandro .villanders.","BZ","L971"]
[null,null,null,null,"villanova biellese","BI","L978"]
[null,null,null,null,"villanova canavese","TO","L982"]
[null,null,null,null,"villanova d'albenga","SV","L975"]
[null,null,null,null,"villanova d'ardenghi","PV","L983"]
[null,null,null,null,"villanova d'asti","AT","L984"]
[null,null,null,null,"villanova del battista","AV","L973"]
[null,null,null,null,"villanova del ghebbo","RO","L985"]
[null,null,null,null,"villanova del sillaro","LO","L977"]
[null,null,null,null,"villanova di camposampiero","PD","L979"]
[null,null,null,null,"villanova marchesana","RO","L988"]
[null,null,null,null,"villanova mondovi'","CN","L974"]
[null,null,null,null,"villanova monferrato","AL","L972"]
[null,null,null,null,"villanova monteleone","SS","L989"]
[null,null,null,null,"villanova solaro","CN","L990"]
[null,null,null,null,"villanova sull'arda","PC","L980"]
[null,null,null,null,"villanova truschedu","OR","L991"]
[null,null,null,null,"villanovaforru","CA","L986"]
[null,null,null,null,"villanovafranca","CA","L987"]
[null,null,null,null,"villanovatulo","NU","L992"]
[null,null,null,null,"villanterio","PV","L994"]
[null,null,null,null,"villanuova sul clisi","BS","L995"]
[null,null,null,null,"villaperuccio","CA","M278"]
[null,null,null,null,"villapiana","CS","B903"]
[null,null,null,null,"villaputzu","CA","L998"]
[null,null,null,null,"villar dora","TO","L999"]
[null,null,null,null,"villar focchiardo","TO","M007"]
[null,null,null,null,"villar pellice","TO","M013"]
[null,null,null,null,"villar perosa","TO","M014"]
[null,null,null,null,"villar san costanzo","CN","M015"]
[null,null,null,null,"villarbasse","TO","M002"]
[null,null,null,null,"villarboit","VC","M003"]
[null,null,null,null,"villareggia","TO","M004"]
[null,null,null,null,"villaricca","NA","G309"]
[null,null,null,null,"villaromagnano","AL","M009"]
[null,null,null,null,"villarosa","EN","M011"]
[null,null,null,null,"villasalto","CA","M016"]
[null,null,null,null,"villasanta","MI","M017"]
[null,null,null,null,"villasimius","CA","B738"]
[null,null,null,null,"villasor","CA","M025"]
[null,null,null,null,"villaspeciosa","CA","M026"]
[null,null,null,null,"villastellone","TO","M027"]
[null,null,null,null,"villata","VC","M028"]
[null,null,null,null,"villaurbana","OR","M030"]
[null,null,null,null,"villavallelonga","AQ","M031"]
[null,null,null,null,"villaverla","VI","M032"]
[null,null,null,null,"villeneuve","AO","L981"]
[null,null,null,null,"villesse","GO","M043"]
[null,null,null,null,"villetta barrea","AQ","M041"]
[null,null,null,null,"villette","VB","M042"]
[null,null,null,null,"villimpenta","MN","M044"]
[null,null,null,null,"villongo","BG","M045"]
[null,null,null,null,"villorba","TV","M048"]
[null,null,null,null,"vilminore di scalve","BG","M050"]
[null,null,null,null,"vimercate","MI","M052"]
[null,null,null,null,"vimodrone","MI","M053"]
[null,null,null,null,"vinadio","CN","M055"]
[null,null,null,null,"vinchiaturo","CB","M057"]
[null,null,null,null,"vinchio","AT","M058"]
[null,null,null,null,"vinci","FI","M059"]
[null,null,null,null,"vinovo","TO","M060"]
[null,null,null,null,"vinzaglio","NO","M062"]
[null,null,null,null,"viola","CN","M063"]
[null,null,null,null,"vione","BS","M065"]
[null,null,null,null,"vipiteno .sterzing.","BZ","M067"]
[null,null,null,null,"virgilio","MN","H123"]
[null,null,null,null,"virle piemonte","TO","M069"]
[null,null,null,null,"visano","BS","M070"]
[null,null,null,null,"vische","TO","M071"]
[null,null,null,null,"visciano","NA","M072"]
[null,null,null,null,"visco","UD","M073"]
[null,null,null,null,"visone","AL","M077"]
[null,null,null,null,"visso","MC","M078"]
[null,null,null,null,"vistarino","PV","M079"]
[null,null,null,null,"vistrorio","TO","M080"]
[null,null,null,null,"vita","TP","M081"]
[null,null,null,null,"viterbo","VT","M082"]
[null,null,null,null,"viticuso","FR","M083"]
[null,null,null,null,"vito d'asio","PN","M085"]
[null,null,null,null,"vitorchiano","VT","M086"]
[null,null,null,null,"vittoria","RG","M088"]
[null,null,null,null,"vittorio veneto","TV","M089"]
[null,null,null,null,"vittorito","AQ","M090"]
[null,null,null,null,"vittuone","MI","M091"]
[null,null,null,null,"vitulano","BN","M093"]
[null,null,null,null,"vitulazio","CE","M092"]
[null,null,null,null,"viu'","TO","M094"]
[null,null,null,null,"vivaro","PN","M096"]
[null,null,null,null,"vivaro romano","RM","M095"]
[null,null,null,null,"viverone","BI","M098"]
[null,null,null,null,"vizzini","CT","M100"]
[null,null,null,null,"vizzola ticino","VA","M101"]
[null,null,null,null,"vizzolo predabissi","MI","M102"]
[null,null,null,null,"vo","PD","M103"]
[null,null,null,null,"vobarno","BS","M104"]
[null,null,null,null,"vobbia","GE","M105"]
[null,null,null,null,"vocca","VC","M106"]
[null,null,null,null,"vodo di cadore","BL","M108"]
[null,null,null,null,"voghera","PV","M109"]
[null,null,null,null,"voghiera","FE","M110"]
[null,null,null,null,"vogogna","VB","M111"]
[null,null,null,null,"volano","TN","M113"]
[null,null,null,null,"volla","NA","M115"]
[null,null,null,null,"volongo","CR","M116"]
[null,null,null,null,"volpago del montello","TV","M118"]
[null,null,null,null,"volpara","PV","M119"]
[null,null,null,null,"volpedo","AL","M120"]
[null,null,null,null,"volpeglino","AL","M121"]
[null,null,null,null,"volpiano","TO","M122"]
[null,null,null,null,"volta mantovana","MN","M125"]
[null,null,null,null,"volta o altovolta","EE","Z354"]
[null,null,null,null,"voltaggio","AL","M123"]
[null,null,null,null,"voltago agordino","BL","M124"]
[null,null,null,null,"volterra","PI","M126"]
[null,null,null,null,"voltido","CR","M127"]
[null,null,null,null,"volturara appula","FG","M131"]
[null,null,null,null,"volturara irpina","AV","M130"]
[null,null,null,null,"volturino","FG","M132"]
[null,null,null,null,"volvera","TO","M133"]
[null,null,null,null,"vottignasco","CN","M136"]
[null,null,null,null,"wallis e futuna (isole","EE","Z729"]
[null,null,null,null,"yemen","EE","Z246"]
[null,null,null,null,"zaccanopoli","VV","M138"]
[null,null,null,null,"zafferana etnea","CT","M139"]
[null,null,null,null,"zagarise","CZ","M140"]
[null,null,null,null,"zagarolo","RM","M141"]
[null,null,null,null,"zaire ex congo leopold","EE","Z312"]
[null,null,null,null,"zambana","TN","M142"]
[null,null,null,null,"zambia","EE","Z355"]
[null,null,null,null,"zambrone","VV","M143"]
[null,null,null,null,"zandobbio","BG","M144"]
[null,null,null,null,"zane'","VI","M145"]
[null,null,null,null,"zanica","BG","M147"]
[null,null,null,null,"zanzibar","EE","Z356"]
[null,null,null,null,"zapponeta","FG","M267"]
[null,null,null,null,"zavattarello","PV","M150"]
[null,null,null,null,"zeccone","PV","M152"]
[null,null,null,null,"zeddiani","OR","M153"]
[null,null,null,null,"zelbio","CO","M156"]
[null,null,null,null,"zelo buon persico","LO","M158"]
[null,null,null,null,"zelo surrigone","MI","M160"]
[null,null,null,null,"zeme","PV","M161"]
[null,null,null,null,"zenevredo","PV","M162"]
[null,null,null,null,"zenson di piave","TV","M163"]
[null,null,null,null,"zerba","PC","M165"]
[null,null,null,null,"zerbo","PV","M166"]
[null,null,null,null,"zerbolo'","PV","M167"]
[null,null,null,null,"zerfaliu","OR","M168"]
[null,null,null,null,"zeri","MS","M169"]
[null,null,null,null,"zermeghedo","VI","M170"]
[null,null,null,null,"zero branco","TV","M171"]
[null,null,null,null,"zevio","VR","M172"]
[null,null,null,null,"ziano di fiemme","TN","M173"]
[null,null,null,null,"ziano piacentino","PC","L848"]
[null,null,null,null,"zibello","PR","M174"]
[null,null,null,null,"zibido san giacomo","MI","M176"]
[null,null,null,null,"zignago","SP","M177"]
[null,null,null,null,"zimbabwe ex rhodesia","EE","Z337"]
[null,null,null,null,"zimella","VR","M178"]
[null,null,null,null,"zimone","BI","M179"]
[null,null,null,null,"zinasco","PV","M180"]
[null,null,null,null,"zoagli","GE","M182"]
[null,null,null,null,"zocca","MO","M183"]
[null,null,null,null,"zogno","BG","M184"]
[null,null,null,null,"zola predosa","BO","M185"]
[null,null,null,null,"zoldo alto","BL","I345"]
[null,null,null,null,"zollino","LE","M187"]
[null,null,null,null,"zone","BS","M188"]
[null,null,null,null,"zoppe' di cadore","BL","M189"]
[null,null,null,null,"zoppola","PN","M190"]
[null,null,null,null,"zovencedo","VI","M194"]
[null,null,null,null,"zubiena","BI","M196"]
[null,null,null,null,"zuccarello","SV","M197"]
[null,null,null,null,"zuclo","TN","M198"]
[null,null,null,null,"zugliano","VI","M199"]
[null,null,null,null,"zuglio","UD","M200"]
[null,null,null,null,"zumaglia","BI","M201"]
[null,null,null,null,"zumpano","CS","M202"]
[null,null,null,null,"zungoli","AV","M203"]
[null,null,null,null,"zungri","VV","M204"]

{"sheet":"Foglio3","index":2,"n_rows":38,"n_cols":8,"rows_kept":38,"cut":false,"hidden":false,"merged":[[0,0,0,1],[0,3,0,4],[0,6,0,7]]}
["CARATTERI DISPARI",null,null,"CARATTERI PARI",null,null,"CODICE DI CONTROLLO"]
["CARATTERE","VALORE",null,"CARATTERE","VALORE",null,"RESTO","LETTERA"]
["0",1,null,"0",0,null,"0","A"]
["1",0,null,"1",1,null,"1","B"]
["2",5,null,"2",2,null,"10","K"]
["3",7,null,"3",3,null,"11","L"]
["4",9,null,"4",4,null,"12","M"]
["5",13,null,"5",5,null,"13","N"]
["6",15,null,"6",6,null,"14","O"]
["7",17,null,"7",7,null,"15","P"]
["8",19,null,"8",8,null,"16","Q"]
["9",21,null,"9",9,null,"17","R"]
["A",1,null,"A",0,null,"18","S"]
["B",0,null,"B",1,null,"19","T"]
["C",5,null,"C",2,null,"2","C"]
["D",7,null,"D",3,null,"20","U"]
["E",9,null,"E",4,null,"21","V"]
["F",13,null,"F",5,null,"22","W"]
["G",15,null,"G",6,null,"23","X"]
["H",17,null,"H",7,null,"24","Y"]
["I",19,null,"I",8,null,"25","Z"]
["J",21,null,"J",9,null,"3","D"]
["K",2,null,"K",10,null,"4","E"]
["L",4,null,"L",11,null,"5","F"]
["M",18,null,"M",12,null,"6","G"]
["N",20,null,"N",13,null,"7","H"]
["O",11,null,"O",14,null,"8","I"]
["P",3,null,"P",15,null,"9","J"]
["Q",6,null,"Q",16]
["R",8,null,"R",17]
["S",12,null,"S",18]
["T",14,null,"T",19]
["U",16,null,"U",20]
["V",10,null,"V",21]
["W",22,null,"W",22]
["X",25,null,"X",23]
["Y",24,null,"Y",24]
["Z",23,null,"Z",25]

{"sheet":"Foglio4","index":3,"n_rows":79,"n_cols":39,"rows_kept":79,"cut":false,"hidden":false,"merged":[[61,20,64,37],[63,9,63,13],[63,1,63,4],[63,5,63,7],[63,14,63,18],[53,1,53,2],[53,3,53,8],[54,3,54,8],[48,20,51,37],[58,29,58,31],[50,8,50,12],[48,9,48,11],[60,21,60,27],[55,1,55,2],[55,3,55,18],[75,11,75,18],[73,9,73,11],[65,16,65,18],[67,3,67,7],[71,1,71,7],[71,8,71,18],[67,1,67,2],[67,8,67,18],[69,1,69,6],[69,9,69,11],[69,15,69,18],[65,1,65,3],[65,4,65,14],[73,1,73,3],[73,4,73,7],[35,22,35,29],[6,23,6,37],[53,9,53,11],[53,12,53,18],[38,1,38,18],[39,1,40,18],[41,1,42,18],[52,13,52,18],[37,32,37,35],[36,30,36,37],[42,20,43,37],[43,1,43,4],[38,20,38,37],[39,20,40,37],[2,1,37,18],[45,11,45,12],[45,14,45,18],[45,3,45,9],[43,12,43,18],[43,5,43,11],[44,5,44,11],[44,12,44,18],[45,32,45,37],[46,23,46,28],[0,20,0,37],[1,20,2,37],[8,20,10,37],[5,20,5,22],[16,23,16,37],[21,25,21,26],[5,23,5,37],[32,22,32,29],[34,22,34,29],[14,22,14,37],[21,27,21,29],[23,25,23,37],[25,31,25,37],[25,23,25,29],[27,36,27,37],[27,24,27,34],[29,22,29,37],[21,35,21,36],[18,25,18,37],[24,25,24,37],[19,25,19,37],[26,23,26,37],[3,20,3,37],[22,26,22,30],[0,1,1,18],[71,20,73,37],[75,32,75,34],[74,30,74,36],[14,20,14,21],[16,20,16,22],[18,20,18,24],[23,20,23,24],[25,20,25,21],[27,20,27,22],[29,20,29,21],[32,20,32,21],[34,20,34,21],[68,22,68,24],[68,28,68,29],[68,30,68,37],[58,23,58,28],[58,32,58,37],[59,23,59,28],[56,1,62,18],[55,22,55,24],[55,30,55,37],[55,28,55,29],[45,23,45,28],[45,29,45,31],[45,1,45,2],[49,1,49,2],[51,11,51,12],[49,9,49,11],[51,13,51,18],[51,1,51,2],[47,10,47,11],[47,12,47,13],[47,14,47,18],[47,3,47,8],[49,14,49,18],[49,3,49,7],[47,1,47,2],[49,12,49,13],[51,4,51,6],[51,7,51,10],[47,21,47,27]]}
[null,"INFORMATIVA PER TRATTAMENTO DI DATI PERSONALI E SENSIBILI\nDocumento informativo ai sensi e per gli effetti di cui all’articolo 13, D. Lgs. 30 giugno 2003 n. 196 ",null,null,null,null,null,null,null,null,null,null,null,null,null,null,null,null,null,null,"Associazione Sportiva Dilettantistica"]
[null,null,null,null,null,null,null,null,null,null,null,null,null,null,null,null,null,null,null,null,"TEAM KARATE ORTANI"]
[null,"In osservanza di quanto previsto dal D. Lgs. 30 giugno 2003 n. 196, vengono di seguito fornite le dovute informazioni in merito alle finalità ed alle modalità di trattamento dei Suoi/Vostri dati personali, all’ambito di comunicazione e diffusione degli stessi, alla natura dei dati in possesso della Società Sportiva (di seguito solo società) e del loro conferimento.\nFinalità del trattamento:\nI Vostri dati vengono/verranno trattati in relazione alle proprie esigenze organizzative ed ai compiti istituzionali attribuiti dalla legge, dai regolamenti, dalla normativa comunitaria, dalle Carte Federali inerenti all’organizzazione e la gestione delle attività previste per statuto dalla società.\nIl trattamento dei dati avverrà per tutta la durata del rapporto ed anche successivamente, per l’espletamento di obblighi di legge e per finalità amministrative e promozionali relative alla gestione dei tesserati.\nIn particolare la finalità del trattamento è strettamente connessa all’organizzazione di attività tese a promuovere, diffondere, migliorare la tecnica e la tattica degli Atleti nel settore dilettantistico e giovanile nonché alla propaganda delle varie discipline attraverso anche attività di volantinaggio fatto a fini pubblicitari, pubblicazioni sul sito internet della società, realizzazione di DVD dimostrativi e calendari sociali.\nModalità del trattamento:\nI Vostri dati saranno trattati nel rispetto della Legge sulla privacy per le esigenze su esposte e saranno trattati tramite supporti cartacei e strumenti informatici ed eventualmente audiovisivi, ma sempre e comunque ad opera di soggetti appositamente incaricati con logiche strettamente correlate alle finalità stesse.\nAmbito di comunicazione e diffusione:\nI Vostri dati potranno essere da noi \"comunicati\", con tale termine intendendosi il darne conoscenza ad uno o più soggetti determinati, nei seguenti termini:\n●   a soggetti incaricati di trattare i dati all’interno della nostra società (collaboratori e dipendenti);\n●   b seguito di obbligo di legge/ispezioni/verifiche all’autorità giudiziaria, ad organi di polizia, o ad altre\n     Amministrazioni Pubbliche per gli adempimenti normativi richiesti, ed in genere a tutti gli organi preposti     \n     a verifiche e controlli circa la regolarità degli adempimenti di cui alle finalità anzi indicate.\nInoltre la società potrebbe diffondere i dati personali al pubblico, a titolo esemplificativo oppure propagandistico, sul sito internet, su pubblicazioni locali o nazionali, realizzando DVD-Video, volantini o calendari.\nIn occasione dei trattamenti la società potrà venire a conoscenza di dati che il D. Lgs. 196/2003 definisce “sensibili”, in quanto idonei a rivelare lo stato di salute, adesione a sindacati, convinzioni religiose e filosofiche e per il trattamento dei quali la legge prevede una specifica manifestazione di consenso da parte dell’interessato.\nLa informiamo inoltre che la società potrebbe diffondere i suoi dati personali sensibili al pubblico, a titolo esemplificativo oppure propagandistico, sul sito internet, su pubblicazioni locali o nazionali, realizzando DVD-Video, volantini o calendari.\nNatura del conferimento:\nLa informiamo che senza il suo consenso scritto alle predette comunicazioni e diffusioni, la società potrà effettuare solo quelle attività che non prevedono tali comunicazioni.\nDiritti di cui all’art. 7  del Decreto Legislativo n. 196/2003.\nIn ogni momento Lei lo desideri potrà esercitare i diritti previsti dall’articolo 7 D. Lgs. N. 196/2003, che in questa sede si intende integralmente richiamato, ed in particolare i diritti di conoscere l’esistenza di trattamenti di dati che possono riguardarla, nonché richiedere al Titolare o al Responsabile del trattamento l’aggiornamento/rettifica/integrazione dei dati ed anche la cancellazione/trasformazione in forma anonima o blocco dei dati trattati contro la legge, nonché l’attestazione che le menzionate operazioni siano portate a conoscenza di coloro ai quali i dati sono stati comunicati o diffusi.\nOpporsi, in tutto o in parte, per motivi legittimi, al trattamento dei dati che Lo riguardano.\nOpporsi, in tutto o in parte, al trattamento dei dati previsto a fini propagandistici.\nSi rende noto, inoltre che, l’eventuale non comunicazione, o comunicazione errata, di una delle informazioni obbligatorie, ha come conseguenze emergenti l’impossibilità del titolare di garantire la congruità del trattamento stesso alle finalità per cui esso sia eseguito.\nL’interessato potrà far valere i suoi diritti come espressi dagli art. 7, 8, 9 e 10 del D. Lgs. 30 giugno 2003 n. 196, rivolgendosi al titolare (oppure al responsabile, se nominato) del trattamento.\nIl titolare del trattamento è la società sportiva TEAM KARATE ORTANI.\nPartita I.V.A. 01848830681, con sede in Montesilvano del comune di Montesilvano provincia di Pescara nella persona del suo legale rappresentante.\nIl responsabile del trattamento è il sig. Ortani Walter.\n"]
[null,null,null,null,null,null,null,null,null,null,null,null,null,null,null,null,null,null,null,null,"N.B. I dati vanno inseriti con formato tutto maiuscole."]
[]
[null,null,null,null,null,null,null,null,null,null,null,null,null,null,null,null,null,null,null,null,"TESSERATO",null,null,{"$f":"CONCATENATE(X17,\" \",W15)","v":" "}]
[null,null,null,null,null,null,null,null,null,null,null,null,null,null,null,null,null,null,null,null,null,null,null,"Cognome e Nome"]
[]
[null,null,null,null,null,null,null,null,null,null,null,null,null,null,null,null,null,null,null,null,"AI FINI DELLA DEDUCIBILITA’ FISCALE, COMUNICARE A CHI INTESTARE LE RICEVUTE EMESSE ALL’ASSOCIAZIONE SPORTIVA DILETTANTISTICA TEAM KARATE ORTANI:\n"]
[]
[]
[]
[null,null,null,null,null,null,null,null,null,null,null,null,null,null,null,null,null,null,null,null,"DATI ANAGRAFICI\n"]
[]
[null,null,null,null,null,null,null,null,null,null,null,null,null,null,null,null,null,null,null,null,"NOME"]
[]
[null,null,null,null,null,null,null,null,null,null,null,null,null,null,null,null,null,null,null,null,"COGNOME"]
[]
[null,null,null,null,null,null,null,null,null,null,null,null,null,null,null,null,null,null,null,null,"LUOGO DI NASCITA"]
[null,null,null,null,null,null,null,null,null,null,null,null,null,null,null,null,null,null,null,null,null,null,null,null,null,"Se non Italiano/a, sostituire il \"Luogo di Nascita\" con lo \"Stato di Nascita\"."]
[]
[null,null,null,null,null,null,null,null,null,null,null,null,null,null,null,null,null,null,null,null,null,null,null,null,null,"DATA",null,null,null,null,null,null,null,"M","F","SESSO"]
[null,null,null,null,null,null,null,null,null,null,null,null,null,null,null,null,null,null,null,null,null,null,null,null,null,null,"Formato: usare trattino (-)."]
[null,null,null,null,null,null,null,null,null,null,null,null,null,null,null,null,null,null,null,null,"CODICE FISCALE",null,null,null,null,{"$f":"Foglio1!G9","v":""}]
[]
[null,null,null,null,null,null,null,null,null,null,null,null,null,null,null,null,null,null,null,null,"E-MAIL",null,null,null,null,null,null,null,null,null,"@"]
[null,null,null,null,null,null,null,null,null,null,null,null,null,null,null,null,null,null,null,null,null,null,null,"Il dato va inserito con formato valido."]
[null,null,null,null,null,null,null,null,null,null,null,null,null,null,null,null,null,null,null,null,"INDIRIZZO",null,null,null,null,null,null,null,null,null,null,null,null,null,null,"N° "]
[]
[null,null,null,null,null,null,null,null,null,null,null,null,null,null,null,null,null,null,null,null,"CITTA’"]
[]
[]
[null,null,null,null,null,null,null,null,null,null,null,null,null,null,null,null,null,null,null,null,"LUOGO",null,null,null,null,null,null,null,null,null,null,"CITTA' SANT'ANGELO","MONTESILVANO"]
[]
[null,null,null,null,null,null,null,null,null,null,null,null,null,null,null,null,null,null,null,null,"DATA "]
[null,null,null,null,null,null,null,null,null,null,null,null,null,null,null,null,null,null,null,null,null,null,"Formato: usare trattino (-)."]
[]
[null,null,null,null,null,null,null,null,null,null,null,null,null,null,null,null,null,null,null,null,null,null,null,null,null,null,null,null,null,null,null,null,"FIRMA"]
[null,"Associazione Sportiva Dilettantistica",null,null,null,null,null,null,null,null,null,null,null,null,null,null,null,null,null,null,"Associazione Sportiva Dilettantistica"]
[null,"TEAM KARATE ORTANI",null,null,null,null,null,null,null,null,null,null,null,null,null,null,null,null,null,null,"TEAM KARATE ORTANI"]
[]
[null,"MODULO DI ADESIONE\n"]
[null,null,null,null,null,null,null,null,null,null,null,null,null,null,null,null,null,null,null,null,"CONSENSO"]
[null,"Il/la sottoscritto/a ",null,null,null,{"$f":"X17","v":0},null,null,null,null,null,null,{"$f":"W15","v":0}]
[null,null,null,null,null,"Cognome",null,null,null,null,null,null,"Nome"]
[null,"Indirizzo",null,{"$f":"Y28","v":0},null,null,null,null,null,null,"N°",{"$f":"AK28","v":0},null,"Città",{"$f":"W30","v":0},null,null,null,null,null,"Il sottoscritto",null,null,{"$f":"CONCATENATE(X17,\" \",W15)","v":" "},null,null,null,null,null,"residente a",null,null,{"$f":"W30","v":0}]
[]
[null,"Comune",null,null,null,null,null,null,null,"Cap",null,null,"Provincia",null,null,null,null,null,null,null,"in",{"$f":"CONCATENATE(Y28,\", \",AK28)","v":", "},null,null,null,null,null,null,"in qualità di interessato, con la firma apposta alla "]
[null,null,null,null,null,null,null,null,null,null,null,null,null,null,null,null,null,null,null,null,"presente attesta il proprio libero consenso affinché titolare e responsabile procedano al trattamento dei propri dati personali cosiddetti comuni e alla loro comunicazione e diffusione nell’ambito dei soggetti indicati nell’informativa e per le finalità indicate sia in Italia che all’estero.\n"]
[null,"Nato a",null,{"$f":"Z19","v":0},null,null,null,null,"Il",{"$f":"IF(AB22,AB22,\"\")","v":""},null,null,"Provincia"]
[]
[null,"Sesso",null,{"$f":"AL22","v":0},"di Nazionalità ",null,null,null,null,null,null,"Telefono"]
[null,null,null,null,null,null,null,null,null,null,null,null,null,"Formato: usare trattino (-)."]
[null,"Cellulare",null,null,null,null,null,null,null,"Di professione"]
[null,null,null,"Formato: usare trattino (-)."]
[null,"Altro",null,null,null,null,null,null,null,null,null,null,null,null,null,null,null,null,null,null,null,"Data",{"$f":"IF(W35,W35,\"\")","v":""},null,null,null,null,null,"FIRMA"]
[null,"Chiede di essere iscritto/a all’Associazione Sportiva Dilettantistica TEAM KARATE ORTANI. Dichiara di aver preso visione dello Statuto e del Regolamento dell’associazione, dello Statuto e dei Regolamenti (di una eventuale Federazione Nazionale o Ente di Promozione Sportiva alla quale è iscritta l’Associazione), nonchè dell’informativa sulla Privacy allegata e di accettarli incondizionatamente, assumendosi ogni responsabilità civile e penale derivante da eventuali danni provocati a persone, animali e cose, sia involontariamente che per infrazione alle norme emanate dagli Statuti e Regolamenti sopra citati."]
[]
[null,null,null,null,null,null,null,null,null,null,null,null,null,null,null,null,null,null,null,null,"Il sottoscritto",null,null,{"$f":"X46","v":" "},null,null,null,null,null,"residente a",null,null,{"$f":"AG46","v":0}]
[]
[null,null,null,null,null,null,null,null,null,null,null,null,null,null,null,null,null,null,null,null,"in",{"$f":"V48","v":", "},null,null,null,null,null,null,"in qualità di interessato, con la firma apposta alla "]
[null,null,null,null,null,null,null,null,null,null,null,null,null,null,null,null,null,null,null,null,"presente attesta il proprio libero consenso affinché titolare e responsabile procedano al trattamento dei propri dati personali cosiddetti sensibili e alla loro comunicazione e diffusione nell’ambito dei soggetti indicati nell’informativa e per le finalità indicate sia in Italia che all’estero.\n"]
[]
[null,"Data versamento",null,null,null,{"$f":"IF(W35,W35,\"\")","v":""},null,null,null,"Quota di iscrizione"]
[]
[null,"Luogo e data",null,null,{"$f":"W33","v":0},null,null,null,null,null,null,null,null,null,null,null,{"$f":"IF(W35,W35,\"\")","v":""}]
[]
[null,"In Fede"]
[null,null,null,null,null,null,null,null,null,null,null,null,null,null,null,null,null,null,null,null,null,"Data",{"$f":"W56","v":""},null,null,null,null,null,"FIRMA"]
[null,"Decisione dell’Associazione\n",null,null,null,null,null,null,"X","AMMESSO",null,null,null,null,null,"NON AMMESSO"]
[]
[null,"Se non ammesso dettaglio motivi",null,null,null,null,null,null,null,null,null,null,null,null,null,null,null,null,null,null,"In mancanza di idonea certificazione medica si mette a conoscenza che il tesserato non usufruirà della copertura assicurativa. Inoltre, in mancanza di codesto certificato l’A.S.D. Team Karate Ortani non si assume nessuna responsabilità.\n"]
[]
[null,"Luogo e data",null,null,"Montesilvano"]
[]
[null,null,null,null,null,null,null,null,null,null,null,"Il Presidente o il Legale Rappresentante",null,null,null,null,null,null,null,null,null,null,null,null,null,null,null,null,null,null,null,null,"FIRMA"]
[null,"Cognome",null,"Nome",null,"Indirizzo",null,"Località",null,"Comune ",null,"C. A. P.",null,"Provincia",null,"Nazionalità",null,"Telefono",null,"Luogo e Comune di nascita",null,"Provincia di nascita ",null,"Data di nascita ",null,"Sesso","C.F.","Grado","Taglia","Data Grado","C. Kumite","Cognome e Nome Genitore","Peso","Codice fiscale","Budo","Qualifica Tecnico","Email","Data Tecnico","E.D.P."]
[]
[null,{"$f":"F44","v":0},null,{"$f":"M44","v":0},null,{"$f":"CONCATENATE(D46,\", \",L46)","v":"0, 0"},null,{"$f":"O46","v":0},null,{"$f":"D48","v":0},null,{"$f":"K48","v":0},null,{"$f":"O48","v":0},null,{"$f":"H52","v":0},null,{"$f":"CONCATENATE(N52,\" \",D54)","v":" "},null,{"$f":"D50","v":0},null,{"$f":"O50","v":0},null,{"$f":"J50","v":""},null,{"$f":"SUBSTITUTE(SUBSTITUTE(D52,\"M\",\"MASCHILE\"),\"F\",\"FEMMINILE\")","v":"0"},{"$f":"Z24","v":""},"01) BIANCA",null,{"$f":"W35","v":"00:00:00"},null,{"$f":"CONCATENATE(X17,\" \",W15)","v":" "},null,{"$f":"Z24","v":""},null,null,{"$f":"CONCATENATE(X26,\"@\",AF26)","v":"@"},null,"F.I.K."]

{"sheet":"Foglio5","index":4,"n_rows":3,"n_cols":39,"rows_kept":3,"cut":false,"hidden":false,"merged":[[0,1,1,38]]}
[null,"LISTA DATI"]
[]
[null,"Cognome",null,"Nome",null,"Indirizzo",null,"Località",null,"Comune ",null,"C. A. P.",null,"Provincia",null,"Nazionalità",null,"Telefono",null,"Luogo e Comune di nascita",null,"Provincia di nascita ",null,"Data di nascita ",null,"Sesso",null,"Grado","Taglia","Data Grado","C. Kumite","Cognome e Nome Genitore","Peso","Codice fiscale","Budo","Qualifica Tecnico","Email","Data Tecnico","E.D.P."]